Workbook

Sheet Manual
A1: ion21Swiss | D1: en 3.3.5 | F1: Global team optimisation portal for forecasted decision making
B3: A key element of the team decision making is the quality of optimization proposals to improve the cooperation strategy presented and assessed by team members.
B4: ion21Swiss is a generalized Swiss model of teamwork, enriched by taking into account the motivation factors of Activity + Competence + Investment.
B5: ion21Swiss system emphasizes the full utilization of the team potential in finding the best solution and its implementation.
B25: Goals and Benefits of ion21Swiss System at the level of a team project:
B26: (1) provides a platform of team decision making that is ethical through a weighted-voting system that enables fair play rules and cooperation agreements
B27: (2) improves workplace atmosphere through reducing interpersonal conflicts and releasing social tensions, leading to better feelings about team decisions
B28: (3) strengthens interpersonal trust and team spirit amongst team members
B30: Goals and Benefits of ion21Swiss at the level of political decision-making:
B31: (1) The way for achieving better results, feelings and perspective of teamwork on the planet Earth; securing the continuous development of all forms of life, including human existence.
B32: (2) Utilization of the blocked subjective potential of all team members, promoted to the role of team boss with equal access to information, opportunities to optimize strategy and influence decisions.
B33: (3) Possibility of unlocking the objective potential by using military defense expenditure in the field of space and medical research, based on the transparent development prognosis of the activities of all entities.
B35: The goal of the ion21Swiss system is to realize your own ideas in achieving better perspectives, feelings and results for all involved, using the blocked subjective and objective potential.
B36: The result can be imagined as a blooming alpine meadow with flowers of different colors, based on the same system of conservation of genetic information.
B37: Or, for example, the fungus mycelium, from which under favorable conditions, the fruiting bodies grow and disappear, at different places differently.
A38: ion21
A49: 2
B50: ion21Alphabet - ABC 7x3 principles | I50: b - PSN optimization proposal Primary, Secondary and Navigation
B51: a = aspects | C51: TTT-aspects of the system: Transparently - Truthfully - Together | I51: (10) P = Primary - basic ACP-proposal with Strategic Analysis, Navigational Conformity and General Prognosis
B52: b = base | C52: PSP-base of the optimization: Proposal - Supplements - Priorities | I52: (11) S = Secondary - specific ACP-proposal with Economic Analysis, Local Conformity and Specific Prognosis
B53: c = core | C53: DPF-core of the implementation: Dimensions - Processes - Factors | I53: (12) N = Navigation - final ACP-proposal with Ecological Analysis, Global Conformity, and Parametric Prognosis
B55: c - PFR navigational dimension of the cooperation corridor | I55: b - ACP supplements of the optimization proposal
B56: (1) P = Perspective - a better perspective of life on Earth ... evolutionary-spiritual dimension | I56: (13) A = Analysis - strategic, economic and ecological analysis of the primary, secondary and navigation proposal
B57: (2) F = Feelings - better feelings of teamwork ... psycho-social ion21Dimension | I57: (14) C = Conformity - navigational, local and global conformity of the primary, secondary and navigation proposal
B58: (3) R = Results - better results of joint efforts ... economic-technological ion21Dimension | I58: (15) P = Prognosis - general, specific and parametric prognosis of the primary, secondary and navigation proposal
B60: c - ION processes Information, Optimization, Navigation | I60: b - NLG system priorities of the optimization proposal
B61: (4) I = Information - sharing of structured information and thematic debate | I61: (16) N = Navigational - Better Perspective dimension, Better Feelings dimension, Better Results dimension
B62: (5) O = Optimization - submitting forecasted optimization proposals | I62: (17) L = Local - locally specific priorities at a given level (settlement/street, municipality/town, region/canton, country)
B63: (6) N = Navigation - harmonization of optimization proposals in three rounds | I63: (18) G = Global - priorities for sustaining the continual development of all forms of life on the planet Earth
B65: c - ACI motivation factors Activity, Competence, Investment | I65: a - TTT-aspects of the ion21Swiss system
B66: (7) A = Activity - valuation of team activity, consideration of time and effort factors | I66: (19) T = Transparently - successful teamwork is based on mutual trust, whose pillar is the full transparency
B67: (8) C = Competence - taking into account education, practice and knowledge in the area | I67: (20) T = Truthfully - within each team, we share verified, clearly structured information, supported by arguments
B68: (9) I = Investment - navigation weight according to material and financial contributions | I68: (21) T = Together - the basis for a successful realisation of decisions is the common will of all concerned team members
B70: ion21Swiss Decision Levels:
B71: Procedural - autonomous ... predominantly individual decision-making according to the procedure, eg driving in accordance with traffic regulations
B72: Operative - consensual ... team meeting or online meeting with discussion and seeking for a consensual solutions, eg morning work meeting
B73: Strategic - ion21Portal ... three-round harmonization of optimization suggestions using the ION processes Information, Optimization and Navigation
B75: ion21Swiss Authority is the ion21Portal applying FAIR PLAY RIGHTS Inform + Optimize + Navigate using three ION-processes:
B76: Team INFO | C76: TeamINFO - Inform | F76: - 1st FAIR PLAY RIGHT on the equal sharing of all project information among all team members
B77: Team OPTI | C77: TeamOPTI - Optimize | F77: - 2nd FAIR PLAY RIGHT on the submission of forecasted proposals for improving the team work
B78: Team NAVI | C78: TeamNAVI - Navigate | F78: - 3rd FAIR PLAY RIGHT on the decision-making on strategic guidelines and cooperation parameters
B80: ion21Swiss Boss Safeguard Rules
B81: ion21Swiss Introducing, Testing and Implementation in an existing running company
B82: can be conditioned by deployment of the following 3 Safeguard Angels:
B83: 1st safeguard rule: Boss Veto Right – based on a proper explanation the submitted optimization proposal can be banned by the current Head (Boss, CEO)
B84: 2nd safeguard rule: Boss Income Right – the Better Results dimension of teamwork has to generate better financial income for each team member than the previous state
B85: 3rd safeguard rule: Boss Stop Right – in case of permanent deviations from the ion21navigation corridor the Stop State can be declared by the current Head
B99: Nature of the ion21Swiss System
C100: PARAMETRIC NATURE of ion21System enables user customization for a particular team and broad spectrum integration of decision-making strategies.
C101: ITERATIVE NATURE of ion21Project allows dynamically optimize parameters of cooperation, distribution of sharing votes and the quality of forecasting proposals
C102: FEEDBACK NATURE of ion21Processes provides background for a successful cooperation of all team members in a consensus-oriented manner
B104: ion21Swiss is a prognostic system, which allows submission of predicted ACP-proposals, individually or collectively as
B105: Primary proposal, generally anticipating consequences,
B106: Secondary proposals with a forecast specific for thevariant of solution, and
B107: Navigation proposal, which contains a parametric prognosis that allows the comparison of key parameter values with real development at checkpoints to be compared.
B108: If the tolerance deviation is repeatedly exceeded, you can declare the Stop status or adjust the navigation prognosis.
B110: ion21Swiss is a motivation system that takes into account the basic motivational factors - Activity, Competence and Investments of each team member who has at its disposal
B111: 7 A-votes for teamwork Activity awards, 7 C-votes taking into account Competence in the field, and 7 I-votes to thank for material or financial Investment.
B112: Always 1 fixed vote can be left, 3 free votes are shared arbitrarily to another team member, 3 tied votes only to those who have fewer votes than they should have by the table of activity, competency and investment.
B113: The weight of votes can be applied directly (sovereign) or it is possible to delegate free votes to one or several representative members (delegates); fixed and tied votes are allocated according to tables of motivational factors.
B115: ion21Swiss is a parametric system that allows you to optimize the setting of functional parameters for a specific location, time and project.
B116: These are the percentage thresholds for the minimum support of the primary, secondary and navigation proposals; percentage level of the refunded investment force;
B117: the time allowed to support the primary proposal, for submission and support of secondary proposals, for sharing of competency votes during expert discussion; for the first, second and third rounds of navigation voting,
B118: whereas the respective times can be specified in several time modes - acute (hours), normal (days), precise (weeks).
B120: ion21Swiss is an iterative system where the solution of the problem is sought in sequential iterative steps with the participation of all team members.
B121: - Drafting of ACP-proposals is optimized by three corrections:
B122: After the primary proposal is approved, alternative secondary proposals are submitted, which can be modified during expert discussion - 1st correction (according to expert opinion).
B123: After the first round of voting, parts of the rejected proposals - 2nd correction (for convergence of opinions) may be included in two winning proposals.
B124: After the second voting round, the navigation proposal may also take into account the outvoted proposal - 3rd correction (to minimize negative feelings of overturning) for the support in the third voting round.
B125: - Parameter settings may vary according to current needs
B126: - Distribution of ACI-votes is gradually adjusted according to circumstances
B128: ion21Swiss is a feedback system with basic processes Information, Optimization and Navigation implemented by the ion21Portal, that through a feedback optimise the teamwork.
B129: During the thematic discussion (Information), team members receive information about different opinions and can better formulate the primary ACP-proposal.
B130: On the basis of views arising from subject discussions during supporting the primary proposal and expert discussion on secondary proposals, the secondary ACP-proposals (Optimization) can be optimized.
B131: During voting (Navigation), the explanation of an appropriate choice (Yes / No) is required in writing to provide information to others, which is useful for reconciliation of views and correction of supported proposals.
B132: Very valuable feedback provides the comparison of predicted and actual values of key parameters at the checkpoints of an implementation of the navigation proposal.
B134: ion21Swiss is an expert system where voters can follow expert discussions, share their competency votes to preferred experts - team members,
B135: and in addition, the submitters can modify their secondary proposals according to the expert opinions (1st ACP-proposal correction).
B137: ion21Swiss is a universal system that includes different decision models. By varying the distribution of the weight of votes, it is possible to simulate not only the presidential / command system (all votes to one),
B138: representatives/experts system (all voices to several) or direct democracy (all with the same weight), as well as various inter-stages (dominance of personalities) or extremes (100% compliance by anarchists).
B139: The sharing of competency votes during the expert discussion before the first voting round increases the weight of trusted experts, specifically on a case-by-case basis.
B141: Decision-making of ion21Sovereigns at the BASE CELL LEVEL
B142: - basic unit (elementary cell with 21 +/- 3 members) of a complex team
B143: - or decision-making in a small project team (21 +/- 20 members)
B144: - ION processes INFO - OPTI - NAVI (Information, Optimization, Navigation) for REAL (realisation)
B146: INFO = team Information process
B147: - thematic discussion on the project
B148: - structured information (title, abstract, report, links, discussion)
B149: - sharing A-votes of Activity and I-votes of Investments within a given unit with thanksgiving
B151: OPTI = team Optimization process
B152: - submitting and support of Primary ACP-proposals qualified by Analysis, Conformity and Prognosis
B153: - Objective discussion on the supported Primary Proposal (PP)
B154: - submitting and support of Secondary ACP-proposals, specific variants of PP
B155: - Expert discussion on supported Secondary Proposals (SP)
B156: - Competency votes sharing to experts among team members
B158: NAVI = team Navigation process
B159: - first correction (C1) supported Secondary proposals (SPs)
B160: - first voting round (R1) with the weight of schared votes
B161: - second correction (C2) of two preferred variants of SPs
B162: - second voting round (R2) with an equal weight of two votes
B163: - third correction (C3) of the winning SP into the Navigation Proposal (NP)
B164: - ACP suplement of the NP: Environmental Analysis, Global Conformity, Navigation Prognosis
B165: - the third voting round (R3) with the weight of one vote about the NP
B166: - full public transparency of the navigation prognosis
B168: REAL = Realization and Verification of the Navigation proposal
B169: - Implementation Team from experts with the most number of Com-votes for the NP
B170: - Inspection Team from experts with the most Com-votes for an alternative to the NP
B171: - monitoring and publication of deviations of key parameter values at checkpoints
B172: - by disagreement of real development with a forecast or when tolerance is exceeded repeatedly
B173: either a Stop State with the option of alternative implementing or adjusting the forecast parameters
B175: C1 - the 1st Correction of proposal during the Navigation process
B176: - optimization of all supported Secondary proposals before the first voting round
B178: R1 - the 1st Round of voting during the Navigation process
B179: - voting on supported Secondary Proposals (SP) with 7 degrees of freedom
B180: by placing shared ACI-votes in points (-3), (-2), (-1), 0, (+1), (+2), (+3)
B181: ... (+1) / (-1) = maybe YES / NO - decision with LOW CERTAINTY
B182: ... (+2) / (-2) = rather YES / NO - decision with MIDDLE CERTAINTY
B183: ... (+3) / (-3) = sure YES / NO - decision with HIGH CERTAINTY
B184: - one or more proposal's variants can be graded supported or declined
B185: - a written justification of the appropriate choice for feedback to others
B186: - the two most supported variants of the SP go to the second voting round
B188: C2 - the 2nd Correction of proposal during the Navigation process
B189: - optimization of two preferred Secondary proposals before the second voting round
B191: R2 - the 2nd Round of voting during the Navigation process
B192: - voting on two winning Secondary Proposals (SP) with 7 degrees of freedom
B193: by placing two votes in points (-6), (-5), (-4), 0, (+4), (+5), (+6)
B194: ... (+4) / (-4) = maybe YES / NO - decision with LOW CERTAINTY
B195: ... (+5) / (-5) = rather YES / NO - decision with MIDDLE CERTAINTY
B196: ... (+6) / (-6) = sure YES / NO - decision with HIGH CERTAINTY
B197: - one or both proposal's variants can be graded supported or declined
B198: - a written justification of the appropriate choice for feedback to others
B199: - the winning SN variant moves to the third voting round as a Navigation Proposal (NP)
B201: C3 - the 3rd Correction of proposal during the Navigation process
B202: - conversion of the winning SP to the Navigation proposal before the third voting round
B204: R3 - the 3rd Round of voting during the Navigation process
B205: - voting on the adoption of the Navigation Proposal (NP)
B206: by placing one vote in points (-7) = NO or (+7) = YES
B207: - a written justification of the appropriate choice for feedback to others
B208: - if the Navigation agreement (%) is not reached, the proposal is refused due to low team consensus
B209: - if accepted, the Navigation Proposal is transparently published and submitted for implementation
B212: M21 Pyramid - desiding by Sovereigns and Presenters
B213: - M21 architecture for over 40 members of a complex project team
B214: - each team member is a Sovereign in the cell for 21 +/- 3 members (base cell with 21 members at the 0-level)
B215: - the cell member Sovereign may become proposal's Presenter at a higher level with 21 members
B216: - Presenter on the 2nd level presents the Primary proposal of his 1st level with 21 to the first power votes
B229: - the Presenter of a successful optimization proposal becomes its Presenter at a higher level, namely of the:
B230: .. Primary proposal in the Left A run (LA, points 1-2-3) of the M21 Pyramid
B231: .. Secondary proposal in the Right A run (RA, points 3-4-5) of the M21 Pyramid
B246: M21_aa.png
B247: M21 architektura
B249: M21 support of the Primary proposal PP
B250: - start at the Base level by the Sovereigns of the cell only, where the PP was submitted: one round with a weight of one vote (YES/NO, point M1)
B251: - the submitter of the PP accepted on the Base level becomes its Presenter on higher levels (2-board, 3-ship, 4-fleet ... to the Top level M2)
B253: - Presenters support (YES) or decline (NO) the PP with the weight of votes according to the number of Sovereigns represented, justifying their choice
B254: - M21 symbolizes in the Left A the assessment of the PP from Base to Top level (from point M1 to M2), by Presenters only from one branch
B255: - if approved up to the Top level, the PP is sent (from point M2 to M3) to all Sovereigns concerned who can formulate Secondary proposal's variants
B276: M21 harmonization of the Secondary proposals SPs
B277: - first on the Base level (point M3) by Sovereigns of all cells affected by the respective Primary proposal
B278: - submitter of the winning SP becomes his Presenter on higher levels (2-board, 3-ship, 4-fleet ... to the Top level M2)
B280: Sovereigns harmonize supported SPs in two rounds, in first and second rounds R1 and R2 on the Base level (point M3):
B281: R1: by shared ACI-votes of Activity, Competence and Investments in points (-3), (-2), (-1), 0, (+1), (+2), (+3)
B282: R2: by two votes in points (-6), (-5), (-4), 0, (+4), (+5), (+6); with stating their choice to others in writing
B284: Presenters harmonize the winning SPs in two voting rounds, the first R1 and the second R2, on higher levels:
B285: R1: by a sum of the weighted votes from the previous 1st round in points (-3), (-2), (-1), 0, (+1), (+2), (+3)
B286: R2: by a sum of the weighted votes from the previous 2nd round in points (-6), (-5), (-4), 0, (+4), (+5), (+6)
B288: - M21 symbolizes in the Right A the alignment of SP from Base to Top level (M3 to M4), by Presenters of all branches concerned
B289: - the winning SP on the Top level becomes Navigation proposal (NP), which is complemented by a parametric Navigation prognosis
B290: - the NP is sent to the Base level (from M4 to M5 point) for approval, to all Sovereigns concerned
B311: Sovereigns approve the Navigation proposal NP in the third voting round R3 on the Base level (point M5):
B312: R3: by one vote in points (-7), 0, (+7); with giving feedback to others by stating the choice in writing
B313: NP is accepted if it exceeds the acceptance threshold ( % minimum compliance) in the absolute majority of cells.
B315: Instead of the direct participation in Strategic decision-making, the team member can DELEGATE his decision-making competencies
C316: by passing his FREE VOTES (3+3+3=9) on one or more representatives.
C317: Relevant tied and fixed votes are automatically allocated by a portal to the members with the greatest deviations from the current table levels
C318: Delegation can be changed or terminated before starting the navigation process.
B320: MEASURE THREE TIMES AND CUT ONCE - three rounds decision-making with explaining the positions of team members SUPPORTS:
C321: Improving of DRAFT QUALITY | G321: - presenters can IMPROVE PROPOSALS to support integration of different viewpoints
C322: Convergence of DIFFERENT VIEWS | G322: - team members receive feedback from others and can accordingly correct their attitudes
C323: Minimization of NEGATIVE FEELINGS | G323: - tiny group of outvoted members do not lose hope to implement their proposal
B337: ion21Swiss RUNNING mode: step by step
B339: ion21Initializing: iniA + iniB + iniC
C340: Step iniA: ion21Project | F340: - define teamwork project with ION navigation: Better Results + Better Feelings + Better Perspective
D341: ION iniA1 | F341: project name, subject, description
D342: ION iniA2 | F342: aims, goals and objectives of the project | I342: PROJECT definition
D343: ION iniA3 | F343: project context, local and global priorities
C344: Step iniB: ion21Team | F344: - put together team members participating on the current project
D345: ION iniB1 | F345: discuss the advantages of ion21approach | I345: Benefits of ion21Swiss | K345: Nature of ion21Swiss | M345: ion21Swiss Decisions
D346: ION iniB2 | F346: get acquainted with team rights and obligations based on the fundamental | K346: Fair Play Rights of ion21Swiss
D347: ION iniB3 | F347: fill in your personal data in the | H347: ion21Team table
C348: Step iniC: ion21Coop | F348: - set the starting values of cooperation parameters that can be iteratively optimized | L348: ion21Coop Parameters
D349: ION iniC1 | F349: set ion21system parameters | H349: P1-Sup.Level | I349: P2-Prim.Prop. | J349: P3-Sec.Prop. | K349: P4-Com.Shar. | L349: P5-VotingR1 | M349: P6-VotingR2 | N349: P7-VotingR3
D350: ION iniC2 | F350: set ion21team parameters | H350: P8-Com.Gen. | I350: P9-Com.Field | J350: P10-Supervis. | K350: P11-INVforce
D351: ION iniC3 | F351: set ion21project parameters | H351: Define and set Project Motivation Parameters
B353: ion21Running: runA + runB + runC
C354: Step runA: ion21Info | F354: - Team Information Process | H354: Team INFO
D355: ION runA1 | F355: fill in your education and experience data in | I355: Team COMpetency table
D356: ION runA2 | F356: register your particular project activities into | I356: Team ACTivity table | K356: & share your | L356: 7 ACT-votes
D357: ION runA3 | F357: financial or material contributions enter into | I357: Team INVestment table | K357: & share your | L357: 7 INV-votes
C358: Step runB: ion21Opti | F358: - Team Optimization Process | H358: Team OPTI
D359: ION runB1 | F359: submit optimization ACP Primary Proposal | I359: ACP-PP enter | J359: & set current | K359: Voting MODE | L359: & support PP | M359: ACP-PP decide
... 7 more rows

Sheet ion21Coop
A1: COOPeration Parameters
B4: Support LEVELS of ACP-proposals | E4: range | F4: value | G4: unit
C5: Primary proposal - PPL | E5: 10-50 | F5: =ROUND(ion21Settings!AE29,0) -> 15 | G5: %
C6: Secondary proposal - SPL | E6: 10-50 | F6: =ROUND(ion21Settings!AF29,0) -> 25 | G6: %
B7: see Levels | C7: Navigation proposal - NPL | E7: 50-90 | F7: =ROUND(ion21Settings!AG29,0) -> 55 | G7: %
B9: Decision-making MODE | E9: range | F9: value | G9: unit
C10: Acute | F10: =F13+F16+F19+F22+F25+F28 -> 12 | G10: hours
C11: Normal | F11: =F14+F17+F20+F23+F26+F29 -> 22 | G11: days
C12: Precise | F12: =F15+F18+F21+F24+F27+F30 -> 8 | G12: weeks
C13: Primary Proposal Acute - PPA | E13: 2-10 | F13: =ROUND(ion21Settings!AE56,0) -> 2 | G13: hours
C14: Primary Proposal Normal - PPN | E14: 3-11 | F14: =ROUND(ion21Settings!AF56,0) -> 5 | G14: days
B15: see Primary | C15: Primary Proposal Precise - PPP | E15: 1-9 | F15: =ROUND(ion21Settings!AG56,0) -> 1 | G15: weeks
C16: Secondary Proposal Acute - SPA | E16: 2-10 | F16: =ROUND(ion21Settings!AE83,0) -> 3 | G16: hours
C17: Secondary Proposal Normal - SPN | E17: 3-11 | F17: =ROUND(ion21Settings!AF83,0) -> 5 | G17: days
B18: see Second | C18: Secondary Proposal Precise - SPP | E18: 1-9 | F18: =ROUND(ion21Settings!AG83,0) -> 2 | G18: weeks
C19: Sharing Competencies Acute - SCA | E19: 1-9 | F19: =ROUND(ion21Settings!AE110,0) -> 2 | G19: hours
C20: Sharing Competencies Normal - SCN | E20: 1-9 | F20: =ROUND(ion21Settings!AF110,0) -> 3 | G20: days
B21: see Compet | C21: Sharing Competencies Precise - SCP | E21: 1-9 | F21: =ROUND(ion21Settings!AG110,0) -> 1 | G21: weeks
C22: Voting Round 1st Acute - R1A | E22: 1-9 | F22: =ROUND(ion21Settings!AE137,0) -> 3 | G22: hours
C23: Voting Round 1st Normal - R1N | E23: 1-9 | F23: =ROUND(ion21Settings!AF137,0) -> 3 | G23: days
A24: ion21 | B24: see 1stVR | C24: Voting Round 1st Precise - R1P | E24: 1-9 | F24: =ROUND(ion21Settings!AG137,0) -> 1 | G24: weeks
C25: Voting Round 2nd Acute - R2A | E25: 1-9 | F25: =ROUND(ion21Settings!AE164,0) -> 1 | G25: hours
C26: Voting Round 2nd Normal - R2N | E26: 1-9 | F26: =ROUND(ion21Settings!AF164,0) -> 3 | G26: days
B27: see 2ndVR | C27: Voting Round 2nd Precise - R2P | E27: 1-9 | F27: =ROUND(ion21Settings!AG164,0) -> 1 | G27: weeks
C28: Voting Round 3rd Acute - R3A | E28: 1-9 | F28: =ROUND(ion21Settings!AE191,0) -> 1 | G28: hours
C29: Voting Round 3rd Normal - R3N | E29: 1-9 | F29: =ROUND(ion21Settings!AF191,0) -> 3 | G29: days
B30: see 3rdVR | C30: Voting Round 3rd Precise - R3P | E30: 1-9 | F30: =ROUND(ion21Settings!AG191,0) -> 2 | G30: weeks
B32: Coefficients of COMPETENCY | E32: range | F32: value | G32: unit
C33: Primary school | E33: 1 | F33: 1
C34: High-school general - HGC | E34: 2-10 | F34: =ROUND(ion21Settings!AE218,0) -> 4
C35: High-school in a field - HFC | E35: 4-12 | F35: =ROUND(ion21Settings!AE245,0) -> 6
C36: University general - UGC | E36: 12-20 | F36: =ROUND(ion21Settings!AF218,0) -> 14
C37: University in a field - UFC | E37: 22-30 | F37: =ROUND(ion21Settings!AF245,0) -> 24
B38: see General | C38: Practice general - PGC | E38: 3-11 | F38: =ROUND(ion21Settings!AG218,0) -> 5
B39: see InField | C39: Practice in a field - PFC | E39: 7-15 | F39: =ROUND(ion21Settings!AG245,0) -> 9
B41: Activity SUPERVISORS | E41: range | F41: value | G41: unit
C42: Number of members - SVM | E42: 1-9 | F42: =ROUND(ion21Settings!V272,0) -> 3
B43: see Activity | C43: Duration of the term - SVT | E43: 14-30 | F43: =ROUND(ion21Settings!X272,0) -> 18 | G43: days
A44: 1
B45: Refunded INVESTMENT force | E45: range | F45: value | G45: unit
B46: see INVforce | C46: Refunded Investment Force - RIF | E46: 10-50 | F46: =ROUND(ion21Settings!M299,0) -> 50 | G46: %
A47: 1
B48: Project Motivation Parameters
B49: DISPOSAL rights
B50: TERM lengths
B51: WAGES policy

Sheet ion21Team
A1: Team MEMBERS list
B2: Main Data Protection
A3: Member:
A4: 0 - All | B4: ID | C4: Code | D4: Name | E4: Surname | F4: Residence | G4: Email | H4: Phone | I4: Skype | J4: Web | K4: Note | L4: Password hash
A5: =B5& " - "&C5 -> 1 - YaJo | B5: 1 | C5: YaJo | D5: Yash Mahendra | E5: Joshi | F5: Mumbai IN | K5: Project Manager | L5: 668622fece15617fd16dc14e744fcae0a50ea6f3
A6: =B6& " - "&C6 -> 2 - GeLo | B6: 2 | C6: GeLo | D6: Gemmi | E6: Lodge | F6: Kandersteg CH | K6: Ana Tavares and Vitor Ribeiro | L6: b09e5bb3db1623f38405b66b06d93584d2e4adfc
A7: =B7& " - "&C7 -> 3 - MiDo | B7: 3 | C7: MiDo | D7: Miloslav | E7: Dorda | F7: Tosanovice CZ | K7: Team Coordinator | L7: 2fdc4684af970c432b36c461be7ba0d856c399c1
A8: =B8& " - "&C8 -> 4 - EmNi | B8: 4 | C8: EmNi | D8: Emil | E8: Nikolov | F8: Mratin CZ | K8: Active Support Team
A9: =B9& " - "&C9 -> 5 - HeJe | B9: 5 | C9: HeJe | D9: Heidi Damgaard | E9: Jensen | F9: Frederiksberg DK | K9: Clients Team
A10: 6 - | B10: 6
A11: 7 - | B11: 7
A12: 8 - | B12: 8
A13: 9 - | B13: 9
A14: 10 - | B14: 10
A15: 11 - | B15: 11
A16: 12 - | B16: 12
A17: 13 - | B17: 13
A18: 14 - | B18: 14
A19: 15 - | B19: 15
A20: 16 - | B20: 16
A21: 17 - | B21: 17
A22: 18 - | B22: 18
A23: 19 - | B23: 19
A24: 20 - | B24: 20
A25: 21 - | B25: 21
B26: Cnt | C26: =COUNTA(C5:C25) -> 5 | K26: ion21
A29: Set:
A30: Lock
A31: Unlock
A32: Reset
A33: ion21
A34: Set:
A35: Lock
A36: Reset
A38: Set:
A39: Unlock
A41: Set:
A42: Reset
A44: 1
A45: Data Protection:
A46: Main Data Protection
A47: All Data Protection
A48: No Data Protection

Sheet ion21Settings
A1: Parameter SETTINGS tables
B2: Main Data Protection
A4: 1 | B4: Support LEVELS of ACP-Proposal
AH5: 0 | AI5: Cnt | AJ5: Parameters:
A6: Member: | B6: Member | D6: Primary Proposal's Level - PPL % | M6: Secondary Proposal's Level - SPL % | V6: Navigational Proposal's Level - NPL % | AE6: Level % | AH6: 1 | AI6: 27 | AJ6: Support LEVELS of ACP-Proposal
A7: 0 - All | B7: ID | C7: Code | D7: 10 | E7: 15 | F7: 20 | G7: 25 | H7: 30 | I7: 35 | J7: 40 | K7: 45 | L7: 50 | M7: 10 | N7: 15 | O7: 20 | P7: 25 | Q7: 30 | R7: 35 | S7: 40 | T7: 45 | U7: 50 | V7: 50 | W7: 55 | X7: 60 | Y7: 65 | Z7: 70 | AA7: 75 | AB7: 80 | AC7: 85 | AD7: 90 | AE7: PPL | AF7: SPL | AG7: NPL | AH7: 2 | AI7: 27 | AJ7: Timespans of PRIMARY PROPOSAL
A8: =B8& " - "&C8 -> 1 - YaJo | B8: =ion21Team!B5 -> 1 | C8: =IF(ISBLANK(ion21Team!C5),"",ion21Team!C5) -> YaJo | F8: x | O8: x | X8: x | AE8: =IFERROR(LOOKUP("x",D8:L8,D$7:L$7),"") -> 20 | AF8: =IFERROR(LOOKUP("x",M8:U8,M$7:U$7),"") -> 20 | AG8: =IFERROR(LOOKUP("x",V8:AD8,V$7:AD$7),"") -> 60 | AH8: 3 | AI8: 27 | AJ8: Timespans of SECONDARY PROPOSAL
A9: =B9& " - "&C9 -> 2 - GeLo | B9: =ion21Team!B6 -> 2 | C9: =IF(ISBLANK(ion21Team!C6),"",ion21Team!C6) -> GeLo | D9: x | Q9: x | V9: x | AE9: =IFERROR(LOOKUP("x",D9:L9,D$7:L$7),"") -> 10 | AF9: =IFERROR(LOOKUP("x",M9:U9,M$7:U$7),"") -> 30 | AG9: =IFERROR(LOOKUP("x",V9:AD9,V$7:AD$7),"") -> 50 | AH9: 4 | AI9: 27 | AJ9: Timespans of SHARING COMPETENCIES
A10: 3 - MiDo | B10: =ion21Team!B7 -> 3 | C10: =IF(ISBLANK(ion21Team!C7),"",ion21Team!C7) -> MiDo | E10: x | P10: x | W10: x | AE10: 15 | AF10: 25 | AG10: 55 | AH10: 5 | AI10: 27 | AJ10: Timespans of 1st VOTING ROUND
A11: 4 - EmNi | B11: =ion21Team!B8 -> 4 | C11: =IF(ISBLANK(ion21Team!C8),"",ion21Team!C8) -> EmNi | AH11: 6 | AI11: 27 | AJ11: Timespans of 2nd VOTING ROUND
A12: 5 - HeJe | B12: =ion21Team!B9 -> 5 | C12: =IF(ISBLANK(ion21Team!C9),"",ion21Team!C9) -> HeJe | AH12: 7 | AI12: 27 | AJ12: Timespans of 3rd VOTING ROUND
A13: 6 - HeJe | B13: =ion21Team!B10 -> 6 | C13: =IF(ISBLANK(ion21Team!C9),"",ion21Team!C9) -> HeJe | AH13: 8 | AI13: 27 | AJ13: Coefficients of GENERAL COMPETENCY
A14: 7 - | B14: =ion21Team!B11 -> 7 | C14: =IF(ISBLANK(ion21Team!C10),"",ion21Team!C10) ->  | AH14: 9 | AI14: 27 | AJ14: Coefficients of COMPETENCY IN A FIELD
A15: 8 - | B15: =ion21Team!B12 -> 8 | C15: =IF(ISBLANK(ion21Team!C11),"",ion21Team!C11) ->  | AH15: 10 | AI15: 27 | AJ15: Activity SUPERVISORS
A16: 9 - | B16: =ion21Team!B13 -> 9 | C16: =IF(ISBLANK(ion21Team!C12),"",ion21Team!C12) ->  | AH16: 11 | AI16: 27 | AJ16: Refunded INVESTMENT force
A17: 10 - | B17: =ion21Team!B14 -> 10 | C17: =IF(ISBLANK(ion21Team!C13),"",ion21Team!C13) -> 
A18: 11 - | B18: =ion21Team!B15 -> 11 | C18: =IF(ISBLANK(ion21Team!C14),"",ion21Team!C14) -> 
A19: 12 - | B19: =ion21Team!B16 -> 12 | C19: =IF(ISBLANK(ion21Team!C16),"",ion21Team!C16) -> 
A20: 13 - | B20: =ion21Team!B17 -> 13 | C20: =IF(ISBLANK(ion21Team!C17),"",ion21Team!C17) -> 
A21: 14 - | B21: =ion21Team!B18 -> 14 | C21: =IF(ISBLANK(ion21Team!C18),"",ion21Team!C18) -> 
A22: 15 - | B22: =ion21Team!B19 -> 15 | C22: =IF(ISBLANK(ion21Team!C19),"",ion21Team!C19) -> 
A23: 16 - | B23: =ion21Team!B20 -> 16 | C23: =IF(ISBLANK(ion21Team!C20),"",ion21Team!C20) -> 
A24: 17 - | B24: =ion21Team!B21 -> 17 | C24: =IF(ISBLANK(ion21Team!C21),"",ion21Team!C21) -> 
A25: 18 - | B25: =ion21Team!B22 -> 18 | C25: =IF(ISBLANK(ion21Team!C22),"",ion21Team!C22) -> 
A26: 19 - | B26: =ion21Team!B23 -> 19 | C26: =IF(ISBLANK(ion21Team!C23),"",ion21Team!C23) -> 
A27: 20 - | B27: =ion21Team!B24 -> 20 | C27: =IF(ISBLANK(ion21Team!C24),"",ion21Team!C24) -> 
A28: 21 - | B28: =ion21Team!B25 -> 21 | C28: =IF(ISBLANK(ion21Team!C25),"",ion21Team!C25) -> 
A29: Set: | B29: Sum: | C29: =SUM(D29:L29,M29:U29,V29:AD29) -> 9 | D29: =COUNTA(D8:D28) -> 1 | E29: =COUNTA(E8:E28) -> 1 | F29: =COUNTA(F8:F28) -> 1 | G29: =COUNTA(G8:G28) -> 0 | H29: 0 | I29: 0 | J29: 0 | K29: 0 | L29: 0 | M29: =COUNTA(M8:M28) -> 0 | N29: =COUNTA(N8:N28) -> 0 | O29: 1 | P29: 1 | Q29: 1 | R29: 0 | S29: 0 | T29: 0 | U29: 0 | V29: =COUNTA(V8:V28) -> 1 | W29: =COUNTA(W8:W28) -> 1 | X29: =COUNTA(X8:X28) -> 1 | Y29: 0 | Z29: 0 | AA29: 0 | AB29: 0 | AC29: 0 | AD29: 0 | AE29: =AVERAGE(AE8:AE28) -> 15 | AF29: =AVERAGE(AF8:AF28) -> 25 | AG29: =AVERAGE(AG8:AG28) -> 55
A30: Lock
A31: Unlock | B31: Timespans of PRIMARY PROPOSAL
A32: Reset
A33: ion21 | B33: Member | D33: ="Primary Proposal Acute - PPA " & ion21Coop!G10 -> Primary Proposal Acute - PPA hours | M33: ="Primary Proposal Normal - PPN " & ion21Coop!G11 -> Primary Proposal Normal - PPN days | V33: ="Primary Proposal Precise - PPP " & ion21Coop!G12 -> Primary Proposal Precise - PPP weeks | AE33: Timespan
A34: Set: | B34: ID | C34: Code | D34: 2 | E34: 3 | F34: 4 | G34: 5 | H34: 6 | I34: 7 | J34: 8 | K34: 9 | L34: 10 | M34: 3 | N34: 4 | O34: 5 | P34: 6 | Q34: 7 | R34: 8 | S34: 9 | T34: 10 | U34: 11 | V34: 1 | W34: 2 | X34: 3 | Y34: 4 | Z34: 5 | AA34: 6 | AB34: 7 | AC34: 8 | AD34: 9 | AE34: PPA | AF34: PPN | AG34: PPP
A35: Lock | B35: =ion21Team!B5 -> 1 | C35: =IF(ISBLANK(ion21Team!C5),"",ion21Team!C5) -> YaJo | D35: x | O35: x | V35: x | AE35: =IFERROR(LOOKUP("x",D35:L35,D$34:L$34),"") -> 2 | AF35: =IFERROR(LOOKUP("x",M35:U35,M$34:U$34),"") -> 5 | AG35: =IFERROR(LOOKUP("x",V35:AD35,V$34:AD$34),"") -> 1
A36: Reset | B36: =ion21Team!B6 -> 2 | C36: =IF(ISBLANK(ion21Team!C6),"",ion21Team!C6) -> GeLo | E36: x | N36: x | W36: x | AE36: =IFERROR(LOOKUP("x",D36:L36,D$34:L$34),"") -> 3 | AF36: =IFERROR(LOOKUP("x",M36:U36,M$34:U$34),"") -> 4 | AG36: =IFERROR(LOOKUP("x",V36:AD36,V$34:AD$34),"") -> 2
B37: =ion21Team!B7 -> 3 | C37: =IF(ISBLANK(ion21Team!C7),"",ion21Team!C7) -> MiDo | D37: x | O37: x | V37: x | AE37: 2 | AF37: 5 | AG37: 1
A38: Set: | B38: =ion21Team!B8 -> 4 | C38: =IF(ISBLANK(ion21Team!C8),"",ion21Team!C8) -> EmNi
A39: Unlock | B39: =ion21Team!B9 -> 5 | C39: =IF(ISBLANK(ion21Team!C9),"",ion21Team!C9) -> HeJe
B40: =ion21Team!B10 -> 6 | C40: =IF(ISBLANK(ion21Team!C10),"",ion21Team!C10) -> 
A41: Set: | B41: =ion21Team!B11 -> 7 | C41: =IF(ISBLANK(ion21Team!C11),"",ion21Team!C11) -> 
A42: Reset | B42: =ion21Team!B12 -> 8 | C42: =IF(ISBLANK(ion21Team!C12),"",ion21Team!C12) -> 
B43: =ion21Team!B13 -> 9 | C43: =IF(ISBLANK(ion21Team!C13),"",ion21Team!C13) -> 
A44: 1 | B44: =ion21Team!B14 -> 10 | C44: =IF(ISBLANK(ion21Team!C14),"",ion21Team!C14) -> 
B45: =ion21Team!B15 -> 11 | C45: =IF(ISBLANK(ion21Team!C15),"",ion21Team!C15) -> 
B46: =ion21Team!B16 -> 12 | C46: =IF(ISBLANK(ion21Team!C16),"",ion21Team!C16) -> 
B47: =ion21Team!B17 -> 13 | C47: =IF(ISBLANK(ion21Team!C17),"",ion21Team!C17) -> 
B48: =ion21Team!B18 -> 14 | C48: =IF(ISBLANK(ion21Team!C18),"",ion21Team!C18) -> 
B49: =ion21Team!B19 -> 15 | C49: =IF(ISBLANK(ion21Team!C19),"",ion21Team!C19) -> 
B50: =ion21Team!B20 -> 16 | C50: =IF(ISBLANK(ion21Team!C20),"",ion21Team!C20) -> 
B51: =ion21Team!B21 -> 17 | C51: =IF(ISBLANK(ion21Team!C21),"",ion21Team!C21) -> 
B52: =ion21Team!B22 -> 18 | C52: =IF(ISBLANK(ion21Team!C22),"",ion21Team!C22) -> 
B53: =ion21Team!B23 -> 19 | C53: =IF(ISBLANK(ion21Team!C23),"",ion21Team!C23) -> 
B54: =ion21Team!B24 -> 20 | C54: =IF(ISBLANK(ion21Team!C24),"",ion21Team!C24) -> 
B55: =ion21Team!B25 -> 21 | C55: =IF(ISBLANK(ion21Team!C25),"",ion21Team!C25) -> 
B56: Sum: | C56: =SUM(D56:L56,M56:U56,V56:AD56) -> 9 | D56: =COUNTA(D35:D55) -> 2 | E56: 1 | F56: 0 | G56: 0 | H56: 0 | I56: 0 | J56: 0 | K56: 0 | L56: 0 | M56: 0 | N56: 1 | O56: 2 | P56: 0 | Q56: 0 | R56: 0 | S56: 0 | T56: 0 | U56: 0 | V56: 2 | W56: 1 | X56: 0 | Y56: 0 | Z56: 0 | AA56: 0 | AB56: 0 | AC56: 0 | AD56: 0 | AE56: =AVERAGE(AE35:AE55) -> 2.333333333 | AF56: =AVERAGE(AF35:AF55) -> 4.666666667 | AG56: =AVERAGE(AG35:AG55) -> 1.333333333
A58: 3 | B58: Timespans of SECONDARY PROPOSAL
B60: Member | D60: ="Secondary Proposal Acute - SPA " & ion21Coop!G10 -> Secondary Proposal Acute - SPA hours | M60: ="Secondary Proposal Normal - SPN " & ion21Coop!G11 -> Secondary Proposal Normal - SPN days | V60: ="Secondary Proposal Precise - SPP " & ion21Coop!G12 -> Secondary Proposal Precise - SPP weeks | AE60: Timespan
B61: ID | C61: Code | D61: 2 | E61: 3 | F61: 4 | G61: 5 | H61: 6 | I61: 7 | J61: 8 | K61: 9 | L61: 10 | M61: 3 | N61: 4 | O61: 5 | P61: 6 | Q61: 7 | R61: 8 | S61: 9 | T61: 10 | U61: 11 | V61: 1 | W61: 2 | X61: 3 | Y61: 4 | Z61: 5 | AA61: 6 | AB61: 7 | AC61: 8 | AD61: 9 | AE61: SPA | AF61: SPN | AG61: SPP
B62: =ion21Team!B5 -> 1 | C62: =IF(ISBLANK(ion21Team!C5),"",ion21Team!C5) -> YaJo | E62: x | O62: x | W62: x | AE62: =IFERROR(LOOKUP("x",D62:L62,D$61:L$61),"") -> 3 | AF62: =IFERROR(LOOKUP("x",M62:U62,M$61:U$61),"") -> 5 | AG62: =IFERROR(LOOKUP("x",V62:AD62,V$61:AD$61),"") -> 2
B63: =ion21Team!B6 -> 2 | C63: =IF(ISBLANK(ion21Team!C6),"",ion21Team!C6) -> GeLo | D63: x | N63: x | V63: x | AE63: =IFERROR(LOOKUP("x",D63:L63,D$61:L$61),"") -> 2 | AF63: =IFERROR(LOOKUP("x",M63:U63,M$61:U$61),"") -> 4 | AG63: =IFERROR(LOOKUP("x",V63:AD63,V$61:AD$61),"") -> 1
B64: =ion21Team!B7 -> 3 | C64: =IF(ISBLANK(ion21Team!C7),"",ion21Team!C7) -> MiDo | E64: x | P64: x | W64: x | AE64: 3 | AF64: 6 | AG64: 2
B65: =ion21Team!B8 -> 4 | C65: =IF(ISBLANK(ion21Team!C8),"",ion21Team!C8) -> EmNi
B66: =ion21Team!B9 -> 5 | C66: =IF(ISBLANK(ion21Team!C9),"",ion21Team!C9) -> HeJe
B67: =ion21Team!B10 -> 6 | C67: =IF(ISBLANK(ion21Team!C10),"",ion21Team!C10) -> 
B68: =ion21Team!B11 -> 7 | C68: =IF(ISBLANK(ion21Team!C11),"",ion21Team!C11) -> 
B69: =ion21Team!B12 -> 8 | C69: =IF(ISBLANK(ion21Team!C12),"",ion21Team!C12) -> 
B70: =ion21Team!B13 -> 9 | C70: =IF(ISBLANK(ion21Team!C13),"",ion21Team!C13) -> 
B71: =ion21Team!B14 -> 10 | C71: =IF(ISBLANK(ion21Team!C14),"",ion21Team!C14) -> 
B72: =ion21Team!B15 -> 11 | C72: =IF(ISBLANK(ion21Team!C15),"",ion21Team!C15) -> 
B73: =ion21Team!B16 -> 12 | C73: =IF(ISBLANK(ion21Team!C16),"",ion21Team!C16) -> 
B74: =ion21Team!B17 -> 13 | C74: =IF(ISBLANK(ion21Team!C17),"",ion21Team!C17) -> 
B75: =ion21Team!B18 -> 14 | C75: =IF(ISBLANK(ion21Team!C18),"",ion21Team!C18) -> 
B76: =ion21Team!B19 -> 15 | C76: =IF(ISBLANK(ion21Team!C19),"",ion21Team!C19) -> 
B77: =ion21Team!B20 -> 16 | C77: =IF(ISBLANK(ion21Team!C20),"",ion21Team!C20) -> 
B78: =ion21Team!B21 -> 17 | C78: =IF(ISBLANK(ion21Team!C21),"",ion21Team!C21) -> 
B79: =ion21Team!B22 -> 18 | C79: =IF(ISBLANK(ion21Team!C22),"",ion21Team!C22) -> 
B80: =ion21Team!B23 -> 19 | C80: =IF(ISBLANK(ion21Team!C23),"",ion21Team!C23) -> 
B81: =ion21Team!B24 -> 20 | C81: =IF(ISBLANK(ion21Team!C24),"",ion21Team!C24) -> 
B82: =ion21Team!B25 -> 21 | C82: =IF(ISBLANK(ion21Team!C25),"",ion21Team!C25) -> 
B83: Sum: | C83: =SUM(D83:L83,M83:U83,V83:AD83) -> 8 | D83: =COUNTA(D62:D82) -> 1 | E83: 2 | F83: 0 | G83: 0 | H83: 0 | I83: 0 | J83: 0 | K83: 0 | L83: 0 | M83: 0 | N83: 1 | O83: 1 | P83: 1 | Q83: 0 | R83: 0 | S83: 0 | T83: 0 | U83: 0 | V83: 1 | W83: =COUNTA(W63:W82) -> 1 | X83: 0 | Y83: 0 | Z83: 0 | AA83: 0 | AB83: 0 | AC83: 0 | AD83: 0 | AE83: =AVERAGE(AE62:AE82) -> 2.666666667 | AF83: =AVERAGE(AF62:AF82) -> 5 | AG83: =AVERAGE(AG62:AG82) -> 1.666666667
A85: 4 | B85: Timespans of SHARING COMPETENCIES
B87: Member | D87: ="Sharing COM Votes Acute - SCA " & ion21Coop!G10 -> Sharing COM Votes Acute - SCA hours | M87: ="Sharing COM Votes Normal - SCN " & ion21Coop!G11 -> Sharing COM Votes Normal - SCN days | V87: ="Sharing COM Votes Precise - SCP " & ion21Coop!G12 -> Sharing COM Votes Precise - SCP weeks | AE87: Timespan
B88: ID | C88: Code | D88: 1 | E88: 2 | F88: 3 | G88: 4 | H88: 5 | I88: 6 | J88: 7 | K88: 8 | L88: 9 | M88: 1 | N88: 2 | O88: 3 | P88: 4 | Q88: 5 | R88: 6 | S88: 7 | T88: 8 | U88: 9 | V88: 1 | W88: 2 | X88: 3 | Y88: 4 | Z88: 5 | AA88: 6 | AB88: 7 | AC88: 8 | AD88: 9 | AE88: SCA | AF88: SCN | AG88: SCP
B89: =ion21Team!B5 -> 1 | C89: =IF(ISBLANK(ion21Team!C5),"",ion21Team!C5) -> YaJo | E89: x | O89: x | V89: x | AE89: =IFERROR(LOOKUP("x",D89:L89,D$88:L$88),"") -> 2 | AF89: =IFERROR(LOOKUP("x",M89:U89,M$88:U$88),"") -> 3 | AG89: =IFERROR(LOOKUP("x",V89:AD89,V$88:AD$88),"") -> 1
B90: =ion21Team!B6 -> 2 | C90: =IF(ISBLANK(ion21Team!C6),"",ion21Team!C6) -> GeLo | F90: x | N90: x | W90: x | AE90: =IFERROR(LOOKUP("x",D90:L90,D$88:L$88),"") -> 3 | AF90: =IFERROR(LOOKUP("x",M90:U90,M$88:U$88),"") -> 2 | AG90: =IFERROR(LOOKUP("x",V90:AD90,V$88:AD$88),"") -> 2
B91: =ion21Team!B7 -> 3 | C91: =IF(ISBLANK(ion21Team!C7),"",ion21Team!C7) -> MiDo | D91: x | P91: x | V91: x | AE91: 1 | AF91: 4 | AG91: 1
B92: =ion21Team!B8 -> 4 | C92: =IF(ISBLANK(ion21Team!C8),"",ion21Team!C8) -> EmNi
B93: =ion21Team!B9 -> 5 | C93: =IF(ISBLANK(ion21Team!C9),"",ion21Team!C9) -> HeJe
B94: =ion21Team!B10 -> 6 | C94: =IF(ISBLANK(ion21Team!C10),"",ion21Team!C10) -> 
B95: =ion21Team!B11 -> 7 | C95: =IF(ISBLANK(ion21Team!C11),"",ion21Team!C11) -> 
B96: =ion21Team!B12 -> 8 | C96: =IF(ISBLANK(ion21Team!C12),"",ion21Team!C12) -> 
B97: =ion21Team!B13 -> 9 | C97: =IF(ISBLANK(ion21Team!C13),"",ion21Team!C13) -> 
B98: =ion21Team!B14 -> 10 | C98: =IF(ISBLANK(ion21Team!C14),"",ion21Team!C14) -> 
B99: =ion21Team!B15 -> 11 | C99: =IF(ISBLANK(ion21Team!C15),"",ion21Team!C15) -> 
B100: =ion21Team!B16 -> 12 | C100: =IF(ISBLANK(ion21Team!C16),"",ion21Team!C16) -> 
B101: =ion21Team!B17 -> 13 | C101: =IF(ISBLANK(ion21Team!C17),"",ion21Team!C17) -> 
B102: =ion21Team!B18 -> 14 | C102: =IF(ISBLANK(ion21Team!C18),"",ion21Team!C18) -> 
B103: =ion21Team!B19 -> 15 | C103: =IF(ISBLANK(ion21Team!C19),"",ion21Team!C19) -> 
B104: =ion21Team!B20 -> 16 | C104: =IF(ISBLANK(ion21Team!C20),"",ion21Team!C20) -> 
B105: =ion21Team!B21 -> 17 | C105: =IF(ISBLANK(ion21Team!C21),"",ion21Team!C21) -> 
B106: =ion21Team!B22 -> 18 | C106: =IF(ISBLANK(ion21Team!C22),"",ion21Team!C22) -> 
B107: =ion21Team!B23 -> 19 | C107: =IF(ISBLANK(ion21Team!C23),"",ion21Team!C23) -> 
B108: =ion21Team!B24 -> 20 | C108: =IF(ISBLANK(ion21Team!C24),"",ion21Team!C24) -> 
B109: =ion21Team!B25 -> 21 | C109: =IF(ISBLANK(ion21Team!C25),"",ion21Team!C25) -> 
B110: Sum: | C110: =SUM(D110:L110,M110:U110,V110:AD110) -> 9 | D110: =COUNTA(D89:D109) -> 1 | E110: 1 | F110: 1 | G110: 0 | H110: 0 | I110: 0 | J110: 0 | K110: 0 | L110: 0 | M110: 0 | N110: 1 | O110: 1 | P110: 1 | Q110: 0 | R110: 0 | S110: 0 | T110: 0 | U110: 0 | V110: 2 | W110: 1 | X110: 0 | Y110: 0 | Z110: 0 | AA110: 0 | AB110: 0 | AC110: 0 | AD110: 0 | AE110: =AVERAGE(AE89:AE109) -> 2 | AF110: =AVERAGE(AF89:AF109) -> 3 | AG110: =AVERAGE(AG89:AG109) -> 1.333333333
A112: 5 | B112: Timespans of 1st VOTING ROUND
B114: Member | D114: ="Voting Round 1st Acute - R1A " & ion21Coop!G10 -> Voting Round 1st Acute - R1A hours | M114: ="Voting Round 1st Normal - R1N " & ion21Coop!G11 -> Voting Round 1st Normal - R1N days | V114: ="Voting Round 1st Precise - R1P " & ion21Coop!G12 -> Voting Round 1st Precise - R1P weeks | AE114: Timespan
B115: ID | C115: Code | D115: 1 | E115: 2 | F115: 3 | G115: 4 | H115: 5 | I115: 6 | J115: 7 | K115: 8 | L115: 9 | M115: 1 | N115: 2 | O115: 3 | P115: 4 | Q115: 5 | R115: 6 | S115: 7 | T115: 8 | U115: 9 | V115: 1 | W115: 2 | X115: 3 | Y115: 4 | Z115: 5 | AA115: 6 | AB115: 7 | AC115: 8 | AD115: 9 | AE115: R1A | AF115: R1N | AG115: R1P
B116: =ion21Team!B5 -> 1 | C116: =IF(ISBLANK(ion21Team!C5),"",ion21Team!C5) -> YaJo | F116: x | O116: x | V116: x | AE116: =IFERROR(LOOKUP("x",D116:L116,D$115:L$115),"") -> 3 | AF116: =IFERROR(LOOKUP("x",M116:U116,M$115:U$115),"") -> 3 | AG116: =IFERROR(LOOKUP("x",V116:AD116,V$115:AD$115),"") -> 1
B117: =ion21Team!B6 -> 2 | C117: =IF(ISBLANK(ion21Team!C6),"",ion21Team!C6) -> GeLo | E117: x | N117: x | V117: x | AE117: =IFERROR(LOOKUP("x",D117:L117,D$115:L$115),"") -> 2 | AF117: =IFERROR(LOOKUP("x",M117:U117,M$115:U$115),"") -> 2 | AG117: =IFERROR(LOOKUP("x",V117:AD117,V$115:AD$115),"") -> 1
B118: =ion21Team!B7 -> 3 | C118: =IF(ISBLANK(ion21Team!C7),"",ion21Team!C7) -> MiDo | G118: x | P118: x | W118: x | AE118: 4 | AF118: 4 | AG118: 2
B119: =ion21Team!B8 -> 4 | C119: =IF(ISBLANK(ion21Team!C8),"",ion21Team!C8) -> EmNi
B120: =ion21Team!B9 -> 5 | C120: =IF(ISBLANK(ion21Team!C9),"",ion21Team!C9) -> HeJe
B121: =ion21Team!B10 -> 6 | C121: =IF(ISBLANK(ion21Team!C10),"",ion21Team!C10) -> 
B122: =ion21Team!B11 -> 7 | C122: =IF(ISBLANK(ion21Team!C11),"",ion21Team!C11) -> 
B123: =ion21Team!B12 -> 8 | C123: =IF(ISBLANK(ion21Team!C12),"",ion21Team!C12) -> 
B124: =ion21Team!B13 -> 9 | C124: =IF(ISBLANK(ion21Team!C13),"",ion21Team!C13) -> 
B125: =ion21Team!B14 -> 10 | C125: =IF(ISBLANK(ion21Team!C14),"",ion21Team!C14) -> 
B126: =ion21Team!B15 -> 11 | C126: =IF(ISBLANK(ion21Team!C15),"",ion21Team!C15) -> 
B127: =ion21Team!B16 -> 12 | C127: =IF(ISBLANK(ion21Team!C16),"",ion21Team!C16) -> 
B128: =ion21Team!B17 -> 13 | C128: =IF(ISBLANK(ion21Team!C17),"",ion21Team!C17) -> 
B129: =ion21Team!B18 -> 14 | C129: =IF(ISBLANK(ion21Team!C18),"",ion21Team!C18) -> 
B130: =ion21Team!B19 -> 15 | C130: =IF(ISBLANK(ion21Team!C19),"",ion21Team!C19) -> 
B131: =ion21Team!B20 -> 16 | C131: =IF(ISBLANK(ion21Team!C20),"",ion21Team!C20) -> 
B132: =ion21Team!B21 -> 17 | C132: =IF(ISBLANK(ion21Team!C21),"",ion21Team!C21) -> 
B133: =ion21Team!B22 -> 18 | C133: =IF(ISBLANK(ion21Team!C22),"",ion21Team!C22) -> 
B134: =ion21Team!B23 -> 19 | C134: =IF(ISBLANK(ion21Team!C23),"",ion21Team!C23) -> 
B135: =ion21Team!B24 -> 20 | C135: =IF(ISBLANK(ion21Team!C24),"",ion21Team!C24) -> 
B136: =ion21Team!B25 -> 21 | C136: =IF(ISBLANK(ion21Team!C25),"",ion21Team!C25) -> 
B137: Sum: | C137: =SUM(D137:L137,M137:U137,V137:AD137) -> 9 | D137: =COUNTA(D116:D136) -> 0 | E137: 1 | F137: 1 | G137: 1 | H137: 0 | I137: 0 | J137: 0 | K137: 0 | L137: 0 | M137: 0 | N137: 1 | O137: 1 | P137: 1 | Q137: 0 | R137: 0 | S137: 0 | T137: 0 | U137: 0 | V137: 2 | W137: 1 | X137: 0 | Y137: 0 | Z137: 0 | AA137: 0 | AB137: 0 | AC137: 0 | AD137: 0 | AE137: =AVERAGE(AE116:AE136) -> 3 | AF137: =AVERAGE(AF116:AF136) -> 3 | AG137: =AVERAGE(AG116:AG136) -> 1.333333333
A139: 6 | B139: Timespans of 2nd VOTING ROUND
B141: Member | D141: ="Voting Round 2nd Acute - R1A " & ion21Coop!G10 -> Voting Round 2nd Acute - R1A hours | M141: ="Voting Round 2nd Normal - R1N " & ion21Coop!G11 -> Voting Round 2nd Normal - R1N days | V141: ="Voting Round 2nd Precise - R1P " & ion21Coop!G12 -> Voting Round 2nd Precise - R1P weeks | AE141: Timespan
B142: ID | C142: Code | D142: 1 | E142: 2 | F142: 3 | G142: 4 | H142: 5 | I142: 6 | J142: 7 | K142: 8 | L142: 9 | M142: 1 | N142: 2 | O142: 3 | P142: 4 | Q142: 5 | R142: 6 | S142: 7 | T142: 8 | U142: 9 | V142: 1 | W142: 2 | X142: 3 | Y142: 4 | Z142: 5 | AA142: 6 | AB142: 7 | AC142: 8 | AD142: 9 | AE142: R2A | AF142: R2N | AG142: R2P
B143: =ion21Team!B5 -> 1 | C143: =IF(ISBLANK(ion21Team!C5),"",ion21Team!C5) -> YaJo | D143: x | O143: x | V143: x | AE143: =IFERROR(LOOKUP("x",D143:L143,D$142:L$142),"") -> 1 | AF143: =IFERROR(LOOKUP("x",M143:U143,M$142:U$142),"") -> 3 | AG143: =IFERROR(LOOKUP("x",V143:AD143,V$142:AD$142),"") -> 1
B144: =ion21Team!B6 -> 2 | C144: =IF(ISBLANK(ion21Team!C6),"",ion21Team!C6) -> GeLo | E144: x | N144: x | W144: x | AE144: =IFERROR(LOOKUP("x",D144:L144,D$142:L$142),"") -> 2 | AF144: =IFERROR(LOOKUP("x",M144:U144,M$142:U$142),"") -> 2 | AG144: =IFERROR(LOOKUP("x",V144:AD144,V$142:AD$142),"") -> 2
B145: =ion21Team!B7 -> 3 | C145: =IF(ISBLANK(ion21Team!C7),"",ion21Team!C7) -> MiDo | D145: x | P145: x | V145: x | AE145: 1 | AF145: 4 | AG145: 1
B146: =ion21Team!B8 -> 4 | C146: =IF(ISBLANK(ion21Team!C8),"",ion21Team!C8) -> EmNi
B147: =ion21Team!B9 -> 5 | C147: =IF(ISBLANK(ion21Team!C9),"",ion21Team!C9) -> HeJe
B148: =ion21Team!B10 -> 6 | C148: =IF(ISBLANK(ion21Team!C10),"",ion21Team!C10) -> 
B149: =ion21Team!B11 -> 7 | C149: =IF(ISBLANK(ion21Team!C11),"",ion21Team!C11) -> 
B150: =ion21Team!B12 -> 8 | C150: =IF(ISBLANK(ion21Team!C12),"",ion21Team!C12) -> 
B151: =ion21Team!B13 -> 9 | C151: =IF(ISBLANK(ion21Team!C13),"",ion21Team!C13) -> 
B152: =ion21Team!B14 -> 10 | C152: =IF(ISBLANK(ion21Team!C14),"",ion21Team!C14) -> 
B153: =ion21Team!B15 -> 11 | C153: =IF(ISBLANK(ion21Team!C15),"",ion21Team!C15) -> 
B154: =ion21Team!B16 -> 12 | C154: =IF(ISBLANK(ion21Team!C16),"",ion21Team!C16) -> 
B155: =ion21Team!B17 -> 13 | C155: =IF(ISBLANK(ion21Team!C17),"",ion21Team!C17) -> 
B156: =ion21Team!B18 -> 14 | C156: =IF(ISBLANK(ion21Team!C18),"",ion21Team!C18) -> 
B157: =ion21Team!B19 -> 15 | C157: =IF(ISBLANK(ion21Team!C19),"",ion21Team!C19) -> 
B158: =ion21Team!B20 -> 16 | C158: =IF(ISBLANK(ion21Team!C20),"",ion21Team!C20) -> 
B159: =ion21Team!B21 -> 17 | C159: =IF(ISBLANK(ion21Team!C21),"",ion21Team!C21) -> 
B160: =ion21Team!B22 -> 18 | C160: =IF(ISBLANK(ion21Team!C22),"",ion21Team!C22) -> 
B161: =ion21Team!B23 -> 19 | C161: =IF(ISBLANK(ion21Team!C23),"",ion21Team!C23) -> 
B162: =ion21Team!B24 -> 20 | C162: =IF(ISBLANK(ion21Team!C24),"",ion21Team!C24) -> 
B163: =ion21Team!B25 -> 21 | C163: =IF(ISBLANK(ion21Team!C25),"",ion21Team!C25) -> 
B164: Sum: | C164: =SUM(D164:L164,M164:U164,V164:AD164) -> 9 | D164: =COUNTA(D143:D163) -> 2 | E164: 1 | F164: 0 | G164: 0 | H164: 0 | I164: 0 | J164: 0 | K164: 0 | L164: 0 | M164: 0 | N164: 1 | O164: 1 | P164: 1 | Q164: 0 | R164: 0 | S164: 0 | T164: 0 | U164: 0 | V164: 2 | W164: 1 | X164: 0 | Y164: 0 | Z164: 0 | AA164: 0 | AB164: 0 | AC164: 0 | AD164: 0 | AE164: =AVERAGE(AE143:AE163) -> 1.333333333 | AF164: =AVERAGE(AF143:AF163) -> 3 | AG164: =AVERAGE(AG143:AG163) -> 1.333333333
A166: 7 | B166: Timespans of 3rd VOTING ROUND
B168: Member | D168: ="Voting Round 3rd Acute - R1A " & ion21Coop!G10 -> Voting Round 3rd Acute - R1A hours | M168: ="Voting Round 3rd Normal - R1N " & ion21Coop!G11 -> Voting Round 3rd Normal - R1N days | V168: ="Voting Round 3rd Precise - R1P " & ion21Coop!G12 -> Voting Round 3rd Precise - R1P weeks | AE168: Timespan
B169: ID | C169: Code | D169: 1 | E169: 2 | F169: 3 | G169: 4 | H169: 5 | I169: 6 | J169: 7 | K169: 8 | L169: 9 | M169: 1 | N169: 2 | O169: 3 | P169: 4 | Q169: 5 | R169: 6 | S169: 7 | T169: 8 | U169: 9 | V169: 1 | W169: 2 | X169: 3 | Y169: 4 | Z169: 5 | AA169: 6 | AB169: 7 | AC169: 8 | AD169: 9 | AE169: R3A | AF169: R3N | AG169: R3P
B170: =ion21Team!B5 -> 1 | C170: =IF(ISBLANK(ion21Team!C5),"",ion21Team!C5) -> YaJo | D170: x | O170: x | V170: x | AE170: =IFERROR(LOOKUP("x",D170:L170,D$169:L$169),"") -> 1 | AF170: =IFERROR(LOOKUP("x",M170:U170,M$169:U$169),"") -> 3 | AG170: =IFERROR(LOOKUP("x",V170:AD170,V$169:AD$169),"") -> 1
B171: =ion21Team!B6 -> 2 | C171: =IF(ISBLANK(ion21Team!C6),"",ion21Team!C6) -> GeLo | E171: x | N171: x | X171: x | AE171: =IFERROR(LOOKUP("x",D171:L171,D$169:L$169),"") -> 2 | AF171: =IFERROR(LOOKUP("x",M171:U171,M$169:U$169),"") -> 2 | AG171: =IFERROR(LOOKUP("x",V171:AD171,V$169:AD$169),"") -> 3
B172: =ion21Team!B7 -> 3 | C172: =IF(ISBLANK(ion21Team!C7),"",ion21Team!C7) -> MiDo | D172: x | P172: x | W172: x | AE172: 1 | AF172: 4 | AG172: 2
B173: =ion21Team!B8 -> 4 | C173: =IF(ISBLANK(ion21Team!C8),"",ion21Team!C8) -> EmNi
B174: =ion21Team!B9 -> 5 | C174: =IF(ISBLANK(ion21Team!C9),"",ion21Team!C9) -> HeJe
B175: =ion21Team!B10 -> 6 | C175: =IF(ISBLANK(ion21Team!C10),"",ion21Team!C10) -> 
B176: =ion21Team!B11 -> 7 | C176: =IF(ISBLANK(ion21Team!C11),"",ion21Team!C11) -> 
B177: =ion21Team!B12 -> 8 | C177: =IF(ISBLANK(ion21Team!C12),"",ion21Team!C12) -> 
B178: =ion21Team!B13 -> 9 | C178: =IF(ISBLANK(ion21Team!C13),"",ion21Team!C13) -> 
B179: =ion21Team!B14 -> 10 | C179: =IF(ISBLANK(ion21Team!C14),"",ion21Team!C14) -> 
B180: =ion21Team!B15 -> 11 | C180: =IF(ISBLANK(ion21Team!C15),"",ion21Team!C15) -> 
B181: =ion21Team!B16 -> 12 | C181: =IF(ISBLANK(ion21Team!C16),"",ion21Team!C16) -> 
B182: =ion21Team!B17 -> 13 | C182: =IF(ISBLANK(ion21Team!C17),"",ion21Team!C17) -> 
B183: =ion21Team!B18 -> 14 | C183: =IF(ISBLANK(ion21Team!C18),"",ion21Team!C18) -> 
B184: =ion21Team!B19 -> 15 | C184: =IF(ISBLANK(ion21Team!C19),"",ion21Team!C19) -> 
B185: =ion21Team!B20 -> 16 | C185: =IF(ISBLANK(ion21Team!C20),"",ion21Team!C20) -> 
B186: =ion21Team!B21 -> 17 | C186: =IF(ISBLANK(ion21Team!C21),"",ion21Team!C21) -> 
B187: =ion21Team!B22 -> 18 | C187: =IF(ISBLANK(ion21Team!C22),"",ion21Team!C22) -> 
B188: =ion21Team!B23 -> 19 | C188: =IF(ISBLANK(ion21Team!C23),"",ion21Team!C23) -> 
B189: =ion21Team!B24 -> 20 | C189: =IF(ISBLANK(ion21Team!C24),"",ion21Team!C24) -> 
B190: =ion21Team!B25 -> 21 | C190: =IF(ISBLANK(ion21Team!C25),"",ion21Team!C25) -> 
B191: Sum: | C191: =SUM(D191:L191,M191:U191,V191:AD191) -> 9 | D191: =COUNTA(D170:D190) -> 2 | E191: 1 | F191: 0 | G191: 0 | H191: 0 | I191: 0 | J191: 0 | K191: 0 | L191: 0 | M191: 0 | N191: 1 | O191: 1 | P191: 1 | Q191: 0 | R191: 0 | S191: 0 | T191: 0 | U191: 0 | V191: 1 | W191: 1 | X191: 1 | Y191: 0 | Z191: 0 | AA191: 0 | AB191: 0 | AC191: 0 | AD191: 0 | AE191: =AVERAGE(AE170:AE190) -> 1.333333333 | AF191: =AVERAGE(AF170:AF190) -> 3 | AG191: =AVERAGE(AG170:AG190) -> 2
A193: 8 | B193: Coefficients of GENERAL COMPETENCY
B195: Member | D195: High-school General - HGC | M195: University General- UGC | V195: Practice General - PGC | AE195: Coefficient
B196: ID | C196: Code | D196: 2 | E196: 3 | F196: 4 | G196: 5 | H196: 6 | I196: 7 | J196: 8 | K196: 9 | L196: 10 | M196: 12 | N196: 13 | O196: 14 | P196: 15 | Q196: 16 | R196: 17 | S196: 18 | T196: 19 | U196: 20 | V196: 3 | W196: 4 | X196: 5 | Y196: 6 | Z196: 7 | AA196: 8 | AB196: 9 | AC196: 10 | AD196: 11 | AE196: HGC | AF196: UGC | AG196: PGC
B197: =ion21Team!B5 -> 1 | C197: =IF(ISBLANK(ion21Team!C5),"",ion21Team!C5) -> YaJo | F197: x | O197: x | X197: x | AE197: =IFERROR(LOOKUP("x",D197:L197,D$196:L$196),"") -> 4 | AF197: =IFERROR(LOOKUP("x",M197:U197,M$196:U$196),"") -> 14 | AG197: =IFERROR(LOOKUP("x",V197:AD197,V$196:AD$196),"") -> 5
B198: =ion21Team!B6 -> 2 | C198: =IF(ISBLANK(ion21Team!C6),"",ion21Team!C6) -> GeLo | G198: x | N198: x | Y198: x | AE198: 5 | AF198: 13 | AG198: 6
B199: =ion21Team!B7 -> 3 | C199: =IF(ISBLANK(ion21Team!C7),"",ion21Team!C7) -> MiDo | E199: x | P199: x | W199: x | AE199: 3 | AF199: 15 | AG199: 4
B200: =ion21Team!B8 -> 4 | C200: =IF(ISBLANK(ion21Team!C8),"",ion21Team!C8) -> EmNi
B201: =ion21Team!B9 -> 5 | C201: =IF(ISBLANK(ion21Team!C9),"",ion21Team!C9) -> HeJe
B202: =ion21Team!B10 -> 6 | C202: =IF(ISBLANK(ion21Team!C10),"",ion21Team!C10) -> 
B203: =ion21Team!B11 -> 7 | C203: =IF(ISBLANK(ion21Team!C11),"",ion21Team!C11) -> 
B204: =ion21Team!B12 -> 8 | C204: =IF(ISBLANK(ion21Team!C12),"",ion21Team!C12) -> 
B205: =ion21Team!B13 -> 9 | C205: =IF(ISBLANK(ion21Team!C13),"",ion21Team!C13) -> 
B206: =ion21Team!B14 -> 10 | C206: =IF(ISBLANK(ion21Team!C14),"",ion21Team!C14) -> 
B207: =ion21Team!B15 -> 11 | C207: =IF(ISBLANK(ion21Team!C15),"",ion21Team!C15) -> 
B208: =ion21Team!B16 -> 12 | C208: =IF(ISBLANK(ion21Team!C16),"",ion21Team!C16) -> 
B209: =ion21Team!B17 -> 13 | C209: =IF(ISBLANK(ion21Team!C17),"",ion21Team!C17) -> 
B210: =ion21Team!B18 -> 14 | C210: =IF(ISBLANK(ion21Team!C18),"",ion21Team!C18) -> 
B211: =ion21Team!B19 -> 15 | C211: =IF(ISBLANK(ion21Team!C19),"",ion21Team!C19) -> 
B212: =ion21Team!B20 -> 16 | C212: =IF(ISBLANK(ion21Team!C20),"",ion21Team!C20) -> 
B213: =ion21Team!B21 -> 17 | C213: =IF(ISBLANK(ion21Team!C21),"",ion21Team!C21) -> 
... 80 more rows

Sheet ion21Votes
A1: Sharing VOTES table | J1: Reasons & Thanksgiving | O1: Go Up
B2: Main Data Protection
A4: Member: | B4: Member | D4: COMpetency votes sharing | M4: ACTivity votes sharing | V4: INVestment votes sharing | AE4: CAI-votes Summary
A5: 0 - All | B5: ID | C5: Code | D5: vC1 | E5: vC2 | F5: vC3 | G5: vC4 | H5: vC5 | I5: vC6 | J5: vC7 | K5: TAB | L5: GAP | M5: vA1 | N5: vA2 | O5: vA3 | P5: vA4 | Q5: vA5 | R5: vA6 | S5: vA7 | T5: TAB | U5: GAP | V5: vI1 | W5: vI2 | X5: vI3 | Y5: vI4 | Z5: vI5 | AA5: vI6 | AB5: vI7 | AC5: TAB | AD5: GAP | AE5: COM | AF5: ACT | AG5: INV | AH5: SUM | AI5: =B5& " - "&C5 -> ID - Code
A6: =B6& " - "&C6 -> 1 - YaJo | B6: =ion21Team!B5 -> 1 | C6: =IF(ISBLANK(ion21Team!C5),"",ion21Team!C5) -> YaJo | D6: 2 | E6: 2 | F6: 3 | G6: 2 | H6: 3 | I6: 3 | J6: 1 | K6: =IF(ISBLANK(ion21Team!C5),"",TeamCOM!G6) -> 4 | L6: =IF(ISBLANK(ion21Team!C5),"",AE6-K6) -> 0 | M6: 2 | N6: 2 | O6: 3 | P6: 3 | Q6: 3 | R6: 3 | S6: 1 | T6: =IF(ISBLANK(ion21Team!C5),"",TeamACT!G6) -> 10 | U6: =IF(ISBLANK(ion21Team!C5),"",AF6-T6) -> -2 | V6: 2 | W6: 3 | X6: 2 | Y6: 3 | Z6: 2 | AA6: 3 | AB6: 1 | AC6: =IF(ISBLANK(ion21Team!C5),"",TeamINV!G6) -> 6 | AD6: =IF(ISBLANK(ion21Team!C5),"",AG6-AC6) -> 2 | AE6: =IF(ISBLANK(ion21Team!C5),"",COUNTIF(D$6:J$26,B6)) -> 4 | AF6: =IF(ISBLANK(ion21Team!C5),"",COUNTIF(M$6:S$26,B6)) -> 8 | AG6: =IF(ISBLANK(ion21Team!C5),"",COUNTIF(V$6:AB$26,B6)) -> 8 | AH6: =IF(ISBLANK(ion21Team!C5),"",SUM(AE6:AG6)) -> 20 | AI6: =B6& " - "&C6 -> 1 - YaJo
A7: =B7& " - "&C7 -> 2 - GeLo | B7: =ion21Team!B6 -> 2 | C7: =IF(ISBLANK(ion21Team!C6),"",ion21Team!C6) -> GeLo | D7: 1 | E7: 3 | F7: 3 | G7: 3 | H7: 3 | I7: 3 | J7: 2 | K7: =IF(ISBLANK(ion21Team!C6),"",TeamCOM!G7) -> 4 | L7: =IF(ISBLANK(ion21Team!C6),"",AE7-K7) -> 4 | M7: 1 | N7: 1 | O7: 3 | P7: 1 | Q7: 3 | R7: 3 | S7: 2 | T7: =IF(ISBLANK(ion21Team!C6),"",TeamACT!G7) -> 0 | U7: =IF(ISBLANK(ion21Team!C6),"",AF7-T7) -> 5 | V7: 1 | W7: 3 | X7: 3 | Y7: 1 | Z7: 1 | AA7: 1 | AB7: 2 | AC7: =IF(ISBLANK(ion21Team!C6),"",TeamINV!G7) -> 9 | AD7: =IF(ISBLANK(ion21Team!C6),"",AG7-AC7) -> -2 | AE7: =IF(ISBLANK(ion21Team!C6),"",COUNTIF(D$6:J$26,B7)) -> 8 | AF7: =IF(ISBLANK(ion21Team!C6),"",COUNTIF(M$6:S$26,B7)) -> 5 | AG7: =IF(ISBLANK(ion21Team!C6),"",COUNTIF(V$6:AB$26,B7)) -> 7 | AH7: =IF(ISBLANK(ion21Team!C6),"",SUM(AE7:AG7)) -> 20 | AI7: =B7& " - "&C7 -> 2 - GeLo
A8: 3 - MiDo | B8: =ion21Team!B7 -> 3 | C8: =IF(ISBLANK(ion21Team!C7),"",ion21Team!C7) -> MiDo | D8: 2 | E8: 2 | F8: 1 | G8: 2 | H8: 1 | I8: 2 | J8: 3 | K8: =IF(ISBLANK(ion21Team!C7),"",TeamCOM!G8) -> 13 | L8: =IF(ISBLANK(ion21Team!C7),"",AE8-K8) -> -4 | M8: 2 | N8: 2 | O8: 1 | P8: 1 | Q8: 1 | R8: 1 | S8: 3 | T8: =IF(ISBLANK(ion21Team!C7),"",TeamACT!G8) -> 10 | U8: =IF(ISBLANK(ion21Team!C7),"",AF8-T8) -> -2 | V8: 2 | W8: 2 | X8: 2 | Y8: 1 | Z8: 1 | AA8: 1 | AB8: 3 | AC8: =IF(ISBLANK(ion21Team!C7),"",TeamINV!G8) -> 3 | AD8: =IF(ISBLANK(ion21Team!C7),"",AG8-AC8) -> 3 | AE8: =IF(ISBLANK(ion21Team!C7),"",COUNTIF(D$6:J$26,B8)) -> 9 | AF8: =IF(ISBLANK(ion21Team!C7),"",COUNTIF(M$6:S$26,B8)) -> 8 | AG8: =IF(ISBLANK(ion21Team!C7),"",COUNTIF(V$6:AB$26,B8)) -> 6 | AH8: =IF(ISBLANK(ion21Team!C7),"",SUM(AE8:AG8)) -> 23 | AI8: 3 - MiDo
A9: 4 - EmNi | B9: =ion21Team!B8 -> 4 | C9: =IF(ISBLANK(ion21Team!C8),"",ion21Team!C8) -> EmNi | K9: =IF(ISBLANK(ion21Team!C8),"",TeamCOM!G9) -> 0 | L9: =IF(ISBLANK(ion21Team!C8),"",AE9-K9) -> 0 | T9: =IF(ISBLANK(ion21Team!C8),"",TeamACT!G9) -> 0 | U9: =IF(ISBLANK(ion21Team!C8),"",AF9-T9) -> 0 | AC9: =IF(ISBLANK(ion21Team!C8),"",TeamINV!G9) -> 0 | AD9: =IF(ISBLANK(ion21Team!C8),"",AG9-AC9) -> 0 | AE9: =IF(ISBLANK(ion21Team!C8),"",COUNTIF(D$6:J$26,B9)) -> 0 | AF9: =IF(ISBLANK(ion21Team!C8),"",COUNTIF(M$6:S$26,B9)) -> 0 | AG9: =IF(ISBLANK(ion21Team!C8),"",COUNTIF(V$6:AB$26,B9)) -> 0 | AH9: =IF(ISBLANK(ion21Team!C8),"",SUM(AE9:AG9)) -> 0 | AI9: 4 - EmNi
A10: 5 - HeJe | B10: =ion21Team!B9 -> 5 | C10: =IF(ISBLANK(ion21Team!C9),"",ion21Team!C9) -> HeJe | K10: =IF(ISBLANK(ion21Team!C9),"",TeamCOM!G10) -> 0 | L10: =IF(ISBLANK(ion21Team!C9),"",AE10-K10) -> 0 | T10: =IF(ISBLANK(ion21Team!C9),"",TeamACT!G10) -> 0 | U10: =IF(ISBLANK(ion21Team!C9),"",AF10-T10) -> 0 | AC10: =IF(ISBLANK(ion21Team!C9),"",TeamINV!G10) -> 3 | AD10: =IF(ISBLANK(ion21Team!C9),"",AG10-AC10) -> -3 | AE10: =IF(ISBLANK(ion21Team!C9),"",COUNTIF(D$6:J$26,B10)) -> 0 | AF10: =IF(ISBLANK(ion21Team!C9),"",COUNTIF(M$6:S$26,B10)) -> 0 | AG10: =IF(ISBLANK(ion21Team!C9),"",COUNTIF(V$6:AB$26,B10)) -> 0 | AH10: =IF(ISBLANK(ion21Team!C9),"",SUM(AE10:AG10)) -> 0 | AI10: 5 - HeJe
A11: 6 - | B11: =ion21Team!B10 -> 6 | C11: =IF(ISBLANK(ion21Team!C10),"",ion21Team!C10) ->  | K11: =IF(ISBLANK(ion21Team!C10),"",TeamCOM!G11) ->  | L11: =IF(ISBLANK(ion21Team!C10),"",AE11-K11) ->  | T11: =IF(ISBLANK(ion21Team!C10),"",TeamACT!G11) ->  | U11: =IF(ISBLANK(ion21Team!C10),"",AF11-T11) ->  | AC11: =IF(ISBLANK(ion21Team!C10),"",TeamINV!G11) ->  | AD11: =IF(ISBLANK(ion21Team!C10),"",AG11-AC11) ->  | AE11: =IF(ISBLANK(ion21Team!C10),"",COUNTIF(D$6:J$26,B11)) ->  | AF11: =IF(ISBLANK(ion21Team!C10),"",COUNTIF(M$6:S$26,B11)) ->  | AG11: =IF(ISBLANK(ion21Team!C10),"",COUNTIF(V$6:AB$26,B11)) ->  | AH11: =IF(ISBLANK(ion21Team!C10),"",SUM(AE11:AG11)) ->  | AI11: 6 -
A12: 7 - | B12: =ion21Team!B11 -> 7 | C12: =IF(ISBLANK(ion21Team!C11),"",ion21Team!C11) ->  | K12: =IF(ISBLANK(ion21Team!C11),"",TeamCOM!G12) ->  | L12: =IF(ISBLANK(ion21Team!C11),"",AE12-K12) ->  | T12: =IF(ISBLANK(ion21Team!C11),"",TeamACT!G12) ->  | U12: =IF(ISBLANK(ion21Team!C11),"",AF12-T12) ->  | AC12: =IF(ISBLANK(ion21Team!C11),"",TeamINV!G12) ->  | AD12: =IF(ISBLANK(ion21Team!C11),"",AG12-AC12) ->  | AE12: =IF(ISBLANK(ion21Team!C11),"",COUNTIF(D$6:J$26,B12)) ->  | AF12: =IF(ISBLANK(ion21Team!C11),"",COUNTIF(M$6:S$26,B12)) ->  | AG12: =IF(ISBLANK(ion21Team!C11),"",COUNTIF(V$6:AB$26,B12)) ->  | AH12: =IF(ISBLANK(ion21Team!C11),"",SUM(AE12:AG12)) ->  | AI12: 7 -
A13: 8 - | B13: =ion21Team!B12 -> 8 | C13: =IF(ISBLANK(ion21Team!C12),"",ion21Team!C12) ->  | K13: =IF(ISBLANK(ion21Team!C12),"",TeamCOM!G13) ->  | L13: =IF(ISBLANK(ion21Team!C12),"",AE13-K13) ->  | T13: =IF(ISBLANK(ion21Team!C12),"",TeamACT!G13) ->  | U13: =IF(ISBLANK(ion21Team!C12),"",AF13-T13) ->  | AC13: =IF(ISBLANK(ion21Team!C12),"",TeamINV!G13) ->  | AD13: =IF(ISBLANK(ion21Team!C12),"",AG13-AC13) ->  | AE13: =IF(ISBLANK(ion21Team!C12),"",COUNTIF(D$6:J$26,B13)) ->  | AF13: =IF(ISBLANK(ion21Team!C12),"",COUNTIF(M$6:S$26,B13)) ->  | AG13: =IF(ISBLANK(ion21Team!C12),"",COUNTIF(V$6:AB$26,B13)) ->  | AH13: =IF(ISBLANK(ion21Team!C12),"",SUM(AE13:AG13)) ->  | AI13: 8 -
A14: 9 - | B14: =ion21Team!B13 -> 9 | C14: =IF(ISBLANK(ion21Team!C13),"",ion21Team!C13) ->  | K14: =IF(ISBLANK(ion21Team!C13),"",TeamCOM!G14) ->  | L14: =IF(ISBLANK(ion21Team!C13),"",AE14-K14) ->  | T14: =IF(ISBLANK(ion21Team!C13),"",TeamACT!G14) ->  | U14: =IF(ISBLANK(ion21Team!C13),"",AF14-T14) ->  | AC14: =IF(ISBLANK(ion21Team!C13),"",TeamINV!G14) ->  | AD14: =IF(ISBLANK(ion21Team!C13),"",AG14-AC14) ->  | AE14: =IF(ISBLANK(ion21Team!C13),"",COUNTIF(D$6:J$26,B14)) ->  | AF14: =IF(ISBLANK(ion21Team!C13),"",COUNTIF(M$6:S$26,B14)) ->  | AG14: =IF(ISBLANK(ion21Team!C13),"",COUNTIF(V$6:AB$26,B14)) ->  | AH14: =IF(ISBLANK(ion21Team!C13),"",SUM(AE14:AG14)) ->  | AI14: 9 -
A15: 10 - | B15: =ion21Team!B14 -> 10 | C15: =IF(ISBLANK(ion21Team!C14),"",ion21Team!C14) ->  | K15: =IF(ISBLANK(ion21Team!C14),"",TeamCOM!G15) ->  | L15: =IF(ISBLANK(ion21Team!C14),"",AE15-K15) ->  | T15: =IF(ISBLANK(ion21Team!C14),"",TeamACT!G15) ->  | U15: =IF(ISBLANK(ion21Team!C14),"",AF15-T15) ->  | AC15: =IF(ISBLANK(ion21Team!C14),"",TeamINV!G15) ->  | AD15: =IF(ISBLANK(ion21Team!C14),"",AG15-AC15) ->  | AE15: =IF(ISBLANK(ion21Team!C14),"",COUNTIF(D$6:J$26,B15)) ->  | AF15: =IF(ISBLANK(ion21Team!C14),"",COUNTIF(M$6:S$26,B15)) ->  | AG15: =IF(ISBLANK(ion21Team!C14),"",COUNTIF(V$6:AB$26,B15)) ->  | AH15: =IF(ISBLANK(ion21Team!C14),"",SUM(AE15:AG15)) ->  | AI15: 10 -
A16: 11 - | B16: =ion21Team!B15 -> 11 | C16: =IF(ISBLANK(ion21Team!C15),"",ion21Team!C15) ->  | K16: =IF(ISBLANK(ion21Team!C15),"",TeamCOM!G16) ->  | L16: =IF(ISBLANK(ion21Team!C15),"",AE16-K16) ->  | T16: =IF(ISBLANK(ion21Team!C15),"",TeamACT!G16) ->  | U16: =IF(ISBLANK(ion21Team!C15),"",AF16-T16) ->  | AC16: =IF(ISBLANK(ion21Team!C15),"",TeamINV!G16) ->  | AD16: =IF(ISBLANK(ion21Team!C15),"",AG16-AC16) ->  | AE16: =IF(ISBLANK(ion21Team!C15),"",COUNTIF(D$6:J$26,B16)) ->  | AF16: =IF(ISBLANK(ion21Team!C15),"",COUNTIF(M$6:S$26,B16)) ->  | AG16: =IF(ISBLANK(ion21Team!C15),"",COUNTIF(V$6:AB$26,B16)) ->  | AH16: =IF(ISBLANK(ion21Team!C15),"",SUM(AE16:AG16)) ->  | AI16: 11 -
A17: 12 - | B17: =ion21Team!B16 -> 12 | C17: =IF(ISBLANK(ion21Team!C16),"",ion21Team!C16) ->  | K17: =IF(ISBLANK(ion21Team!C16),"",TeamCOM!G17) ->  | L17: =IF(ISBLANK(ion21Team!C16),"",AE17-K17) ->  | T17: =IF(ISBLANK(ion21Team!C16),"",TeamACT!G17) ->  | U17: =IF(ISBLANK(ion21Team!C16),"",AF17-T17) ->  | AC17: =IF(ISBLANK(ion21Team!C16),"",TeamINV!G17) ->  | AD17: =IF(ISBLANK(ion21Team!C16),"",AG17-AC17) ->  | AE17: =IF(ISBLANK(ion21Team!C16),"",COUNTIF(D$6:J$26,B17)) ->  | AF17: =IF(ISBLANK(ion21Team!C16),"",COUNTIF(M$6:S$26,B17)) ->  | AG17: =IF(ISBLANK(ion21Team!C16),"",COUNTIF(V$6:AB$26,B17)) ->  | AH17: =IF(ISBLANK(ion21Team!C16),"",SUM(AE17:AG17)) ->  | AI17: 12 -
A18: 13 - | B18: =ion21Team!B17 -> 13 | C18: =IF(ISBLANK(ion21Team!C17),"",ion21Team!C17) ->  | K18: =IF(ISBLANK(ion21Team!C17),"",TeamCOM!G18) ->  | L18: =IF(ISBLANK(ion21Team!C17),"",AE18-K18) ->  | T18: =IF(ISBLANK(ion21Team!C17),"",TeamACT!G18) ->  | U18: =IF(ISBLANK(ion21Team!C17),"",AF18-T18) ->  | AC18: =IF(ISBLANK(ion21Team!C17),"",TeamINV!G18) ->  | AD18: =IF(ISBLANK(ion21Team!C17),"",AG18-AC18) ->  | AE18: =IF(ISBLANK(ion21Team!C17),"",COUNTIF(D$6:J$26,B18)) ->  | AF18: =IF(ISBLANK(ion21Team!C17),"",COUNTIF(M$6:S$26,B18)) ->  | AG18: =IF(ISBLANK(ion21Team!C17),"",COUNTIF(V$6:AB$26,B18)) ->  | AH18: =IF(ISBLANK(ion21Team!C17),"",SUM(AE18:AG18)) ->  | AI18: 13 -
A19: 14 - | B19: =ion21Team!B18 -> 14 | C19: =IF(ISBLANK(ion21Team!C18),"",ion21Team!C18) ->  | K19: =IF(ISBLANK(ion21Team!C18),"",TeamCOM!G19) ->  | L19: =IF(ISBLANK(ion21Team!C18),"",AE19-K19) ->  | T19: =IF(ISBLANK(ion21Team!C18),"",TeamACT!G19) ->  | U19: =IF(ISBLANK(ion21Team!C18),"",AF19-T19) ->  | AC19: =IF(ISBLANK(ion21Team!C18),"",TeamINV!G19) ->  | AD19: =IF(ISBLANK(ion21Team!C18),"",AG19-AC19) ->  | AE19: =IF(ISBLANK(ion21Team!C18),"",COUNTIF(D$6:J$26,B19)) ->  | AF19: =IF(ISBLANK(ion21Team!C18),"",COUNTIF(M$6:S$26,B19)) ->  | AG19: =IF(ISBLANK(ion21Team!C18),"",COUNTIF(V$6:AB$26,B19)) ->  | AH19: =IF(ISBLANK(ion21Team!C18),"",SUM(AE19:AG19)) ->  | AI19: 14 -
A20: 15 - | B20: =ion21Team!B19 -> 15 | C20: =IF(ISBLANK(ion21Team!C19),"",ion21Team!C19) ->  | K20: =IF(ISBLANK(ion21Team!C19),"",TeamCOM!G20) ->  | L20: =IF(ISBLANK(ion21Team!C19),"",AE20-K20) ->  | T20: =IF(ISBLANK(ion21Team!C19),"",TeamACT!G20) ->  | U20: =IF(ISBLANK(ion21Team!C19),"",AF20-T20) ->  | AC20: =IF(ISBLANK(ion21Team!C19),"",TeamINV!G20) ->  | AD20: =IF(ISBLANK(ion21Team!C19),"",AG20-AC20) ->  | AE20: =IF(ISBLANK(ion21Team!C19),"",COUNTIF(D$6:J$26,B20)) ->  | AF20: =IF(ISBLANK(ion21Team!C19),"",COUNTIF(M$6:S$26,B20)) ->  | AG20: =IF(ISBLANK(ion21Team!C19),"",COUNTIF(V$6:AB$26,B20)) ->  | AH20: =IF(ISBLANK(ion21Team!C19),"",SUM(AE20:AG20)) ->  | AI20: 15 -
A21: 16 - | B21: =ion21Team!B20 -> 16 | C21: =IF(ISBLANK(ion21Team!C20),"",ion21Team!C20) ->  | K21: =IF(ISBLANK(ion21Team!C20),"",TeamCOM!G21) ->  | L21: =IF(ISBLANK(ion21Team!C20),"",AE21-K21) ->  | T21: =IF(ISBLANK(ion21Team!C20),"",TeamACT!G21) ->  | U21: =IF(ISBLANK(ion21Team!C20),"",AF21-T21) ->  | AC21: =IF(ISBLANK(ion21Team!C20),"",TeamINV!G21) ->  | AD21: =IF(ISBLANK(ion21Team!C20),"",AG21-AC21) ->  | AE21: =IF(ISBLANK(ion21Team!C20),"",COUNTIF(D$6:J$26,B21)) ->  | AF21: =IF(ISBLANK(ion21Team!C20),"",COUNTIF(M$6:S$26,B21)) ->  | AG21: =IF(ISBLANK(ion21Team!C20),"",COUNTIF(V$6:AB$26,B21)) ->  | AH21: =IF(ISBLANK(ion21Team!C20),"",SUM(AE21:AG21)) ->  | AI21: 16 -
A22: 17 - | B22: =ion21Team!B21 -> 17 | C22: =IF(ISBLANK(ion21Team!C21),"",ion21Team!C21) ->  | K22: =IF(ISBLANK(ion21Team!C21),"",TeamCOM!G22) ->  | L22: =IF(ISBLANK(ion21Team!C21),"",AE22-K22) ->  | T22: =IF(ISBLANK(ion21Team!C21),"",TeamACT!G22) ->  | U22: =IF(ISBLANK(ion21Team!C21),"",AF22-T22) ->  | AC22: =IF(ISBLANK(ion21Team!C21),"",TeamINV!G22) ->  | AD22: =IF(ISBLANK(ion21Team!C21),"",AG22-AC22) ->  | AE22: =IF(ISBLANK(ion21Team!C21),"",COUNTIF(D$6:J$26,B22)) ->  | AF22: =IF(ISBLANK(ion21Team!C21),"",COUNTIF(M$6:S$26,B22)) ->  | AG22: =IF(ISBLANK(ion21Team!C21),"",COUNTIF(V$6:AB$26,B22)) ->  | AH22: =IF(ISBLANK(ion21Team!C21),"",SUM(AE22:AG22)) ->  | AI22: 17 -
A23: 18 - | B23: =ion21Team!B22 -> 18 | C23: =IF(ISBLANK(ion21Team!C22),"",ion21Team!C22) ->  | K23: =IF(ISBLANK(ion21Team!C22),"",TeamCOM!G23) ->  | L23: =IF(ISBLANK(ion21Team!C22),"",AE23-K23) ->  | T23: =IF(ISBLANK(ion21Team!C22),"",TeamACT!G23) ->  | U23: =IF(ISBLANK(ion21Team!C22),"",AF23-T23) ->  | AC23: =IF(ISBLANK(ion21Team!C22),"",TeamINV!G23) ->  | AD23: =IF(ISBLANK(ion21Team!C22),"",AG23-AC23) ->  | AE23: =IF(ISBLANK(ion21Team!C22),"",COUNTIF(D$6:J$26,B23)) ->  | AF23: =IF(ISBLANK(ion21Team!C22),"",COUNTIF(M$6:S$26,B23)) ->  | AG23: =IF(ISBLANK(ion21Team!C22),"",COUNTIF(V$6:AB$26,B23)) ->  | AH23: =IF(ISBLANK(ion21Team!C22),"",SUM(AE23:AG23)) ->  | AI23: 18 -
A24: 19 - | B24: =ion21Team!B23 -> 19 | C24: =IF(ISBLANK(ion21Team!C23),"",ion21Team!C23) ->  | K24: =IF(ISBLANK(ion21Team!C23),"",TeamCOM!G24) ->  | L24: =IF(ISBLANK(ion21Team!C23),"",AE24-K24) ->  | T24: =IF(ISBLANK(ion21Team!C23),"",TeamACT!G24) ->  | U24: =IF(ISBLANK(ion21Team!C23),"",AF24-T24) ->  | AC24: =IF(ISBLANK(ion21Team!C23),"",TeamINV!G24) ->  | AD24: =IF(ISBLANK(ion21Team!C23),"",AG24-AC24) ->  | AE24: =IF(ISBLANK(ion21Team!C23),"",COUNTIF(D$6:J$26,B24)) ->  | AF24: =IF(ISBLANK(ion21Team!C23),"",COUNTIF(M$6:S$26,B24)) ->  | AG24: =IF(ISBLANK(ion21Team!C23),"",COUNTIF(V$6:AB$26,B24)) ->  | AH24: =IF(ISBLANK(ion21Team!C23),"",SUM(AE24:AG24)) ->  | AI24: 19 -
A25: 20 - | B25: =ion21Team!B24 -> 20 | C25: =IF(ISBLANK(ion21Team!C24),"",ion21Team!C24) ->  | K25: =IF(ISBLANK(ion21Team!C24),"",TeamCOM!G25) ->  | L25: =IF(ISBLANK(ion21Team!C24),"",AE25-K25) ->  | T25: =IF(ISBLANK(ion21Team!C24),"",TeamACT!G25) ->  | U25: =IF(ISBLANK(ion21Team!C24),"",AF25-T25) ->  | AC25: =IF(ISBLANK(ion21Team!C24),"",TeamINV!G25) ->  | AD25: =IF(ISBLANK(ion21Team!C24),"",AG25-AC25) ->  | AE25: =IF(ISBLANK(ion21Team!C24),"",COUNTIF(D$6:J$26,B25)) ->  | AF25: =IF(ISBLANK(ion21Team!C24),"",COUNTIF(M$6:S$26,B25)) ->  | AG25: =IF(ISBLANK(ion21Team!C24),"",COUNTIF(V$6:AB$26,B25)) ->  | AH25: =IF(ISBLANK(ion21Team!C24),"",SUM(AE25:AG25)) ->  | AI25: 20 -
A26: 21 - | B26: =ion21Team!B25 -> 21 | C26: =IF(ISBLANK(ion21Team!C25),"",ion21Team!C25) ->  | K26: =IF(ISBLANK(ion21Team!C25),"",TeamCOM!G26) ->  | L26: =IF(ISBLANK(ion21Team!C25),"",AE26-K26) ->  | T26: =IF(ISBLANK(ion21Team!C25),"",TeamACT!G26) ->  | U26: =IF(ISBLANK(ion21Team!C25),"",AF26-T26) ->  | AC26: =IF(ISBLANK(ion21Team!C25),"",TeamINV!G26) ->  | AD26: =IF(ISBLANK(ion21Team!C25),"",AG26-AC26) ->  | AE26: =IF(ISBLANK(ion21Team!C25),"",COUNTIF(D$6:J$26,B26)) ->  | AF26: =IF(ISBLANK(ion21Team!C25),"",COUNTIF(M$6:S$26,B26)) ->  | AG26: =IF(ISBLANK(ion21Team!C25),"",COUNTIF(V$6:AB$26,B26)) ->  | AH26: =IF(ISBLANK(ion21Team!C25),"",SUM(AE26:AG26)) ->  | AI26: 21 -
E27: vX1-3 | G27: FREE VOTES | J27: =COUNTA(D6:J26) -> 21 | N27: vX4-6 | P27: TIED VOTES | S27: =COUNTA(M6:S26) -> 21 | W27: vX7 | Y27: FIXED VOTE | AB27: =COUNTA(V6:AB26) -> 21 | AE27: =SUM(AE6:AE26) -> 21 | AF27: =SUM(AF6:AF26) -> 21 | AG27: =SUM(AG6:AG26) -> 21 | AH27: =SUM(AH6:AH26) -> 63
G28: Voice of CONFIDENCE … to another one | P28: Voice of JUSTICE … to undercounted one (GAP<0) | Y28: Voice of FREEDOM … maybe your own
A29: Set: | B29: Reasons & Thanksgiving | G29: 3 votes you can share at your best discretion | P29: 3 votes reducing the VoteGAP = Has - Should have | Y29: this vote you can leave or share without restraint
A30: Lock
A31: Unlock | B31: Donor | D31: Vote | E31: Acceptor | G31: Last Change | L31: Why and for what
A32: Reset | B32: ID | C32: Code | D32: vXn | E32: ID | F32: Code | G32: Date & Time | K32: Reasons for sharing & Thanksgiving text
A33: ion21 | B33: 1 | C33: =VLOOKUP(B33,$B$6:$C$26,2) -> YaJo | D33: vC1 | E33: =IF(ISBLANK(ion21Team!$C$5),"",HLOOKUP(D33,$D$5:$J$26,B33+1)) -> 2 | F33: =IFERROR(VLOOKUP(E33,$B$6:$C$26,2),"") -> GeLo | G33: 2016-08-25T22:43:18
A34: Set: | B34: 1 | C34: =VLOOKUP(B34,$B$6:$C$26,2) -> YaJo | D34: vC2 | E34: =IF(ISBLANK(ion21Team!$C$5),"",HLOOKUP(D34,$D$5:$J$26,B34+1)) -> 2 | F34: =IFERROR(VLOOKUP(E34,$B$6:$C$26,2),"") -> GeLo | G34: 2016-08-26T00:12:25
A35: Lock | B35: 1 | C35: YaJo | D35: vC3 | E35: =IF(ISBLANK(ion21Team!$C$5),"",HLOOKUP(D35,$D$5:$J$26,B35+1)) -> 3 | F35: MiDo
A36: Reset | B36: 1 | C36: YaJo | D36: vC4 | E36: =IF(ISBLANK(ion21Team!$C$5),"",HLOOKUP(D36,$D$5:$J$26,B36+1)) -> 2 | F36: GeLo
B37: 1 | C37: YaJo | D37: vC5 | E37: =IF(ISBLANK(ion21Team!$C$5),"",HLOOKUP(D37,$D$5:$J$26,B37+1)) -> 3 | F37: MiDo
A38: Set: | B38: 1 | C38: YaJo | D38: vC6 | E38: =IF(ISBLANK(ion21Team!$C$5),"",HLOOKUP(D38,$D$5:$J$26,B38+1)) -> 3 | F38: MiDo
A39: Unlock | B39: 1 | C39: YaJo | D39: vC7 | E39: =IF(ISBLANK(ion21Team!$C$5),"",HLOOKUP(D39,$D$5:$J$26,B39+1)) -> 1 | F39: YaJo
B40: 1 | C40: YaJo | D40: vA1 | E40: =IF(ISBLANK(ion21Team!$C$5),"",HLOOKUP(D40,$M$5:$S$26,B40+1)) -> 2 | F40: GeLo
A41: Set: | B41: 1 | C41: YaJo | D41: vA2 | E41: =IF(ISBLANK(ion21Team!$C$5),"",HLOOKUP(D41,$M$5:$S$26,B41+1)) -> 2 | F41: GeLo
A42: Reset | B42: 1 | C42: YaJo | D42: vA3 | E42: =IF(ISBLANK(ion21Team!$C$5),"",HLOOKUP(D42,$M$5:$S$26,B42+1)) -> 3 | F42: MiDo
B43: 1 | C43: YaJo | D43: vA4 | E43: =IF(ISBLANK(ion21Team!$C$5),"",HLOOKUP(D43,$M$5:$S$26,B43+1)) -> 3 | F43: MiDo
A44: 1 | B44: 1 | C44: YaJo | D44: vA5 | E44: =IF(ISBLANK(ion21Team!$C$5),"",HLOOKUP(D44,$M$5:$S$26,B44+1)) -> 3 | F44: MiDo
B45: 1 | C45: YaJo | D45: vA6 | E45: =IF(ISBLANK(ion21Team!$C$5),"",HLOOKUP(D45,$M$5:$S$26,B45+1)) -> 3 | F45: MiDo
B46: 1 | C46: YaJo | D46: vA7 | E46: =IF(ISBLANK(ion21Team!$C$5),"",HLOOKUP(D46,$M$5:$S$26,B46+1)) -> 1 | F46: YaJo
B47: 1 | C47: YaJo | D47: vI1 | E47: =IF(ISBLANK(ion21Team!$C$5),"",HLOOKUP(D47,$V$5:$AB$26,B47+1)) -> 2 | F47: GeLo
B48: 1 | C48: YaJo | D48: vI2 | E48: =IF(ISBLANK(ion21Team!$C$5),"",HLOOKUP(D48,$V$5:$AB$26,B48+1)) -> 3 | F48: MiDo
B49: 1 | C49: YaJo | D49: vI3 | E49: =IF(ISBLANK(ion21Team!$C$5),"",HLOOKUP(D49,$V$5:$AB$26,B49+1)) -> 2 | F49: GeLo
B50: 1 | C50: YaJo | D50: vI4 | E50: =IF(ISBLANK(ion21Team!$C$5),"",HLOOKUP(D50,$V$5:$AB$26,B50+1)) -> 3 | F50: MiDo
B51: 1 | C51: YaJo | D51: vI5 | E51: =IF(ISBLANK(ion21Team!$C$5),"",HLOOKUP(D51,$V$5:$AB$26,B51+1)) -> 2 | F51: GeLo
B52: 1 | C52: YaJo | D52: vI6 | E52: =IF(ISBLANK(ion21Team!$C$5),"",HLOOKUP(D52,$V$5:$AB$26,B52+1)) -> 3 | F52: MiDo
B53: 1 | C53: YaJo | D53: vI7 | E53: =IF(ISBLANK(ion21Team!$C$5),"",HLOOKUP(D53,$V$5:$AB$26,B53+1)) -> 1 | F53: YaJo
B54: 2 | C54: GeLo | D54: vC1 | E54: =IF(ISBLANK(ion21Team!$C$6),"",HLOOKUP(D54,$D$5:$J$26,B54+1)) -> 1 | F54: =IFERROR(VLOOKUP(E54,$B$6:$C$26,2),"") -> YaJo
B55: 2 | C55: GeLo | D55: vC2 | E55: =IF(ISBLANK(ion21Team!$C$6),"",HLOOKUP(D55,$D$5:$J$26,B55+1)) -> 3 | F55: =IFERROR(VLOOKUP(E55,$B$6:$C$26,2),"") -> MiDo
B56: 2 | C56: GeLo | D56: vC3 | E56: =IF(ISBLANK(ion21Team!$C$6),"",HLOOKUP(D56,$D$5:$J$26,B56+1)) -> 3 | F56: MiDo
B57: 2 | C57: GeLo | D57: vC4 | E57: =IF(ISBLANK(ion21Team!$C$6),"",HLOOKUP(D57,$D$5:$J$26,B57+1)) -> 3 | F57: MiDo
B58: 2 | C58: GeLo | D58: vC5 | E58: =IF(ISBLANK(ion21Team!$C$6),"",HLOOKUP(D58,$D$5:$J$26,B58+1)) -> 3 | F58: MiDo
B59: 2 | C59: GeLo | D59: vC6 | E59: =IF(ISBLANK(ion21Team!$C$6),"",HLOOKUP(D59,$D$5:$J$26,B59+1)) -> 3 | F59: MiDo
B60: 2 | C60: GeLo | D60: vC7 | E60: =IF(ISBLANK(ion21Team!$C$6),"",HLOOKUP(D60,$D$5:$J$26,B60+1)) -> 2 | F60: GeLo
B61: 2 | C61: GeLo | D61: vA1 | E61: =IF(ISBLANK(ion21Team!$C$6),"",HLOOKUP(D61,$M$5:$S$26,B61+1)) -> 1 | F61: =IFERROR(VLOOKUP(E61,$B$6:$C$26,2),"") -> YaJo
B62: 2 | C62: GeLo | D62: vA2 | E62: =IF(ISBLANK(ion21Team!$C$6),"",HLOOKUP(D62,$M$5:$S$26,B62+1)) -> 1 | F62: YaJo
B63: 2 | C63: GeLo | D63: vA3 | E63: =IF(ISBLANK(ion21Team!$C$6),"",HLOOKUP(D63,$M$5:$S$26,B63+1)) -> 3 | F63: MiDo
B64: 2 | C64: GeLo | D64: vA4 | E64: =IF(ISBLANK(ion21Team!$C$6),"",HLOOKUP(D64,$M$5:$S$26,B64+1)) -> 1 | F64: YaJo
B65: 2 | C65: GeLo | D65: vA5 | E65: =IF(ISBLANK(ion21Team!$C$6),"",HLOOKUP(D65,$M$5:$S$26,B65+1)) -> 3 | F65: MiDo
B66: 2 | C66: GeLo | D66: vA6 | E66: =IF(ISBLANK(ion21Team!$C$6),"",HLOOKUP(D66,$M$5:$S$26,B66+1)) -> 3 | F66: MiDo
B67: 2 | C67: GeLo | D67: vA7 | E67: =IF(ISBLANK(ion21Team!$C$6),"",HLOOKUP(D67,$M$5:$S$26,B67+1)) -> 2 | F67: GeLo
B68: 2 | C68: GeLo | D68: vI1 | E68: =IF(ISBLANK(ion21Team!$C$6),"",HLOOKUP(D68,$V$5:$AB$26,B68+1)) -> 1 | F68: YaJo
B69: 2 | C69: GeLo | D69: vI2 | E69: =IF(ISBLANK(ion21Team!$C$6),"",HLOOKUP(D69,$V$5:$AB$26,B69+1)) -> 3 | F69: MiDo
B70: 2 | C70: GeLo | D70: vI3 | E70: =IF(ISBLANK(ion21Team!$C$6),"",HLOOKUP(D70,$V$5:$AB$26,B70+1)) -> 3 | F70: MiDo
B71: 2 | C71: GeLo | D71: vI4 | E71: =IF(ISBLANK(ion21Team!$C$6),"",HLOOKUP(D71,$V$5:$AB$26,B71+1)) -> 1 | F71: YaJo
B72: 2 | C72: GeLo | D72: vI5 | E72: =IF(ISBLANK(ion21Team!$C$6),"",HLOOKUP(D72,$V$5:$AB$26,B72+1)) -> 1 | F72: YaJo
B73: 2 | C73: GeLo | D73: vI6 | E73: =IF(ISBLANK(ion21Team!$C$6),"",HLOOKUP(D73,$V$5:$AB$26,B73+1)) -> 1 | F73: YaJo
B74: 2 | C74: GeLo | D74: vI7 | E74: =IF(ISBLANK(ion21Team!$C$6),"",HLOOKUP(D74,$V$5:$AB$26,B74+1)) -> 2 | F74: GeLo
B75: 3 | C75: MiDo | D75: vC1 | E75: =IF(ISBLANK(ion21Team!$C$7),"",HLOOKUP(D75,$D$5:$J$8,B75+1)) -> 2 | F75: =IFERROR(VLOOKUP(E75,$B$6:$C$26,2),"") -> GeLo | G75: 2016-08-25T23:44:14 | K75: reason
B76: 3 | C76: MiDo | D76: vC2 | E76: =IF(ISBLANK(ion21Team!$C$7),"",HLOOKUP(D76,$D$5:$J$8,B76+1)) -> 2 | F76: =IFERROR(VLOOKUP(E76,$B$6:$C$26,2),"") -> GeLo
B77: 3 | C77: MiDo | D77: vC3 | E77: =IF(ISBLANK(ion21Team!$C$7),"",HLOOKUP(D77,$D$5:$J$8,B77+1)) -> 1 | F77: YaJo | G77: 2016-08-25T23:41:45 | K77: reason
B78: 3 | C78: MiDo | D78: vC4 | E78: =IF(ISBLANK(ion21Team!$C$7),"",HLOOKUP(D78,$D$5:$J$8,B78+1)) -> 2 | F78: GeLo
B79: 3 | C79: MiDo | D79: vC5 | E79: =IF(ISBLANK(ion21Team!$C$7),"",HLOOKUP(D79,$D$5:$J$8,B79+1)) -> 1 | F79: YaJo
B80: 3 | C80: MiDo | D80: vC6 | E80: =IF(ISBLANK(ion21Team!$C$7),"",HLOOKUP(D80,$D$5:$J$8,B80+1)) -> 2 | F80: GeLo
B81: 3 | C81: MiDo | D81: vC7 | E81: =IF(ISBLANK(ion21Team!$C$7),"",HLOOKUP(D81,$D$5:$J$8,B81+1)) -> 3 | F81: MiDo
B82: 3 | C82: MiDo | D82: vA1 | E82: =IF(ISBLANK(ion21Team!$C$7),"",HLOOKUP(D82,$M$5:$S$8,B82+1)) -> 2 | F82: GeLo
B83: 3 | C83: MiDo | D83: vA2 | E83: =IF(ISBLANK(ion21Team!$C$7),"",HLOOKUP(D83,$M$5:$S$8,B83+1)) -> 2 | F83: GeLo
B84: 3 | C84: MiDo | D84: vA3 | E84: =IF(ISBLANK(ion21Team!$C$7),"",HLOOKUP(D84,$M$5:$S$8,B84+1)) -> 1 | F84: YaJo
B85: 3 | C85: MiDo | D85: vA4 | E85: =IF(ISBLANK(ion21Team!$C$7),"",HLOOKUP(D85,$M$5:$S$8,B85+1)) -> 1 | F85: YaJo
B86: 3 | C86: MiDo | D86: vA5 | E86: =IF(ISBLANK(ion21Team!$C$7),"",HLOOKUP(D86,$M$5:$S$8,B86+1)) -> 1 | F86: YaJo
B87: 3 | C87: MiDo | D87: vA6 | E87: =IF(ISBLANK(ion21Team!$C$7),"",HLOOKUP(D87,$M$5:$S$8,B87+1)) -> 1 | F87: YaJo
B88: 3 | C88: MiDo | D88: vA7 | E88: =IF(ISBLANK(ion21Team!$C$7),"",HLOOKUP(D88,$M$5:$S$8,B88+1)) -> 3 | F88: MiDo
B89: 3 | C89: MiDo | D89: vI1 | E89: =IF(ISBLANK(ion21Team!$C$7),"",HLOOKUP(D89,$V$5:$AB$8,B89+1)) -> 2 | F89: GeLo
B90: 3 | C90: MiDo | D90: vI2 | E90: =IF(ISBLANK(ion21Team!$C$7),"",HLOOKUP(D90,$V$5:$AB$8,B90+1)) -> 2 | F90: GeLo
B91: 3 | C91: MiDo | D91: vI3 | E91: =IF(ISBLANK(ion21Team!$C$7),"",HLOOKUP(D91,$V$5:$AB$8,B91+1)) -> 2 | F91: GeLo
B92: 3 | C92: MiDo | D92: vI4 | E92: =IF(ISBLANK(ion21Team!$C$7),"",HLOOKUP(D92,$V$5:$AB$8,B92+1)) -> 1 | F92: YaJo
B93: 3 | C93: MiDo | D93: vI5 | E93: =IF(ISBLANK(ion21Team!$C$7),"",HLOOKUP(D93,$V$5:$AB$8,B93+1)) -> 1 | F93: YaJo
B94: 3 | C94: MiDo | D94: vI6 | E94: =IF(ISBLANK(ion21Team!$C$7),"",HLOOKUP(D94,$V$5:$AB$8,B94+1)) -> 1 | F94: YaJo
B95: 3 | C95: MiDo | D95: vI7 | E95: =IF(ISBLANK(ion21Team!$C$7),"",HLOOKUP(D95,$V$5:$AB$8,B95+1)) -> 3 | F95: MiDo
B96: 4 | C96: =VLOOKUP($B$96,$B$6:$C$26,2) -> EmNi | D96: vC1 | E96: =IF(ISBLANK(ion21Team!$C$5),"",HLOOKUP($D$96,$D$5:$J$26,$B$96+1)) -> 0 | F96: =IFERROR(VLOOKUP($E$96,$B$6:$C$26,2),"") -> 
B97: 4 | C97: =VLOOKUP($B$97,$B$6:$C$26,2) -> EmNi | D97: vC2 | E97: =IF(ISBLANK(ion21Team!$C$5),"",HLOOKUP($D$97,$D$5:$J$26,$B$97+1)) -> 0 | F97: =IFERROR(VLOOKUP($E$97,$B$6:$C$26,2),"") -> 
B98: 4 | C98: =VLOOKUP($B$98,$B$6:$C$26,2) -> EmNi | D98: vC3 | E98: =IF(ISBLANK(ion21Team!$C$5),"",HLOOKUP($D$98,$D$5:$J$26,$B$98+1)) -> 0 | F98: =IFERROR(VLOOKUP($E$98,$B$6:$C$26,2),"") -> 
B99: 4 | C99: =VLOOKUP($B$99,$B$6:$C$26,2) -> EmNi | D99: vC4 | E99: =IF(ISBLANK(ion21Team!$C$5),"",HLOOKUP($D$99,$D$5:$J$26,$B$99+1)) -> 0 | F99: =IFERROR(VLOOKUP($E$99,$B$6:$C$26,2),"") -> 
B100: 4 | C100: =VLOOKUP($B$100,$B$6:$C$26,2) -> EmNi | D100: vC5 | E100: =IF(ISBLANK(ion21Team!$C$5),"",HLOOKUP($D$100,$D$5:$J$26,$B$100+1)) -> 0 | F100: =IFERROR(VLOOKUP($E$100,$B$6:$C$26,2),"") -> 
B101: 4 | C101: =VLOOKUP($B$101,$B$6:$C$26,2) -> EmNi | D101: vC6 | E101: =IF(ISBLANK(ion21Team!$C$5),"",HLOOKUP($D$101,$D$5:$J$26,$B$101+1)) -> 0 | F101: =IFERROR(VLOOKUP($E$101,$B$6:$C$26,2),"") -> 
B102: 4 | C102: =VLOOKUP($B$102,$B$6:$C$26,2) -> EmNi | D102: vC7 | E102: =IF(ISBLANK(ion21Team!$C$5),"",HLOOKUP($D$102,$D$5:$J$26,$B$102+1)) -> 0 | F102: =IFERROR(VLOOKUP($E$102,$B$6:$C$26,2),"") -> 
B103: 4 | C103: =VLOOKUP($B$103,$B$6:$C$26,2) -> EmNi | D103: vA1 | E103: =IF(ISBLANK(ion21Team!$C$5),"",HLOOKUP($D$103,$M$5:$S$26,$B$103+1)) -> 0 | F103: =IFERROR(VLOOKUP($E$103,$B$6:$C$26,2),"") -> 
B104: 4 | C104: =VLOOKUP($B$104,$B$6:$C$26,2) -> EmNi | D104: vA2 | E104: =IF(ISBLANK(ion21Team!$C$5),"",HLOOKUP($D$104,$M$5:$S$26,$B$104+1)) -> 0 | F104: =IFERROR(VLOOKUP($E$104,$B$6:$C$26,2),"") -> 
B105: 4 | C105: =VLOOKUP($B$105,$B$6:$C$26,2) -> EmNi | D105: vA3 | E105: =IF(ISBLANK(ion21Team!$C$5),"",HLOOKUP($D$105,$M$5:$S$26,$B$105+1)) -> 0 | F105: =IFERROR(VLOOKUP($E$105,$B$6:$C$26,2),"") -> 
B106: 4 | C106: =VLOOKUP($B$106,$B$6:$C$26,2) -> EmNi | D106: vA4 | E106: =IF(ISBLANK(ion21Team!$C$5),"",HLOOKUP($D$106,$M$5:$S$26,$B$106+1)) -> 0 | F106: =IFERROR(VLOOKUP($E$106,$B$6:$C$26,2),"") -> 
B107: 4 | C107: =VLOOKUP($B$107,$B$6:$C$26,2) -> EmNi | D107: vA5 | E107: =IF(ISBLANK(ion21Team!$C$5),"",HLOOKUP($D$107,$M$5:$S$26,$B$107+1)) -> 0 | F107: =IFERROR(VLOOKUP($E$107,$B$6:$C$26,2),"") -> 
B108: 4 | C108: =VLOOKUP($B$108,$B$6:$C$26,2) -> EmNi | D108: vA6 | E108: =IF(ISBLANK(ion21Team!$C$5),"",HLOOKUP($D$108,$M$5:$S$26,$B$108+1)) -> 0 | F108: =IFERROR(VLOOKUP($E$108,$B$6:$C$26,2),"") -> 
B109: 4 | C109: =VLOOKUP($B$109,$B$6:$C$26,2) -> EmNi | D109: vA7 | E109: =IF(ISBLANK(ion21Team!$C$5),"",HLOOKUP($D$109,$M$5:$S$26,$B$109+1)) -> 0 | F109: =IFERROR(VLOOKUP($E$109,$B$6:$C$26,2),"") -> 
B110: 4 | C110: =VLOOKUP($B$110,$B$6:$C$26,2) -> EmNi | D110: vI1 | E110: =IF(ISBLANK(ion21Team!$C$5),"",HLOOKUP($D$110,$V$5:$AB$26,$B$110+1)) -> 0 | F110: =IFERROR(VLOOKUP($E$110,$B$6:$C$26,2),"") -> 
B111: 4 | C111: =VLOOKUP($B$111,$B$6:$C$26,2) -> EmNi | D111: vI2 | E111: =IF(ISBLANK(ion21Team!$C$5),"",HLOOKUP($D$111,$V$5:$AB$26,$B$111+1)) -> 0 | F111: =IFERROR(VLOOKUP($E$111,$B$6:$C$26,2),"") -> 
B112: 4 | C112: =VLOOKUP($B$112,$B$6:$C$26,2) -> EmNi | D112: vI3 | E112: =IF(ISBLANK(ion21Team!$C$5),"",HLOOKUP($D$112,$V$5:$AB$26,$B$112+1)) -> 0 | F112: =IFERROR(VLOOKUP($E$112,$B$6:$C$26,2),"") -> 
B113: 4 | C113: =VLOOKUP($B$113,$B$6:$C$26,2) -> EmNi | D113: vI4 | E113: =IF(ISBLANK(ion21Team!$C$5),"",HLOOKUP($D$113,$V$5:$AB$26,$B$113+1)) -> 0 | F113: =IFERROR(VLOOKUP($E$113,$B$6:$C$26,2),"") -> 
B114: 4 | C114: =VLOOKUP($B$114,$B$6:$C$26,2) -> EmNi | D114: vI5 | E114: =IF(ISBLANK(ion21Team!$C$5),"",HLOOKUP($D$114,$V$5:$AB$26,$B$114+1)) -> 0 | F114: =IFERROR(VLOOKUP($E$114,$B$6:$C$26,2),"") -> 
B115: 4 | C115: =VLOOKUP($B$115,$B$6:$C$26,2) -> EmNi | D115: vI6 | E115: =IF(ISBLANK(ion21Team!$C$5),"",HLOOKUP($D$115,$V$5:$AB$26,$B$115+1)) -> 0 | F115: =IFERROR(VLOOKUP($E$115,$B$6:$C$26,2),"") -> 
B116: 4 | C116: =VLOOKUP($B$116,$B$6:$C$26,2) -> EmNi | D116: vI7 | E116: =IF(ISBLANK(ion21Team!$C$5),"",HLOOKUP($D$116,$V$5:$AB$26,$B$116+1)) -> 0 | F116: =IFERROR(VLOOKUP($E$116,$B$6:$C$26,2),"") -> 
B117: 5 | C117: =VLOOKUP($B$117,$B$6:$C$26,2) -> HeJe | D117: vC1 | E117: =IF(ISBLANK(ion21Team!$C$5),"",HLOOKUP($D$117,$D$5:$J$26,$B$117+1)) -> 0 | F117: =IFERROR(VLOOKUP($E$117,$B$6:$C$26,2),"") -> 
B118: 5 | C118: =VLOOKUP($B$118,$B$6:$C$26,2) -> HeJe | D118: vC2 | E118: =IF(ISBLANK(ion21Team!$C$5),"",HLOOKUP($D$118,$D$5:$J$26,$B$118+1)) -> 0 | F118: =IFERROR(VLOOKUP($E$118,$B$6:$C$26,2),"") -> 
B119: 5 | C119: =VLOOKUP($B$119,$B$6:$C$26,2) -> HeJe | D119: vC3 | E119: =IF(ISBLANK(ion21Team!$C$5),"",HLOOKUP($D$119,$D$5:$J$26,$B$119+1)) -> 0 | F119: =IFERROR(VLOOKUP($E$119,$B$6:$C$26,2),"") -> 
B120: 5 | C120: =VLOOKUP($B$120,$B$6:$C$26,2) -> HeJe | D120: vC4 | E120: =IF(ISBLANK(ion21Team!$C$5),"",HLOOKUP($D$120,$D$5:$J$26,$B$120+1)) -> 0 | F120: =IFERROR(VLOOKUP($E$120,$B$6:$C$26,2),"") -> 
B121: 5 | C121: =VLOOKUP($B$121,$B$6:$C$26,2) -> HeJe | D121: vC5 | E121: =IF(ISBLANK(ion21Team!$C$5),"",HLOOKUP($D$121,$D$5:$J$26,$B$121+1)) -> 0 | F121: =IFERROR(VLOOKUP($E$121,$B$6:$C$26,2),"") -> 
B122: 5 | C122: =VLOOKUP($B$122,$B$6:$C$26,2) -> HeJe | D122: vC6 | E122: =IF(ISBLANK(ion21Team!$C$5),"",HLOOKUP($D$122,$D$5:$J$26,$B$122+1)) -> 0 | F122: =IFERROR(VLOOKUP($E$122,$B$6:$C$26,2),"") -> 
B123: 5 | C123: =VLOOKUP($B$123,$B$6:$C$26,2) -> HeJe | D123: vC7 | E123: =IF(ISBLANK(ion21Team!$C$5),"",HLOOKUP($D$123,$D$5:$J$26,$B$123+1)) -> 0 | F123: =IFERROR(VLOOKUP($E$123,$B$6:$C$26,2),"") -> 
B124: 5 | C124: =VLOOKUP($B$124,$B$6:$C$26,2) -> HeJe | D124: vA1 | E124: =IF(ISBLANK(ion21Team!$C$5),"",HLOOKUP($D$124,$M$5:$S$26,$B$124+1)) -> 0 | F124: =IFERROR(VLOOKUP($E$124,$B$6:$C$26,2),"") -> 
B125: 5 | C125: =VLOOKUP($B$125,$B$6:$C$26,2) -> HeJe | D125: vA2 | E125: =IF(ISBLANK(ion21Team!$C$5),"",HLOOKUP($D$125,$M$5:$S$26,$B$125+1)) -> 0 | F125: =IFERROR(VLOOKUP($E$125,$B$6:$C$26,2),"") -> 
B126: 5 | C126: =VLOOKUP($B$126,$B$6:$C$26,2) -> HeJe | D126: vA3 | E126: =IF(ISBLANK(ion21Team!$C$5),"",HLOOKUP($D$126,$M$5:$S$26,$B$126+1)) -> 0 | F126: =IFERROR(VLOOKUP($E$126,$B$6:$C$26,2),"") -> 
B127: 5 | C127: =VLOOKUP($B$127,$B$6:$C$26,2) -> HeJe | D127: vA4 | E127: =IF(ISBLANK(ion21Team!$C$5),"",HLOOKUP($D$127,$M$5:$S$26,$B$127+1)) -> 0 | F127: =IFERROR(VLOOKUP($E$127,$B$6:$C$26,2),"") -> 
B128: 5 | C128: =VLOOKUP($B$128,$B$6:$C$26,2) -> HeJe | D128: vA5 | E128: =IF(ISBLANK(ion21Team!$C$5),"",HLOOKUP($D$128,$M$5:$S$26,$B$128+1)) -> 0 | F128: =IFERROR(VLOOKUP($E$128,$B$6:$C$26,2),"") -> 
B129: 5 | C129: =VLOOKUP($B$129,$B$6:$C$26,2) -> HeJe | D129: vA6 | E129: =IF(ISBLANK(ion21Team!$C$5),"",HLOOKUP($D$129,$M$5:$S$26,$B$129+1)) -> 0 | F129: =IFERROR(VLOOKUP($E$129,$B$6:$C$26,2),"") -> 
B130: 5 | C130: =VLOOKUP($B$130,$B$6:$C$26,2) -> HeJe | D130: vA7 | E130: =IF(ISBLANK(ion21Team!$C$5),"",HLOOKUP($D$130,$M$5:$S$26,$B$130+1)) -> 0 | F130: =IFERROR(VLOOKUP($E$130,$B$6:$C$26,2),"") -> 
B131: 5 | C131: =VLOOKUP($B$131,$B$6:$C$26,2) -> HeJe | D131: vI1 | E131: =IF(ISBLANK(ion21Team!$C$5),"",HLOOKUP($D$131,$V$5:$AB$26,$B$131+1)) -> 0 | F131: =IFERROR(VLOOKUP($E$131,$B$6:$C$26,2),"") -> 
B132: 5 | C132: =VLOOKUP($B$132,$B$6:$C$26,2) -> HeJe | D132: vI2 | E132: =IF(ISBLANK(ion21Team!$C$5),"",HLOOKUP($D$132,$V$5:$AB$26,$B$132+1)) -> 0 | F132: =IFERROR(VLOOKUP($E$132,$B$6:$C$26,2),"") -> 
B133: 5 | C133: =VLOOKUP($B$133,$B$6:$C$26,2) -> HeJe | D133: vI3 | E133: =IF(ISBLANK(ion21Team!$C$5),"",HLOOKUP($D$133,$V$5:$AB$26,$B$133+1)) -> 0 | F133: =IFERROR(VLOOKUP($E$133,$B$6:$C$26,2),"") -> 
B134: 5 | C134: =VLOOKUP($B$134,$B$6:$C$26,2) -> HeJe | D134: vI4 | E134: =IF(ISBLANK(ion21Team!$C$5),"",HLOOKUP($D$134,$V$5:$AB$26,$B$134+1)) -> 0 | F134: =IFERROR(VLOOKUP($E$134,$B$6:$C$26,2),"") -> 
B135: 5 | C135: =VLOOKUP($B$135,$B$6:$C$26,2) -> HeJe | D135: vI5 | E135: =IF(ISBLANK(ion21Team!$C$5),"",HLOOKUP($D$135,$V$5:$AB$26,$B$135+1)) -> 0 | F135: =IFERROR(VLOOKUP($E$135,$B$6:$C$26,2),"") -> 
B136: 5 | C136: =VLOOKUP($B$136,$B$6:$C$26,2) -> HeJe | D136: vI6 | E136: =IF(ISBLANK(ion21Team!$C$5),"",HLOOKUP($D$136,$V$5:$AB$26,$B$136+1)) -> 0 | F136: =IFERROR(VLOOKUP($E$136,$B$6:$C$26,2),"") -> 
B137: 5 | C137: =VLOOKUP($B$137,$B$6:$C$26,2) -> HeJe | D137: vI7 | E137: =IF(ISBLANK(ion21Team!$C$5),"",HLOOKUP($D$137,$V$5:$AB$26,$B$137+1)) -> 0 | F137: =IFERROR(VLOOKUP($E$137,$B$6:$C$26,2),"") -> 
B138: 6 | C138: =VLOOKUP($B$138,$B$6:$C$26,2) ->  | D138: vC1 | E138: =IF(ISBLANK(ion21Team!$C$5),"",HLOOKUP($D$138,$D$5:$J$26,$B$138+1)) -> 0 | F138: =IFERROR(VLOOKUP($E$138,$B$6:$C$26,2),"") -> 
B139: 6 | C139: =VLOOKUP($B$139,$B$6:$C$26,2) ->  | D139: vC2 | E139: =IF(ISBLANK(ion21Team!$C$5),"",HLOOKUP($D$139,$D$5:$J$26,$B$139+1)) -> 0 | F139: =IFERROR(VLOOKUP($E$139,$B$6:$C$26,2),"") -> 
B140: 6 | C140: =VLOOKUP($B$140,$B$6:$C$26,2) ->  | D140: vC3 | E140: =IF(ISBLANK(ion21Team!$C$5),"",HLOOKUP($D$140,$D$5:$J$26,$B$140+1)) -> 0 | F140: =IFERROR(VLOOKUP($E$140,$B$6:$C$26,2),"") -> 
B141: 6 | C141: =VLOOKUP($B$141,$B$6:$C$26,2) ->  | D141: vC4 | E141: =IF(ISBLANK(ion21Team!$C$5),"",HLOOKUP($D$141,$D$5:$J$26,$B$141+1)) -> 0 | F141: =IFERROR(VLOOKUP($E$141,$B$6:$C$26,2),"") -> 
B142: 6 | C142: =VLOOKUP($B$142,$B$6:$C$26,2) ->  | D142: vC5 | E142: =IF(ISBLANK(ion21Team!$C$5),"",HLOOKUP($D$142,$D$5:$J$26,$B$142+1)) -> 0 | F142: =IFERROR(VLOOKUP($E$142,$B$6:$C$26,2),"") -> 
B143: 6 | C143: =VLOOKUP($B$143,$B$6:$C$26,2) ->  | D143: vC6 | E143: =IF(ISBLANK(ion21Team!$C$5),"",HLOOKUP($D$143,$D$5:$J$26,$B$143+1)) -> 0 | F143: =IFERROR(VLOOKUP($E$143,$B$6:$C$26,2),"") -> 
B144: 6 | C144: =VLOOKUP($B$144,$B$6:$C$26,2) ->  | D144: vC7 | E144: =IF(ISBLANK(ion21Team!$C$5),"",HLOOKUP($D$144,$D$5:$J$26,$B$144+1)) -> 0 | F144: =IFERROR(VLOOKUP($E$144,$B$6:$C$26,2),"") -> 
B145: 6 | C145: =VLOOKUP($B$145,$B$6:$C$26,2) ->  | D145: vA1 | E145: =IF(ISBLANK(ion21Team!$C$5),"",HLOOKUP($D$145,$M$5:$S$26,$B$145+1)) -> 0 | F145: =IFERROR(VLOOKUP($E$145,$B$6:$C$26,2),"") -> 
B146: 6 | C146: =VLOOKUP($B$146,$B$6:$C$26,2) ->  | D146: vA2 | E146: =IF(ISBLANK(ion21Team!$C$5),"",HLOOKUP($D$146,$M$5:$S$26,$B$146+1)) -> 0 | F146: =IFERROR(VLOOKUP($E$146,$B$6:$C$26,2),"") -> 
B147: 6 | C147: =VLOOKUP($B$147,$B$6:$C$26,2) ->  | D147: vA3 | E147: =IF(ISBLANK(ion21Team!$C$5),"",HLOOKUP($D$147,$M$5:$S$26,$B$147+1)) -> 0 | F147: =IFERROR(VLOOKUP($E$147,$B$6:$C$26,2),"") -> 
B148: 6 | C148: =VLOOKUP($B$148,$B$6:$C$26,2) ->  | D148: vA4 | E148: =IF(ISBLANK(ion21Team!$C$5),"",HLOOKUP($D$148,$M$5:$S$26,$B$148+1)) -> 0 | F148: =IFERROR(VLOOKUP($E$148,$B$6:$C$26,2),"") -> 
B149: 6 | C149: =VLOOKUP($B$149,$B$6:$C$26,2) ->  | D149: vA5 | E149: =IF(ISBLANK(ion21Team!$C$5),"",HLOOKUP($D$149,$M$5:$S$26,$B$149+1)) -> 0 | F149: =IFERROR(VLOOKUP($E$149,$B$6:$C$26,2),"") -> 
B150: 6 | C150: =VLOOKUP($B$150,$B$6:$C$26,2) ->  | D150: vA6 | E150: =IF(ISBLANK(ion21Team!$C$5),"",HLOOKUP($D$150,$M$5:$S$26,$B$150+1)) -> 0 | F150: =IFERROR(VLOOKUP($E$150,$B$6:$C$26,2),"") -> 
B151: 6 | C151: =VLOOKUP($B$151,$B$6:$C$26,2) ->  | D151: vA7 | E151: =IF(ISBLANK(ion21Team!$C$5),"",HLOOKUP($D$151,$M$5:$S$26,$B$151+1)) -> 0 | F151: =IFERROR(VLOOKUP($E$151,$B$6:$C$26,2),"") -> 
B152: 6 | C152: =VLOOKUP($B$152,$B$6:$C$26,2) ->  | D152: vI1 | E152: =IF(ISBLANK(ion21Team!$C$5),"",HLOOKUP($D$152,$V$5:$AB$26,$B$152+1)) -> 0 | F152: =IFERROR(VLOOKUP($E$152,$B$6:$C$26,2),"") -> 
B153: 6 | C153: =VLOOKUP($B$153,$B$6:$C$26,2) ->  | D153: vI2 | E153: =IF(ISBLANK(ion21Team!$C$5),"",HLOOKUP($D$153,$V$5:$AB$26,$B$153+1)) -> 0 | F153: =IFERROR(VLOOKUP($E$153,$B$6:$C$26,2),"") -> 
B154: 6 | C154: =VLOOKUP($B$154,$B$6:$C$26,2) ->  | D154: vI3 | E154: =IF(ISBLANK(ion21Team!$C$5),"",HLOOKUP($D$154,$V$5:$AB$26,$B$154+1)) -> 0 | F154: =IFERROR(VLOOKUP($E$154,$B$6:$C$26,2),"") -> 
B155: 6 | C155: =VLOOKUP($B$155,$B$6:$C$26,2) ->  | D155: vI4 | E155: =IF(ISBLANK(ion21Team!$C$5),"",HLOOKUP($D$155,$V$5:$AB$26,$B$155+1)) -> 0 | F155: =IFERROR(VLOOKUP($E$155,$B$6:$C$26,2),"") -> 
B156: 6 | C156: =VLOOKUP($B$156,$B$6:$C$26,2) ->  | D156: vI5 | E156: =IF(ISBLANK(ion21Team!$C$5),"",HLOOKUP($D$156,$V$5:$AB$26,$B$156+1)) -> 0 | F156: =IFERROR(VLOOKUP($E$156,$B$6:$C$26,2),"") -> 
B157: 6 | C157: =VLOOKUP($B$157,$B$6:$C$26,2) ->  | D157: vI6 | E157: =IF(ISBLANK(ion21Team!$C$5),"",HLOOKUP($D$157,$V$5:$AB$26,$B$157+1)) -> 0 | F157: =IFERROR(VLOOKUP($E$157,$B$6:$C$26,2),"") -> 
B158: 6 | C158: =VLOOKUP($B$158,$B$6:$C$26,2) ->  | D158: vI7 | E158: =IF(ISBLANK(ion21Team!$C$5),"",HLOOKUP($D$158,$V$5:$AB$26,$B$158+1)) -> 0 | F158: =IFERROR(VLOOKUP($E$158,$B$6:$C$26,2),"") -> 
B159: 7 | C159: =VLOOKUP($B$159,$B$6:$C$26,2) ->  | D159: vC1 | E159: =IF(ISBLANK(ion21Team!$C$5),"",HLOOKUP($D$159,$D$5:$J$26,$B$159+1)) -> 0 | F159: =IFERROR(VLOOKUP($E$159,$B$6:$C$26,2),"") -> 
B160: 7 | C160: =VLOOKUP($B$160,$B$6:$C$26,2) ->  | D160: vC2 | E160: =IF(ISBLANK(ion21Team!$C$5),"",HLOOKUP($D$160,$D$5:$J$26,$B$160+1)) -> 0 | F160: =IFERROR(VLOOKUP($E$160,$B$6:$C$26,2),"") -> 
B161: 7 | C161: =VLOOKUP($B$161,$B$6:$C$26,2) ->  | D161: vC3 | E161: =IF(ISBLANK(ion21Team!$C$5),"",HLOOKUP($D$161,$D$5:$J$26,$B$161+1)) -> 0 | F161: =IFERROR(VLOOKUP($E$161,$B$6:$C$26,2),"") -> 
B162: 7 | C162: =VLOOKUP($B$162,$B$6:$C$26,2) ->  | D162: vC4 | E162: =IF(ISBLANK(ion21Team!$C$5),"",HLOOKUP($D$162,$D$5:$J$26,$B$162+1)) -> 0 | F162: =IFERROR(VLOOKUP($E$162,$B$6:$C$26,2),"") -> 
B163: 7 | C163: =VLOOKUP($B$163,$B$6:$C$26,2) ->  | D163: vC5 | E163: =IF(ISBLANK(ion21Team!$C$5),"",HLOOKUP($D$163,$D$5:$J$26,$B$163+1)) -> 0 | F163: =IFERROR(VLOOKUP($E$163,$B$6:$C$26,2),"") -> 
B164: 7 | C164: =VLOOKUP($B$164,$B$6:$C$26,2) ->  | D164: vC6 | E164: =IF(ISBLANK(ion21Team!$C$5),"",HLOOKUP($D$164,$D$5:$J$26,$B$164+1)) -> 0 | F164: =IFERROR(VLOOKUP($E$164,$B$6:$C$26,2),"") -> 
B165: 7 | C165: =VLOOKUP($B$165,$B$6:$C$26,2) ->  | D165: vC7 | E165: =IF(ISBLANK(ion21Team!$C$5),"",HLOOKUP($D$165,$D$5:$J$26,$B$165+1)) -> 0 | F165: =IFERROR(VLOOKUP($E$165,$B$6:$C$26,2),"") -> 
B166: 7 | C166: =VLOOKUP($B$166,$B$6:$C$26,2) ->  | D166: vA1 | E166: =IF(ISBLANK(ion21Team!$C$5),"",HLOOKUP($D$166,$M$5:$S$26,$B$166+1)) -> 0 | F166: =IFERROR(VLOOKUP($E$166,$B$6:$C$26,2),"") -> 
B167: 7 | C167: =VLOOKUP($B$167,$B$6:$C$26,2) ->  | D167: vA2 | E167: =IF(ISBLANK(ion21Team!$C$5),"",HLOOKUP($D$167,$M$5:$S$26,$B$167+1)) -> 0 | F167: =IFERROR(VLOOKUP($E$167,$B$6:$C$26,2),"") -> 
B168: 7 | C168: =VLOOKUP($B$168,$B$6:$C$26,2) ->  | D168: vA3 | E168: =IF(ISBLANK(ion21Team!$C$5),"",HLOOKUP($D$168,$M$5:$S$26,$B$168+1)) -> 0 | F168: =IFERROR(VLOOKUP($E$168,$B$6:$C$26,2),"") -> 
B169: 7 | C169: =VLOOKUP($B$169,$B$6:$C$26,2) ->  | D169: vA4 | E169: =IF(ISBLANK(ion21Team!$C$5),"",HLOOKUP($D$169,$M$5:$S$26,$B$169+1)) -> 0 | F169: =IFERROR(VLOOKUP($E$169,$B$6:$C$26,2),"") -> 
B170: 7 | C170: =VLOOKUP($B$170,$B$6:$C$26,2) ->  | D170: vA5 | E170: =IF(ISBLANK(ion21Team!$C$5),"",HLOOKUP($D$170,$M$5:$S$26,$B$170+1)) -> 0 | F170: =IFERROR(VLOOKUP($E$170,$B$6:$C$26,2),"") -> 
B171: 7 | C171: =VLOOKUP($B$171,$B$6:$C$26,2) ->  | D171: vA6 | E171: =IF(ISBLANK(ion21Team!$C$5),"",HLOOKUP($D$171,$M$5:$S$26,$B$171+1)) -> 0 | F171: =IFERROR(VLOOKUP($E$171,$B$6:$C$26,2),"") -> 
B172: 7 | C172: =VLOOKUP($B$172,$B$6:$C$26,2) ->  | D172: vA7 | E172: =IF(ISBLANK(ion21Team!$C$5),"",HLOOKUP($D$172,$M$5:$S$26,$B$172+1)) -> 0 | F172: =IFERROR(VLOOKUP($E$172,$B$6:$C$26,2),"") -> 
B173: 7 | C173: =VLOOKUP($B$173,$B$6:$C$26,2) ->  | D173: vI1 | E173: =IF(ISBLANK(ion21Team!$C$5),"",HLOOKUP($D$173,$V$5:$AB$26,$B$173+1)) -> 0 | F173: =IFERROR(VLOOKUP($E$173,$B$6:$C$26,2),"") -> 
B174: 7 | C174: =VLOOKUP($B$174,$B$6:$C$26,2) ->  | D174: vI2 | E174: =IF(ISBLANK(ion21Team!$C$5),"",HLOOKUP($D$174,$V$5:$AB$26,$B$174+1)) -> 0 | F174: =IFERROR(VLOOKUP($E$174,$B$6:$C$26,2),"") -> 
B175: 7 | C175: =VLOOKUP($B$175,$B$6:$C$26,2) ->  | D175: vI3 | E175: =IF(ISBLANK(ion21Team!$C$5),"",HLOOKUP($D$175,$V$5:$AB$26,$B$175+1)) -> 0 | F175: =IFERROR(VLOOKUP($E$175,$B$6:$C$26,2),"") -> 
B176: 7 | C176: =VLOOKUP($B$176,$B$6:$C$26,2) ->  | D176: vI4 | E176: =IF(ISBLANK(ion21Team!$C$5),"",HLOOKUP($D$176,$V$5:$AB$26,$B$176+1)) -> 0 | F176: =IFERROR(VLOOKUP($E$176,$B$6:$C$26,2),"") -> 
B177: 7 | C177: =VLOOKUP($B$177,$B$6:$C$26,2) ->  | D177: vI5 | E177: =IF(ISBLANK(ion21Team!$C$5),"",HLOOKUP($D$177,$V$5:$AB$26,$B$177+1)) -> 0 | F177: =IFERROR(VLOOKUP($E$177,$B$6:$C$26,2),"") -> 
B178: 7 | C178: =VLOOKUP($B$178,$B$6:$C$26,2) ->  | D178: vI6 | E178: =IF(ISBLANK(ion21Team!$C$5),"",HLOOKUP($D$178,$V$5:$AB$26,$B$178+1)) -> 0 | F178: =IFERROR(VLOOKUP($E$178,$B$6:$C$26,2),"") -> 
B179: 7 | C179: =VLOOKUP($B$179,$B$6:$C$26,2) ->  | D179: vI7 | E179: =IF(ISBLANK(ion21Team!$C$5),"",HLOOKUP($D$179,$V$5:$AB$26,$B$179+1)) -> 0 | F179: =IFERROR(VLOOKUP($E$179,$B$6:$C$26,2),"") -> 
B180: 8 | C180: =VLOOKUP($B$180,$B$6:$C$26,2) ->  | D180: vC1 | E180: =IF(ISBLANK(ion21Team!$C$5),"",HLOOKUP($D$180,$D$5:$J$26,$B$180+1)) -> 0 | F180: =IFERROR(VLOOKUP($E$180,$B$6:$C$26,2),"") -> 
B181: 8 | C181: =VLOOKUP($B$181,$B$6:$C$26,2) ->  | D181: vC2 | E181: =IF(ISBLANK(ion21Team!$C$5),"",HLOOKUP($D$181,$D$5:$J$26,$B$181+1)) -> 0 | F181: =IFERROR(VLOOKUP($E$181,$B$6:$C$26,2),"") -> 
B182: 8 | C182: =VLOOKUP($B$182,$B$6:$C$26,2) ->  | D182: vC3 | E182: =IF(ISBLANK(ion21Team!$C$5),"",HLOOKUP($D$182,$D$5:$J$26,$B$182+1)) -> 0 | F182: =IFERROR(VLOOKUP($E$182,$B$6:$C$26,2),"") -> 
B183: 8 | C183: =VLOOKUP($B$183,$B$6:$C$26,2) ->  | D183: vC4 | E183: =IF(ISBLANK(ion21Team!$C$5),"",HLOOKUP($D$183,$D$5:$J$26,$B$183+1)) -> 0 | F183: =IFERROR(VLOOKUP($E$183,$B$6:$C$26,2),"") -> 
B184: 8 | C184: =VLOOKUP($B$184,$B$6:$C$26,2) ->  | D184: vC5 | E184: =IF(ISBLANK(ion21Team!$C$5),"",HLOOKUP($D$184,$D$5:$J$26,$B$184+1)) -> 0 | F184: =IFERROR(VLOOKUP($E$184,$B$6:$C$26,2),"") -> 
B185: 8 | C185: =VLOOKUP($B$185,$B$6:$C$26,2) ->  | D185: vC6 | E185: =IF(ISBLANK(ion21Team!$C$5),"",HLOOKUP($D$185,$D$5:$J$26,$B$185+1)) -> 0 | F185: =IFERROR(VLOOKUP($E$185,$B$6:$C$26,2),"") -> 
B186: 8 | C186: =VLOOKUP($B$186,$B$6:$C$26,2) ->  | D186: vC7 | E186: =IF(ISBLANK(ion21Team!$C$5),"",HLOOKUP($D$186,$D$5:$J$26,$B$186+1)) -> 0 | F186: =IFERROR(VLOOKUP($E$186,$B$6:$C$26,2),"") -> 
B187: 8 | C187: =VLOOKUP($B$187,$B$6:$C$26,2) ->  | D187: vA1 | E187: =IF(ISBLANK(ion21Team!$C$5),"",HLOOKUP($D$187,$M$5:$S$26,$B$187+1)) -> 0 | F187: =IFERROR(VLOOKUP($E$187,$B$6:$C$26,2),"") -> 
B188: 8 | C188: =VLOOKUP($B$188,$B$6:$C$26,2) ->  | D188: vA2 | E188: =IF(ISBLANK(ion21Team!$C$5),"",HLOOKUP($D$188,$M$5:$S$26,$B$188+1)) -> 0 | F188: =IFERROR(VLOOKUP($E$188,$B$6:$C$26,2),"") -> 
B189: 8 | C189: =VLOOKUP($B$189,$B$6:$C$26,2) ->  | D189: vA3 | E189: =IF(ISBLANK(ion21Team!$C$5),"",HLOOKUP($D$189,$M$5:$S$26,$B$189+1)) -> 0 | F189: =IFERROR(VLOOKUP($E$189,$B$6:$C$26,2),"") -> 
B190: 8 | C190: =VLOOKUP($B$190,$B$6:$C$26,2) ->  | D190: vA4 | E190: =IF(ISBLANK(ion21Team!$C$5),"",HLOOKUP($D$190,$M$5:$S$26,$B$190+1)) -> 0 | F190: =IFERROR(VLOOKUP($E$190,$B$6:$C$26,2),"") -> 
B191: 8 | C191: =VLOOKUP($B$191,$B$6:$C$26,2) ->  | D191: vA5 | E191: =IF(ISBLANK(ion21Team!$C$5),"",HLOOKUP($D$191,$M$5:$S$26,$B$191+1)) -> 0 | F191: =IFERROR(VLOOKUP($E$191,$B$6:$C$26,2),"") -> 
B192: 8 | C192: =VLOOKUP($B$192,$B$6:$C$26,2) ->  | D192: vA6 | E192: =IF(ISBLANK(ion21Team!$C$5),"",HLOOKUP($D$192,$M$5:$S$26,$B$192+1)) -> 0 | F192: =IFERROR(VLOOKUP($E$192,$B$6:$C$26,2),"") -> 
B193: 8 | C193: =VLOOKUP($B$193,$B$6:$C$26,2) ->  | D193: vA7 | E193: =IF(ISBLANK(ion21Team!$C$5),"",HLOOKUP($D$193,$M$5:$S$26,$B$193+1)) -> 0 | F193: =IFERROR(VLOOKUP($E$193,$B$6:$C$26,2),"") -> 
B194: 8 | C194: =VLOOKUP($B$194,$B$6:$C$26,2) ->  | D194: vI1 | E194: =IF(ISBLANK(ion21Team!$C$5),"",HLOOKUP($D$194,$V$5:$AB$26,$B$194+1)) -> 0 | F194: =IFERROR(VLOOKUP($E$194,$B$6:$C$26,2),"") -> 
B195: 8 | C195: =VLOOKUP($B$195,$B$6:$C$26,2) ->  | D195: vI2 | E195: =IF(ISBLANK(ion21Team!$C$5),"",HLOOKUP($D$195,$V$5:$AB$26,$B$195+1)) -> 0 | F195: =IFERROR(VLOOKUP($E$195,$B$6:$C$26,2),"") -> 
B196: 8 | C196: =VLOOKUP($B$196,$B$6:$C$26,2) ->  | D196: vI3 | E196: =IF(ISBLANK(ion21Team!$C$5),"",HLOOKUP($D$196,$V$5:$AB$26,$B$196+1)) -> 0 | F196: =IFERROR(VLOOKUP($E$196,$B$6:$C$26,2),"") -> 
B197: 8 | C197: =VLOOKUP($B$197,$B$6:$C$26,2) ->  | D197: vI4 | E197: =IF(ISBLANK(ion21Team!$C$5),"",HLOOKUP($D$197,$V$5:$AB$26,$B$197+1)) -> 0 | F197: =IFERROR(VLOOKUP($E$197,$B$6:$C$26,2),"") -> 
B198: 8 | C198: =VLOOKUP($B$198,$B$6:$C$26,2) ->  | D198: vI5 | E198: =IF(ISBLANK(ion21Team!$C$5),"",HLOOKUP($D$198,$V$5:$AB$26,$B$198+1)) -> 0 | F198: =IFERROR(VLOOKUP($E$198,$B$6:$C$26,2),"") -> 
B199: 8 | C199: =VLOOKUP($B$199,$B$6:$C$26,2) ->  | D199: vI6 | E199: =IF(ISBLANK(ion21Team!$C$5),"",HLOOKUP($D$199,$V$5:$AB$26,$B$199+1)) -> 0 | F199: =IFERROR(VLOOKUP($E$199,$B$6:$C$26,2),"") -> 
B200: 8 | C200: =VLOOKUP($B$200,$B$6:$C$26,2) ->  | D200: vI7 | E200: =IF(ISBLANK(ion21Team!$C$5),"",HLOOKUP($D$200,$V$5:$AB$26,$B$200+1)) -> 0 | F200: =IFERROR(VLOOKUP($E$200,$B$6:$C$26,2),"") -> 
B201: 9 | C201: =VLOOKUP($B$201,$B$6:$C$26,2) ->  | D201: vC1 | E201: =IF(ISBLANK(ion21Team!$C$5),"",HLOOKUP($D$201,$D$5:$J$26,$B$201+1)) -> 0 | F201: =IFERROR(VLOOKUP($E$201,$B$6:$C$26,2),"") -> 
... 272 more rows

Sheet TeamACT
A1: Team ACTIVITY table
B2: Main Data Protection
J3: 1 | K3: SeN: | AE3: Sum: | AF3: =SUM(AF6:AF338) -> 465 | AH3: 2 | AI3: SeN: | BC3: Sum: | BD3: =SUM(BD6:BD338) -> 6 | BF3: 3 | BG3: SeN: | CA3: Sum: | CB3: =SUM(CB6:CB338) -> 465 | CD3: 4 | CE3: SeN: | CY3: Sum: | CZ3: =SUM(CZ6:CZ338) -> 0 | DB3: 5 | DC3: SeN: | DW3: Sum: | DX3: =SUM(DX6:DX338) -> 0 | DZ3: 6 | EA3: SeN: | EU3: Sum: | EV3: =SUM(EV6:EV338) -> 0 | EX3: 7 | EY3: SeN: | FS3: Sum: | FT3: =SUM(FT6:FT338) -> 0 | FV3: 8 | FW3: SeN: | GQ3: Sum: | GR3: =SUM(GR6:GR338) -> 0 | GT3: 9 | GU3: SeN: | HO3: Sum: | HP3: =SUM(HP6:HP338) -> 0 | HR3: 10 | HS3: SeN: | IM3: Sum: | IN3: =SUM(IN6:IN338) -> 0 | IP3: 11 | IQ3: SeN: | JK3: Sum: | JL3: =SUM(JL6:JL338) -> 0 | JN3: 12 | JO3: SeN: | KI3: Sum: | KJ3: =SUM(KJ6:KJ338) -> 0 | KL3: 13 | KM3: SeN: | LG3: Sum: | LH3: =SUM(LH6:LH338) -> 0 | LJ3: 14 | LK3: SeN: | ME3: Sum: | MF3: =SUM(MF6:MF338) -> 0 | MH3: 15 | MI3: SeN: | NC3: Sum: | ND3: =SUM(ND6:ND338) -> 0 | NF3: 16 | NG3: SeN: | OA3: Sum: | OB3: =SUM(OB6:OB338) -> 0 | OD3: 17 | OE3: SeN: | OY3: Sum: | OZ3: =SUM(OZ6:OZ338) -> 0 | PB3: 18 | PC3: SeN: | PW3: Sum: | PX3: =SUM(PX6:PX338) -> 0 | PZ3: 19 | QA3: SeN: | QU3: Sum: | QV3: =SUM(QV6:QV338) -> 0 | QX3: 20 | QY3: SeN: | RS3: Sum: | RT3: =SUM(RT6:RT338) -> 0 | RV3: 21 | RW3: SeN: | SQ3: Sum: | SR3: =SUM(SR6:SR338) -> 0
B4: Member | D4: ACTivity | F4: ACT Votes | J4: Member | L4: Item | M4: What - With - Where - When | Q4: How long | T4: How much | V4: Supervision | AE4: Result ACT | AH4: Member | AJ4: Item | AK4: What - With - Where - When | AO4: How long | AR4: How much | AT4: Supervision | BC4: Result ACT | BF4: Member | BH4: Item | BI4: What - With - Where - When | BM4: How long | BP4: How much | BR4: Supervision | CA4: Result ACT | CD4: Member | CF4: Item | CG4: What - With - Where - When | CK4: How long | CN4: How much | CP4: Supervision | CY4: Result ACT | DB4: Member | DD4: Item | DE4: What - With - Where - When | DI4: How long | DL4: How much | DN4: Supervision | DW4: Result ACT | DZ4: Member | EB4: Item | EC4: What - With - Where - When | EG4: How long | EJ4: How much | EL4: Supervision | EU4: Result ACT | EX4: Member | EZ4: Item | FA4: What - With - Where - When | FE4: How long | FH4: How much | FJ4: Supervision | FS4: Result ACT | FV4: Member | FX4: Item | FY4: What - With - Where - When | GC4: How long | GF4: How much | GH4: Supervision | GQ4: Result ACT | GT4: Member | GV4: Item | GW4: What - With - Where - When | HA4: How long | HD4: How much | HF4: Supervision | HO4: Result ACT | HR4: Member | HT4: Item | HU4: What - With - Where - When | HY4: How long | IB4: How much | ID4: Supervision | IM4: Result ACT | IP4: Member | IR4: Item | IS4: What - With - Where - When | IW4: How long | IZ4: How much | JB4: Supervision | JK4: Result ACT | JN4: Member | JP4: Item | JQ4: What - With - Where - When | JU4: How long | JX4: How much | JZ4: Supervision | KI4: Result ACT | KL4: Member | KN4: Item | KO4: What - With - Where - When | KS4: How long | KV4: How much | KX4: Supervision | LG4: Result ACT | LJ4: Member | LL4: Item | LM4: What - With - Where - When | LQ4: How long | LT4: How much | LV4: Supervision | ME4: Result ACT | MH4: Member | MJ4: Item | MK4: What - With - Where - When | MO4: How long | MR4: How much | MT4: Supervision | NC4: Result ACT | NF4: Member | NH4: Item | NI4: What - With - Where - When | NM4: How long | NP4: How much | NR4: Supervision | OA4: Result ACT | OD4: Member | OF4: Item | OG4: What - With - Where - When | OK4: How long | ON4: How much | OP4: Supervision | OY4: Result ACT | PB4: Member | PD4: Item | PE4: What - With - Where - When | PI4: How long | PL4: How much | PN4: Supervision | PW4: Result ACT | PZ4: Member | QB4: Item | QC4: What - With - Where - When | QG4: How long | QJ4: How much | QL4: Supervision | QU4: Result ACT | QX4: Member | QZ4: Item | RA4: What - With - Where - When | RE4: How long | RH4: How much | RJ4: Supervision | RS4: Result ACT | RV4: Member | RX4: Item | RY4: What - With - Where - When | SC4: How long | SF4: How much | SH4: Supervision | SQ4: Result ACT | ST4: Line | SU4: Member | SW4: Item | SX4: Supervisor | SZ4: Decision reducing the evaluation
A5: Member: | B5: ID | C5: Code | D5: RHours | E5: ACT % | F5: Shared | G5: ByTab | H5: GAP | J5: ID | K5: Code | L5: N | M5: What was done | N5: With whom | O5: Where | P5: When | Q5: From | R5: To | S5: Hours | T5: Rate | U5: EHours | V5: SV1 | W5: SV2 | X5: SV3 | Y5: SV4 | Z5: SV5 | AA5: SV6 | AB5: SV7 | AC5: SV8 | AD5: SV9 | AE5: Avg | AF5: RHours | AH5: ID | AI5: Code | AJ5: N | AK5: What was done | AL5: With whom | AM5: Where | AN5: When | AO5: From | AP5: To | AQ5: Hours | AR5: Rate | AS5: EHours | AT5: SV1 | AU5: SV2 | AV5: SV3 | AW5: SV4 | AX5: SV5 | AY5: SV6 | AZ5: SV7 | BA5: SV8 | BB5: SV9 | BC5: Avg | BD5: RHours | BF5: ID | BG5: Code | BH5: N | BI5: What was done | BJ5: With whom | BK5: Where | BL5: When | BM5: From | BN5: To | BO5: Hours | BP5: Rate | BQ5: EHours | BR5: SV1 | BS5: SV2 | BT5: SV3 | BU5: SV4 | BV5: SV5 | BW5: SV6 | BX5: SV7 | BY5: SV8 | BZ5: SV9 | CA5: Avg | CB5: RHours | CD5: ID | CE5: Code | CF5: N | CG5: What was done | CH5: With whom | CI5: Where | CJ5: When | CK5: From | CL5: To | CM5: Hours | CN5: Rate | CO5: EHours | CP5: SV1 | CQ5: SV2 | CR5: SV3 | CS5: SV4 | CT5: SV5 | CU5: SV6 | CV5: SV7 | CW5: SV8 | CX5: SV9 | CY5: Avg | CZ5: RHours | DB5: ID | DC5: Code | DD5: N | DE5: What was done | DF5: With whom | DG5: Where | DH5: When | DI5: From | DJ5: To | DK5: Hours | DL5: Rate | DM5: EHours | DN5: SV1 | DO5: SV2 | DP5: SV3 | DQ5: SV4 | DR5: SV5 | DS5: SV6 | DT5: SV7 | DU5: SV8 | DV5: SV9 | DW5: Avg | DX5: RHours | DZ5: ID | EA5: Code | EB5: N | EC5: What was done | ED5: With whom | EE5: Where | EF5: When | EG5: From | EH5: To | EI5: Hours | EJ5: Rate | EK5: EHours | EL5: SV1 | EM5: SV2 | EN5: SV3 | EO5: SV4 | EP5: SV5 | EQ5: SV6 | ER5: SV7 | ES5: SV8 | ET5: SV9 | EU5: Avg | EV5: RHours | EX5: ID | EY5: Code | EZ5: N | FA5: What was done | FB5: With whom | FC5: Where | FD5: When | FE5: From | FF5: To | FG5: Hours | FH5: Rate | FI5: EHours | FJ5: SV1 | FK5: SV2 | FL5: SV3 | FM5: SV4 | FN5: SV5 | FO5: SV6 | FP5: SV7 | FQ5: SV8 | FR5: SV9 | FS5: Avg | FT5: RHours | FV5: ID | FW5: Code | FX5: N | FY5: What was done | FZ5: With whom | GA5: Where | GB5: When | GC5: From | GD5: To | GE5: Hours | GF5: Rate | GG5: EHours | GH5: SV1 | GI5: SV2 | GJ5: SV3 | GK5: SV4 | GL5: SV5 | GM5: SV6 | GN5: SV7 | GO5: SV8 | GP5: SV9 | GQ5: Avg | GR5: RHours | GT5: ID | GU5: Code | GV5: N | GW5: What was done | GX5: With whom | GY5: Where | GZ5: When | HA5: From | HB5: To | HC5: Hours | HD5: Rate | HE5: EHours | HF5: SV1 | HG5: SV2 | HH5: SV3 | HI5: SV4 | HJ5: SV5 | HK5: SV6 | HL5: SV7 | HM5: SV8 | HN5: SV9 | HO5: Avg | HP5: RHours | HR5: ID | HS5: Code | HT5: N | HU5: What was done | HV5: With whom | HW5: Where | HX5: When | HY5: From | HZ5: To | IA5: Hours | IB5: Rate | IC5: EHours | ID5: SV1 | IE5: SV2 | IF5: SV3 | IG5: SV4 | IH5: SV5 | II5: SV6 | IJ5: SV7 | IK5: SV8 | IL5: SV9 | IM5: Avg | IN5: RHours | IP5: ID | IQ5: Code | IR5: N | IS5: What was done | IT5: With whom | IU5: Where | IV5: When | IW5: From | IX5: To | IY5: Hours | IZ5: Rate | JA5: EHours | JB5: SV1 | JC5: SV2 | JD5: SV3 | JE5: SV4 | JF5: SV5 | JG5: SV6 | JH5: SV7 | JI5: SV8 | JJ5: SV9 | JK5: Avg | JL5: RHours | JN5: ID | JO5: Code | JP5: N | JQ5: What was done | JR5: With whom | JS5: Where | JT5: When | JU5: From | JV5: To | JW5: Hours | JX5: Rate | JY5: EHours | JZ5: SV1 | KA5: SV2 | KB5: SV3 | KC5: SV4 | KD5: SV5 | KE5: SV6 | KF5: SV7 | KG5: SV8 | KH5: SV9 | KI5: Avg | KJ5: RHours | KL5: ID | KM5: Code | KN5: N | KO5: What was done | KP5: With whom | KQ5: Where | KR5: When | KS5: From | KT5: To | KU5: Hours | KV5: Rate | KW5: EHours | KX5: SV1 | KY5: SV2 | KZ5: SV3 | LA5: SV4 | LB5: SV5 | LC5: SV6 | LD5: SV7 | LE5: SV8 | LF5: SV9 | LG5: Avg | LH5: RHours | LJ5: ID | LK5: Code | LL5: N | LM5: What was done | LN5: With whom | LO5: Where | LP5: When | LQ5: From | LR5: To | LS5: Hours | LT5: Rate | LU5: EHours | LV5: SV1 | LW5: SV2 | LX5: SV3 | LY5: SV4 | LZ5: SV5 | MA5: SV6 | MB5: SV7 | MC5: SV8 | MD5: SV9 | ME5: Avg | MF5: RHours | MH5: ID | MI5: Code | MJ5: N | MK5: What was done | ML5: With whom | MM5: Where | MN5: When | MO5: From | MP5: To | MQ5: Hours | MR5: Rate | MS5: EHours | MT5: SV1 | MU5: SV2 | MV5: SV3 | MW5: SV4 | MX5: SV5 | MY5: SV6 | MZ5: SV7 | NA5: SV8 | NB5: SV9 | NC5: Avg | ND5: RHours | NF5: ID | NG5: Code | NH5: N | NI5: What was done | NJ5: With whom | NK5: Where | NL5: When | NM5: From | NN5: To | NO5: Hours | NP5: Rate | NQ5: EHours | NR5: SV1 | NS5: SV2 | NT5: SV3 | NU5: SV4 | NV5: SV5 | NW5: SV6 | NX5: SV7 | NY5: SV8 | NZ5: SV9 | OA5: Avg | OB5: RHours | OD5: ID | OE5: Code | OF5: N | OG5: What was done | OH5: With whom | OI5: Where | OJ5: When | OK5: From | OL5: To | OM5: Hours | ON5: Rate | OO5: EHours | OP5: SV1 | OQ5: SV2 | OR5: SV3 | OS5: SV4 | OT5: SV5 | OU5: SV6 | OV5: SV7 | OW5: SV8 | OX5: SV9 | OY5: Avg | OZ5: RHours | PB5: ID | PC5: Code | PD5: N | PE5: What was done | PF5: With whom | PG5: Where | PH5: When | PI5: From | PJ5: To | PK5: Hours | PL5: Rate | PM5: EHours | PN5: SV1 | PO5: SV2 | PP5: SV3 | PQ5: SV4 | PR5: SV5 | PS5: SV6 | PT5: SV7 | PU5: SV8 | PV5: SV9 | PW5: Avg | PX5: RHours | PZ5: ID | QA5: Code | QB5: N | QC5: What was done | QD5: With whom | QE5: Where | QF5: When | QG5: From | QH5: To | QI5: Hours | QJ5: Rate | QK5: EHours | QL5: SV1 | QM5: SV2 | QN5: SV3 | QO5: SV4 | QP5: SV5 | QQ5: SV6 | QR5: SV7 | QS5: SV8 | QT5: SV9 | QU5: Avg | QV5: RHours | QX5: ID | QY5: Code | QZ5: N | RA5: What was done | RB5: With whom | RC5: Where | RD5: When | RE5: From | RF5: To | RG5: EHours | RH5: Rate | RI5: Hours | RJ5: SV1 | RK5: SV2 | RL5: SV3 | RM5: SV4 | RN5: SV5 | RO5: SV6 | RP5: SV7 | RQ5: SV8 | RR5: SV9 | RS5: Avg | RT5: RHours | RV5: ID | RW5: Code | RX5: N | RY5: What was done | RZ5: With whom | SA5: Where | SB5: When | SC5: From | SD5: To | SE5: EHours | SF5: Rate | SG5: Hours | SH5: SV1 | SI5: SV2 | SJ5: SV3 | SK5: SV4 | SL5: SV5 | SM5: SV6 | SN5: SV7 | SO5: SV8 | SP5: SV9 | SQ5: Avg | SR5: RHours | ST5: LN | SU5: ID | SV5: Code | SW5: N | SX5: ID | SY5: Code | SZ5: Date & Time | TA5: Val | TB5: Reason
A6: =B6& " - "&C6 -> 1 - YaJo | B6: =ion21Team!B5 -> 1 | C6: =IF(ISBLANK(ion21Team!C5),"",ion21Team!C5) -> YaJo | D6: =IF(ISBLANK(ion21Team!C5),"",AF$3) -> 465 | E6: =IF(ISBLANK(ion21Team!C5),"",IFERROR(D6/$D$27*100,0)) -> 49.67948718 | F6: =IF(ISBLANK(ion21Team!C5),"",ion21Votes!AF6) -> 8 | G6: =IF(ISBLANK(ion21Team!C5),"",ROUND(ion21Votes!$AF$27*E6/100,0)) -> 10 | H6: =IF(ISBLANK(ion21Team!C5),"",F6-G6) -> -2 | J6: =J$3 -> 1 | K6: =VLOOKUP(J6,$B$6:$C$26,2) -> YaJo | L6: 1 | M6: Creation of a concept SwissHike 3 in 1 | N6: MiDo | P6: 2016 … | S6: 10 | T6: 1 | U6: =IF(ISBLANK(S6),"",S6*T6) -> 10 | V6: 1 | W6: 1 | X6: 1 | Y6: 1 | Z6: 1 | AA6: 1 | AB6: 1 | AC6: 1 | AD6: 1 | AE6: =IF(ISBLANK(U6),"",ROUND(AVERAGE(OFFSET(V6:AD6,0,0,1,ion21Coop!$F$42)),1)) -> 1 | AF6: =IF(ISBLANK(U6),"",U6*AE6) -> 10 | AH6: =AH$3 -> 2 | AI6: =VLOOKUP(AH6,$B$6:$C$26,2) -> GeLo | AJ6: 1 | AK6: SBB online ticked Kandersteg to Zürich | AL6: 3-MiDo | AM6: Gemmi Lodge | AN6: 2017-07-01 | AO6: 14:00:00 | AP6: 15:00:00 | AQ6: =IF(ISBLANK(AO6),"",(AP6-AO6)*24) -> 1 | AR6: 1 | AS6: =IF(ISBLANK(AO6),"",AQ6*AR6) -> 1 | AT6: 1 | AU6: 1 | AV6: 1 | AW6: 1 | AX6: 1 | AY6: 1 | AZ6: 1 | BA6: 1 | BB6: 1 | BC6: =IF(ISBLANK(AO6),"",ROUND(AVERAGE(OFFSET(AT6:BB6,0,0,1,ion21Coop!$F$42)),1)) -> 1 | BD6: =IF(ISBLANK(AO6),"",AS6*BC6) -> 1 | BF6: =BF$3 -> 3 | BG6: =VLOOKUP(BF6,$B$6:$C$26,2) -> MiDo | BH6: 1 | BI6: Creation of a concept SwissHike 3 in 1 | BJ6: YaJo | BL6: 2016 … | BO6: 10 | BP6: 1 | BQ6: =IF(ISBLANK(BO6),"",BO6*BP6) -> 10 | BR6: 1 | BS6: 1 | BT6: 1 | BU6: 1 | BV6: 1 | BW6: 1 | BX6: 1 | BY6: 1 | BZ6: 1 | CA6: =IF(ISBLANK(BQ6),"",ROUND(AVERAGE(OFFSET(BR6:BZ6,0,0,1,ion21Coop!$F$42)),1)) -> 1 | CB6: =IF(ISBLANK(BQ6),"",BQ6*CA6) -> 10 | CD6: =CD$3 -> 4 | CE6: =VLOOKUP(CD6,$B$6:$C$26,2) -> EmNi | CF6: 1 | CM6: =IF(ISBLANK(CK6),"",(CL6-CK6)*24) ->  | CN6: 1 | CO6: =IF(ISBLANK(CK6),"",CM6*CN6) ->  | CP6: 1 | CQ6: 1 | CR6: 1 | CS6: 1 | CT6: 1 | CU6: 1 | CV6: 1 | CW6: 1 | CX6: 1 | CY6: =IF(ISBLANK(CK6),"",ROUND(AVERAGE(OFFSET(CP6:CX6,0,0,1,ion21Coop!$F$42)),1)) ->  | CZ6: =IF(ISBLANK(CK6),"",CO6*CY6) ->  | DB6: =DB$3 -> 5 | DC6: =VLOOKUP(DB6,$B$6:$C$26,2) -> HeJe | DD6: 1 | DK6: =IF(ISBLANK(DI6),"",(DJ6-DI6)*24) ->  | DL6: 1 | DM6: =IF(ISBLANK(DI6),"",DK6*DL6) ->  | DN6: 1 | DO6: 1 | DP6: 1 | DQ6: 1 | DR6: 1 | DS6: 1 | DT6: 1 | DU6: 1 | DV6: 1 | DW6: =IF(ISBLANK(DI6),"",ROUND(AVERAGE(OFFSET(DN6:DV6,0,0,1,ion21Coop!$F$42)),1)) ->  | DX6: =IF(ISBLANK(DI6),"",DM6*DW6) ->  | DZ6: =DZ$3 -> 6 | EA6: =VLOOKUP(DZ6,$B$6:$C$26,2) ->  | EB6: 1 | EI6: =IF(ISBLANK(EG6),"",(EH6-EG6)*24) ->  | EJ6: 1 | EK6: =IF(ISBLANK(EG6),"",EI6*EJ6) ->  | EL6: 1 | EM6: 1 | EN6: 1 | EO6: 1 | EP6: 1 | EQ6: 1 | ER6: 1 | ES6: 1 | ET6: 1 | EU6: =IF(ISBLANK(EG6),"",ROUND(AVERAGE(OFFSET(EL6:ET6,0,0,1,ion21Coop!$F$42)),1)) ->  | EV6: =IF(ISBLANK(EG6),"",EK6*EU6) ->  | EX6: =EX$3 -> 7 | EY6: =VLOOKUP(EX6,$B$6:$C$26,2) ->  | EZ6: 1 | FG6: =IF(ISBLANK(FE6),"",(FF6-FE6)*24) ->  | FH6: 1 | FI6: =IF(ISBLANK(FE6),"",FG6*FH6) ->  | FJ6: 1 | FK6: 1 | FL6: 1 | FM6: 1 | FN6: 1 | FO6: 1 | FP6: 1 | FQ6: 1 | FR6: 1 | FS6: =IF(ISBLANK(FE6),"",ROUND(AVERAGE(OFFSET(FJ6:FR6,0,0,1,ion21Coop!$F$42)),1)) ->  | FT6: =IF(ISBLANK(FE6),"",FI6*FS6) ->  | FV6: =FV$3 -> 8 | FW6: =VLOOKUP(FV6,$B$6:$C$26,2) ->  | FX6: 1 | GE6: =IF(ISBLANK(GC6),"",(GD6-GC6)*24) ->  | GF6: 1 | GG6: =IF(ISBLANK(GC6),"",GE6*GF6) ->  | GH6: 1 | GI6: 1 | GJ6: 1 | GK6: 1 | GL6: 1 | GM6: 1 | GN6: 1 | GO6: 1 | GP6: 1 | GQ6: =IF(ISBLANK(GC6),"",ROUND(AVERAGE(OFFSET(GH6:GP6,0,0,1,ion21Coop!$F$42)),1)) ->  | GR6: =IF(ISBLANK(GC6),"",GG6*GQ6) ->  | GT6: =GT$3 -> 9 | GU6: =VLOOKUP(GT6,$B$6:$C$26,2) ->  | GV6: 1 | HC6: =IF(ISBLANK(HA6),"",(HB6-HA6)*24) ->  | HD6: 1 | HE6: =IF(ISBLANK(HA6),"",HC6*HD6) ->  | HF6: 1 | HG6: 1 | HH6: 1 | HI6: 1 | HJ6: 1 | HK6: 1 | HL6: 1 | HM6: 1 | HN6: 1 | HO6: =IF(ISBLANK(HA6),"",ROUND(AVERAGE(OFFSET(HF6:HN6,0,0,1,ion21Coop!$F$42)),1)) ->  | HP6: =IF(ISBLANK(HA6),"",HE6*HO6) ->  | HR6: =HR$3 -> 10 | HS6: =VLOOKUP(HR6,$B$6:$C$26,2) ->  | HT6: 1 | IA6: =IF(ISBLANK(HY6),"",(HZ6-HY6)*24) ->  | IB6: 1 | IC6: =IF(ISBLANK(HY6),"",IA6*IB6) ->  | ID6: 1 | IE6: 1 | IF6: 1 | IG6: 1 | IH6: 1 | II6: 1 | IJ6: 1 | IK6: 1 | IL6: 1 | IM6: =IF(ISBLANK(HY6),"",ROUND(AVERAGE(OFFSET(ID6:IL6,0,0,1,ion21Coop!$F$42)),1)) ->  | IN6: =IF(ISBLANK(HY6),"",IC6*IM6) ->  | IP6: =IP$3 -> 11 | IQ6: =VLOOKUP(IP6,$B$6:$C$26,2) ->  | IR6: 1 | IY6: =IF(ISBLANK(IW6),"",(IX6-IW6)*24) ->  | IZ6: 1 | JA6: =IF(ISBLANK(IW6),"",IY6*IZ6) ->  | JB6: 1 | JC6: 1 | JD6: 1 | JE6: 1 | JF6: 1 | JG6: 1 | JH6: 1 | JI6: 1 | JJ6: 1 | JK6: =IF(ISBLANK(IW6),"",ROUND(AVERAGE(OFFSET(JB6:JJ6,0,0,1,ion21Coop!$F$42)),1)) ->  | JL6: =IF(ISBLANK(IW6),"",JA6*JK6) ->  | JN6: =JN$3 -> 12 | JO6: =VLOOKUP(JN6,$B$6:$C$26,2) ->  | JP6: 1 | JW6: =IF(ISBLANK(JU6),"",(JV6-JU6)*24) ->  | JX6: 1 | JY6: =IF(ISBLANK(JU6),"",JW6*JX6) ->  | JZ6: 1 | KA6: 1 | KB6: 1 | KC6: 1 | KD6: 1 | KE6: 1 | KF6: 1 | KG6: 1 | KH6: 1 | KI6: =IF(ISBLANK(JU6),"",ROUND(AVERAGE(OFFSET(JZ6:KH6,0,0,1,ion21Coop!$F$42)),1)) ->  | KJ6: =IF(ISBLANK(JU6),"",JY6*KI6) ->  | KL6: =KL$3 -> 13 | KM6: =VLOOKUP(KL6,$B$6:$C$26,2) ->  | KN6: 1 | KU6: =IF(ISBLANK(KS6),"",(KT6-KS6)*24) ->  | KV6: 1 | KW6: =IF(ISBLANK(KS6),"",KU6*KV6) ->  | KX6: 1 | KY6: 1 | KZ6: 1 | LA6: 1 | LB6: 1 | LC6: 1 | LD6: 1 | LE6: 1 | LF6: 1 | LG6: =IF(ISBLANK(KS6),"",ROUND(AVERAGE(OFFSET(KX6:LF6,0,0,1,ion21Coop!$F$42)),1)) ->  | LH6: =IF(ISBLANK(KS6),"",KW6*LG6) ->  | LJ6: =LJ$3 -> 14 | LK6: =VLOOKUP(LJ6,$B$6:$C$26,2) ->  | LL6: 1 | LS6: =IF(ISBLANK(LQ6),"",(LR6-LQ6)*24) ->  | LT6: 1 | LU6: =IF(ISBLANK(LQ6),"",LS6*LT6) ->  | LV6: 1 | LW6: 1 | LX6: 1 | LY6: 1 | LZ6: 1 | MA6: 1 | MB6: 1 | MC6: 1 | MD6: 1 | ME6: =IF(ISBLANK(LQ6),"",ROUND(AVERAGE(OFFSET(LV6:MD6,0,0,1,ion21Coop!$F$42)),1)) ->  | MF6: =IF(ISBLANK(LQ6),"",LU6*ME6) ->  | MH6: =MH$3 -> 15 | MI6: =VLOOKUP(MH6,$B$6:$C$26,2) ->  | MJ6: 1 | MQ6: =IF(ISBLANK(MO6),"",(MP6-MO6)*24) ->  | MR6: 1 | MS6: =IF(ISBLANK(MO6),"",MQ6*MR6) ->  | MT6: 1 | MU6: 1 | MV6: 1 | MW6: 1 | MX6: 1 | MY6: 1 | MZ6: 1 | NA6: 1 | NB6: 1 | NC6: =IF(ISBLANK(MO6),"",ROUND(AVERAGE(OFFSET(MT6:NB6,0,0,1,ion21Coop!$F$42)),1)) ->  | ND6: =IF(ISBLANK(MO6),"",MS6*NC6) ->  | NF6: =NF$3 -> 16 | NG6: =VLOOKUP(NF6,$B$6:$C$26,2) ->  | NH6: 1 | NO6: =IF(ISBLANK(NM6),"",(NN6-NM6)*24) ->  | NP6: 1 | NQ6: =IF(ISBLANK(NM6),"",NO6*NP6) ->  | NR6: 1 | NS6: 1 | NT6: 1 | NU6: 1 | NV6: 1 | NW6: 1 | NX6: 1 | NY6: 1 | NZ6: 1 | OA6: =IF(ISBLANK(NM6),"",ROUND(AVERAGE(OFFSET(NR6:NZ6,0,0,1,ion21Coop!$F$42)),1)) ->  | OB6: =IF(ISBLANK(NM6),"",NQ6*OA6) ->  | OD6: =OD$3 -> 17 | OE6: =VLOOKUP(OD6,$B$6:$C$26,2) ->  | OF6: 1 | OM6: =IF(ISBLANK(OK6),"",(OL6-OK6)*24) ->  | ON6: 1 | OO6: =IF(ISBLANK(OK6),"",OM6*ON6) ->  | OP6: 1 | OQ6: 1 | OR6: 1 | OS6: 1 | OT6: 1 | OU6: 1 | OV6: 1 | OW6: 1 | OX6: 1 | OY6: =IF(ISBLANK(OK6),"",ROUND(AVERAGE(OFFSET(OP6:OX6,0,0,1,ion21Coop!$F$42)),1)) ->  | OZ6: =IF(ISBLANK(OK6),"",OO6*OY6) ->  | PB6: =PB$3 -> 18 | PC6: =VLOOKUP(PB6,$B$6:$C$26,2) ->  | PD6: 1 | PK6: =IF(ISBLANK(PI6),"",(PJ6-PI6)*24) ->  | PL6: 1 | PM6: =IF(ISBLANK(PI6),"",PK6*PL6) ->  | PN6: 1 | PO6: 1 | PP6: 1 | PQ6: 1 | PR6: 1 | PS6: 1 | PT6: 1 | PU6: 1 | PV6: 1 | PW6: =IF(ISBLANK(PI6),"",ROUND(AVERAGE(OFFSET(PN6:PV6,0,0,1,ion21Coop!$F$42)),1)) ->  | PX6: =IF(ISBLANK(PI6),"",PM6*PW6) ->  | PZ6: =PZ$3 -> 19 | QA6: =VLOOKUP(PZ6,$B$6:$C$26,2) ->  | QB6: 1 | QI6: =IF(ISBLANK(QG6),"",(QH6-QG6)*24) ->  | QJ6: 1 | QK6: =IF(ISBLANK(QG6),"",QI6*QJ6) ->  | QL6: 1 | QM6: 1 | QN6: 1 | QO6: 1 | QP6: 1 | QQ6: 1 | QR6: 1 | QS6: 1 | QT6: 1 | QU6: =IF(ISBLANK(QG6),"",ROUND(AVERAGE(OFFSET(QL6:QT6,0,0,1,ion21Coop!$F$42)),1)) ->  | QV6: =IF(ISBLANK(QG6),"",QK6*QU6) ->  | QX6: =QX$3 -> 20 | QY6: =VLOOKUP(QX6,$B$6:$C$26,2) ->  | QZ6: 1 | RG6: =IF(ISBLANK(RE6),"",(RF6-RE6)*24) ->  | RH6: 1 | RI6: =IF(ISBLANK(RE6),"",RG6*RH6) ->  | RJ6: 1 | RK6: 1 | RL6: 1 | RM6: 1 | RN6: 1 | RO6: 1 | RP6: 1 | RQ6: 1 | RR6: 1 | RS6: =IF(ISBLANK(RE6),"",ROUND(AVERAGE(OFFSET(RJ6:RR6,0,0,1,ion21Coop!$F$42)),1)) ->  | RT6: =IF(ISBLANK(RE6),"",RI6*RS6) ->  | RV6: =RV$3 -> 21 | RW6: =VLOOKUP(RV6,$B$6:$C$26,2) ->  | RX6: 1 | SE6: =IF(ISBLANK(SC6),"",(SD6-SC6)*24) ->  | SF6: 1 | SG6: =IF(ISBLANK(SC6),"",SE6*SF6) ->  | SH6: 1 | SI6: 1 | SJ6: 1 | SK6: 1 | SL6: 1 | SM6: 1 | SN6: 1 | SO6: 1 | SP6: 1 | SQ6: =IF(ISBLANK(SC6),"",ROUND(AVERAGE(OFFSET(SH6:SP6,0,0,1,ion21Coop!$F$42)),1)) ->  | SR6: =IF(ISBLANK(SC6),"",SG6*SQ6) ->  | ST6: 1 | SU6: 1 | SV6: NoDj | SW6: 2 | SX6: 2 | SY6: AnMe | SZ6: 2016-08-25T21:47:37 | TA6: 0.5
A7: =B7& " - "&C7 -> 2 - GeLo | B7: =ion21Team!B6 -> 2 | C7: =IF(ISBLANK(ion21Team!C6),"",ion21Team!C6) -> GeLo | D7: =IF(ISBLANK(ion21Team!$C$6),"",$BD$3) -> 6 | E7: =IF(ISBLANK(ion21Team!C6),"",IFERROR(D7/$D$27*100,0)) -> 0.641025641 | F7: =IF(ISBLANK(ion21Team!C6),"",ion21Votes!AF7) -> 5 | G7: =IF(ISBLANK(ion21Team!C6),"",ROUND(ion21Votes!$AF$27*E7/100,0)) -> 0 | H7: =IF(ISBLANK(ion21Team!C6),"",F7-G7) -> 5 | J7: 1 | K7: =VLOOKUP(J7,$B$6:$C$26,2) -> YaJo | L7: 2 | M7: Established cooperation with KISC | P7: 2017 … | S7: 2 | T7: 1 | U7: =IF(ISBLANK(S7),"",S7*T7) -> 2 | V7: 1 | W7: 1 | X7: 1 | Y7: 1 | Z7: 1 | AA7: 1 | AB7: 1 | AC7: 1 | AD7: 1 | AE7: =IF(ISBLANK(U7),"",ROUND(AVERAGE(OFFSET(V7:AD7,0,0,1,ion21Coop!$F$42)),1)) -> 1 | AF7: =IF(ISBLANK(QU7),"",U7*AE7) -> 2 | AH7: 2 | AI7: =VLOOKUP(AH7,$B$6:$C$26,2) -> GeLo | AJ7: 2 | AK7: Shopping in Otto's Uetendorf & COOP Heimberg | AL7: 3-MiDo | AM7: Uetendorf, Heimberg | AN7: 2017-10-13 | AO7: 12:00:00 | AP7: 15:00:00 | AQ7: =IF(ISBLANK(AO7),"",(AP7-AO7)*24) -> 3 | AR7: 1 | AS7: =IF(ISBLANK(AO7),"",AQ7*AR7) -> 3 | AT7: 1 | AU7: 1 | AV7: 1 | AW7: 1 | AX7: 1 | AY7: 1 | AZ7: 1 | BA7: 1 | BB7: 1 | BC7: =IF(ISBLANK(AO7),"",ROUND(AVERAGE(OFFSET(AT7:BB7,0,0,1,ion21Coop!$F$42)),1)) -> 1 | BD7: =IF(ISBLANK(AO7),"",AS7*BC7) -> 3 | BF7: 3 | BG7: =VLOOKUP(BF7,$B$6:$C$26,2) -> MiDo | BH7: 2 | BI7: Established cooperation with KISC | BL7: 2017 … | BO7: 2 | BP7: 1 | BQ7: =IF(ISBLANK(BO7),"",BO7*BP7) -> 2 | BR7: 1 | BS7: 1 | BT7: 1 | BU7: 1 | BV7: 1 | BW7: 1 | BX7: 1 | BY7: 1 | BZ7: 1 | CA7: =IF(ISBLANK(BQ7),"",ROUND(AVERAGE(OFFSET(BR7:BZ7,0,0,1,ion21Coop!$F$42)),1)) -> 1 | CB7: =IF(ISBLANK(BQ7),"",BQ7*CA7) -> 2 | CD7: 4 | CE7: =VLOOKUP(CD7,$B$6:$C$26,2) -> EmNi | CF7: 2 | CM7: =IF(ISBLANK(CK7),"",(CL7-CK7)*24) ->  | CN7: 1 | CO7: =IF(ISBLANK(CK7),"",CM7*CN7) ->  | CP7: 1 | CQ7: 1 | CR7: 1 | CS7: 1 | CT7: 1 | CU7: 1 | CV7: 1 | CW7: 1 | CX7: 1 | CY7: =IF(ISBLANK(CK7),"",ROUND(AVERAGE(OFFSET(CP7:CX7,0,0,1,ion21Coop!$F$42)),1)) ->  | CZ7: =IF(ISBLANK(CK7),"",CO7*CY7) ->  | DB7: 5 | DC7: =VLOOKUP(DB7,$B$6:$C$26,2) -> HeJe | DD7: 2 | DK7: =IF(ISBLANK(DI7),"",(DJ7-DI7)*24) ->  | DL7: 1 | DM7: =IF(ISBLANK(DI7),"",DK7*DL7) ->  | DN7: 1 | DO7: 1 | DP7: 1 | DQ7: 1 | DR7: 1 | DS7: 1 | DT7: 1 | DU7: 1 | DV7: 1 | DW7: =IF(ISBLANK(DI7),"",ROUND(AVERAGE(OFFSET(DN7:DV7,0,0,1,ion21Coop!$F$42)),1)) ->  | DX7: =IF(ISBLANK(DI7),"",DM7*DW7) ->  | DZ7: 6 | EA7: =VLOOKUP(DZ7,$B$6:$C$26,2) ->  | EB7: 2 | EI7: =IF(ISBLANK(EG7),"",(EH7-EG7)*24) ->  | EJ7: 1 | EK7: =IF(ISBLANK(EG7),"",EI7*EJ7) ->  | EL7: 1 | EM7: 1 | EN7: 1 | EO7: 1 | EP7: 1 | EQ7: 1 | ER7: 1 | ES7: 1 | ET7: 1 | EU7: =IF(ISBLANK(EG7),"",ROUND(AVERAGE(OFFSET(EL7:ET7,0,0,1,ion21Coop!$F$42)),1)) ->  | EV7: =IF(ISBLANK(EG7),"",EK7*EU7) ->  | EX7: 7 | EY7: =VLOOKUP(EX7,$B$6:$C$26,2) ->  | EZ7: 2 | FG7: =IF(ISBLANK(FE7),"",(FF7-FE7)*24) ->  | FH7: 1 | FI7: =IF(ISBLANK(FE7),"",FG7*FH7) ->  | FJ7: 1 | FK7: 1 | FL7: 1 | FM7: 1 | FN7: 1 | FO7: 1 | FP7: 1 | FQ7: 1 | FR7: 1 | FS7: =IF(ISBLANK(FE7),"",ROUND(AVERAGE(OFFSET(FJ7:FR7,0,0,1,ion21Coop!$F$42)),1)) ->  | FT7: =IF(ISBLANK(FE7),"",FI7*FS7) ->  | FV7: 8 | FW7: =VLOOKUP(FV7,$B$6:$C$26,2) ->  | FX7: 2 | GE7: =IF(ISBLANK(GC7),"",(GD7-GC7)*24) ->  | GF7: 1 | GG7: =IF(ISBLANK(GC7),"",GE7*GF7) ->  | GH7: 1 | GI7: 1 | GJ7: 1 | GK7: 1 | GL7: 1 | GM7: 1 | GN7: 1 | GO7: 1 | GP7: 1 | GQ7: =IF(ISBLANK(GC7),"",ROUND(AVERAGE(OFFSET(GH7:GP7,0,0,1,ion21Coop!$F$42)),1)) ->  | GR7: =IF(ISBLANK(GC7),"",GG7*GQ7) ->  | GT7: 9 | GU7: =VLOOKUP(GT7,$B$6:$C$26,2) ->  | GV7: 2 | HC7: =IF(ISBLANK(HA7),"",(HB7-HA7)*24) ->  | HD7: 1 | HE7: =IF(ISBLANK(HA7),"",HC7*HD7) ->  | HF7: 1 | HG7: 1 | HH7: 1 | HI7: 1 | HJ7: 1 | HK7: 1 | HL7: 1 | HM7: 1 | HN7: 1 | HO7: =IF(ISBLANK(HA7),"",ROUND(AVERAGE(OFFSET(HF7:HN7,0,0,1,ion21Coop!$F$42)),1)) ->  | HP7: =IF(ISBLANK(HA7),"",HE7*HO7) ->  | HR7: 10 | HS7: =VLOOKUP(HR7,$B$6:$C$26,2) ->  | HT7: 2 | IA7: =IF(ISBLANK(HY7),"",(HZ7-HY7)*24) ->  | IB7: 1 | IC7: =IF(ISBLANK(HY7),"",IA7*IB7) ->  | ID7: 1 | IE7: 1 | IF7: 1 | IG7: 1 | IH7: 1 | II7: 1 | IJ7: 1 | IK7: 1 | IL7: 1 | IM7: =IF(ISBLANK(HY7),"",ROUND(AVERAGE(OFFSET(ID7:IL7,0,0,1,ion21Coop!$F$42)),1)) ->  | IN7: =IF(ISBLANK(HY7),"",IC7*IM7) ->  | IP7: 11 | IQ7: =VLOOKUP(IP7,$B$6:$C$26,2) ->  | IR7: 2 | IY7: =IF(ISBLANK(IW7),"",(IX7-IW7)*24) ->  | IZ7: 1 | JA7: =IF(ISBLANK(IW7),"",IY7*IZ7) ->  | JB7: 1 | JC7: 1 | JD7: 1 | JE7: 1 | JF7: 1 | JG7: 1 | JH7: 1 | JI7: 1 | JJ7: 1 | JK7: =IF(ISBLANK(IW7),"",ROUND(AVERAGE(OFFSET(JB7:JJ7,0,0,1,ion21Coop!$F$42)),1)) ->  | JL7: =IF(ISBLANK(IW7),"",JA7*JK7) ->  | JN7: 12 | JO7: =VLOOKUP(JN7,$B$6:$C$26,2) ->  | JP7: 2 | JW7: =IF(ISBLANK(JU7),"",(JV7-JU7)*24) ->  | JX7: 1 | JY7: =IF(ISBLANK(JU7),"",JW7*JX7) ->  | JZ7: 1 | KA7: 1 | KB7: 1 | KC7: 1 | KD7: 1 | KE7: 1 | KF7: 1 | KG7: 1 | KH7: 1 | KI7: =IF(ISBLANK(JU7),"",ROUND(AVERAGE(OFFSET(JZ7:KH7,0,0,1,ion21Coop!$F$42)),1)) ->  | KJ7: =IF(ISBLANK(JU7),"",JY7*KI7) ->  | KL7: 13 | KM7: =VLOOKUP(KL7,$B$6:$C$26,2) ->  | KN7: 2 | KU7: =IF(ISBLANK(KS7),"",(KT7-KS7)*24) ->  | KV7: 1 | KW7: =IF(ISBLANK(KS7),"",KU7*KV7) ->  | KX7: 1 | KY7: 1 | KZ7: 1 | LA7: 1 | LB7: 1 | LC7: 1 | LD7: 1 | LE7: 1 | LF7: 1 | LG7: =IF(ISBLANK(KS7),"",ROUND(AVERAGE(OFFSET(KX7:LF7,0,0,1,ion21Coop!$F$42)),1)) ->  | LH7: =IF(ISBLANK(KS7),"",KW7*LG7) ->  | LJ7: 14 | LK7: =VLOOKUP(LJ7,$B$6:$C$26,2) ->  | LL7: 2 | LS7: =IF(ISBLANK(LQ7),"",(LR7-LQ7)*24) ->  | LT7: 1 | LU7: =IF(ISBLANK(LQ7),"",LS7*LT7) ->  | LV7: 1 | LW7: 1 | LX7: 1 | LY7: 1 | LZ7: 1 | MA7: 1 | MB7: 1 | MC7: 1 | MD7: 1 | ME7: =IF(ISBLANK(LQ7),"",ROUND(AVERAGE(OFFSET(LV7:MD7,0,0,1,ion21Coop!$F$42)),1)) ->  | MF7: =IF(ISBLANK(LQ7),"",LU7*ME7) ->  | MH7: 15 | MI7: =VLOOKUP(MH7,$B$6:$C$26,2) ->  | MJ7: 2 | MQ7: =IF(ISBLANK(MO7),"",(MP7-MO7)*24) ->  | MR7: 1 | MS7: =IF(ISBLANK(MO7),"",MQ7*MR7) ->  | MT7: 1 | MU7: 1 | MV7: 1 | MW7: 1 | MX7: 1 | MY7: 1 | MZ7: 1 | NA7: 1 | NB7: 1 | NC7: =IF(ISBLANK(MO7),"",ROUND(AVERAGE(OFFSET(MT7:NB7,0,0,1,ion21Coop!$F$42)),1)) ->  | ND7: =IF(ISBLANK(MO7),"",MS7*NC7) ->  | NF7: 16 | NG7: =VLOOKUP(NF7,$B$6:$C$26,2) ->  | NH7: 2 | NO7: =IF(ISBLANK(NM7),"",(NN7-NM7)*24) ->  | NP7: 1 | NQ7: =IF(ISBLANK(NM7),"",NO7*NP7) ->  | NR7: 1 | NS7: 1 | NT7: 1 | NU7: 1 | NV7: 1 | NW7: 1 | NX7: 1 | NY7: 1 | NZ7: 1 | OA7: =IF(ISBLANK(NM7),"",ROUND(AVERAGE(OFFSET(NR7:NZ7,0,0,1,ion21Coop!$F$42)),1)) ->  | OB7: =IF(ISBLANK(NM7),"",NQ7*OA7) ->  | OD7: 17 | OE7: =VLOOKUP(OD7,$B$6:$C$26,2) ->  | OF7: 2 | OM7: =IF(ISBLANK(OK7),"",(OL7-OK7)*24) ->  | ON7: 1 | OO7: =IF(ISBLANK(OK7),"",OM7*ON7) ->  | OP7: 1 | OQ7: 1 | OR7: 1 | OS7: 1 | OT7: 1 | OU7: 1 | OV7: 1 | OW7: 1 | OX7: 1 | OY7: =IF(ISBLANK(OK7),"",ROUND(AVERAGE(OFFSET(OP7:OX7,0,0,1,ion21Coop!$F$42)),1)) ->  | OZ7: =IF(ISBLANK(OK7),"",OO7*OY7) ->  | PB7: 18 | PC7: =VLOOKUP(PB7,$B$6:$C$26,2) ->  | PD7: 2 | PK7: =IF(ISBLANK(PI7),"",(PJ7-PI7)*24) ->  | PL7: 1 | PM7: =IF(ISBLANK(PI7),"",PK7*PL7) ->  | PN7: 1 | PO7: 1 | PP7: 1 | PQ7: 1 | PR7: 1 | PS7: 1 | PT7: 1 | PU7: 1 | PV7: 1 | PW7: =IF(ISBLANK(PI7),"",ROUND(AVERAGE(OFFSET(PN7:PV7,0,0,1,ion21Coop!$F$42)),1)) ->  | PX7: =IF(ISBLANK(PI7),"",PM7*PW7) ->  | PZ7: 19 | QA7: =VLOOKUP(PZ7,$B$6:$C$26,2) ->  | QB7: 2 | QI7: =IF(ISBLANK(QG7),"",(QH7-QG7)*24) ->  | QJ7: 1 | QK7: =IF(ISBLANK(QG7),"",QI7*QJ7) ->  | QL7: 1 | QM7: 1 | QN7: 1 | QO7: 1 | QP7: 1 | QQ7: 1 | QR7: 1 | QS7: 1 | QT7: 1 | QU7: =IF(ISBLANK(QG7),"",ROUND(AVERAGE(OFFSET(QL7:QT7,0,0,1,ion21Coop!$F$42)),1)) ->  | QV7: =IF(ISBLANK(QG7),"",QK7*QU7) ->  | QX7: 20 | QY7: =VLOOKUP(QX7,$B$6:$C$26,2) ->  | QZ7: 2 | RG7: =IF(ISBLANK(RE7),"",(RF7-RE7)*24) ->  | RH7: 1 | RI7: =IF(ISBLANK(RE7),"",RG7*RH7) ->  | RJ7: 1 | RK7: 1 | RL7: 1 | RM7: 1 | RN7: 1 | RO7: 1 | RP7: 1 | RQ7: 1 | RR7: 1 | RS7: =IF(ISBLANK(RE7),"",ROUND(AVERAGE(OFFSET(RJ7:RR7,0,0,1,ion21Coop!$F$42)),1)) ->  | RT7: =IF(ISBLANK(RE7),"",RI7*RS7) ->  | RV7: 21 | RW7: =VLOOKUP(RV7,$B$6:$C$26,2) ->  | RX7: 2 | SE7: =IF(ISBLANK(SC7),"",(SD7-SC7)*24) ->  | SF7: 1 | SG7: =IF(ISBLANK(SC7),"",SE7*SF7) ->  | SH7: 1 | SI7: 1 | SJ7: 1 | SK7: 1 | SL7: 1 | SM7: 1 | SN7: 1 | SO7: 1 | SP7: 1 | SQ7: =IF(ISBLANK(SC7),"",ROUND(AVERAGE(OFFSET(SH7:SP7,0,0,1,ion21Coop!$F$42)),1)) ->  | SR7: =IF(ISBLANK(SC7),"",SG7*SQ7) ->  | ST7: 2 | SU7: 1 | SV7: NoDj | SW7: 2 | SX7: 2 | SY7: AnMe | SZ7: 2016-08-25T21:57:39 | TA7: 0
A8: 3 - MiDo | B8: =ion21Team!B7 -> 3 | C8: =IF(ISBLANK(ion21Team!C7),"",ion21Team!C7) -> MiDo | D8: =IF(ISBLANK(ion21Team!$C$7),"",$CB$3) -> 465 | E8: =IF(ISBLANK(ion21Team!C7),"",IFERROR(D8/$D$27*100,0)) -> 49.67948718 | F8: =IF(ISBLANK(ion21Team!C7),"",ion21Votes!AF8) -> 8 | G8: =IF(ISBLANK(ion21Team!C7),"",ROUND(ion21Votes!$AF$27*E8/100,0)) -> 10 | H8: =IF(ISBLANK(ion21Team!C7),"",F8-G8) -> -2 | J8: 1 | K8: =VLOOKUP(J8,$B$6:$C$26,2) -> YaJo | L8: 3 | M8: Website content and development | N8: MiDo | P8: 2017 … | S8: 100 | T8: 1 | U8: 100 | V8: 1 | W8: 1 | X8: 1 | Y8: 1 | Z8: 1 | AA8: 1 | AB8: 1 | AC8: 1 | AD8: 1 | AE8: =IF(ISBLANK(U8),"",ROUND(AVERAGE(OFFSET(V8:AD8,0,0,1,ion21Coop!$F$42)),1)) -> 1 | AF8: =IF(ISBLANK(QU8),"",U8*AE8) -> 100 | AH8: 2 | AI8: =VLOOKUP(AH8,$B$6:$C$26,2) -> GeLo | AJ8: 3 | AK8: Lebera mobile setup | AL8: 3-MiDo | AM8: Gemmi Lodge | AN8: 2017-10-13 | AO8: 20:00:00 | AP8: 22:00:00 | AQ8: 2 | AR8: 1 | AS8: =IF(ISBLANK(AO8),"",AQ8*AR8) -> 2 | AT8: 1 | AU8: 1 | AV8: 1 | AW8: 1 | AX8: 1 | AY8: 1 | AZ8: 1 | BA8: 1 | BB8: 1 | BC8: =IF(ISBLANK(AO8),"",ROUND(AVERAGE(OFFSET(AT8:BB8,0,0,1,ion21Coop!$F$42)),1)) -> 1 | BD8: =IF(ISBLANK(AO8),"",AS8*BC8) -> 2 | BF8: 3 | BG8: =VLOOKUP(BF8,$B$6:$C$26,2) -> MiDo | BH8: 3 | BI8: Website content and development | BJ8: YaJo | BL8: 2017 … | BO8: 100 | BP8: 1 | BQ8: 100 | BR8: 1 | BS8: 1 | BT8: 1 | BU8: 1 | BV8: 1 | BW8: 1 | BX8: 1 | BY8: 1 | BZ8: 1 | CA8: =IF(ISBLANK(BQ8),"",ROUND(AVERAGE(OFFSET(BR8:BZ8,0,0,1,ion21Coop!$F$42)),1)) -> 1 | CB8: =IF(ISBLANK(BQ8),"",BQ8*CA8) -> 100 | CD8: 4 | CE8: =VLOOKUP(CD8,$B$6:$C$26,2) -> EmNi | CF8: 3 | CN8: 1 | CO8: =IF(ISBLANK(CK8),"",CM8*CN8) ->  | CP8: 1 | CQ8: 1 | CR8: 1 | CS8: 1 | CT8: 1 | CU8: 1 | CV8: 1 | CW8: 1 | CX8: 1 | CY8: =IF(ISBLANK(CK8),"",ROUND(AVERAGE(OFFSET(CP8:CX8,0,0,1,ion21Coop!$F$42)),1)) ->  | CZ8: =IF(ISBLANK(CK8),"",CO8*CY8) ->  | DB8: 5 | DC8: =VLOOKUP(DB8,$B$6:$C$26,2) -> HeJe | DD8: 3 | DL8: 1 | DM8: =IF(ISBLANK(DI8),"",DK8*DL8) ->  | DN8: 1 | DO8: 1 | DP8: 1 | DQ8: 1 | DR8: 1 | DS8: 1 | DT8: 1 | DU8: 1 | DV8: 1 | DW8: =IF(ISBLANK(DI8),"",ROUND(AVERAGE(OFFSET(DN8:DV8,0,0,1,ion21Coop!$F$42)),1)) ->  | DX8: =IF(ISBLANK(DI8),"",DM8*DW8) ->  | DZ8: 6 | EA8: =VLOOKUP(DZ8,$B$6:$C$26,2) ->  | EB8: 3 | EJ8: 1 | EK8: =IF(ISBLANK(EG8),"",EI8*EJ8) ->  | EL8: 1 | EM8: 1 | EN8: 1 | EO8: 1 | EP8: 1 | EQ8: 1 | ER8: 1 | ES8: 1 | ET8: 1 | EU8: =IF(ISBLANK(EG8),"",ROUND(AVERAGE(OFFSET(EL8:ET8,0,0,1,ion21Coop!$F$42)),1)) ->  | EV8: =IF(ISBLANK(EG8),"",EK8*EU8) ->  | EX8: 7 | EY8: =VLOOKUP(EX8,$B$6:$C$26,2) ->  | EZ8: 3 | FH8: 1 | FI8: =IF(ISBLANK(FE8),"",FG8*FH8) ->  | FJ8: 1 | FK8: 1 | FL8: 1 | FM8: 1 | FN8: 1 | FO8: 1 | FP8: 1 | FQ8: 1 | FR8: 1 | FS8: =IF(ISBLANK(FE8),"",ROUND(AVERAGE(OFFSET(FJ8:FR8,0,0,1,ion21Coop!$F$42)),1)) ->  | FT8: =IF(ISBLANK(FE8),"",FI8*FS8) ->  | FV8: 8 | FW8: =VLOOKUP(FV8,$B$6:$C$26,2) ->  | FX8: 3 | GF8: 1 | GG8: =IF(ISBLANK(GC8),"",GE8*GF8) ->  | GH8: 1 | GI8: 1 | GJ8: 1 | GK8: 1 | GL8: 1 | GM8: 1 | GN8: 1 | GO8: 1 | GP8: 1 | GQ8: =IF(ISBLANK(GC8),"",ROUND(AVERAGE(OFFSET(GH8:GP8,0,0,1,ion21Coop!$F$42)),1)) ->  | GR8: =IF(ISBLANK(GC8),"",GG8*GQ8) ->  | GT8: 9 | GU8: =VLOOKUP(GT8,$B$6:$C$26,2) ->  | GV8: 3 | HD8: 1 | HE8: =IF(ISBLANK(HA8),"",HC8*HD8) ->  | HF8: 1 | HG8: 1 | HH8: 1 | HI8: 1 | HJ8: 1 | HK8: 1 | HL8: 1 | HM8: 1 | HN8: 1 | HO8: =IF(ISBLANK(HA8),"",ROUND(AVERAGE(OFFSET(HF8:HN8,0,0,1,ion21Coop!$F$42)),1)) ->  | HP8: =IF(ISBLANK(HA8),"",HE8*HO8) ->  | HR8: 10 | HS8: =VLOOKUP(HR8,$B$6:$C$26,2) ->  | HT8: 3 | IB8: 1 | IC8: =IF(ISBLANK(HY8),"",IA8*IB8) ->  | ID8: 1 | IE8: 1 | IF8: 1 | IG8: 1 | IH8: 1 | II8: 1 | IJ8: 1 | IK8: 1 | IL8: 1 | IM8: =IF(ISBLANK(HY8),"",ROUND(AVERAGE(OFFSET(ID8:IL8,0,0,1,ion21Coop!$F$42)),1)) ->  | IN8: =IF(ISBLANK(HY8),"",IC8*IM8) ->  | IP8: 11 | IQ8: =VLOOKUP(IP8,$B$6:$C$26,2) ->  | IR8: 3 | IZ8: 1 | JA8: =IF(ISBLANK(IW8),"",IY8*IZ8) ->  | JB8: 1 | JC8: 1 | JD8: 1 | JE8: 1 | JF8: 1 | JG8: 1 | JH8: 1 | JI8: 1 | JJ8: 1 | JK8: =IF(ISBLANK(IW8),"",ROUND(AVERAGE(OFFSET(JB8:JJ8,0,0,1,ion21Coop!$F$42)),1)) ->  | JL8: =IF(ISBLANK(IW8),"",JA8*JK8) ->  | JN8: 12 | JO8: =VLOOKUP(JN8,$B$6:$C$26,2) ->  | JP8: 3 | JX8: 1 | JY8: =IF(ISBLANK(JU8),"",JW8*JX8) ->  | JZ8: 1 | KA8: 1 | KB8: 1 | KC8: 1 | KD8: 1 | KE8: 1 | KF8: 1 | KG8: 1 | KH8: 1 | KI8: =IF(ISBLANK(JU8),"",ROUND(AVERAGE(OFFSET(JZ8:KH8,0,0,1,ion21Coop!$F$42)),1)) ->  | KJ8: =IF(ISBLANK(JU8),"",JY8*KI8) ->  | KL8: 13 | KM8: =VLOOKUP(KL8,$B$6:$C$26,2) ->  | KN8: 3 | KV8: 1 | KW8: =IF(ISBLANK(KS8),"",KU8*KV8) ->  | KX8: 1 | KY8: 1 | KZ8: 1 | LA8: 1 | LB8: 1 | LC8: 1 | LD8: 1 | LE8: 1 | LF8: 1 | LG8: =IF(ISBLANK(KS8),"",ROUND(AVERAGE(OFFSET(KX8:LF8,0,0,1,ion21Coop!$F$42)),1)) ->  | LH8: =IF(ISBLANK(KS8),"",KW8*LG8) ->  | LJ8: 14 | LK8: =VLOOKUP(LJ8,$B$6:$C$26,2) ->  | LL8: 3 | LT8: 1 | LU8: =IF(ISBLANK(LQ8),"",LS8*LT8) ->  | LV8: 1 | LW8: 1 | LX8: 1 | LY8: 1 | LZ8: 1 | MA8: 1 | MB8: 1 | MC8: 1 | MD8: 1 | ME8: =IF(ISBLANK(LQ8),"",ROUND(AVERAGE(OFFSET(LV8:MD8,0,0,1,ion21Coop!$F$42)),1)) ->  | MF8: =IF(ISBLANK(LQ8),"",LU8*ME8) ->  | MH8: 15 | MI8: =VLOOKUP(MH8,$B$6:$C$26,2) ->  | MJ8: 3 | MR8: 1 | MS8: =IF(ISBLANK(MO8),"",MQ8*MR8) ->  | MT8: 1 | MU8: 1 | MV8: 1 | MW8: 1 | MX8: 1 | MY8: 1 | MZ8: 1 | NA8: 1 | NB8: 1 | NC8: =IF(ISBLANK(MO8),"",ROUND(AVERAGE(OFFSET(MT8:NB8,0,0,1,ion21Coop!$F$42)),1)) ->  | ND8: =IF(ISBLANK(MO8),"",MS8*NC8) ->  | NF8: 16 | NG8: =VLOOKUP(NF8,$B$6:$C$26,2) ->  | NH8: 3 | NP8: 1 | NQ8: =IF(ISBLANK(NM8),"",NO8*NP8) ->  | NR8: 1 | NS8: 1 | NT8: 1 | NU8: 1 | NV8: 1 | NW8: 1 | NX8: 1 | NY8: 1 | NZ8: 1 | OA8: =IF(ISBLANK(NM8),"",ROUND(AVERAGE(OFFSET(NR8:NZ8,0,0,1,ion21Coop!$F$42)),1)) ->  | OB8: =IF(ISBLANK(NM8),"",NQ8*OA8) ->  | OD8: 17 | OE8: =VLOOKUP(OD8,$B$6:$C$26,2) ->  | OF8: 3 | ON8: 1 | OO8: =IF(ISBLANK(OK8),"",OM8*ON8) ->  | OP8: 1 | OQ8: 1 | OR8: 1 | OS8: 1 | OT8: 1 | OU8: 1 | OV8: 1 | OW8: 1 | OX8: 1 | OY8: =IF(ISBLANK(OK8),"",ROUND(AVERAGE(OFFSET(OP8:OX8,0,0,1,ion21Coop!$F$42)),1)) ->  | OZ8: =IF(ISBLANK(OK8),"",OO8*OY8) ->  | PB8: 18 | PC8: =VLOOKUP(PB8,$B$6:$C$26,2) ->  | PD8: 3 | PL8: 1 | PM8: =IF(ISBLANK(PI8),"",PK8*PL8) ->  | PN8: 1 | PO8: 1 | PP8: 1 | PQ8: 1 | PR8: 1 | PS8: 1 | PT8: 1 | PU8: 1 | PV8: 1 | PW8: =IF(ISBLANK(PI8),"",ROUND(AVERAGE(OFFSET(PN8:PV8,0,0,1,ion21Coop!$F$42)),1)) ->  | PX8: =IF(ISBLANK(PI8),"",PM8*PW8) ->  | PZ8: 19 | QA8: =VLOOKUP(PZ8,$B$6:$C$26,2) ->  | QB8: 3 | QJ8: 1 | QK8: =IF(ISBLANK(QG8),"",QI8*QJ8) ->  | QL8: 1 | QM8: 1 | QN8: 1 | QO8: 1 | QP8: 1 | QQ8: 1 | QR8: 1 | QS8: 1 | QT8: 1 | QU8: =IF(ISBLANK(QG8),"",ROUND(AVERAGE(OFFSET(QL8:QT8,0,0,1,ion21Coop!$F$42)),1)) ->  | QV8: =IF(ISBLANK(QG8),"",QK8*QU8) ->  | QX8: 20 | QY8: =VLOOKUP(QX8,$B$6:$C$26,2) ->  | QZ8: 3 | RH8: 1 | RI8: =IF(ISBLANK(RE8),"",RG8*RH8) ->  | RJ8: 1 | RK8: 1 | RL8: 1 | RM8: 1 | RN8: 1 | RO8: 1 | RP8: 1 | RQ8: 1 | RR8: 1 | RS8: =IF(ISBLANK(RE8),"",ROUND(AVERAGE(OFFSET(RJ8:RR8,0,0,1,ion21Coop!$F$42)),1)) ->  | RT8: =IF(ISBLANK(RE8),"",RI8*RS8) ->  | RV8: 21 | RW8: =VLOOKUP(RV8,$B$6:$C$26,2) ->  | RX8: 3 | SF8: 1 | SG8: =IF(ISBLANK(SC8),"",SE8*SF8) ->  | SH8: 1 | SI8: 1 | SJ8: 1 | SK8: 1 | SL8: 1 | SM8: 1 | SN8: 1 | SO8: 1 | SP8: 1 | SQ8: =IF(ISBLANK(SC8),"",ROUND(AVERAGE(OFFSET(SH8:SP8,0,0,1,ion21Coop!$F$42)),1)) ->  | SR8: =IF(ISBLANK(SC8),"",SG8*SQ8) ->  | ST8: 3 | SU8: 1 | SV8: NoDj | SW8: 2 | SX8: 2 | SY8: AnMe | SZ8: 2016-08-25T22:07:16 | TA8: 0.5
A9: 4 - EmNi | B9: =ion21Team!B8 -> 4 | C9: =IF(ISBLANK(ion21Team!C8),"",ion21Team!C8) -> EmNi | D9: =IF(ISBLANK(ion21Team!$C$8),"",$CZ$3) -> 0 | E9: =IF(ISBLANK(ion21Team!C8),"",IFERROR(D9/$D$27*100,0)) -> 0 | F9: =IF(ISBLANK(ion21Team!C8),"",ion21Votes!AF9) -> 0 | G9: =IF(ISBLANK(ion21Team!C8),"",ROUND(ion21Votes!$AF$27*E9/100,0)) -> 0 | H9: =IF(ISBLANK(ion21Team!C8),"",F9-G9) -> 0 | J9: 1 | K9: =VLOOKUP(J9,$B$6:$C$26,2) -> YaJo | L9: 4 | M9: Crowdfunding with WeMakeIt.ch, Indiegogo.com | N9: MiDo | P9: 2017 … | S9: 20 | T9: 1 | U9: 20 | V9: 1 | W9: 1 | X9: 1 | Y9: 1 | Z9: 1 | AA9: 1 | AB9: 1 | AC9: 1 | AD9: 1 | AE9: =IF(ISBLANK(U9),"",ROUND(AVERAGE(OFFSET(V9:AD9,0,0,1,ion21Coop!$F$42)),1)) -> 1 | AF9: 20 | AH9: 2 | AI9: =VLOOKUP(AH9,$B$6:$C$26,2) -> GeLo | AJ9: 4 | AR9: 1 | AT9: 1 | AU9: 1 | AV9: 1 | AW9: 1 | AX9: 1 | AY9: 1 | AZ9: 1 | BA9: 1 | BB9: 1 | BC9: =IF(ISBLANK(AO9),"",ROUND(AVERAGE(OFFSET(AT9:BB9,0,0,1,ion21Coop!$F$42)),1)) ->  | BF9: 3 | BG9: =VLOOKUP(BF9,$B$6:$C$26,2) -> MiDo | BH9: 4 | BI9: Crowdfunding with WeMakeIt.ch, Indiegogo.com | BJ9: YaJo | BL9: 2017 … | BO9: 20 | BP9: 1 | BQ9: 20 | BR9: 1 | BS9: 1 | BT9: 1 | BU9: 1 | BV9: 1 | BW9: 1 | BX9: 1 | BY9: 1 | BZ9: 1 | CA9: =IF(ISBLANK(BQ9),"",ROUND(AVERAGE(OFFSET(BR9:BZ9,0,0,1,ion21Coop!$F$42)),1)) -> 1 | CB9: 20 | CD9: 4 | CE9: =VLOOKUP(CD9,$B$6:$C$26,2) -> EmNi | CF9: 4 | CN9: 1 | CP9: 1 | CQ9: 1 | CR9: 1 | CS9: 1 | CT9: 1 | CU9: 1 | CV9: 1 | CW9: 1 | CX9: 1 | CY9: =IF(ISBLANK(CK9),"",ROUND(AVERAGE(OFFSET(CP9:CX9,0,0,1,ion21Coop!$F$42)),1)) ->  | DB9: 5 | DC9: =VLOOKUP(DB9,$B$6:$C$26,2) -> HeJe | DD9: 4 | DL9: 1 | DN9: 1 | DO9: 1 | DP9: 1 | DQ9: 1 | DR9: 1 | DS9: 1 | DT9: 1 | DU9: 1 | DV9: 1 | DW9: =IF(ISBLANK(DI9),"",ROUND(AVERAGE(OFFSET(DN9:DV9,0,0,1,ion21Coop!$F$42)),1)) ->  | DZ9: 6 | EA9: =VLOOKUP(DZ9,$B$6:$C$26,2) ->  | EB9: 4 | EJ9: 1 | EL9: 1 | EM9: 1 | EN9: 1 | EO9: 1 | EP9: 1 | EQ9: 1 | ER9: 1 | ES9: 1 | ET9: 1 | EU9: =IF(ISBLANK(EG9),"",ROUND(AVERAGE(OFFSET(EL9:ET9,0,0,1,ion21Coop!$F$42)),1)) ->  | EX9: 7 | EY9: =VLOOKUP(EX9,$B$6:$C$26,2) ->  | EZ9: 4 | FH9: 1 | FJ9: 1 | FK9: 1 | FL9: 1 | FM9: 1 | FN9: 1 | FO9: 1 | FP9: 1 | FQ9: 1 | FR9: 1 | FS9: =IF(ISBLANK(FE9),"",ROUND(AVERAGE(OFFSET(FJ9:FR9,0,0,1,ion21Coop!$F$42)),1)) ->  | FV9: 8 | FW9: =VLOOKUP(FV9,$B$6:$C$26,2) ->  | FX9: 4 | GF9: 1 | GH9: 1 | GI9: 1 | GJ9: 1 | GK9: 1 | GL9: 1 | GM9: 1 | GN9: 1 | GO9: 1 | GP9: 1 | GQ9: =IF(ISBLANK(GC9),"",ROUND(AVERAGE(OFFSET(GH9:GP9,0,0,1,ion21Coop!$F$42)),1)) ->  | GT9: 9 | GU9: =VLOOKUP(GT9,$B$6:$C$26,2) ->  | GV9: 4 | HD9: 1 | HF9: 1 | HG9: 1 | HH9: 1 | HI9: 1 | HJ9: 1 | HK9: 1 | HL9: 1 | HM9: 1 | HN9: 1 | HO9: =IF(ISBLANK(HA9),"",ROUND(AVERAGE(OFFSET(HF9:HN9,0,0,1,ion21Coop!$F$42)),1)) ->  | HR9: 10 | HS9: =VLOOKUP(HR9,$B$6:$C$26,2) ->  | HT9: 4 | IB9: 1 | ID9: 1 | IE9: 1 | IF9: 1 | IG9: 1 | IH9: 1 | II9: 1 | IJ9: 1 | IK9: 1 | IL9: 1 | IM9: =IF(ISBLANK(HY9),"",ROUND(AVERAGE(OFFSET(ID9:IL9,0,0,1,ion21Coop!$F$42)),1)) ->  | IP9: 11 | IQ9: =VLOOKUP(IP9,$B$6:$C$26,2) ->  | IR9: 4 | IZ9: 1 | JB9: 1 | JC9: 1 | JD9: 1 | JE9: 1 | JF9: 1 | JG9: 1 | JH9: 1 | JI9: 1 | JJ9: 1 | JK9: =IF(ISBLANK(IW9),"",ROUND(AVERAGE(OFFSET(JB9:JJ9,0,0,1,ion21Coop!$F$42)),1)) ->  | JN9: 12 | JO9: =VLOOKUP(JN9,$B$6:$C$26,2) ->  | JP9: 4 | JX9: 1 | JZ9: 1 | KA9: 1 | KB9: 1 | KC9: 1 | KD9: 1 | KE9: 1 | KF9: 1 | KG9: 1 | KH9: 1 | KI9: =IF(ISBLANK(JU9),"",ROUND(AVERAGE(OFFSET(JZ9:KH9,0,0,1,ion21Coop!$F$42)),1)) ->  | KL9: 13 | KM9: =VLOOKUP(KL9,$B$6:$C$26,2) ->  | KN9: 4 | KV9: 1 | KX9: 1 | KY9: 1 | KZ9: 1 | LA9: 1 | LB9: 1 | LC9: 1 | LD9: 1 | LE9: 1 | LF9: 1 | LG9: =IF(ISBLANK(KS9),"",ROUND(AVERAGE(OFFSET(KX9:LF9,0,0,1,ion21Coop!$F$42)),1)) ->  | LJ9: 14 | LK9: =VLOOKUP(LJ9,$B$6:$C$26,2) ->  | LL9: 4 | LT9: 1 | LV9: 1 | LW9: 1 | LX9: 1 | LY9: 1 | LZ9: 1 | MA9: 1 | MB9: 1 | MC9: 1 | MD9: 1 | ME9: =IF(ISBLANK(LQ9),"",ROUND(AVERAGE(OFFSET(LV9:MD9,0,0,1,ion21Coop!$F$42)),1)) ->  | MH9: 15 | MI9: =VLOOKUP(MH9,$B$6:$C$26,2) ->  | MJ9: 4 | MR9: 1 | MT9: 1 | MU9: 1 | MV9: 1 | MW9: 1 | MX9: 1 | MY9: 1 | MZ9: 1 | NA9: 1 | NB9: 1 | NC9: =IF(ISBLANK(MO9),"",ROUND(AVERAGE(OFFSET(MT9:NB9,0,0,1,ion21Coop!$F$42)),1)) ->  | NF9: 16 | NG9: =VLOOKUP(NF9,$B$6:$C$26,2) ->  | NH9: 4 | NP9: 1 | NR9: 1 | NS9: 1 | NT9: 1 | NU9: 1 | NV9: 1 | NW9: 1 | NX9: 1 | NY9: 1 | NZ9: 1 | OA9: =IF(ISBLANK(NM9),"",ROUND(AVERAGE(OFFSET(NR9:NZ9,0,0,1,ion21Coop!$F$42)),1)) ->  | OD9: 17 | OE9: =VLOOKUP(OD9,$B$6:$C$26,2) ->  | OF9: 4 | ON9: 1 | OP9: 1 | OQ9: 1 | OR9: 1 | OS9: 1 | OT9: 1 | OU9: 1 | OV9: 1 | OW9: 1 | OX9: 1 | OY9: =IF(ISBLANK(OK9),"",ROUND(AVERAGE(OFFSET(OP9:OX9,0,0,1,ion21Coop!$F$42)),1)) ->  | PB9: 18 | PC9: =VLOOKUP(PB9,$B$6:$C$26,2) ->  | PD9: 4 | PL9: 1 | PN9: 1 | PO9: 1 | PP9: 1 | PQ9: 1 | PR9: 1 | PS9: 1 | PT9: 1 | PU9: 1 | PV9: 1 | PW9: =IF(ISBLANK(PI9),"",ROUND(AVERAGE(OFFSET(PN9:PV9,0,0,1,ion21Coop!$F$42)),1)) ->  | PZ9: 19 | QA9: =VLOOKUP(PZ9,$B$6:$C$26,2) ->  | QB9: 4 | QJ9: 1 | QL9: 1 | QM9: 1 | QN9: 1 | QO9: 1 | QP9: 1 | QQ9: 1 | QR9: 1 | QS9: 1 | QT9: 1 | QU9: =IF(ISBLANK(QG9),"",ROUND(AVERAGE(OFFSET(QL9:QT9,0,0,1,ion21Coop!$F$42)),1)) ->  | QX9: 20 | QY9: =VLOOKUP(QX9,$B$6:$C$26,2) ->  | QZ9: 4 | RH9: 1 | RJ9: 1 | RK9: 1 | RL9: 1 | RM9: 1 | RN9: 1 | RO9: 1 | RP9: 1 | RQ9: 1 | RR9: 1 | RS9: =IF(ISBLANK(RE9),"",ROUND(AVERAGE(OFFSET(RJ9:RR9,0,0,1,ion21Coop!$F$42)),1)) ->  | RV9: 21 | RW9: =VLOOKUP(RV9,$B$6:$C$26,2) ->  | RX9: 4 | SF9: 1 | SH9: 1 | SI9: 1 | SJ9: 1 | SK9: 1 | SL9: 1 | SM9: 1 | SN9: 1 | SO9: 1 | SP9: 1 | SQ9: =IF(ISBLANK(SC9),"",ROUND(AVERAGE(OFFSET(SH9:SP9,0,0,1,ion21Coop!$F$42)),1)) ->  | ST9: 4 | SU9: 1 | SV9: NoDj | SW9: 2 | SX9: 1 | SY9: NoDj | SZ9: 2016-08-25T22:08:03 | TA9: 0
A10: 5 - HeJe | B10: =ion21Team!B9 -> 5 | C10: =IF(ISBLANK(ion21Team!C9),"",ion21Team!C9) -> HeJe | D10: =IF(ISBLANK(ion21Team!$C$9),"",$DX$3) -> 0 | E10: =IF(ISBLANK(ion21Team!C9),"",IFERROR(D10/$D$27*100,0)) -> 0 | F10: =IF(ISBLANK(ion21Team!C9),"",ion21Votes!AF10) -> 0 | G10: =IF(ISBLANK(ion21Team!C9),"",ROUND(ion21Votes!$AF$27*E10/100,0)) -> 0 | H10: =IF(ISBLANK(ion21Team!C9),"",F10-G10) -> 0 | J10: 1 | K10: YaJo | L10: 5 | M10: Marketing ads and communications | P10: 2017 … | S10: 50 | T10: 1 | U10: 50 | V10: 1 | W10: 1 | X10: 1 | Y10: 1 | Z10: 1 | AA10: 1 | AB10: 1 | AC10: 1 | AD10: 1 | AE10: =IF(ISBLANK(U10),"",ROUND(AVERAGE(OFFSET(V10:AD10,0,0,1,ion21Coop!$F$42)),1)) -> 1 | AF10: 50 | AH10: 2 | AI10: GeLo | AJ10: 5 | AR10: 1 | AT10: 1 | AU10: 1 | AV10: 1 | AW10: 1 | AX10: 1 | AY10: 1 | AZ10: 1 | BA10: 1 | BB10: 1 | BC10: =IF(ISBLANK(AO10),"",ROUND(AVERAGE(OFFSET(AT10:BB10,0,0,1,ion21Coop!$F$42)),1)) ->  | BF10: 3 | BG10: MiDo | BH10: 5 | BI10: Website programming and administration | BL10: 2017 … | BO10: 50 | BP10: 1 | BQ10: 50 | BR10: 1 | BS10: 1 | BT10: 1 | BU10: 1 | BV10: 1 | BW10: 1 | BX10: 1 | BY10: 1 | BZ10: 1 | CA10: =IF(ISBLANK(BQ10),"",ROUND(AVERAGE(OFFSET(BR10:BZ10,0,0,1,ion21Coop!$F$42)),1)) -> 1 | CB10: 50 | CD10: 4 | CE10: EmNi | CF10: 5 | CN10: 1 | CP10: 1 | CQ10: 1 | CR10: 1 | CS10: 1 | CT10: 1 | CU10: 1 | CV10: 1 | CW10: 1 | CX10: 1 | CY10: =IF(ISBLANK(CK10),"",ROUND(AVERAGE(OFFSET(CP10:CX10,0,0,1,ion21Coop!$F$42)),1)) ->  | DB10: 5 | DC10: HeJe | DD10: 5 | DL10: 1 | DN10: 1 | DO10: 1 | DP10: 1 | DQ10: 1 | DR10: 1 | DS10: 1 | DT10: 1 | DU10: 1 | DV10: 1 | DW10: =IF(ISBLANK(DI10),"",ROUND(AVERAGE(OFFSET(DN10:DV10,0,0,1,ion21Coop!$F$42)),1)) ->  | DZ10: 6 | EB10: 5 | EJ10: 1 | EL10: 1 | EM10: 1 | EN10: 1 | EO10: 1 | EP10: 1 | EQ10: 1 | ER10: 1 | ES10: 1 | ET10: 1 | EU10: =IF(ISBLANK(EG10),"",ROUND(AVERAGE(OFFSET(EL10:ET10,0,0,1,ion21Coop!$F$42)),1)) ->  | EX10: 7 | EZ10: 5 | FH10: 1 | FJ10: 1 | FK10: 1 | FL10: 1 | FM10: 1 | FN10: 1 | FO10: 1 | FP10: 1 | FQ10: 1 | FR10: 1 | FS10: =IF(ISBLANK(FE10),"",ROUND(AVERAGE(OFFSET(FJ10:FR10,0,0,1,ion21Coop!$F$42)),1)) ->  | FV10: 8 | FX10: 5 | GF10: 1 | GH10: 1 | GI10: 1 | GJ10: 1 | GK10: 1 | GL10: 1 | GM10: 1 | GN10: 1 | GO10: 1 | GP10: 1 | GQ10: =IF(ISBLANK(GC10),"",ROUND(AVERAGE(OFFSET(GH10:GP10,0,0,1,ion21Coop!$F$42)),1)) ->  | GT10: 9 | GV10: 5 | HD10: 1 | HF10: 1 | HG10: 1 | HH10: 1 | HI10: 1 | HJ10: 1 | HK10: 1 | HL10: 1 | HM10: 1 | HN10: 1 | HO10: =IF(ISBLANK(HA10),"",ROUND(AVERAGE(OFFSET(HF10:HN10,0,0,1,ion21Coop!$F$42)),1)) ->  | HR10: 10 | HT10: 5 | IB10: 1 | ID10: 1 | IE10: 1 | IF10: 1 | IG10: 1 | IH10: 1 | II10: 1 | IJ10: 1 | IK10: 1 | IL10: 1 | IM10: =IF(ISBLANK(HY10),"",ROUND(AVERAGE(OFFSET(ID10:IL10,0,0,1,ion21Coop!$F$42)),1)) ->  | IP10: 11 | IR10: 5 | IZ10: 1 | JB10: 1 | JC10: 1 | JD10: 1 | JE10: 1 | JF10: 1 | JG10: 1 | JH10: 1 | JI10: 1 | JJ10: 1 | JK10: =IF(ISBLANK(IW10),"",ROUND(AVERAGE(OFFSET(JB10:JJ10,0,0,1,ion21Coop!$F$42)),1)) ->  | JN10: 12 | JP10: 5 | JX10: 1 | JZ10: 1 | KA10: 1 | KB10: 1 | KC10: 1 | KD10: 1 | KE10: 1 | KF10: 1 | KG10: 1 | KH10: 1 | KI10: =IF(ISBLANK(JU10),"",ROUND(AVERAGE(OFFSET(JZ10:KH10,0,0,1,ion21Coop!$F$42)),1)) ->  | KL10: 13 | KN10: 5 | KV10: 1 | KX10: 1 | KY10: 1 | KZ10: 1 | LA10: 1 | LB10: 1 | LC10: 1 | LD10: 1 | LE10: 1 | LF10: 1 | LG10: =IF(ISBLANK(KS10),"",ROUND(AVERAGE(OFFSET(KX10:LF10,0,0,1,ion21Coop!$F$42)),1)) ->  | LJ10: 14 | LL10: 5 | LT10: 1 | LV10: 1 | LW10: 1 | LX10: 1 | LY10: 1 | LZ10: 1 | MA10: 1 | MB10: 1 | MC10: 1 | MD10: 1 | ME10: =IF(ISBLANK(LQ10),"",ROUND(AVERAGE(OFFSET(LV10:MD10,0,0,1,ion21Coop!$F$42)),1)) ->  | MH10: 15 | MJ10: 5 | MR10: 1 | MT10: 1 | MU10: 1 | MV10: 1 | MW10: 1 | MX10: 1 | MY10: 1 | MZ10: 1 | NA10: 1 | NB10: 1 | NC10: =IF(ISBLANK(MO10),"",ROUND(AVERAGE(OFFSET(MT10:NB10,0,0,1,ion21Coop!$F$42)),1)) ->  | NF10: 16 | NH10: 5 | NP10: 1 | NR10: 1 | NS10: 1 | NT10: 1 | NU10: 1 | NV10: 1 | NW10: 1 | NX10: 1 | NY10: 1 | NZ10: 1 | OA10: =IF(ISBLANK(NM10),"",ROUND(AVERAGE(OFFSET(NR10:NZ10,0,0,1,ion21Coop!$F$42)),1)) ->  | OD10: 17 | OF10: 5 | ON10: 1 | OP10: 1 | OQ10: 1 | OR10: 1 | OS10: 1 | OT10: 1 | OU10: 1 | OV10: 1 | OW10: 1 | OX10: 1 | OY10: =IF(ISBLANK(OK10),"",ROUND(AVERAGE(OFFSET(OP10:OX10,0,0,1,ion21Coop!$F$42)),1)) ->  | PB10: 18 | PD10: 5 | PL10: 1 | PN10: 1 | PO10: 1 | PP10: 1 | PQ10: 1 | PR10: 1 | PS10: 1 | PT10: 1 | PU10: 1 | PV10: 1 | PW10: =IF(ISBLANK(PI10),"",ROUND(AVERAGE(OFFSET(PN10:PV10,0,0,1,ion21Coop!$F$42)),1)) ->  | PZ10: 19 | QB10: 5 | QJ10: 1 | QL10: 1 | QM10: 1 | QN10: 1 | QO10: 1 | QP10: 1 | QQ10: 1 | QR10: 1 | QS10: 1 | QT10: 1 | QU10: =IF(ISBLANK(QG10),"",ROUND(AVERAGE(OFFSET(QL10:QT10,0,0,1,ion21Coop!$F$42)),1)) ->  | QX10: 20 | QZ10: 5 | RH10: 1 | RJ10: 1 | RK10: 1 | RL10: 1 | RM10: 1 | RN10: 1 | RO10: 1 | RP10: 1 | RQ10: 1 | RR10: 1 | RS10: =IF(ISBLANK(RE10),"",ROUND(AVERAGE(OFFSET(RJ10:RR10,0,0,1,ion21Coop!$F$42)),1)) ->  | RV10: 21 | RX10: 5 | SF10: 1 | SH10: 1 | SI10: 1 | SJ10: 1 | SK10: 1 | SL10: 1 | SM10: 1 | SN10: 1 | SO10: 1 | SP10: 1 | SQ10: =IF(ISBLANK(SC10),"",ROUND(AVERAGE(OFFSET(SH10:SP10,0,0,1,ion21Coop!$F$42)),1)) ->  | ST10: 5 | SU10: 1 | SV10: NoDj | SW10: 1 | SX10: 3 | SY10: PeFi | SZ10: 2016-08-25T22:41:05 | TA10: 0.5 | TB10: Reason for cutting to 0.5
A11: 6 - | B11: =ion21Team!B10 -> 6 | C11: =IF(ISBLANK(ion21Team!C10),"",ion21Team!C10) ->  | D11: =IF(ISBLANK(ion21Team!$C$10),"",$EV$3) ->  | E11: =IF(ISBLANK(ion21Team!C10),"",IFERROR(D11/$D$27*100,0)) ->  | F11: =IF(ISBLANK(ion21Team!C10),"",ion21Votes!AF11) ->  | G11: =IF(ISBLANK(ion21Team!C10),"",ROUND(ion21Votes!$AF$27*E11/100,0)) ->  | H11: =IF(ISBLANK(ion21Team!C10),"",F11-G11) ->  | J11: 1 | K11: YaJo | L11: 6 | M11: Marketing in Kandersteg using brochures, Sarah | N11: MiDo | P11: 2017 July | S11: 140 | T11: 1 | U11: 140 | V11: 1 | W11: 1 | X11: 1 | Y11: 1 | Z11: 1 | AA11: 1 | AB11: 1 | AC11: 1 | AD11: 1 | AE11: =IF(ISBLANK(U11),"",ROUND(AVERAGE(OFFSET(V11:AD11,0,0,1,ion21Coop!$F$42)),1)) -> 1 | AF11: 140 | AH11: 2 | AI11: GeLo | AJ11: 6 | AR11: 1 | AT11: 1 | AU11: 1 | AV11: 1 | AW11: 1 | AX11: 1 | AY11: 1 | AZ11: 1 | BA11: 1 | BB11: 1 | BC11: =IF(ISBLANK(AO11),"",ROUND(AVERAGE(OFFSET(AT11:BB11,0,0,1,ion21Coop!$F$42)),1)) ->  | BF11: 3 | BG11: MiDo | BH11: 6 | BI11: Marketing in Kandersteg using brochures, Sarah | BJ11: YaJo | BL11: 2017 July | BO11: 140 | BP11: 1 | BQ11: 140 | BR11: 1 | BS11: 1 | BT11: 1 | BU11: 1 | BV11: 1 | BW11: 1 | BX11: 1 | BY11: 1 | BZ11: 1 | CA11: =IF(ISBLANK(BQ11),"",ROUND(AVERAGE(OFFSET(BR11:BZ11,0,0,1,ion21Coop!$F$42)),1)) -> 1 | CB11: 140 | CD11: 4 | CE11: EmNi | CF11: 6 | CN11: 1 | CP11: 1 | CQ11: 1 | CR11: 1 | CS11: 1 | CT11: 1 | CU11: 1 | CV11: 1 | CW11: 1 | CX11: 1 | CY11: =IF(ISBLANK(CK11),"",ROUND(AVERAGE(OFFSET(CP11:CX11,0,0,1,ion21Coop!$F$42)),1)) ->  | DB11: 5 | DC11: HeJe | DD11: 6 | DL11: 1 | DN11: 1 | DO11: 1 | DP11: 1 | DQ11: 1 | DR11: 1 | DS11: 1 | DT11: 1 | DU11: 1 | DV11: 1 | DW11: =IF(ISBLANK(DI11),"",ROUND(AVERAGE(OFFSET(DN11:DV11,0,0,1,ion21Coop!$F$42)),1)) ->  | DZ11: 6 | EB11: 6 | EJ11: 1 | EL11: 1 | EM11: 1 | EN11: 1 | EO11: 1 | EP11: 1 | EQ11: 1 | ER11: 1 | ES11: 1 | ET11: 1 | EU11: =IF(ISBLANK(EG11),"",ROUND(AVERAGE(OFFSET(EL11:ET11,0,0,1,ion21Coop!$F$42)),1)) ->  | EX11: 7 | EZ11: 6 | FH11: 1 | FJ11: 1 | FK11: 1 | FL11: 1 | FM11: 1 | FN11: 1 | FO11: 1 | FP11: 1 | FQ11: 1 | FR11: 1 | FS11: =IF(ISBLANK(FE11),"",ROUND(AVERAGE(OFFSET(FJ11:FR11,0,0,1,ion21Coop!$F$42)),1)) ->  | FV11: 8 | FX11: 6 | GF11: 1 | GH11: 1 | GI11: 1 | GJ11: 1 | GK11: 1 | GL11: 1 | GM11: 1 | GN11: 1 | GO11: 1 | GP11: 1 | GQ11: =IF(ISBLANK(GC11),"",ROUND(AVERAGE(OFFSET(GH11:GP11,0,0,1,ion21Coop!$F$42)),1)) ->  | GT11: 9 | GV11: 6 | HD11: 1 | HF11: 1 | HG11: 1 | HH11: 1 | HI11: 1 | HJ11: 1 | HK11: 1 | HL11: 1 | HM11: 1 | HN11: 1 | HO11: =IF(ISBLANK(HA11),"",ROUND(AVERAGE(OFFSET(HF11:HN11,0,0,1,ion21Coop!$F$42)),1)) ->  | HR11: 10 | HT11: 6 | IB11: 1 | ID11: 1 | IE11: 1 | IF11: 1 | IG11: 1 | IH11: 1 | II11: 1 | IJ11: 1 | IK11: 1 | IL11: 1 | IM11: =IF(ISBLANK(HY11),"",ROUND(AVERAGE(OFFSET(ID11:IL11,0,0,1,ion21Coop!$F$42)),1)) ->  | IP11: 11 | IR11: 6 | IZ11: 1 | JB11: 1 | JC11: 1 | JD11: 1 | JE11: 1 | JF11: 1 | JG11: 1 | JH11: 1 | JI11: 1 | JJ11: 1 | JK11: =IF(ISBLANK(IW11),"",ROUND(AVERAGE(OFFSET(JB11:JJ11,0,0,1,ion21Coop!$F$42)),1)) ->  | JN11: 12 | JP11: 6 | JX11: 1 | JZ11: 1 | KA11: 1 | KB11: 1 | KC11: 1 | KD11: 1 | KE11: 1 | KF11: 1 | KG11: 1 | KH11: 1 | KI11: =IF(ISBLANK(JU11),"",ROUND(AVERAGE(OFFSET(JZ11:KH11,0,0,1,ion21Coop!$F$42)),1)) ->  | KL11: 13 | KN11: 6 | KV11: 1 | KX11: 1 | KY11: 1 | KZ11: 1 | LA11: 1 | LB11: 1 | LC11: 1 | LD11: 1 | LE11: 1 | LF11: 1 | LG11: =IF(ISBLANK(KS11),"",ROUND(AVERAGE(OFFSET(KX11:LF11,0,0,1,ion21Coop!$F$42)),1)) ->  | LJ11: 14 | LL11: 6 | LT11: 1 | LV11: 1 | LW11: 1 | LX11: 1 | LY11: 1 | LZ11: 1 | MA11: 1 | MB11: 1 | MC11: 1 | MD11: 1 | ME11: =IF(ISBLANK(LQ11),"",ROUND(AVERAGE(OFFSET(LV11:MD11,0,0,1,ion21Coop!$F$42)),1)) ->  | MH11: 15 | MJ11: 6 | MR11: 1 | MT11: 1 | MU11: 1 | MV11: 1 | MW11: 1 | MX11: 1 | MY11: 1 | MZ11: 1 | NA11: 1 | NB11: 1 | NC11: =IF(ISBLANK(MO11),"",ROUND(AVERAGE(OFFSET(MT11:NB11,0,0,1,ion21Coop!$F$42)),1)) ->  | NF11: 16 | NH11: 6 | NP11: 1 | NR11: 1 | NS11: 1 | NT11: 1 | NU11: 1 | NV11: 1 | NW11: 1 | NX11: 1 | NY11: 1 | NZ11: 1 | OA11: =IF(ISBLANK(NM11),"",ROUND(AVERAGE(OFFSET(NR11:NZ11,0,0,1,ion21Coop!$F$42)),1)) ->  | OD11: 17 | OF11: 6 | ON11: 1 | OP11: 1 | OQ11: 1 | OR11: 1 | OS11: 1 | OT11: 1 | OU11: 1 | OV11: 1 | OW11: 1 | OX11: 1 | OY11: =IF(ISBLANK(OK11),"",ROUND(AVERAGE(OFFSET(OP11:OX11,0,0,1,ion21Coop!$F$42)),1)) ->  | PB11: 18 | PD11: 6 | PL11: 1 | PN11: 1 | PO11: 1 | PP11: 1 | PQ11: 1 | PR11: 1 | PS11: 1 | PT11: 1 | PU11: 1 | PV11: 1 | PW11: =IF(ISBLANK(PI11),"",ROUND(AVERAGE(OFFSET(PN11:PV11,0,0,1,ion21Coop!$F$42)),1)) ->  | PZ11: 19 | QB11: 6 | QJ11: 1 | QL11: 1 | QM11: 1 | QN11: 1 | QO11: 1 | QP11: 1 | QQ11: 1 | QR11: 1 | QS11: 1 | QT11: 1 | QU11: =IF(ISBLANK(QG11),"",ROUND(AVERAGE(OFFSET(QL11:QT11,0,0,1,ion21Coop!$F$42)),1)) ->  | QX11: 20 | QZ11: 6 | RH11: 1 | RJ11: 1 | RK11: 1 | RL11: 1 | RM11: 1 | RN11: 1 | RO11: 1 | RP11: 1 | RQ11: 1 | RR11: 1 | RS11: =IF(ISBLANK(RE11),"",ROUND(AVERAGE(OFFSET(RJ11:RR11,0,0,1,ion21Coop!$F$42)),1)) ->  | RV11: 21 | RX11: 6 | SF11: 1 | SH11: 1 | SI11: 1 | SJ11: 1 | SK11: 1 | SL11: 1 | SM11: 1 | SN11: 1 | SO11: 1 | SP11: 1 | SQ11: =IF(ISBLANK(SC11),"",ROUND(AVERAGE(OFFSET(SH11:SP11,0,0,1,ion21Coop!$F$42)),1)) -> 
A12: 7 - | B12: =ion21Team!B11 -> 7 | C12: =IF(ISBLANK(ion21Team!C11),"",ion21Team!C11) ->  | D12: =IF(ISBLANK(ion21Team!$C$11),"",$FT$3) ->  | E12: =IF(ISBLANK(ion21Team!C11),"",IFERROR(D12/$D$27*100,0)) ->  | F12: =IF(ISBLANK(ion21Team!C11),"",ion21Votes!AF12) ->  | G12: =IF(ISBLANK(ion21Team!C11),"",ROUND(ion21Votes!$AF$27*E12/100,0)) ->  | H12: =IF(ISBLANK(ion21Team!C11),"",F12-G12) ->  | J12: 1 | K12: YaJo | L12: 7 | M12: Setting up partnership with BookYogaRetreats | N12: MiDo | P12: 2017 Oct | S12: 20 | T12: 1 | U12: 20 | V12: 1 | W12: 1 | X12: 1 | Y12: 1 | Z12: 1 | AA12: 1 | AB12: 1 | AC12: 1 | AD12: 1 | AE12: =IF(ISBLANK(U12),"",ROUND(AVERAGE(OFFSET(V12:AD12,0,0,1,ion21Coop!$F$42)),1)) -> 1 | AF12: 20 | AH12: 2 | AI12: GeLo | AJ12: 7 | AR12: 1 | AT12: 1 | AU12: 1 | AV12: 1 | AW12: 1 | AX12: 1 | AY12: 1 | AZ12: 1 | BA12: 1 | BB12: 1 | BC12: =IF(ISBLANK(AO12),"",ROUND(AVERAGE(OFFSET(AT12:BB12,0,0,1,ion21Coop!$F$42)),1)) ->  | BF12: 3 | BG12: MiDo | BH12: 7 | BI12: Setting up partnership with BookYogaRetreats | BJ12: YaJo | BL12: 2017 Oct | BO12: 20 | BP12: 1 | BQ12: 20 | BR12: 1 | BS12: 1 | BT12: 1 | BU12: 1 | BV12: 1 | BW12: 1 | BX12: 1 | BY12: 1 | BZ12: 1 | CA12: =IF(ISBLANK(BQ12),"",ROUND(AVERAGE(OFFSET(BR12:BZ12,0,0,1,ion21Coop!$F$42)),1)) -> 1 | CB12: 20 | CD12: 4 | CE12: EmNi | CF12: 7 | CN12: 1 | CP12: 1 | CQ12: 1 | CR12: 1 | CS12: 1 | CT12: 1 | CU12: 1 | CV12: 1 | CW12: 1 | CX12: 1 | CY12: =IF(ISBLANK(CK12),"",ROUND(AVERAGE(OFFSET(CP12:CX12,0,0,1,ion21Coop!$F$42)),1)) ->  | DB12: 5 | DC12: HeJe | DD12: 7 | DL12: 1 | DN12: 1 | DO12: 1 | DP12: 1 | DQ12: 1 | DR12: 1 | DS12: 1 | DT12: 1 | DU12: 1 | DV12: 1 | DW12: =IF(ISBLANK(DI12),"",ROUND(AVERAGE(OFFSET(DN12:DV12,0,0,1,ion21Coop!$F$42)),1)) ->  | DZ12: 6 | EB12: 7 | EJ12: 1 | EL12: 1 | EM12: 1 | EN12: 1 | EO12: 1 | EP12: 1 | EQ12: 1 | ER12: 1 | ES12: 1 | ET12: 1 | EU12: =IF(ISBLANK(EG12),"",ROUND(AVERAGE(OFFSET(EL12:ET12,0,0,1,ion21Coop!$F$42)),1)) ->  | EX12: 7 | EZ12: 7 | FH12: 1 | FJ12: 1 | FK12: 1 | FL12: 1 | FM12: 1 | FN12: 1 | FO12: 1 | FP12: 1 | FQ12: 1 | FR12: 1 | FS12: =IF(ISBLANK(FE12),"",ROUND(AVERAGE(OFFSET(FJ12:FR12,0,0,1,ion21Coop!$F$42)),1)) ->  | FV12: 8 | FX12: 7 | GF12: 1 | GH12: 1 | GI12: 1 | GJ12: 1 | GK12: 1 | GL12: 1 | GM12: 1 | GN12: 1 | GO12: 1 | GP12: 1 | GQ12: =IF(ISBLANK(GC12),"",ROUND(AVERAGE(OFFSET(GH12:GP12,0,0,1,ion21Coop!$F$42)),1)) ->  | GT12: 9 | GV12: 7 | HD12: 1 | HF12: 1 | HG12: 1 | HH12: 1 | HI12: 1 | HJ12: 1 | HK12: 1 | HL12: 1 | HM12: 1 | HN12: 1 | HO12: =IF(ISBLANK(HA12),"",ROUND(AVERAGE(OFFSET(HF12:HN12,0,0,1,ion21Coop!$F$42)),1)) ->  | HR12: 10 | HT12: 7 | IB12: 1 | ID12: 1 | IE12: 1 | IF12: 1 | IG12: 1 | IH12: 1 | II12: 1 | IJ12: 1 | IK12: 1 | IL12: 1 | IM12: =IF(ISBLANK(HY12),"",ROUND(AVERAGE(OFFSET(ID12:IL12,0,0,1,ion21Coop!$F$42)),1)) ->  | IP12: 11 | IR12: 7 | IZ12: 1 | JB12: 1 | JC12: 1 | JD12: 1 | JE12: 1 | JF12: 1 | JG12: 1 | JH12: 1 | JI12: 1 | JJ12: 1 | JK12: =IF(ISBLANK(IW12),"",ROUND(AVERAGE(OFFSET(JB12:JJ12,0,0,1,ion21Coop!$F$42)),1)) ->  | JN12: 12 | JP12: 7 | JX12: 1 | JZ12: 1 | KA12: 1 | KB12: 1 | KC12: 1 | KD12: 1 | KE12: 1 | KF12: 1 | KG12: 1 | KH12: 1 | KI12: =IF(ISBLANK(JU12),"",ROUND(AVERAGE(OFFSET(JZ12:KH12,0,0,1,ion21Coop!$F$42)),1)) ->  | KL12: 13 | KN12: 7 | KV12: 1 | KX12: 1 | KY12: 1 | KZ12: 1 | LA12: 1 | LB12: 1 | LC12: 1 | LD12: 1 | LE12: 1 | LF12: 1 | LG12: =IF(ISBLANK(KS12),"",ROUND(AVERAGE(OFFSET(KX12:LF12,0,0,1,ion21Coop!$F$42)),1)) ->  | LJ12: 14 | LL12: 7 | LT12: 1 | LV12: 1 | LW12: 1 | LX12: 1 | LY12: 1 | LZ12: 1 | MA12: 1 | MB12: 1 | MC12: 1 | MD12: 1 | ME12: =IF(ISBLANK(LQ12),"",ROUND(AVERAGE(OFFSET(LV12:MD12,0,0,1,ion21Coop!$F$42)),1)) ->  | MH12: 15 | MJ12: 7 | MR12: 1 | MT12: 1 | MU12: 1 | MV12: 1 | MW12: 1 | MX12: 1 | MY12: 1 | MZ12: 1 | NA12: 1 | NB12: 1 | NC12: =IF(ISBLANK(MO12),"",ROUND(AVERAGE(OFFSET(MT12:NB12,0,0,1,ion21Coop!$F$42)),1)) ->  | NF12: 16 | NH12: 7 | NP12: 1 | NR12: 1 | NS12: 1 | NT12: 1 | NU12: 1 | NV12: 1 | NW12: 1 | NX12: 1 | NY12: 1 | NZ12: 1 | OA12: =IF(ISBLANK(NM12),"",ROUND(AVERAGE(OFFSET(NR12:NZ12,0,0,1,ion21Coop!$F$42)),1)) ->  | OD12: 17 | OF12: 7 | ON12: 1 | OP12: 1 | OQ12: 1 | OR12: 1 | OS12: 1 | OT12: 1 | OU12: 1 | OV12: 1 | OW12: 1 | OX12: 1 | OY12: =IF(ISBLANK(OK12),"",ROUND(AVERAGE(OFFSET(OP12:OX12,0,0,1,ion21Coop!$F$42)),1)) ->  | PB12: 18 | PD12: 7 | PL12: 1 | PN12: 1 | PO12: 1 | PP12: 1 | PQ12: 1 | PR12: 1 | PS12: 1 | PT12: 1 | PU12: 1 | PV12: 1 | PW12: =IF(ISBLANK(PI12),"",ROUND(AVERAGE(OFFSET(PN12:PV12,0,0,1,ion21Coop!$F$42)),1)) ->  | PZ12: 19 | QB12: 7 | QJ12: 1 | QL12: 1 | QM12: 1 | QN12: 1 | QO12: 1 | QP12: 1 | QQ12: 1 | QR12: 1 | QS12: 1 | QT12: 1 | QU12: =IF(ISBLANK(QG12),"",ROUND(AVERAGE(OFFSET(QL12:QT12,0,0,1,ion21Coop!$F$42)),1)) ->  | QX12: 20 | QZ12: 7 | RH12: 1 | RJ12: 1 | RK12: 1 | RL12: 1 | RM12: 1 | RN12: 1 | RO12: 1 | RP12: 1 | RQ12: 1 | RR12: 1 | RS12: =IF(ISBLANK(RE12),"",ROUND(AVERAGE(OFFSET(RJ12:RR12,0,0,1,ion21Coop!$F$42)),1)) ->  | RV12: 21 | RX12: 7 | SF12: 1 | SH12: 1 | SI12: 1 | SJ12: 1 | SK12: 1 | SL12: 1 | SM12: 1 | SN12: 1 | SO12: 1 | SP12: 1 | SQ12: =IF(ISBLANK(SC12),"",ROUND(AVERAGE(OFFSET(SH12:SP12,0,0,1,ion21Coop!$F$42)),1)) -> 
A13: 8 - | B13: =ion21Team!B12 -> 8 | C13: =IF(ISBLANK(ion21Team!C12),"",ion21Team!C12) ->  | D13: =IF(ISBLANK(ion21Team!$C$12),"",$GR$3) ->  | E13: =IF(ISBLANK(ion21Team!C12),"",IFERROR(D13/$D$27*100,0)) ->  | F13: =IF(ISBLANK(ion21Team!C12),"",ion21Votes!AF13) ->  | G13: =IF(ISBLANK(ion21Team!C12),"",ROUND(ion21Votes!$AF$27*E13/100,0)) ->  | H13: =IF(ISBLANK(ion21Team!C12),"",F13-G13) ->  | J13: 1 | K13: YaJo | L13: 8 | M13: Taking first tour in Kandersteg, learning from it | N13: MiDo | P13: 2017 Oct | S13: 30 | T13: 1 | U13: 30 | V13: 1 | W13: 1 | X13: 1 | Y13: 1 | Z13: 1 | AA13: 1 | AB13: 1 | AC13: 1 | AD13: 1 | AE13: =IF(ISBLANK(U13),"",ROUND(AVERAGE(OFFSET(V13:AD13,0,0,1,ion21Coop!$F$42)),1)) -> 1 | AF13: 30 | AH13: 2 | AI13: GeLo | AJ13: 8 | AR13: 1 | AT13: 1 | AU13: 1 | AV13: 1 | AW13: 1 | AX13: 1 | AY13: 1 | AZ13: 1 | BA13: 1 | BB13: 1 | BC13: =IF(ISBLANK(AO13),"",ROUND(AVERAGE(OFFSET(AT13:BB13,0,0,1,ion21Coop!$F$42)),1)) ->  | BF13: 3 | BG13: MiDo | BH13: 8 | BI13: Taking first tour in Kandersteg, learning from it | BJ13: YaJo | BL13: 2017 Oct | BO13: 30 | BP13: 1 | BQ13: 30 | BR13: 1 | BS13: 1 | BT13: 1 | BU13: 1 | BV13: 1 | BW13: 1 | BX13: 1 | BY13: 1 | BZ13: 1 | CA13: =IF(ISBLANK(BQ13),"",ROUND(AVERAGE(OFFSET(BR13:BZ13,0,0,1,ion21Coop!$F$42)),1)) -> 1 | CB13: 30 | CD13: 4 | CE13: EmNi | CF13: 8 | CN13: 1 | CP13: 1 | CQ13: 1 | CR13: 1 | CS13: 1 | CT13: 1 | CU13: 1 | CV13: 1 | CW13: 1 | CX13: 1 | CY13: =IF(ISBLANK(CK13),"",ROUND(AVERAGE(OFFSET(CP13:CX13,0,0,1,ion21Coop!$F$42)),1)) ->  | DB13: 5 | DC13: HeJe | DD13: 8 | DL13: 1 | DN13: 1 | DO13: 1 | DP13: 1 | DQ13: 1 | DR13: 1 | DS13: 1 | DT13: 1 | DU13: 1 | DV13: 1 | DW13: =IF(ISBLANK(DI13),"",ROUND(AVERAGE(OFFSET(DN13:DV13,0,0,1,ion21Coop!$F$42)),1)) ->  | DZ13: 6 | EB13: 8 | EJ13: 1 | EL13: 1 | EM13: 1 | EN13: 1 | EO13: 1 | EP13: 1 | EQ13: 1 | ER13: 1 | ES13: 1 | ET13: 1 | EU13: =IF(ISBLANK(EG13),"",ROUND(AVERAGE(OFFSET(EL13:ET13,0,0,1,ion21Coop!$F$42)),1)) ->  | EX13: 7 | EZ13: 8 | FH13: 1 | FJ13: 1 | FK13: 1 | FL13: 1 | FM13: 1 | FN13: 1 | FO13: 1 | FP13: 1 | FQ13: 1 | FR13: 1 | FS13: =IF(ISBLANK(FE13),"",ROUND(AVERAGE(OFFSET(FJ13:FR13,0,0,1,ion21Coop!$F$42)),1)) ->  | FV13: 8 | FX13: 8 | GF13: 1 | GH13: 1 | GI13: 1 | GJ13: 1 | GK13: 1 | GL13: 1 | GM13: 1 | GN13: 1 | GO13: 1 | GP13: 1 | GQ13: =IF(ISBLANK(GC13),"",ROUND(AVERAGE(OFFSET(GH13:GP13,0,0,1,ion21Coop!$F$42)),1)) ->  | GT13: 9 | GV13: 8 | HD13: 1 | HF13: 1 | HG13: 1 | HH13: 1 | HI13: 1 | HJ13: 1 | HK13: 1 | HL13: 1 | HM13: 1 | HN13: 1 | HO13: =IF(ISBLANK(HA13),"",ROUND(AVERAGE(OFFSET(HF13:HN13,0,0,1,ion21Coop!$F$42)),1)) ->  | HR13: 10 | HT13: 8 | IB13: 1 | ID13: 1 | IE13: 1 | IF13: 1 | IG13: 1 | IH13: 1 | II13: 1 | IJ13: 1 | IK13: 1 | IL13: 1 | IM13: =IF(ISBLANK(HY13),"",ROUND(AVERAGE(OFFSET(ID13:IL13,0,0,1,ion21Coop!$F$42)),1)) ->  | IP13: 11 | IR13: 8 | IZ13: 1 | JB13: 1 | JC13: 1 | JD13: 1 | JE13: 1 | JF13: 1 | JG13: 1 | JH13: 1 | JI13: 1 | JJ13: 1 | JK13: =IF(ISBLANK(IW13),"",ROUND(AVERAGE(OFFSET(JB13:JJ13,0,0,1,ion21Coop!$F$42)),1)) ->  | JN13: 12 | JP13: 8 | JX13: 1 | JZ13: 1 | KA13: 1 | KB13: 1 | KC13: 1 | KD13: 1 | KE13: 1 | KF13: 1 | KG13: 1 | KH13: 1 | KI13: =IF(ISBLANK(JU13),"",ROUND(AVERAGE(OFFSET(JZ13:KH13,0,0,1,ion21Coop!$F$42)),1)) ->  | KL13: 13 | KN13: 8 | KV13: 1 | KX13: 1 | KY13: 1 | KZ13: 1 | LA13: 1 | LB13: 1 | LC13: 1 | LD13: 1 | LE13: 1 | LF13: 1 | LG13: =IF(ISBLANK(KS13),"",ROUND(AVERAGE(OFFSET(KX13:LF13,0,0,1,ion21Coop!$F$42)),1)) ->  | LJ13: 14 | LL13: 8 | LT13: 1 | LV13: 1 | LW13: 1 | LX13: 1 | LY13: 1 | LZ13: 1 | MA13: 1 | MB13: 1 | MC13: 1 | MD13: 1 | ME13: =IF(ISBLANK(LQ13),"",ROUND(AVERAGE(OFFSET(LV13:MD13,0,0,1,ion21Coop!$F$42)),1)) ->  | MH13: 15 | MJ13: 8 | MR13: 1 | MT13: 1 | MU13: 1 | MV13: 1 | MW13: 1 | MX13: 1 | MY13: 1 | MZ13: 1 | NA13: 1 | NB13: 1 | NC13: =IF(ISBLANK(MO13),"",ROUND(AVERAGE(OFFSET(MT13:NB13,0,0,1,ion21Coop!$F$42)),1)) ->  | NF13: 16 | NH13: 8 | NP13: 1 | NR13: 1 | NS13: 1 | NT13: 1 | NU13: 1 | NV13: 1 | NW13: 1 | NX13: 1 | NY13: 1 | NZ13: 1 | OA13: =IF(ISBLANK(NM13),"",ROUND(AVERAGE(OFFSET(NR13:NZ13,0,0,1,ion21Coop!$F$42)),1)) ->  | OD13: 17 | OF13: 8 | ON13: 1 | OP13: 1 | OQ13: 1 | OR13: 1 | OS13: 1 | OT13: 1 | OU13: 1 | OV13: 1 | OW13: 1 | OX13: 1 | OY13: =IF(ISBLANK(OK13),"",ROUND(AVERAGE(OFFSET(OP13:OX13,0,0,1,ion21Coop!$F$42)),1)) ->  | PB13: 18 | PD13: 8 | PL13: 1 | PN13: 1 | PO13: 1 | PP13: 1 | PQ13: 1 | PR13: 1 | PS13: 1 | PT13: 1 | PU13: 1 | PV13: 1 | PW13: =IF(ISBLANK(PI13),"",ROUND(AVERAGE(OFFSET(PN13:PV13,0,0,1,ion21Coop!$F$42)),1)) ->  | PZ13: 19 | QB13: 8 | QJ13: 1 | QL13: 1 | QM13: 1 | QN13: 1 | QO13: 1 | QP13: 1 | QQ13: 1 | QR13: 1 | QS13: 1 | QT13: 1 | QU13: =IF(ISBLANK(QG13),"",ROUND(AVERAGE(OFFSET(QL13:QT13,0,0,1,ion21Coop!$F$42)),1)) ->  | QX13: 20 | QZ13: 8 | RH13: 1 | RJ13: 1 | RK13: 1 | RL13: 1 | RM13: 1 | RN13: 1 | RO13: 1 | RP13: 1 | RQ13: 1 | RR13: 1 | RS13: =IF(ISBLANK(RE13),"",ROUND(AVERAGE(OFFSET(RJ13:RR13,0,0,1,ion21Coop!$F$42)),1)) ->  | RV13: 21 | RX13: 8 | SF13: 1 | SH13: 1 | SI13: 1 | SJ13: 1 | SK13: 1 | SL13: 1 | SM13: 1 | SN13: 1 | SO13: 1 | SP13: 1 | SQ13: =IF(ISBLANK(SC13),"",ROUND(AVERAGE(OFFSET(SH13:SP13,0,0,1,ion21Coop!$F$42)),1)) -> 
A14: 9 - | B14: =ion21Team!B13 -> 9 | C14: =IF(ISBLANK(ion21Team!C13),"",ion21Team!C13) ->  | D14: =IF(ISBLANK(ion21Team!$C$13),"",$HP$3) ->  | E14: =IF(ISBLANK(ion21Team!C13),"",IFERROR(D14/$D$27*100,0)) ->  | F14: =IF(ISBLANK(ion21Team!C13),"",ion21Votes!AF14) ->  | G14: =IF(ISBLANK(ion21Team!C13),"",ROUND(ion21Votes!$AF$27*E14/100,0)) ->  | H14: =IF(ISBLANK(ion21Team!C13),"",F14-G14) ->  | J14: 1 | K14: YaJo | L14: 9 | M14: Reorientation of the project towards ION21 | N14: MiDo | P14: 2018 Feb | S14: 3 | T14: 1 | U14: 3 | V14: 1 | W14: 1 | X14: 1 | Y14: 1 | Z14: 1 | AA14: 1 | AB14: 1 | AC14: 1 | AD14: 1 | AE14: =IF(ISBLANK(U14),"",ROUND(AVERAGE(OFFSET(V14:AD14,0,0,1,ion21Coop!$F$42)),1)) -> 1 | AF14: 3 | AH14: 2 | AI14: GeLo | AJ14: 9 | AR14: 1 | AT14: 1 | AU14: 1 | AV14: 1 | AW14: 1 | AX14: 1 | AY14: 1 | AZ14: 1 | BA14: 1 | BB14: 1 | BC14: =IF(ISBLANK(AO14),"",ROUND(AVERAGE(OFFSET(AT14:BB14,0,0,1,ion21Coop!$F$42)),1)) ->  | BF14: 3 | BG14: MiDo | BH14: 9 | BI14: Reorientation of the project towards ION21 | BJ14: YaJo | BL14: 2018 Feb | BO14: 3 | BP14: 1 | BQ14: 3 | BR14: 1 | BS14: 1 | BT14: 1 | BU14: 1 | BV14: 1 | BW14: 1 | BX14: 1 | BY14: 1 | BZ14: 1 | CA14: =IF(ISBLANK(BQ14),"",ROUND(AVERAGE(OFFSET(BR14:BZ14,0,0,1,ion21Coop!$F$42)),1)) -> 1 | CB14: 3 | CD14: 4 | CE14: EmNi | CF14: 9 | CN14: 1 | CP14: 1 | CQ14: 1 | CR14: 1 | CS14: 1 | CT14: 1 | CU14: 1 | CV14: 1 | CW14: 1 | CX14: 1 | CY14: =IF(ISBLANK(CK14),"",ROUND(AVERAGE(OFFSET(CP14:CX14,0,0,1,ion21Coop!$F$42)),1)) ->  | DB14: 5 | DC14: HeJe | DD14: 9 | DL14: 1 | DN14: 1 | DO14: 1 | DP14: 1 | DQ14: 1 | DR14: 1 | DS14: 1 | DT14: 1 | DU14: 1 | DV14: 1 | DW14: =IF(ISBLANK(DI14),"",ROUND(AVERAGE(OFFSET(DN14:DV14,0,0,1,ion21Coop!$F$42)),1)) ->  | DZ14: 6 | EB14: 9 | EJ14: 1 | EL14: 1 | EM14: 1 | EN14: 1 | EO14: 1 | EP14: 1 | EQ14: 1 | ER14: 1 | ES14: 1 | ET14: 1 | EU14: =IF(ISBLANK(EG14),"",ROUND(AVERAGE(OFFSET(EL14:ET14,0,0,1,ion21Coop!$F$42)),1)) ->  | EX14: 7 | EZ14: 9 | FH14: 1 | FJ14: 1 | FK14: 1 | FL14: 1 | FM14: 1 | FN14: 1 | FO14: 1 | FP14: 1 | FQ14: 1 | FR14: 1 | FS14: =IF(ISBLANK(FE14),"",ROUND(AVERAGE(OFFSET(FJ14:FR14,0,0,1,ion21Coop!$F$42)),1)) ->  | FV14: 8 | FX14: 9 | GF14: 1 | GH14: 1 | GI14: 1 | GJ14: 1 | GK14: 1 | GL14: 1 | GM14: 1 | GN14: 1 | GO14: 1 | GP14: 1 | GQ14: =IF(ISBLANK(GC14),"",ROUND(AVERAGE(OFFSET(GH14:GP14,0,0,1,ion21Coop!$F$42)),1)) ->  | GT14: 9 | GV14: 9 | HD14: 1 | HF14: 1 | HG14: 1 | HH14: 1 | HI14: 1 | HJ14: 1 | HK14: 1 | HL14: 1 | HM14: 1 | HN14: 1 | HO14: =IF(ISBLANK(HA14),"",ROUND(AVERAGE(OFFSET(HF14:HN14,0,0,1,ion21Coop!$F$42)),1)) ->  | HR14: 10 | HT14: 9 | IB14: 1 | ID14: 1 | IE14: 1 | IF14: 1 | IG14: 1 | IH14: 1 | II14: 1 | IJ14: 1 | IK14: 1 | IL14: 1 | IM14: =IF(ISBLANK(HY14),"",ROUND(AVERAGE(OFFSET(ID14:IL14,0,0,1,ion21Coop!$F$42)),1)) ->  | IP14: 11 | IR14: 9 | IZ14: 1 | JB14: 1 | JC14: 1 | JD14: 1 | JE14: 1 | JF14: 1 | JG14: 1 | JH14: 1 | JI14: 1 | JJ14: 1 | JK14: =IF(ISBLANK(IW14),"",ROUND(AVERAGE(OFFSET(JB14:JJ14,0,0,1,ion21Coop!$F$42)),1)) ->  | JN14: 12 | JP14: 9 | JX14: 1 | JZ14: 1 | KA14: 1 | KB14: 1 | KC14: 1 | KD14: 1 | KE14: 1 | KF14: 1 | KG14: 1 | KH14: 1 | KI14: =IF(ISBLANK(JU14),"",ROUND(AVERAGE(OFFSET(JZ14:KH14,0,0,1,ion21Coop!$F$42)),1)) ->  | KL14: 13 | KN14: 9 | KV14: 1 | KX14: 1 | KY14: 1 | KZ14: 1 | LA14: 1 | LB14: 1 | LC14: 1 | LD14: 1 | LE14: 1 | LF14: 1 | LG14: =IF(ISBLANK(KS14),"",ROUND(AVERAGE(OFFSET(KX14:LF14,0,0,1,ion21Coop!$F$42)),1)) ->  | LJ14: 14 | LL14: 9 | LT14: 1 | LV14: 1 | LW14: 1 | LX14: 1 | LY14: 1 | LZ14: 1 | MA14: 1 | MB14: 1 | MC14: 1 | MD14: 1 | ME14: =IF(ISBLANK(LQ14),"",ROUND(AVERAGE(OFFSET(LV14:MD14,0,0,1,ion21Coop!$F$42)),1)) ->  | MH14: 15 | MJ14: 9 | MR14: 1 | MT14: 1 | MU14: 1 | MV14: 1 | MW14: 1 | MX14: 1 | MY14: 1 | MZ14: 1 | NA14: 1 | NB14: 1 | NC14: =IF(ISBLANK(MO14),"",ROUND(AVERAGE(OFFSET(MT14:NB14,0,0,1,ion21Coop!$F$42)),1)) ->  | NF14: 16 | NH14: 9 | NP14: 1 | NR14: 1 | NS14: 1 | NT14: 1 | NU14: 1 | NV14: 1 | NW14: 1 | NX14: 1 | NY14: 1 | NZ14: 1 | OA14: =IF(ISBLANK(NM14),"",ROUND(AVERAGE(OFFSET(NR14:NZ14,0,0,1,ion21Coop!$F$42)),1)) ->  | OD14: 17 | OF14: 9 | ON14: 1 | OP14: 1 | OQ14: 1 | OR14: 1 | OS14: 1 | OT14: 1 | OU14: 1 | OV14: 1 | OW14: 1 | OX14: 1 | OY14: =IF(ISBLANK(OK14),"",ROUND(AVERAGE(OFFSET(OP14:OX14,0,0,1,ion21Coop!$F$42)),1)) ->  | PB14: 18 | PD14: 9 | PL14: 1 | PN14: 1 | PO14: 1 | PP14: 1 | PQ14: 1 | PR14: 1 | PS14: 1 | PT14: 1 | PU14: 1 | PV14: 1 | PW14: =IF(ISBLANK(PI14),"",ROUND(AVERAGE(OFFSET(PN14:PV14,0,0,1,ion21Coop!$F$42)),1)) ->  | PZ14: 19 | QB14: 9 | QJ14: 1 | QL14: 1 | QM14: 1 | QN14: 1 | QO14: 1 | QP14: 1 | QQ14: 1 | QR14: 1 | QS14: 1 | QT14: 1 | QU14: =IF(ISBLANK(QG14),"",ROUND(AVERAGE(OFFSET(QL14:QT14,0,0,1,ion21Coop!$F$42)),1)) ->  | QX14: 20 | QZ14: 9 | RH14: 1 | RJ14: 1 | RK14: 1 | RL14: 1 | RM14: 1 | RN14: 1 | RO14: 1 | RP14: 1 | RQ14: 1 | RR14: 1 | RS14: =IF(ISBLANK(RE14),"",ROUND(AVERAGE(OFFSET(RJ14:RR14,0,0,1,ion21Coop!$F$42)),1)) ->  | RV14: 21 | RX14: 9 | SF14: 1 | SH14: 1 | SI14: 1 | SJ14: 1 | SK14: 1 | SL14: 1 | SM14: 1 | SN14: 1 | SO14: 1 | SP14: 1 | SQ14: =IF(ISBLANK(SC14),"",ROUND(AVERAGE(OFFSET(SH14:SP14,0,0,1,ion21Coop!$F$42)),1)) -> 
A15: 10 - | B15: =ion21Team!B14 -> 10 | C15: =IF(ISBLANK(ion21Team!C14),"",ion21Team!C14) ->  | D15: =IF(ISBLANK(ion21Team!$C$14),"",$IN$3) ->  | E15: =IF(ISBLANK(ion21Team!C14),"",IFERROR(D15/$D$27*100,0)) ->  | F15: =IF(ISBLANK(ion21Team!C14),"",ion21Votes!AF15) ->  | G15: =IF(ISBLANK(ion21Team!C14),"",ROUND(ion21Votes!$AF$27*E15/100,0)) ->  | H15: =IF(ISBLANK(ion21Team!C14),"",F15-G15) ->  | J15: 1 | K15: YaJo | L15: 10 | M15: Translation of web pages into different languages | P15: 2017 … | S15: 20 | T15: 1 | U15: 20 | V15: 1 | W15: 1 | X15: 1 | Y15: 1 | Z15: 1 | AA15: 1 | AB15: 1 | AC15: 1 | AD15: 1 | AE15: =IF(ISBLANK(U15),"",ROUND(AVERAGE(OFFSET(V15:AD15,0,0,1,ion21Coop!$F$42)),1)) -> 1 | AF15: 20 | AH15: 2 | AI15: GeLo | AJ15: 10 | AR15: 1 | AT15: 1 | AU15: 1 | AV15: 1 | AW15: 1 | AX15: 1 | AY15: 1 | AZ15: 1 | BA15: 1 | BB15: 1 | BC15: =IF(ISBLANK(AO15),"",ROUND(AVERAGE(OFFSET(AT15:BB15,0,0,1,ion21Coop!$F$42)),1)) ->  | BF15: 3 | BG15: MiDo | BH15: 10 | BI15: Translation of web pages into different languages | BL15: 2017 … | BO15: 20 | BP15: 1 | BQ15: 20 | BR15: 1 | BS15: 1 | BT15: 1 | BU15: 1 | BV15: 1 | BW15: 1 | BX15: 1 | BY15: 1 | BZ15: 1 | CA15: =IF(ISBLANK(BQ15),"",ROUND(AVERAGE(OFFSET(BR15:BZ15,0,0,1,ion21Coop!$F$42)),1)) -> 1 | CB15: 20 | CD15: 4 | CE15: EmNi | CF15: 10 | CN15: 1 | CP15: 1 | CQ15: 1 | CR15: 1 | CS15: 1 | CT15: 1 | CU15: 1 | CV15: 1 | CW15: 1 | CX15: 1 | CY15: =IF(ISBLANK(CK15),"",ROUND(AVERAGE(OFFSET(CP15:CX15,0,0,1,ion21Coop!$F$42)),1)) ->  | DB15: 5 | DC15: HeJe | DD15: 10 | DL15: 1 | DN15: 1 | DO15: 1 | DP15: 1 | DQ15: 1 | DR15: 1 | DS15: 1 | DT15: 1 | DU15: 1 | DV15: 1 | DW15: =IF(ISBLANK(DI15),"",ROUND(AVERAGE(OFFSET(DN15:DV15,0,0,1,ion21Coop!$F$42)),1)) ->  | DZ15: 6 | EB15: 10 | EJ15: 1 | EL15: 1 | EM15: 1 | EN15: 1 | EO15: 1 | EP15: 1 | EQ15: 1 | ER15: 1 | ES15: 1 | ET15: 1 | EU15: =IF(ISBLANK(EG15),"",ROUND(AVERAGE(OFFSET(EL15:ET15,0,0,1,ion21Coop!$F$42)),1)) ->  | EX15: 7 | EZ15: 10 | FH15: 1 | FJ15: 1 | FK15: 1 | FL15: 1 | FM15: 1 | FN15: 1 | FO15: 1 | FP15: 1 | FQ15: 1 | FR15: 1 | FS15: =IF(ISBLANK(FE15),"",ROUND(AVERAGE(OFFSET(FJ15:FR15,0,0,1,ion21Coop!$F$42)),1)) ->  | FV15: 8 | FX15: 10 | GF15: 1 | GH15: 1 | GI15: 1 | GJ15: 1 | GK15: 1 | GL15: 1 | GM15: 1 | GN15: 1 | GO15: 1 | GP15: 1 | GQ15: =IF(ISBLANK(GC15),"",ROUND(AVERAGE(OFFSET(GH15:GP15,0,0,1,ion21Coop!$F$42)),1)) ->  | GT15: 9 | GV15: 10 | HD15: 1 | HF15: 1 | HG15: 1 | HH15: 1 | HI15: 1 | HJ15: 1 | HK15: 1 | HL15: 1 | HM15: 1 | HN15: 1 | HO15: =IF(ISBLANK(HA15),"",ROUND(AVERAGE(OFFSET(HF15:HN15,0,0,1,ion21Coop!$F$42)),1)) ->  | HR15: 10 | HT15: 10 | IB15: 1 | ID15: 1 | IE15: 1 | IF15: 1 | IG15: 1 | IH15: 1 | II15: 1 | IJ15: 1 | IK15: 1 | IL15: 1 | IM15: =IF(ISBLANK(HY15),"",ROUND(AVERAGE(OFFSET(ID15:IL15,0,0,1,ion21Coop!$F$42)),1)) ->  | IP15: 11 | IR15: 10 | IZ15: 1 | JB15: 1 | JC15: 1 | JD15: 1 | JE15: 1 | JF15: 1 | JG15: 1 | JH15: 1 | JI15: 1 | JJ15: 1 | JK15: =IF(ISBLANK(IW15),"",ROUND(AVERAGE(OFFSET(JB15:JJ15,0,0,1,ion21Coop!$F$42)),1)) ->  | JN15: 12 | JP15: 10 | JX15: 1 | JZ15: 1 | KA15: 1 | KB15: 1 | KC15: 1 | KD15: 1 | KE15: 1 | KF15: 1 | KG15: 1 | KH15: 1 | KI15: =IF(ISBLANK(JU15),"",ROUND(AVERAGE(OFFSET(JZ15:KH15,0,0,1,ion21Coop!$F$42)),1)) ->  | KL15: 13 | KN15: 10 | KV15: 1 | KX15: 1 | KY15: 1 | KZ15: 1 | LA15: 1 | LB15: 1 | LC15: 1 | LD15: 1 | LE15: 1 | LF15: 1 | LG15: =IF(ISBLANK(KS15),"",ROUND(AVERAGE(OFFSET(KX15:LF15,0,0,1,ion21Coop!$F$42)),1)) ->  | LJ15: 14 | LL15: 10 | LT15: 1 | LV15: 1 | LW15: 1 | LX15: 1 | LY15: 1 | LZ15: 1 | MA15: 1 | MB15: 1 | MC15: 1 | MD15: 1 | ME15: =IF(ISBLANK(LQ15),"",ROUND(AVERAGE(OFFSET(LV15:MD15,0,0,1,ion21Coop!$F$42)),1)) ->  | MH15: 15 | MJ15: 10 | MR15: 1 | MT15: 1 | MU15: 1 | MV15: 1 | MW15: 1 | MX15: 1 | MY15: 1 | MZ15: 1 | NA15: 1 | NB15: 1 | NC15: =IF(ISBLANK(MO15),"",ROUND(AVERAGE(OFFSET(MT15:NB15,0,0,1,ion21Coop!$F$42)),1)) ->  | NF15: 16 | NH15: 10 | NP15: 1 | NR15: 1 | NS15: 1 | NT15: 1 | NU15: 1 | NV15: 1 | NW15: 1 | NX15: 1 | NY15: 1 | NZ15: 1 | OA15: =IF(ISBLANK(NM15),"",ROUND(AVERAGE(OFFSET(NR15:NZ15,0,0,1,ion21Coop!$F$42)),1)) ->  | OD15: 17 | OF15: 10 | ON15: 1 | OP15: 1 | OQ15: 1 | OR15: 1 | OS15: 1 | OT15: 1 | OU15: 1 | OV15: 1 | OW15: 1 | OX15: 1 | OY15: =IF(ISBLANK(OK15),"",ROUND(AVERAGE(OFFSET(OP15:OX15,0,0,1,ion21Coop!$F$42)),1)) ->  | PB15: 18 | PD15: 10 | PL15: 1 | PN15: 1 | PO15: 1 | PP15: 1 | PQ15: 1 | PR15: 1 | PS15: 1 | PT15: 1 | PU15: 1 | PV15: 1 | PW15: =IF(ISBLANK(PI15),"",ROUND(AVERAGE(OFFSET(PN15:PV15,0,0,1,ion21Coop!$F$42)),1)) ->  | PZ15: 19 | QB15: 10 | QJ15: 1 | QL15: 1 | QM15: 1 | QN15: 1 | QO15: 1 | QP15: 1 | QQ15: 1 | QR15: 1 | QS15: 1 | QT15: 1 | QU15: =IF(ISBLANK(QG15),"",ROUND(AVERAGE(OFFSET(QL15:QT15,0,0,1,ion21Coop!$F$42)),1)) ->  | QX15: 20 | QZ15: 10 | RH15: 1 | RJ15: 1 | RK15: 1 | RL15: 1 | RM15: 1 | RN15: 1 | RO15: 1 | RP15: 1 | RQ15: 1 | RR15: 1 | RS15: =IF(ISBLANK(RE15),"",ROUND(AVERAGE(OFFSET(RJ15:RR15,0,0,1,ion21Coop!$F$42)),1)) ->  | RV15: 21 | RX15: 10 | SF15: 1 | SH15: 1 | SI15: 1 | SJ15: 1 | SK15: 1 | SL15: 1 | SM15: 1 | SN15: 1 | SO15: 1 | SP15: 1 | SQ15: =IF(ISBLANK(SC15),"",ROUND(AVERAGE(OFFSET(SH15:SP15,0,0,1,ion21Coop!$F$42)),1)) -> 
A16: 11 - | B16: =ion21Team!B15 -> 11 | C16: =IF(ISBLANK(ion21Team!C15),"",ion21Team!C15) ->  | D16: =IF(ISBLANK(ion21Team!$C$15),"",$JL$3) ->  | E16: =IF(ISBLANK(ion21Team!C15),"",IFERROR(D16/$D$27*100,0)) ->  | F16: =IF(ISBLANK(ion21Team!C15),"",ion21Votes!AF16) ->  | G16: =IF(ISBLANK(ion21Team!C15),"",ROUND(ion21Votes!$AF$27*E16/100,0)) ->  | H16: =IF(ISBLANK(ion21Team!C15),"",F16-G16) ->  | J16: 1 | K16: YaJo | L16: 11 | M16: Cooperation established with Vitor of Gemmi Lodge | P16: 2017 … | S16: 20 | T16: 1 | U16: 20 | V16: 1 | W16: 1 | X16: 1 | Y16: 1 | Z16: 1 | AA16: 1 | AB16: 1 | AC16: 1 | AD16: 1 | AE16: =IF(ISBLANK(U16),"",ROUND(AVERAGE(OFFSET(V16:AD16,0,0,1,ion21Coop!$F$42)),1)) -> 1 | AF16: 20 | AH16: 2 | AI16: GeLo | AJ16: 11 | AR16: 1 | AT16: 1 | AU16: 1 | AV16: 1 | AW16: 1 | AX16: 1 | AY16: 1 | AZ16: 1 | BA16: 1 | BB16: 1 | BC16: =IF(ISBLANK(AO16),"",ROUND(AVERAGE(OFFSET(AT16:BB16,0,0,1,ion21Coop!$F$42)),1)) ->  | BF16: 3 | BG16: MiDo | BH16: 11 | BI16: Cooperation established with Vitor of Gemmi Lodge | BL16: 2017 … | BO16: 20 | BP16: 1 | BQ16: 20 | BR16: 1 | BS16: 1 | BT16: 1 | BU16: 1 | BV16: 1 | BW16: 1 | BX16: 1 | BY16: 1 | BZ16: 1 | CA16: =IF(ISBLANK(BQ16),"",ROUND(AVERAGE(OFFSET(BR16:BZ16,0,0,1,ion21Coop!$F$42)),1)) -> 1 | CB16: 20 | CD16: 4 | CE16: EmNi | CF16: 11 | CN16: 1 | CP16: 1 | CQ16: 1 | CR16: 1 | CS16: 1 | CT16: 1 | CU16: 1 | CV16: 1 | CW16: 1 | CX16: 1 | CY16: =IF(ISBLANK(CK16),"",ROUND(AVERAGE(OFFSET(CP16:CX16,0,0,1,ion21Coop!$F$42)),1)) ->  | DB16: 5 | DC16: HeJe | DD16: 11 | DL16: 1 | DN16: 1 | DO16: 1 | DP16: 1 | DQ16: 1 | DR16: 1 | DS16: 1 | DT16: 1 | DU16: 1 | DV16: 1 | DW16: =IF(ISBLANK(DI16),"",ROUND(AVERAGE(OFFSET(DN16:DV16,0,0,1,ion21Coop!$F$42)),1)) ->  | DZ16: 6 | EB16: 11 | EJ16: 1 | EL16: 1 | EM16: 1 | EN16: 1 | EO16: 1 | EP16: 1 | EQ16: 1 | ER16: 1 | ES16: 1 | ET16: 1 | EU16: =IF(ISBLANK(EG16),"",ROUND(AVERAGE(OFFSET(EL16:ET16,0,0,1,ion21Coop!$F$42)),1)) ->  | EX16: 7 | EZ16: 11 | FH16: 1 | FJ16: 1 | FK16: 1 | FL16: 1 | FM16: 1 | FN16: 1 | FO16: 1 | FP16: 1 | FQ16: 1 | FR16: 1 | FS16: =IF(ISBLANK(FE16),"",ROUND(AVERAGE(OFFSET(FJ16:FR16,0,0,1,ion21Coop!$F$42)),1)) ->  | FV16: 8 | FX16: 11 | GF16: 1 | GH16: 1 | GI16: 1 | GJ16: 1 | GK16: 1 | GL16: 1 | GM16: 1 | GN16: 1 | GO16: 1 | GP16: 1 | GQ16: =IF(ISBLANK(GC16),"",ROUND(AVERAGE(OFFSET(GH16:GP16,0,0,1,ion21Coop!$F$42)),1)) ->  | GT16: 9 | GV16: 11 | HD16: 1 | HF16: 1 | HG16: 1 | HH16: 1 | HI16: 1 | HJ16: 1 | HK16: 1 | HL16: 1 | HM16: 1 | HN16: 1 | HO16: =IF(ISBLANK(HA16),"",ROUND(AVERAGE(OFFSET(HF16:HN16,0,0,1,ion21Coop!$F$42)),1)) ->  | HR16: 10 | HT16: 11 | IB16: 1 | ID16: 1 | IE16: 1 | IF16: 1 | IG16: 1 | IH16: 1 | II16: 1 | IJ16: 1 | IK16: 1 | IL16: 1 | IM16: =IF(ISBLANK(HY16),"",ROUND(AVERAGE(OFFSET(ID16:IL16,0,0,1,ion21Coop!$F$42)),1)) ->  | IP16: 11 | IR16: 11 | IZ16: 1 | JB16: 1 | JC16: 1 | JD16: 1 | JE16: 1 | JF16: 1 | JG16: 1 | JH16: 1 | JI16: 1 | JJ16: 1 | JK16: =IF(ISBLANK(IW16),"",ROUND(AVERAGE(OFFSET(JB16:JJ16,0,0,1,ion21Coop!$F$42)),1)) ->  | JN16: 12 | JP16: 11 | JX16: 1 | JZ16: 1 | KA16: 1 | KB16: 1 | KC16: 1 | KD16: 1 | KE16: 1 | KF16: 1 | KG16: 1 | KH16: 1 | KI16: =IF(ISBLANK(JU16),"",ROUND(AVERAGE(OFFSET(JZ16:KH16,0,0,1,ion21Coop!$F$42)),1)) ->  | KL16: 13 | KN16: 11 | KV16: 1 | KX16: 1 | KY16: 1 | KZ16: 1 | LA16: 1 | LB16: 1 | LC16: 1 | LD16: 1 | LE16: 1 | LF16: 1 | LG16: =IF(ISBLANK(KS16),"",ROUND(AVERAGE(OFFSET(KX16:LF16,0,0,1,ion21Coop!$F$42)),1)) ->  | LJ16: 14 | LL16: 11 | LT16: 1 | LV16: 1 | LW16: 1 | LX16: 1 | LY16: 1 | LZ16: 1 | MA16: 1 | MB16: 1 | MC16: 1 | MD16: 1 | ME16: =IF(ISBLANK(LQ16),"",ROUND(AVERAGE(OFFSET(LV16:MD16,0,0,1,ion21Coop!$F$42)),1)) ->  | MH16: 15 | MJ16: 11 | MR16: 1 | MT16: 1 | MU16: 1 | MV16: 1 | MW16: 1 | MX16: 1 | MY16: 1 | MZ16: 1 | NA16: 1 | NB16: 1 | NC16: =IF(ISBLANK(MO16),"",ROUND(AVERAGE(OFFSET(MT16:NB16,0,0,1,ion21Coop!$F$42)),1)) ->  | NF16: 16 | NH16: 11 | NP16: 1 | NR16: 1 | NS16: 1 | NT16: 1 | NU16: 1 | NV16: 1 | NW16: 1 | NX16: 1 | NY16: 1 | NZ16: 1 | OA16: =IF(ISBLANK(NM16),"",ROUND(AVERAGE(OFFSET(NR16:NZ16,0,0,1,ion21Coop!$F$42)),1)) ->  | OD16: 17 | OF16: 11 | ON16: 1 | OP16: 1 | OQ16: 1 | OR16: 1 | OS16: 1 | OT16: 1 | OU16: 1 | OV16: 1 | OW16: 1 | OX16: 1 | OY16: =IF(ISBLANK(OK16),"",ROUND(AVERAGE(OFFSET(OP16:OX16,0,0,1,ion21Coop!$F$42)),1)) ->  | PB16: 18 | PD16: 11 | PL16: 1 | PN16: 1 | PO16: 1 | PP16: 1 | PQ16: 1 | PR16: 1 | PS16: 1 | PT16: 1 | PU16: 1 | PV16: 1 | PW16: =IF(ISBLANK(PI16),"",ROUND(AVERAGE(OFFSET(PN16:PV16,0,0,1,ion21Coop!$F$42)),1)) ->  | PZ16: 19 | QB16: 11 | QJ16: 1 | QL16: 1 | QM16: 1 | QN16: 1 | QO16: 1 | QP16: 1 | QQ16: 1 | QR16: 1 | QS16: 1 | QT16: 1 | QU16: =IF(ISBLANK(QG16),"",ROUND(AVERAGE(OFFSET(QL16:QT16,0,0,1,ion21Coop!$F$42)),1)) ->  | QX16: 20 | QZ16: 11 | RH16: 1 | RJ16: 1 | RK16: 1 | RL16: 1 | RM16: 1 | RN16: 1 | RO16: 1 | RP16: 1 | RQ16: 1 | RR16: 1 | RS16: =IF(ISBLANK(RE16),"",ROUND(AVERAGE(OFFSET(RJ16:RR16,0,0,1,ion21Coop!$F$42)),1)) ->  | RV16: 21 | RX16: 11 | SF16: 1 | SH16: 1 | SI16: 1 | SJ16: 1 | SK16: 1 | SL16: 1 | SM16: 1 | SN16: 1 | SO16: 1 | SP16: 1 | SQ16: =IF(ISBLANK(SC16),"",ROUND(AVERAGE(OFFSET(SH16:SP16,0,0,1,ion21Coop!$F$42)),1)) -> 
A17: 12 - | B17: =ion21Team!B16 -> 12 | C17: =IF(ISBLANK(ion21Team!C16),"",ion21Team!C16) ->  | D17: =IF(ISBLANK(ion21Team!$C$16),"",$KJ$3) ->  | E17: =IF(ISBLANK(ion21Team!C16),"",IFERROR(D17/$D$27*100,0)) ->  | F17: =IF(ISBLANK(ion21Team!C16),"",ion21Votes!AF17) ->  | G17: =IF(ISBLANK(ion21Team!C16),"",ROUND(ion21Votes!$AF$27*E17/100,0)) ->  | H17: =IF(ISBLANK(ion21Team!C16),"",F17-G17) ->  | J17: 1 | K17: YaJo | L17: 12 | M17: Cooperation established with Tesla | P17: 2017 … | S17: 10 | T17: 1 | U17: 10 | V17: 1 | W17: 1 | X17: 1 | Y17: 1 | Z17: 1 | AA17: 1 | AB17: 1 | AC17: 1 | AD17: 1 | AE17: =IF(ISBLANK(U17),"",ROUND(AVERAGE(OFFSET(V17:AD17,0,0,1,ion21Coop!$F$42)),1)) -> 1 | AF17: 10 | AH17: 2 | AI17: GeLo | AJ17: 12 | AR17: 1 | AT17: 1 | AU17: 1 | AV17: 1 | AW17: 1 | AX17: 1 | AY17: 1 | AZ17: 1 | BA17: 1 | BB17: 1 | BC17: =IF(ISBLANK(AO17),"",ROUND(AVERAGE(OFFSET(AT17:BB17,0,0,1,ion21Coop!$F$42)),1)) ->  | BF17: 3 | BG17: MiDo | BH17: 12 | BI17: Cooperation established with Tesla | BL17: 2017 … | BO17: 10 | BP17: 1 | BQ17: 10 | BR17: 1 | BS17: 1 | BT17: 1 | BU17: 1 | BV17: 1 | BW17: 1 | BX17: 1 | BY17: 1 | BZ17: 1 | CA17: =IF(ISBLANK(BQ17),"",ROUND(AVERAGE(OFFSET(BR17:BZ17,0,0,1,ion21Coop!$F$42)),1)) -> 1 | CB17: 10 | CD17: 4 | CE17: EmNi | CF17: 12 | CN17: 1 | CP17: 1 | CQ17: 1 | CR17: 1 | CS17: 1 | CT17: 1 | CU17: 1 | CV17: 1 | CW17: 1 | CX17: 1 | CY17: =IF(ISBLANK(CK17),"",ROUND(AVERAGE(OFFSET(CP17:CX17,0,0,1,ion21Coop!$F$42)),1)) ->  | DB17: 5 | DC17: HeJe | DD17: 12 | DL17: 1 | DN17: 1 | DO17: 1 | DP17: 1 | DQ17: 1 | DR17: 1 | DS17: 1 | DT17: 1 | DU17: 1 | DV17: 1 | DW17: =IF(ISBLANK(DI17),"",ROUND(AVERAGE(OFFSET(DN17:DV17,0,0,1,ion21Coop!$F$42)),1)) ->  | DZ17: 6 | EB17: 12 | EJ17: 1 | EL17: 1 | EM17: 1 | EN17: 1 | EO17: 1 | EP17: 1 | EQ17: 1 | ER17: 1 | ES17: 1 | ET17: 1 | EU17: =IF(ISBLANK(EG17),"",ROUND(AVERAGE(OFFSET(EL17:ET17,0,0,1,ion21Coop!$F$42)),1)) ->  | EX17: 7 | EZ17: 12 | FH17: 1 | FJ17: 1 | FK17: 1 | FL17: 1 | FM17: 1 | FN17: 1 | FO17: 1 | FP17: 1 | FQ17: 1 | FR17: 1 | FS17: =IF(ISBLANK(FE17),"",ROUND(AVERAGE(OFFSET(FJ17:FR17,0,0,1,ion21Coop!$F$42)),1)) ->  | FV17: 8 | FX17: 12 | GF17: 1 | GH17: 1 | GI17: 1 | GJ17: 1 | GK17: 1 | GL17: 1 | GM17: 1 | GN17: 1 | GO17: 1 | GP17: 1 | GQ17: =IF(ISBLANK(GC17),"",ROUND(AVERAGE(OFFSET(GH17:GP17,0,0,1,ion21Coop!$F$42)),1)) ->  | GT17: 9 | GV17: 12 | HD17: 1 | HF17: 1 | HG17: 1 | HH17: 1 | HI17: 1 | HJ17: 1 | HK17: 1 | HL17: 1 | HM17: 1 | HN17: 1 | HO17: =IF(ISBLANK(HA17),"",ROUND(AVERAGE(OFFSET(HF17:HN17,0,0,1,ion21Coop!$F$42)),1)) ->  | HR17: 10 | HT17: 12 | IB17: 1 | ID17: 1 | IE17: 1 | IF17: 1 | IG17: 1 | IH17: 1 | II17: 1 | IJ17: 1 | IK17: 1 | IL17: 1 | IM17: =IF(ISBLANK(HY17),"",ROUND(AVERAGE(OFFSET(ID17:IL17,0,0,1,ion21Coop!$F$42)),1)) ->  | IP17: 11 | IR17: 12 | IZ17: 1 | JB17: 1 | JC17: 1 | JD17: 1 | JE17: 1 | JF17: 1 | JG17: 1 | JH17: 1 | JI17: 1 | JJ17: 1 | JK17: =IF(ISBLANK(IW17),"",ROUND(AVERAGE(OFFSET(JB17:JJ17,0,0,1,ion21Coop!$F$42)),1)) ->  | JN17: 12 | JP17: 12 | JX17: 1 | JZ17: 1 | KA17: 1 | KB17: 1 | KC17: 1 | KD17: 1 | KE17: 1 | KF17: 1 | KG17: 1 | KH17: 1 | KI17: =IF(ISBLANK(JU17),"",ROUND(AVERAGE(OFFSET(JZ17:KH17,0,0,1,ion21Coop!$F$42)),1)) ->  | KL17: 13 | KN17: 12 | KV17: 1 | KX17: 1 | KY17: 1 | KZ17: 1 | LA17: 1 | LB17: 1 | LC17: 1 | LD17: 1 | LE17: 1 | LF17: 1 | LG17: =IF(ISBLANK(KS17),"",ROUND(AVERAGE(OFFSET(KX17:LF17,0,0,1,ion21Coop!$F$42)),1)) ->  | LJ17: 14 | LL17: 12 | LT17: 1 | LV17: 1 | LW17: 1 | LX17: 1 | LY17: 1 | LZ17: 1 | MA17: 1 | MB17: 1 | MC17: 1 | MD17: 1 | ME17: =IF(ISBLANK(LQ17),"",ROUND(AVERAGE(OFFSET(LV17:MD17,0,0,1,ion21Coop!$F$42)),1)) ->  | MH17: 15 | MJ17: 12 | MR17: 1 | MT17: 1 | MU17: 1 | MV17: 1 | MW17: 1 | MX17: 1 | MY17: 1 | MZ17: 1 | NA17: 1 | NB17: 1 | NC17: =IF(ISBLANK(MO17),"",ROUND(AVERAGE(OFFSET(MT17:NB17,0,0,1,ion21Coop!$F$42)),1)) ->  | NF17: 16 | NH17: 12 | NP17: 1 | NR17: 1 | NS17: 1 | NT17: 1 | NU17: 1 | NV17: 1 | NW17: 1 | NX17: 1 | NY17: 1 | NZ17: 1 | OA17: =IF(ISBLANK(NM17),"",ROUND(AVERAGE(OFFSET(NR17:NZ17,0,0,1,ion21Coop!$F$42)),1)) ->  | OD17: 17 | OF17: 12 | ON17: 1 | OP17: 1 | OQ17: 1 | OR17: 1 | OS17: 1 | OT17: 1 | OU17: 1 | OV17: 1 | OW17: 1 | OX17: 1 | OY17: =IF(ISBLANK(OK17),"",ROUND(AVERAGE(OFFSET(OP17:OX17,0,0,1,ion21Coop!$F$42)),1)) ->  | PB17: 18 | PD17: 12 | PL17: 1 | PN17: 1 | PO17: 1 | PP17: 1 | PQ17: 1 | PR17: 1 | PS17: 1 | PT17: 1 | PU17: 1 | PV17: 1 | PW17: =IF(ISBLANK(PI17),"",ROUND(AVERAGE(OFFSET(PN17:PV17,0,0,1,ion21Coop!$F$42)),1)) ->  | PZ17: 19 | QB17: 12 | QJ17: 1 | QL17: 1 | QM17: 1 | QN17: 1 | QO17: 1 | QP17: 1 | QQ17: 1 | QR17: 1 | QS17: 1 | QT17: 1 | QU17: =IF(ISBLANK(QG17),"",ROUND(AVERAGE(OFFSET(QL17:QT17,0,0,1,ion21Coop!$F$42)),1)) ->  | QX17: 20 | QZ17: 12 | RH17: 1 | RJ17: 1 | RK17: 1 | RL17: 1 | RM17: 1 | RN17: 1 | RO17: 1 | RP17: 1 | RQ17: 1 | RR17: 1 | RS17: =IF(ISBLANK(RE17),"",ROUND(AVERAGE(OFFSET(RJ17:RR17,0,0,1,ion21Coop!$F$42)),1)) ->  | RV17: 21 | RX17: 12 | SF17: 1 | SH17: 1 | SI17: 1 | SJ17: 1 | SK17: 1 | SL17: 1 | SM17: 1 | SN17: 1 | SO17: 1 | SP17: 1 | SQ17: =IF(ISBLANK(SC17),"",ROUND(AVERAGE(OFFSET(SH17:SP17,0,0,1,ion21Coop!$F$42)),1)) -> 
A18: 13 - | B18: =ion21Team!B17 -> 13 | C18: =IF(ISBLANK(ion21Team!C17),"",ion21Team!C17) ->  | D18: =IF(ISBLANK(ion21Team!$C$17),"",$LH$3) ->  | E18: =IF(ISBLANK(ion21Team!C17),"",IFERROR(D18/$D$27*100,0)) ->  | F18: =IF(ISBLANK(ion21Team!C17),"",ion21Votes!AF18) ->  | G18: =IF(ISBLANK(ion21Team!C17),"",ROUND(ion21Votes!$AF$27*E18/100,0)) ->  | H18: =IF(ISBLANK(ion21Team!C17),"",F18-G18) ->  | J18: 1 | K18: YaJo | L18: 13 | M18: Work with Yoga teacher and clients | P18: 2017 … | S18: 40 | T18: 1 | U18: 40 | V18: 1 | W18: 1 | X18: 1 | Y18: 1 | Z18: 1 | AA18: 1 | AB18: 1 | AC18: 1 | AD18: 1 | AE18: =IF(ISBLANK(U18),"",ROUND(AVERAGE(OFFSET(V18:AD18,0,0,1,ion21Coop!$F$42)),1)) -> 1 | AF18: 40 | AH18: 2 | AI18: GeLo | AJ18: 13 | AR18: 1 | AT18: 1 | AU18: 1 | AV18: 1 | AW18: 1 | AX18: 1 | AY18: 1 | AZ18: 1 | BA18: 1 | BB18: 1 | BC18: =IF(ISBLANK(AO18),"",ROUND(AVERAGE(OFFSET(AT18:BB18,0,0,1,ion21Coop!$F$42)),1)) ->  | BF18: 3 | BG18: MiDo | BH18: 13 | BI18: Work with Yoga teacher and clients | BL18: 2017 … | BO18: 40 | BP18: 1 | BQ18: 40 | BR18: 1 | BS18: 1 | BT18: 1 | BU18: 1 | BV18: 1 | BW18: 1 | BX18: 1 | BY18: 1 | BZ18: 1 | CA18: =IF(ISBLANK(BQ18),"",ROUND(AVERAGE(OFFSET(BR18:BZ18,0,0,1,ion21Coop!$F$42)),1)) -> 1 | CB18: 40 | CD18: 4 | CE18: EmNi | CF18: 13 | CN18: 1 | CP18: 1 | CQ18: 1 | CR18: 1 | CS18: 1 | CT18: 1 | CU18: 1 | CV18: 1 | CW18: 1 | CX18: 1 | CY18: =IF(ISBLANK(CK18),"",ROUND(AVERAGE(OFFSET(CP18:CX18,0,0,1,ion21Coop!$F$42)),1)) ->  | DB18: 5 | DC18: HeJe | DD18: 13 | DL18: 1 | DN18: 1 | DO18: 1 | DP18: 1 | DQ18: 1 | DR18: 1 | DS18: 1 | DT18: 1 | DU18: 1 | DV18: 1 | DW18: =IF(ISBLANK(DI18),"",ROUND(AVERAGE(OFFSET(DN18:DV18,0,0,1,ion21Coop!$F$42)),1)) ->  | DZ18: 6 | EB18: 13 | EJ18: 1 | EL18: 1 | EM18: 1 | EN18: 1 | EO18: 1 | EP18: 1 | EQ18: 1 | ER18: 1 | ES18: 1 | ET18: 1 | EU18: =IF(ISBLANK(EG18),"",ROUND(AVERAGE(OFFSET(EL18:ET18,0,0,1,ion21Coop!$F$42)),1)) ->  | EX18: 7 | EZ18: 13 | FH18: 1 | FJ18: 1 | FK18: 1 | FL18: 1 | FM18: 1 | FN18: 1 | FO18: 1 | FP18: 1 | FQ18: 1 | FR18: 1 | FS18: =IF(ISBLANK(FE18),"",ROUND(AVERAGE(OFFSET(FJ18:FR18,0,0,1,ion21Coop!$F$42)),1)) ->  | FV18: 8 | FX18: 13 | GF18: 1 | GH18: 1 | GI18: 1 | GJ18: 1 | GK18: 1 | GL18: 1 | GM18: 1 | GN18: 1 | GO18: 1 | GP18: 1 | GQ18: =IF(ISBLANK(GC18),"",ROUND(AVERAGE(OFFSET(GH18:GP18,0,0,1,ion21Coop!$F$42)),1)) ->  | GT18: 9 | GV18: 13 | HD18: 1 | HF18: 1 | HG18: 1 | HH18: 1 | HI18: 1 | HJ18: 1 | HK18: 1 | HL18: 1 | HM18: 1 | HN18: 1 | HO18: =IF(ISBLANK(HA18),"",ROUND(AVERAGE(OFFSET(HF18:HN18,0,0,1,ion21Coop!$F$42)),1)) ->  | HR18: 10 | HT18: 13 | IB18: 1 | ID18: 1 | IE18: 1 | IF18: 1 | IG18: 1 | IH18: 1 | II18: 1 | IJ18: 1 | IK18: 1 | IL18: 1 | IM18: =IF(ISBLANK(HY18),"",ROUND(AVERAGE(OFFSET(ID18:IL18,0,0,1,ion21Coop!$F$42)),1)) ->  | IP18: 11 | IR18: 13 | IZ18: 1 | JB18: 1 | JC18: 1 | JD18: 1 | JE18: 1 | JF18: 1 | JG18: 1 | JH18: 1 | JI18: 1 | JJ18: 1 | JK18: =IF(ISBLANK(IW18),"",ROUND(AVERAGE(OFFSET(JB18:JJ18,0,0,1,ion21Coop!$F$42)),1)) ->  | JN18: 12 | JP18: 13 | JX18: 1 | JZ18: 1 | KA18: 1 | KB18: 1 | KC18: 1 | KD18: 1 | KE18: 1 | KF18: 1 | KG18: 1 | KH18: 1 | KI18: =IF(ISBLANK(JU18),"",ROUND(AVERAGE(OFFSET(JZ18:KH18,0,0,1,ion21Coop!$F$42)),1)) ->  | KL18: 13 | KN18: 13 | KV18: 1 | KX18: 1 | KY18: 1 | KZ18: 1 | LA18: 1 | LB18: 1 | LC18: 1 | LD18: 1 | LE18: 1 | LF18: 1 | LG18: =IF(ISBLANK(KS18),"",ROUND(AVERAGE(OFFSET(KX18:LF18,0,0,1,ion21Coop!$F$42)),1)) ->  | LJ18: 14 | LL18: 13 | LT18: 1 | LV18: 1 | LW18: 1 | LX18: 1 | LY18: 1 | LZ18: 1 | MA18: 1 | MB18: 1 | MC18: 1 | MD18: 1 | ME18: =IF(ISBLANK(LQ18),"",ROUND(AVERAGE(OFFSET(LV18:MD18,0,0,1,ion21Coop!$F$42)),1)) ->  | MH18: 15 | MJ18: 13 | MR18: 1 | MT18: 1 | MU18: 1 | MV18: 1 | MW18: 1 | MX18: 1 | MY18: 1 | MZ18: 1 | NA18: 1 | NB18: 1 | NC18: =IF(ISBLANK(MO18),"",ROUND(AVERAGE(OFFSET(MT18:NB18,0,0,1,ion21Coop!$F$42)),1)) ->  | NF18: 16 | NH18: 13 | NP18: 1 | NR18: 1 | NS18: 1 | NT18: 1 | NU18: 1 | NV18: 1 | NW18: 1 | NX18: 1 | NY18: 1 | NZ18: 1 | OA18: =IF(ISBLANK(NM18),"",ROUND(AVERAGE(OFFSET(NR18:NZ18,0,0,1,ion21Coop!$F$42)),1)) ->  | OD18: 17 | OF18: 13 | ON18: 1 | OP18: 1 | OQ18: 1 | OR18: 1 | OS18: 1 | OT18: 1 | OU18: 1 | OV18: 1 | OW18: 1 | OX18: 1 | OY18: =IF(ISBLANK(OK18),"",ROUND(AVERAGE(OFFSET(OP18:OX18,0,0,1,ion21Coop!$F$42)),1)) ->  | PB18: 18 | PD18: 13 | PL18: 1 | PN18: 1 | PO18: 1 | PP18: 1 | PQ18: 1 | PR18: 1 | PS18: 1 | PT18: 1 | PU18: 1 | PV18: 1 | PW18: =IF(ISBLANK(PI18),"",ROUND(AVERAGE(OFFSET(PN18:PV18,0,0,1,ion21Coop!$F$42)),1)) ->  | PZ18: 19 | QB18: 13 | QJ18: 1 | QL18: 1 | QM18: 1 | QN18: 1 | QO18: 1 | QP18: 1 | QQ18: 1 | QR18: 1 | QS18: 1 | QT18: 1 | QU18: =IF(ISBLANK(QG18),"",ROUND(AVERAGE(OFFSET(QL18:QT18,0,0,1,ion21Coop!$F$42)),1)) ->  | QX18: 20 | QZ18: 13 | RH18: 1 | RJ18: 1 | RK18: 1 | RL18: 1 | RM18: 1 | RN18: 1 | RO18: 1 | RP18: 1 | RQ18: 1 | RR18: 1 | RS18: =IF(ISBLANK(RE18),"",ROUND(AVERAGE(OFFSET(RJ18:RR18,0,0,1,ion21Coop!$F$42)),1)) ->  | RV18: 21 | RX18: 13 | SF18: 1 | SH18: 1 | SI18: 1 | SJ18: 1 | SK18: 1 | SL18: 1 | SM18: 1 | SN18: 1 | SO18: 1 | SP18: 1 | SQ18: =IF(ISBLANK(SC18),"",ROUND(AVERAGE(OFFSET(SH18:SP18,0,0,1,ion21Coop!$F$42)),1)) -> 
A19: 14 - | B19: =ion21Team!B18 -> 14 | C19: =IF(ISBLANK(ion21Team!C18),"",ion21Team!C18) ->  | D19: =IF(ISBLANK(ion21Team!$C$18),"",$MF$3) ->  | E19: =IF(ISBLANK(ion21Team!C18),"",IFERROR(D19/$D$27*100,0)) ->  | F19: =IF(ISBLANK(ion21Team!C18),"",ion21Votes!AF19) ->  | G19: =IF(ISBLANK(ion21Team!C18),"",ROUND(ion21Votes!$AF$27*E19/100,0)) ->  | H19: =IF(ISBLANK(ion21Team!C18),"",F19-G19) ->  | J19: 1 | K19: YaJo | L19: 14 | T19: 1 | V19: 1 | W19: 1 | X19: 1 | Y19: 1 | Z19: 1 | AA19: 1 | AB19: 1 | AC19: 1 | AD19: 1 | AE19: =IF(ISBLANK(Q19),"",ROUND(AVERAGE(OFFSET(V19:AD19,0,0,1,ion21Coop!$F$42)),1)) ->  | AF19: =IF(ISBLANK(Q19),"",U19*AE19) ->  | AH19: 2 | AI19: GeLo | AJ19: 14 | AR19: 1 | AT19: 1 | AU19: 1 | AV19: 1 | AW19: 1 | AX19: 1 | AY19: 1 | AZ19: 1 | BA19: 1 | BB19: 1 | BC19: =IF(ISBLANK(AO19),"",ROUND(AVERAGE(OFFSET(AT19:BB19,0,0,1,ion21Coop!$F$42)),1)) ->  | BF19: 3 | BG19: MiDo | BH19: 14 | BP19: 1 | BR19: 1 | BS19: 1 | BT19: 1 | BU19: 1 | BV19: 1 | BW19: 1 | BX19: 1 | BY19: 1 | BZ19: 1 | CA19: =IF(ISBLANK(BM19),"",ROUND(AVERAGE(OFFSET(BR19:BZ19,0,0,1,ion21Coop!$F$42)),1)) ->  | CB19: =IF(ISBLANK(BM19),"",BQ19*CA19) ->  | CD19: 4 | CE19: EmNi | CF19: 14 | CN19: 1 | CP19: 1 | CQ19: 1 | CR19: 1 | CS19: 1 | CT19: 1 | CU19: 1 | CV19: 1 | CW19: 1 | CX19: 1 | CY19: =IF(ISBLANK(CK19),"",ROUND(AVERAGE(OFFSET(CP19:CX19,0,0,1,ion21Coop!$F$42)),1)) ->  | DB19: 5 | DC19: HeJe | DD19: 14 | DL19: 1 | DN19: 1 | DO19: 1 | DP19: 1 | DQ19: 1 | DR19: 1 | DS19: 1 | DT19: 1 | DU19: 1 | DV19: 1 | DW19: =IF(ISBLANK(DI19),"",ROUND(AVERAGE(OFFSET(DN19:DV19,0,0,1,ion21Coop!$F$42)),1)) ->  | DZ19: 6 | EB19: 14 | EJ19: 1 | EL19: 1 | EM19: 1 | EN19: 1 | EO19: 1 | EP19: 1 | EQ19: 1 | ER19: 1 | ES19: 1 | ET19: 1 | EU19: =IF(ISBLANK(EG19),"",ROUND(AVERAGE(OFFSET(EL19:ET19,0,0,1,ion21Coop!$F$42)),1)) ->  | EX19: 7 | EZ19: 14 | FH19: 1 | FJ19: 1 | FK19: 1 | FL19: 1 | FM19: 1 | FN19: 1 | FO19: 1 | FP19: 1 | FQ19: 1 | FR19: 1 | FS19: =IF(ISBLANK(FE19),"",ROUND(AVERAGE(OFFSET(FJ19:FR19,0,0,1,ion21Coop!$F$42)),1)) ->  | FV19: 8 | FX19: 14 | GF19: 1 | GH19: 1 | GI19: 1 | GJ19: 1 | GK19: 1 | GL19: 1 | GM19: 1 | GN19: 1 | GO19: 1 | GP19: 1 | GQ19: =IF(ISBLANK(GC19),"",ROUND(AVERAGE(OFFSET(GH19:GP19,0,0,1,ion21Coop!$F$42)),1)) ->  | GT19: 9 | GV19: 14 | HD19: 1 | HF19: 1 | HG19: 1 | HH19: 1 | HI19: 1 | HJ19: 1 | HK19: 1 | HL19: 1 | HM19: 1 | HN19: 1 | HO19: =IF(ISBLANK(HA19),"",ROUND(AVERAGE(OFFSET(HF19:HN19,0,0,1,ion21Coop!$F$42)),1)) ->  | HR19: 10 | HT19: 14 | IB19: 1 | ID19: 1 | IE19: 1 | IF19: 1 | IG19: 1 | IH19: 1 | II19: 1 | IJ19: 1 | IK19: 1 | IL19: 1 | IM19: =IF(ISBLANK(HY19),"",ROUND(AVERAGE(OFFSET(ID19:IL19,0,0,1,ion21Coop!$F$42)),1)) ->  | IP19: 11 | IR19: 14 | IZ19: 1 | JB19: 1 | JC19: 1 | JD19: 1 | JE19: 1 | JF19: 1 | JG19: 1 | JH19: 1 | JI19: 1 | JJ19: 1 | JK19: =IF(ISBLANK(IW19),"",ROUND(AVERAGE(OFFSET(JB19:JJ19,0,0,1,ion21Coop!$F$42)),1)) ->  | JN19: 12 | JP19: 14 | JX19: 1 | JZ19: 1 | KA19: 1 | KB19: 1 | KC19: 1 | KD19: 1 | KE19: 1 | KF19: 1 | KG19: 1 | KH19: 1 | KI19: =IF(ISBLANK(JU19),"",ROUND(AVERAGE(OFFSET(JZ19:KH19,0,0,1,ion21Coop!$F$42)),1)) ->  | KL19: 13 | KN19: 14 | KV19: 1 | KX19: 1 | KY19: 1 | KZ19: 1 | LA19: 1 | LB19: 1 | LC19: 1 | LD19: 1 | LE19: 1 | LF19: 1 | LG19: =IF(ISBLANK(KS19),"",ROUND(AVERAGE(OFFSET(KX19:LF19,0,0,1,ion21Coop!$F$42)),1)) ->  | LJ19: 14 | LL19: 14 | LT19: 1 | LV19: 1 | LW19: 1 | LX19: 1 | LY19: 1 | LZ19: 1 | MA19: 1 | MB19: 1 | MC19: 1 | MD19: 1 | ME19: =IF(ISBLANK(LQ19),"",ROUND(AVERAGE(OFFSET(LV19:MD19,0,0,1,ion21Coop!$F$42)),1)) ->  | MH19: 15 | MJ19: 14 | MR19: 1 | MT19: 1 | MU19: 1 | MV19: 1 | MW19: 1 | MX19: 1 | MY19: 1 | MZ19: 1 | NA19: 1 | NB19: 1 | NC19: =IF(ISBLANK(MO19),"",ROUND(AVERAGE(OFFSET(MT19:NB19,0,0,1,ion21Coop!$F$42)),1)) ->  | NF19: 16 | NH19: 14 | NP19: 1 | NR19: 1 | NS19: 1 | NT19: 1 | NU19: 1 | NV19: 1 | NW19: 1 | NX19: 1 | NY19: 1 | NZ19: 1 | OA19: =IF(ISBLANK(NM19),"",ROUND(AVERAGE(OFFSET(NR19:NZ19,0,0,1,ion21Coop!$F$42)),1)) ->  | OD19: 17 | OF19: 14 | ON19: 1 | OP19: 1 | OQ19: 1 | OR19: 1 | OS19: 1 | OT19: 1 | OU19: 1 | OV19: 1 | OW19: 1 | OX19: 1 | OY19: =IF(ISBLANK(OK19),"",ROUND(AVERAGE(OFFSET(OP19:OX19,0,0,1,ion21Coop!$F$42)),1)) ->  | PB19: 18 | PD19: 14 | PL19: 1 | PN19: 1 | PO19: 1 | PP19: 1 | PQ19: 1 | PR19: 1 | PS19: 1 | PT19: 1 | PU19: 1 | PV19: 1 | PW19: =IF(ISBLANK(PI19),"",ROUND(AVERAGE(OFFSET(PN19:PV19,0,0,1,ion21Coop!$F$42)),1)) ->  | PZ19: 19 | QB19: 14 | QJ19: 1 | QL19: 1 | QM19: 1 | QN19: 1 | QO19: 1 | QP19: 1 | QQ19: 1 | QR19: 1 | QS19: 1 | QT19: 1 | QU19: =IF(ISBLANK(QG19),"",ROUND(AVERAGE(OFFSET(QL19:QT19,0,0,1,ion21Coop!$F$42)),1)) ->  | QX19: 20 | QZ19: 14 | RH19: 1 | RJ19: 1 | RK19: 1 | RL19: 1 | RM19: 1 | RN19: 1 | RO19: 1 | RP19: 1 | RQ19: 1 | RR19: 1 | RS19: =IF(ISBLANK(RE19),"",ROUND(AVERAGE(OFFSET(RJ19:RR19,0,0,1,ion21Coop!$F$42)),1)) ->  | RV19: 21 | RX19: 14 | SF19: 1 | SH19: 1 | SI19: 1 | SJ19: 1 | SK19: 1 | SL19: 1 | SM19: 1 | SN19: 1 | SO19: 1 | SP19: 1 | SQ19: =IF(ISBLANK(SC19),"",ROUND(AVERAGE(OFFSET(SH19:SP19,0,0,1,ion21Coop!$F$42)),1)) -> 
A20: 15 - | B20: =ion21Team!B19 -> 15 | C20: =IF(ISBLANK(ion21Team!C19),"",ion21Team!C19) ->  | D20: =IF(ISBLANK(ion21Team!$C$19),"",$ND$3) ->  | E20: =IF(ISBLANK(ion21Team!C19),"",IFERROR(D20/$D$27*100,0)) ->  | F20: =IF(ISBLANK(ion21Team!C19),"",ion21Votes!AF20) ->  | G20: =IF(ISBLANK(ion21Team!C19),"",ROUND(ion21Votes!$AF$27*E20/100,0)) ->  | H20: =IF(ISBLANK(ion21Team!C19),"",F20-G20) ->  | J20: 1 | K20: YaJo | L20: 15 | S20: =IF(ISBLANK(Q20),"",(R20-Q20)*24) ->  | T20: 1 | U20: =IF(ISBLANK(Q20),"",S20*T20) ->  | V20: 1 | W20: 1 | X20: 1 | Y20: 1 | Z20: 1 | AA20: 1 | AB20: 1 | AC20: 1 | AD20: 1 | AE20: =IF(ISBLANK(Q20),"",ROUND(AVERAGE(OFFSET(V20:AD20,0,0,1,ion21Coop!$F$42)),1)) ->  | AH20: 2 | AI20: GeLo | AJ20: 15 | AR20: 1 | AT20: 1 | AU20: 1 | AV20: 1 | AW20: 1 | AX20: 1 | AY20: 1 | AZ20: 1 | BA20: 1 | BB20: 1 | BC20: =IF(ISBLANK(AO20),"",ROUND(AVERAGE(OFFSET(AT20:BB20,0,0,1,ion21Coop!$F$42)),1)) ->  | BF20: 3 | BG20: MiDo | BH20: 15 | BO20: =IF(ISBLANK(BM20),"",(BN20-BM20)*24) ->  | BP20: 1 | BQ20: =IF(ISBLANK(BM20),"",BO20*BP20) ->  | BR20: 1 | BS20: 1 | BT20: 1 | BU20: 1 | BV20: 1 | BW20: 1 | BX20: 1 | BY20: 1 | BZ20: 1 | CA20: =IF(ISBLANK(BM20),"",ROUND(AVERAGE(OFFSET(BR20:BZ20,0,0,1,ion21Coop!$F$42)),1)) ->  | CD20: 4 | CE20: EmNi | CF20: 15 | CN20: 1 | CP20: 1 | CQ20: 1 | CR20: 1 | CS20: 1 | CT20: 1 | CU20: 1 | CV20: 1 | CW20: 1 | CX20: 1 | CY20: =IF(ISBLANK(CK20),"",ROUND(AVERAGE(OFFSET(CP20:CX20,0,0,1,ion21Coop!$F$42)),1)) ->  | DB20: 5 | DC20: HeJe | DD20: 15 | DL20: 1 | DN20: 1 | DO20: 1 | DP20: 1 | DQ20: 1 | DR20: 1 | DS20: 1 | DT20: 1 | DU20: 1 | DV20: 1 | DW20: =IF(ISBLANK(DI20),"",ROUND(AVERAGE(OFFSET(DN20:DV20,0,0,1,ion21Coop!$F$42)),1)) ->  | DZ20: 6 | EB20: 15 | EJ20: 1 | EL20: 1 | EM20: 1 | EN20: 1 | EO20: 1 | EP20: 1 | EQ20: 1 | ER20: 1 | ES20: 1 | ET20: 1 | EU20: =IF(ISBLANK(EG20),"",ROUND(AVERAGE(OFFSET(EL20:ET20,0,0,1,ion21Coop!$F$42)),1)) ->  | EX20: 7 | EZ20: 15 | FH20: 1 | FJ20: 1 | FK20: 1 | FL20: 1 | FM20: 1 | FN20: 1 | FO20: 1 | FP20: 1 | FQ20: 1 | FR20: 1 | FS20: =IF(ISBLANK(FE20),"",ROUND(AVERAGE(OFFSET(FJ20:FR20,0,0,1,ion21Coop!$F$42)),1)) ->  | FV20: 8 | FX20: 15 | GF20: 1 | GH20: 1 | GI20: 1 | GJ20: 1 | GK20: 1 | GL20: 1 | GM20: 1 | GN20: 1 | GO20: 1 | GP20: 1 | GQ20: =IF(ISBLANK(GC20),"",ROUND(AVERAGE(OFFSET(GH20:GP20,0,0,1,ion21Coop!$F$42)),1)) ->  | GT20: 9 | GV20: 15 | HD20: 1 | HF20: 1 | HG20: 1 | HH20: 1 | HI20: 1 | HJ20: 1 | HK20: 1 | HL20: 1 | HM20: 1 | HN20: 1 | HO20: =IF(ISBLANK(HA20),"",ROUND(AVERAGE(OFFSET(HF20:HN20,0,0,1,ion21Coop!$F$42)),1)) ->  | HR20: 10 | HT20: 15 | IB20: 1 | ID20: 1 | IE20: 1 | IF20: 1 | IG20: 1 | IH20: 1 | II20: 1 | IJ20: 1 | IK20: 1 | IL20: 1 | IM20: =IF(ISBLANK(HY20),"",ROUND(AVERAGE(OFFSET(ID20:IL20,0,0,1,ion21Coop!$F$42)),1)) ->  | IP20: 11 | IR20: 15 | IZ20: 1 | JB20: 1 | JC20: 1 | JD20: 1 | JE20: 1 | JF20: 1 | JG20: 1 | JH20: 1 | JI20: 1 | JJ20: 1 | JK20: =IF(ISBLANK(IW20),"",ROUND(AVERAGE(OFFSET(JB20:JJ20,0,0,1,ion21Coop!$F$42)),1)) ->  | JN20: 12 | JP20: 15 | JX20: 1 | JZ20: 1 | KA20: 1 | KB20: 1 | KC20: 1 | KD20: 1 | KE20: 1 | KF20: 1 | KG20: 1 | KH20: 1 | KI20: =IF(ISBLANK(JU20),"",ROUND(AVERAGE(OFFSET(JZ20:KH20,0,0,1,ion21Coop!$F$42)),1)) ->  | KL20: 13 | KN20: 15 | KV20: 1 | KX20: 1 | KY20: 1 | KZ20: 1 | LA20: 1 | LB20: 1 | LC20: 1 | LD20: 1 | LE20: 1 | LF20: 1 | LG20: =IF(ISBLANK(KS20),"",ROUND(AVERAGE(OFFSET(KX20:LF20,0,0,1,ion21Coop!$F$42)),1)) ->  | LJ20: 14 | LL20: 15 | LT20: 1 | LV20: 1 | LW20: 1 | LX20: 1 | LY20: 1 | LZ20: 1 | MA20: 1 | MB20: 1 | MC20: 1 | MD20: 1 | ME20: =IF(ISBLANK(LQ20),"",ROUND(AVERAGE(OFFSET(LV20:MD20,0,0,1,ion21Coop!$F$42)),1)) ->  | MH20: 15 | MJ20: 15 | MR20: 1 | MT20: 1 | MU20: 1 | MV20: 1 | MW20: 1 | MX20: 1 | MY20: 1 | MZ20: 1 | NA20: 1 | NB20: 1 | NC20: =IF(ISBLANK(MO20),"",ROUND(AVERAGE(OFFSET(MT20:NB20,0,0,1,ion21Coop!$F$42)),1)) ->  | NF20: 16 | NH20: 15 | NP20: 1 | NR20: 1 | NS20: 1 | NT20: 1 | NU20: 1 | NV20: 1 | NW20: 1 | NX20: 1 | NY20: 1 | NZ20: 1 | OA20: =IF(ISBLANK(NM20),"",ROUND(AVERAGE(OFFSET(NR20:NZ20,0,0,1,ion21Coop!$F$42)),1)) ->  | OD20: 17 | OF20: 15 | ON20: 1 | OP20: 1 | OQ20: 1 | OR20: 1 | OS20: 1 | OT20: 1 | OU20: 1 | OV20: 1 | OW20: 1 | OX20: 1 | OY20: =IF(ISBLANK(OK20),"",ROUND(AVERAGE(OFFSET(OP20:OX20,0,0,1,ion21Coop!$F$42)),1)) ->  | PB20: 18 | PD20: 15 | PL20: 1 | PN20: 1 | PO20: 1 | PP20: 1 | PQ20: 1 | PR20: 1 | PS20: 1 | PT20: 1 | PU20: 1 | PV20: 1 | PW20: =IF(ISBLANK(PI20),"",ROUND(AVERAGE(OFFSET(PN20:PV20,0,0,1,ion21Coop!$F$42)),1)) ->  | PZ20: 19 | QB20: 15 | QJ20: 1 | QL20: 1 | QM20: 1 | QN20: 1 | QO20: 1 | QP20: 1 | QQ20: 1 | QR20: 1 | QS20: 1 | QT20: 1 | QU20: =IF(ISBLANK(QG20),"",ROUND(AVERAGE(OFFSET(QL20:QT20,0,0,1,ion21Coop!$F$42)),1)) ->  | QX20: 20 | QZ20: 15 | RH20: 1 | RJ20: 1 | RK20: 1 | RL20: 1 | RM20: 1 | RN20: 1 | RO20: 1 | RP20: 1 | RQ20: 1 | RR20: 1 | RS20: =IF(ISBLANK(RE20),"",ROUND(AVERAGE(OFFSET(RJ20:RR20,0,0,1,ion21Coop!$F$42)),1)) ->  | RV20: 21 | RX20: 15 | SF20: 1 | SH20: 1 | SI20: 1 | SJ20: 1 | SK20: 1 | SL20: 1 | SM20: 1 | SN20: 1 | SO20: 1 | SP20: 1 | SQ20: =IF(ISBLANK(SC20),"",ROUND(AVERAGE(OFFSET(SH20:SP20,0,0,1,ion21Coop!$F$42)),1)) -> 
A21: 16 - | B21: =ion21Team!B20 -> 16 | C21: =IF(ISBLANK(ion21Team!C20),"",ion21Team!C20) ->  | D21: =IF(ISBLANK(ion21Team!$C$20),"",$OB$3) ->  | E21: =IF(ISBLANK(ion21Team!C20),"",IFERROR(D21/$D$27*100,0)) ->  | F21: =IF(ISBLANK(ion21Team!C20),"",ion21Votes!AF21) ->  | G21: =IF(ISBLANK(ion21Team!C20),"",ROUND(ion21Votes!$AF$27*E21/100,0)) ->  | H21: =IF(ISBLANK(ion21Team!C20),"",F21-G21) ->  | J21: 1 | K21: YaJo | L21: 16 | T21: 1 | V21: 1 | W21: 1 | X21: 1 | Y21: 1 | Z21: 1 | AA21: 1 | AB21: 1 | AC21: 1 | AD21: 1 | AE21: =IF(ISBLANK(Q21),"",ROUND(AVERAGE(OFFSET(V21:AD21,0,0,1,ion21Coop!$F$42)),1)) ->  | AH21: 2 | AI21: GeLo | AJ21: 16 | AR21: 1 | AT21: 1 | AU21: 1 | AV21: 1 | AW21: 1 | AX21: 1 | AY21: 1 | AZ21: 1 | BA21: 1 | BB21: 1 | BC21: =IF(ISBLANK(AO21),"",ROUND(AVERAGE(OFFSET(AT21:BB21,0,0,1,ion21Coop!$F$42)),1)) ->  | BF21: 3 | BG21: MiDo | BH21: 16 | BP21: 1 | BR21: 1 | BS21: 1 | BT21: 1 | BU21: 1 | BV21: 1 | BW21: 1 | BX21: 1 | BY21: 1 | BZ21: 1 | CA21: =IF(ISBLANK(BM21),"",ROUND(AVERAGE(OFFSET(BR21:BZ21,0,0,1,ion21Coop!$F$42)),1)) ->  | CD21: 4 | CE21: EmNi | CF21: 16 | CN21: 1 | CP21: 1 | CQ21: 1 | CR21: 1 | CS21: 1 | CT21: 1 | CU21: 1 | CV21: 1 | CW21: 1 | CX21: 1 | CY21: =IF(ISBLANK(CK21),"",ROUND(AVERAGE(OFFSET(CP21:CX21,0,0,1,ion21Coop!$F$42)),1)) ->  | DB21: 5 | DC21: HeJe | DD21: 16 | DL21: 1 | DN21: 1 | DO21: 1 | DP21: 1 | DQ21: 1 | DR21: 1 | DS21: 1 | DT21: 1 | DU21: 1 | DV21: 1 | DW21: =IF(ISBLANK(DI21),"",ROUND(AVERAGE(OFFSET(DN21:DV21,0,0,1,ion21Coop!$F$42)),1)) ->  | DZ21: 6 | EB21: 16 | EJ21: 1 | EL21: 1 | EM21: 1 | EN21: 1 | EO21: 1 | EP21: 1 | EQ21: 1 | ER21: 1 | ES21: 1 | ET21: 1 | EU21: =IF(ISBLANK(EG21),"",ROUND(AVERAGE(OFFSET(EL21:ET21,0,0,1,ion21Coop!$F$42)),1)) ->  | EX21: 7 | EZ21: 16 | FH21: 1 | FJ21: 1 | FK21: 1 | FL21: 1 | FM21: 1 | FN21: 1 | FO21: 1 | FP21: 1 | FQ21: 1 | FR21: 1 | FS21: =IF(ISBLANK(FE21),"",ROUND(AVERAGE(OFFSET(FJ21:FR21,0,0,1,ion21Coop!$F$42)),1)) ->  | FV21: 8 | FX21: 16 | GF21: 1 | GH21: 1 | GI21: 1 | GJ21: 1 | GK21: 1 | GL21: 1 | GM21: 1 | GN21: 1 | GO21: 1 | GP21: 1 | GQ21: =IF(ISBLANK(GC21),"",ROUND(AVERAGE(OFFSET(GH21:GP21,0,0,1,ion21Coop!$F$42)),1)) ->  | GT21: 9 | GV21: 16 | HD21: 1 | HF21: 1 | HG21: 1 | HH21: 1 | HI21: 1 | HJ21: 1 | HK21: 1 | HL21: 1 | HM21: 1 | HN21: 1 | HO21: =IF(ISBLANK(HA21),"",ROUND(AVERAGE(OFFSET(HF21:HN21,0,0,1,ion21Coop!$F$42)),1)) ->  | HR21: 10 | HT21: 16 | IB21: 1 | ID21: 1 | IE21: 1 | IF21: 1 | IG21: 1 | IH21: 1 | II21: 1 | IJ21: 1 | IK21: 1 | IL21: 1 | IM21: =IF(ISBLANK(HY21),"",ROUND(AVERAGE(OFFSET(ID21:IL21,0,0,1,ion21Coop!$F$42)),1)) ->  | IP21: 11 | IR21: 16 | IZ21: 1 | JB21: 1 | JC21: 1 | JD21: 1 | JE21: 1 | JF21: 1 | JG21: 1 | JH21: 1 | JI21: 1 | JJ21: 1 | JK21: =IF(ISBLANK(IW21),"",ROUND(AVERAGE(OFFSET(JB21:JJ21,0,0,1,ion21Coop!$F$42)),1)) ->  | JN21: 12 | JP21: 16 | JX21: 1 | JZ21: 1 | KA21: 1 | KB21: 1 | KC21: 1 | KD21: 1 | KE21: 1 | KF21: 1 | KG21: 1 | KH21: 1 | KI21: =IF(ISBLANK(JU21),"",ROUND(AVERAGE(OFFSET(JZ21:KH21,0,0,1,ion21Coop!$F$42)),1)) ->  | KL21: 13 | KN21: 16 | KV21: 1 | KX21: 1 | KY21: 1 | KZ21: 1 | LA21: 1 | LB21: 1 | LC21: 1 | LD21: 1 | LE21: 1 | LF21: 1 | LG21: =IF(ISBLANK(KS21),"",ROUND(AVERAGE(OFFSET(KX21:LF21,0,0,1,ion21Coop!$F$42)),1)) ->  | LJ21: 14 | LL21: 16 | LT21: 1 | LV21: 1 | LW21: 1 | LX21: 1 | LY21: 1 | LZ21: 1 | MA21: 1 | MB21: 1 | MC21: 1 | MD21: 1 | ME21: =IF(ISBLANK(LQ21),"",ROUND(AVERAGE(OFFSET(LV21:MD21,0,0,1,ion21Coop!$F$42)),1)) ->  | MH21: 15 | MJ21: 16 | MR21: 1 | MT21: 1 | MU21: 1 | MV21: 1 | MW21: 1 | MX21: 1 | MY21: 1 | MZ21: 1 | NA21: 1 | NB21: 1 | NC21: =IF(ISBLANK(MO21),"",ROUND(AVERAGE(OFFSET(MT21:NB21,0,0,1,ion21Coop!$F$42)),1)) ->  | NF21: 16 | NH21: 16 | NP21: 1 | NR21: 1 | NS21: 1 | NT21: 1 | NU21: 1 | NV21: 1 | NW21: 1 | NX21: 1 | NY21: 1 | NZ21: 1 | OA21: =IF(ISBLANK(NM21),"",ROUND(AVERAGE(OFFSET(NR21:NZ21,0,0,1,ion21Coop!$F$42)),1)) ->  | OD21: 17 | OF21: 16 | ON21: 1 | OP21: 1 | OQ21: 1 | OR21: 1 | OS21: 1 | OT21: 1 | OU21: 1 | OV21: 1 | OW21: 1 | OX21: 1 | OY21: =IF(ISBLANK(OK21),"",ROUND(AVERAGE(OFFSET(OP21:OX21,0,0,1,ion21Coop!$F$42)),1)) ->  | PB21: 18 | PD21: 16 | PL21: 1 | PN21: 1 | PO21: 1 | PP21: 1 | PQ21: 1 | PR21: 1 | PS21: 1 | PT21: 1 | PU21: 1 | PV21: 1 | PW21: =IF(ISBLANK(PI21),"",ROUND(AVERAGE(OFFSET(PN21:PV21,0,0,1,ion21Coop!$F$42)),1)) ->  | PZ21: 19 | QB21: 16 | QJ21: 1 | QL21: 1 | QM21: 1 | QN21: 1 | QO21: 1 | QP21: 1 | QQ21: 1 | QR21: 1 | QS21: 1 | QT21: 1 | QU21: =IF(ISBLANK(QG21),"",ROUND(AVERAGE(OFFSET(QL21:QT21,0,0,1,ion21Coop!$F$42)),1)) ->  | QX21: 20 | QZ21: 16 | RH21: 1 | RJ21: 1 | RK21: 1 | RL21: 1 | RM21: 1 | RN21: 1 | RO21: 1 | RP21: 1 | RQ21: 1 | RR21: 1 | RS21: =IF(ISBLANK(RE21),"",ROUND(AVERAGE(OFFSET(RJ21:RR21,0,0,1,ion21Coop!$F$42)),1)) ->  | RV21: 21 | RX21: 16 | SF21: 1 | SH21: 1 | SI21: 1 | SJ21: 1 | SK21: 1 | SL21: 1 | SM21: 1 | SN21: 1 | SO21: 1 | SP21: 1 | SQ21: =IF(ISBLANK(SC21),"",ROUND(AVERAGE(OFFSET(SH21:SP21,0,0,1,ion21Coop!$F$42)),1)) -> 
A22: 17 - | B22: =ion21Team!B21 -> 17 | C22: =IF(ISBLANK(ion21Team!C21),"",ion21Team!C21) ->  | D22: =IF(ISBLANK(ion21Team!$C$21),"",$OZ$3) ->  | E22: =IF(ISBLANK(ion21Team!C21),"",IFERROR(D22/$D$27*100,0)) ->  | F22: =IF(ISBLANK(ion21Team!C21),"",ion21Votes!AF22) ->  | G22: =IF(ISBLANK(ion21Team!C21),"",ROUND(ion21Votes!$AF$27*E22/100,0)) ->  | H22: =IF(ISBLANK(ion21Team!C21),"",F22-G22) ->  | J22: 1 | K22: YaJo | L22: 17 | T22: 1 | V22: 1 | W22: 1 | X22: 1 | Y22: 1 | Z22: 1 | AA22: 1 | AB22: 1 | AC22: 1 | AD22: 1 | AE22: =IF(ISBLANK(Q22),"",ROUND(AVERAGE(OFFSET(V22:AD22,0,0,1,ion21Coop!$F$42)),1)) ->  | AH22: 2 | AI22: GeLo | AJ22: 17 | AR22: 1 | AT22: 1 | AU22: 1 | AV22: 1 | AW22: 1 | AX22: 1 | AY22: 1 | AZ22: 1 | BA22: 1 | BB22: 1 | BC22: =IF(ISBLANK(AO22),"",ROUND(AVERAGE(OFFSET(AT22:BB22,0,0,1,ion21Coop!$F$42)),1)) ->  | BF22: 3 | BG22: MiDo | BH22: 17 | BP22: 1 | BR22: 1 | BS22: 1 | BT22: 1 | BU22: 1 | BV22: 1 | BW22: 1 | BX22: 1 | BY22: 1 | BZ22: 1 | CA22: =IF(ISBLANK(BM22),"",ROUND(AVERAGE(OFFSET(BR22:BZ22,0,0,1,ion21Coop!$F$42)),1)) ->  | CD22: 4 | CE22: EmNi | CF22: 17 | CN22: 1 | CP22: 1 | CQ22: 1 | CR22: 1 | CS22: 1 | CT22: 1 | CU22: 1 | CV22: 1 | CW22: 1 | CX22: 1 | CY22: =IF(ISBLANK(CK22),"",ROUND(AVERAGE(OFFSET(CP22:CX22,0,0,1,ion21Coop!$F$42)),1)) ->  | DB22: 5 | DC22: HeJe | DD22: 17 | DL22: 1 | DN22: 1 | DO22: 1 | DP22: 1 | DQ22: 1 | DR22: 1 | DS22: 1 | DT22: 1 | DU22: 1 | DV22: 1 | DW22: =IF(ISBLANK(DI22),"",ROUND(AVERAGE(OFFSET(DN22:DV22,0,0,1,ion21Coop!$F$42)),1)) ->  | DZ22: 6 | EB22: 17 | EJ22: 1 | EL22: 1 | EM22: 1 | EN22: 1 | EO22: 1 | EP22: 1 | EQ22: 1 | ER22: 1 | ES22: 1 | ET22: 1 | EU22: =IF(ISBLANK(EG22),"",ROUND(AVERAGE(OFFSET(EL22:ET22,0,0,1,ion21Coop!$F$42)),1)) ->  | EX22: 7 | EZ22: 17 | FH22: 1 | FJ22: 1 | FK22: 1 | FL22: 1 | FM22: 1 | FN22: 1 | FO22: 1 | FP22: 1 | FQ22: 1 | FR22: 1 | FS22: =IF(ISBLANK(FE22),"",ROUND(AVERAGE(OFFSET(FJ22:FR22,0,0,1,ion21Coop!$F$42)),1)) ->  | FV22: 8 | FX22: 17 | GF22: 1 | GH22: 1 | GI22: 1 | GJ22: 1 | GK22: 1 | GL22: 1 | GM22: 1 | GN22: 1 | GO22: 1 | GP22: 1 | GQ22: =IF(ISBLANK(GC22),"",ROUND(AVERAGE(OFFSET(GH22:GP22,0,0,1,ion21Coop!$F$42)),1)) ->  | GT22: 9 | GV22: 17 | HD22: 1 | HF22: 1 | HG22: 1 | HH22: 1 | HI22: 1 | HJ22: 1 | HK22: 1 | HL22: 1 | HM22: 1 | HN22: 1 | HO22: =IF(ISBLANK(HA22),"",ROUND(AVERAGE(OFFSET(HF22:HN22,0,0,1,ion21Coop!$F$42)),1)) ->  | HR22: 10 | HT22: 17 | IB22: 1 | ID22: 1 | IE22: 1 | IF22: 1 | IG22: 1 | IH22: 1 | II22: 1 | IJ22: 1 | IK22: 1 | IL22: 1 | IM22: =IF(ISBLANK(HY22),"",ROUND(AVERAGE(OFFSET(ID22:IL22,0,0,1,ion21Coop!$F$42)),1)) ->  | IP22: 11 | IR22: 17 | IZ22: 1 | JB22: 1 | JC22: 1 | JD22: 1 | JE22: 1 | JF22: 1 | JG22: 1 | JH22: 1 | JI22: 1 | JJ22: 1 | JK22: =IF(ISBLANK(IW22),"",ROUND(AVERAGE(OFFSET(JB22:JJ22,0,0,1,ion21Coop!$F$42)),1)) ->  | JN22: 12 | JP22: 17 | JX22: 1 | JZ22: 1 | KA22: 1 | KB22: 1 | KC22: 1 | KD22: 1 | KE22: 1 | KF22: 1 | KG22: 1 | KH22: 1 | KI22: =IF(ISBLANK(JU22),"",ROUND(AVERAGE(OFFSET(JZ22:KH22,0,0,1,ion21Coop!$F$42)),1)) ->  | KL22: 13 | KN22: 17 | KV22: 1 | KX22: 1 | KY22: 1 | KZ22: 1 | LA22: 1 | LB22: 1 | LC22: 1 | LD22: 1 | LE22: 1 | LF22: 1 | LG22: =IF(ISBLANK(KS22),"",ROUND(AVERAGE(OFFSET(KX22:LF22,0,0,1,ion21Coop!$F$42)),1)) ->  | LJ22: 14 | LL22: 17 | LT22: 1 | LV22: 1 | LW22: 1 | LX22: 1 | LY22: 1 | LZ22: 1 | MA22: 1 | MB22: 1 | MC22: 1 | MD22: 1 | ME22: =IF(ISBLANK(LQ22),"",ROUND(AVERAGE(OFFSET(LV22:MD22,0,0,1,ion21Coop!$F$42)),1)) ->  | MH22: 15 | MJ22: 17 | MR22: 1 | MT22: 1 | MU22: 1 | MV22: 1 | MW22: 1 | MX22: 1 | MY22: 1 | MZ22: 1 | NA22: 1 | NB22: 1 | NC22: =IF(ISBLANK(MO22),"",ROUND(AVERAGE(OFFSET(MT22:NB22,0,0,1,ion21Coop!$F$42)),1)) ->  | NF22: 16 | NH22: 17 | NP22: 1 | NR22: 1 | NS22: 1 | NT22: 1 | NU22: 1 | NV22: 1 | NW22: 1 | NX22: 1 | NY22: 1 | NZ22: 1 | OA22: =IF(ISBLANK(NM22),"",ROUND(AVERAGE(OFFSET(NR22:NZ22,0,0,1,ion21Coop!$F$42)),1)) ->  | OD22: 17 | OF22: 17 | ON22: 1 | OP22: 1 | OQ22: 1 | OR22: 1 | OS22: 1 | OT22: 1 | OU22: 1 | OV22: 1 | OW22: 1 | OX22: 1 | OY22: =IF(ISBLANK(OK22),"",ROUND(AVERAGE(OFFSET(OP22:OX22,0,0,1,ion21Coop!$F$42)),1)) ->  | PB22: 18 | PD22: 17 | PL22: 1 | PN22: 1 | PO22: 1 | PP22: 1 | PQ22: 1 | PR22: 1 | PS22: 1 | PT22: 1 | PU22: 1 | PV22: 1 | PW22: =IF(ISBLANK(PI22),"",ROUND(AVERAGE(OFFSET(PN22:PV22,0,0,1,ion21Coop!$F$42)),1)) ->  | PZ22: 19 | QB22: 17 | QJ22: 1 | QL22: 1 | QM22: 1 | QN22: 1 | QO22: 1 | QP22: 1 | QQ22: 1 | QR22: 1 | QS22: 1 | QT22: 1 | QU22: =IF(ISBLANK(QG22),"",ROUND(AVERAGE(OFFSET(QL22:QT22,0,0,1,ion21Coop!$F$42)),1)) ->  | QX22: 20 | QZ22: 17 | RH22: 1 | RJ22: 1 | RK22: 1 | RL22: 1 | RM22: 1 | RN22: 1 | RO22: 1 | RP22: 1 | RQ22: 1 | RR22: 1 | RS22: =IF(ISBLANK(RE22),"",ROUND(AVERAGE(OFFSET(RJ22:RR22,0,0,1,ion21Coop!$F$42)),1)) ->  | RV22: 21 | RX22: 17 | SF22: 1 | SH22: 1 | SI22: 1 | SJ22: 1 | SK22: 1 | SL22: 1 | SM22: 1 | SN22: 1 | SO22: 1 | SP22: 1 | SQ22: =IF(ISBLANK(SC22),"",ROUND(AVERAGE(OFFSET(SH22:SP22,0,0,1,ion21Coop!$F$42)),1)) -> 
A23: 18 - | B23: =ion21Team!B22 -> 18 | C23: =IF(ISBLANK(ion21Team!C22),"",ion21Team!C22) ->  | D23: =IF(ISBLANK(ion21Team!$C$22),"",$PX$3) ->  | E23: =IF(ISBLANK(ion21Team!C22),"",IFERROR(D23/$D$27*100,0)) ->  | F23: =IF(ISBLANK(ion21Team!C22),"",ion21Votes!AF23) ->  | G23: =IF(ISBLANK(ion21Team!C22),"",ROUND(ion21Votes!$AF$27*E23/100,0)) ->  | H23: =IF(ISBLANK(ion21Team!C22),"",F23-G23) ->  | J23: 1 | K23: YaJo | L23: 18 | T23: 1 | V23: 1 | W23: 1 | X23: 1 | Y23: 1 | Z23: 1 | AA23: 1 | AB23: 1 | AC23: 1 | AD23: 1 | AE23: =IF(ISBLANK(Q23),"",ROUND(AVERAGE(OFFSET(V23:AD23,0,0,1,ion21Coop!$F$42)),1)) ->  | AH23: 2 | AI23: GeLo | AJ23: 18 | AR23: 1 | AT23: 1 | AU23: 1 | AV23: 1 | AW23: 1 | AX23: 1 | AY23: 1 | AZ23: 1 | BA23: 1 | BB23: 1 | BC23: =IF(ISBLANK(AO23),"",ROUND(AVERAGE(OFFSET(AT23:BB23,0,0,1,ion21Coop!$F$42)),1)) ->  | BF23: 3 | BG23: MiDo | BH23: 18 | BP23: 1 | BR23: 1 | BS23: 1 | BT23: 1 | BU23: 1 | BV23: 1 | BW23: 1 | BX23: 1 | BY23: 1 | BZ23: 1 | CA23: =IF(ISBLANK(BM23),"",ROUND(AVERAGE(OFFSET(BR23:BZ23,0,0,1,ion21Coop!$F$42)),1)) ->  | CD23: 4 | CE23: EmNi | CF23: 18 | CN23: 1 | CP23: 1 | CQ23: 1 | CR23: 1 | CS23: 1 | CT23: 1 | CU23: 1 | CV23: 1 | CW23: 1 | CX23: 1 | CY23: =IF(ISBLANK(CK23),"",ROUND(AVERAGE(OFFSET(CP23:CX23,0,0,1,ion21Coop!$F$42)),1)) ->  | DB23: 5 | DC23: HeJe | DD23: 18 | DL23: 1 | DN23: 1 | DO23: 1 | DP23: 1 | DQ23: 1 | DR23: 1 | DS23: 1 | DT23: 1 | DU23: 1 | DV23: 1 | DW23: =IF(ISBLANK(DI23),"",ROUND(AVERAGE(OFFSET(DN23:DV23,0,0,1,ion21Coop!$F$42)),1)) ->  | DZ23: 6 | EB23: 18 | EJ23: 1 | EL23: 1 | EM23: 1 | EN23: 1 | EO23: 1 | EP23: 1 | EQ23: 1 | ER23: 1 | ES23: 1 | ET23: 1 | EU23: =IF(ISBLANK(EG23),"",ROUND(AVERAGE(OFFSET(EL23:ET23,0,0,1,ion21Coop!$F$42)),1)) ->  | EX23: 7 | EZ23: 18 | FH23: 1 | FJ23: 1 | FK23: 1 | FL23: 1 | FM23: 1 | FN23: 1 | FO23: 1 | FP23: 1 | FQ23: 1 | FR23: 1 | FS23: =IF(ISBLANK(FE23),"",ROUND(AVERAGE(OFFSET(FJ23:FR23,0,0,1,ion21Coop!$F$42)),1)) ->  | FV23: 8 | FX23: 18 | GF23: 1 | GH23: 1 | GI23: 1 | GJ23: 1 | GK23: 1 | GL23: 1 | GM23: 1 | GN23: 1 | GO23: 1 | GP23: 1 | GQ23: =IF(ISBLANK(GC23),"",ROUND(AVERAGE(OFFSET(GH23:GP23,0,0,1,ion21Coop!$F$42)),1)) ->  | GT23: 9 | GV23: 18 | HD23: 1 | HF23: 1 | HG23: 1 | HH23: 1 | HI23: 1 | HJ23: 1 | HK23: 1 | HL23: 1 | HM23: 1 | HN23: 1 | HO23: =IF(ISBLANK(HA23),"",ROUND(AVERAGE(OFFSET(HF23:HN23,0,0,1,ion21Coop!$F$42)),1)) ->  | HR23: 10 | HT23: 18 | IB23: 1 | ID23: 1 | IE23: 1 | IF23: 1 | IG23: 1 | IH23: 1 | II23: 1 | IJ23: 1 | IK23: 1 | IL23: 1 | IM23: =IF(ISBLANK(HY23),"",ROUND(AVERAGE(OFFSET(ID23:IL23,0,0,1,ion21Coop!$F$42)),1)) ->  | IP23: 11 | IR23: 18 | IZ23: 1 | JB23: 1 | JC23: 1 | JD23: 1 | JE23: 1 | JF23: 1 | JG23: 1 | JH23: 1 | JI23: 1 | JJ23: 1 | JK23: =IF(ISBLANK(IW23),"",ROUND(AVERAGE(OFFSET(JB23:JJ23,0,0,1,ion21Coop!$F$42)),1)) ->  | JN23: 12 | JP23: 18 | JX23: 1 | JZ23: 1 | KA23: 1 | KB23: 1 | KC23: 1 | KD23: 1 | KE23: 1 | KF23: 1 | KG23: 1 | KH23: 1 | KI23: =IF(ISBLANK(JU23),"",ROUND(AVERAGE(OFFSET(JZ23:KH23,0,0,1,ion21Coop!$F$42)),1)) ->  | KL23: 13 | KN23: 18 | KV23: 1 | KX23: 1 | KY23: 1 | KZ23: 1 | LA23: 1 | LB23: 1 | LC23: 1 | LD23: 1 | LE23: 1 | LF23: 1 | LG23: =IF(ISBLANK(KS23),"",ROUND(AVERAGE(OFFSET(KX23:LF23,0,0,1,ion21Coop!$F$42)),1)) ->  | LJ23: 14 | LL23: 18 | LT23: 1 | LV23: 1 | LW23: 1 | LX23: 1 | LY23: 1 | LZ23: 1 | MA23: 1 | MB23: 1 | MC23: 1 | MD23: 1 | ME23: =IF(ISBLANK(LQ23),"",ROUND(AVERAGE(OFFSET(LV23:MD23,0,0,1,ion21Coop!$F$42)),1)) ->  | MH23: 15 | MJ23: 18 | MR23: 1 | MT23: 1 | MU23: 1 | MV23: 1 | MW23: 1 | MX23: 1 | MY23: 1 | MZ23: 1 | NA23: 1 | NB23: 1 | NC23: =IF(ISBLANK(MO23),"",ROUND(AVERAGE(OFFSET(MT23:NB23,0,0,1,ion21Coop!$F$42)),1)) ->  | NF23: 16 | NH23: 18 | NP23: 1 | NR23: 1 | NS23: 1 | NT23: 1 | NU23: 1 | NV23: 1 | NW23: 1 | NX23: 1 | NY23: 1 | NZ23: 1 | OA23: =IF(ISBLANK(NM23),"",ROUND(AVERAGE(OFFSET(NR23:NZ23,0,0,1,ion21Coop!$F$42)),1)) ->  | OD23: 17 | OF23: 18 | ON23: 1 | OP23: 1 | OQ23: 1 | OR23: 1 | OS23: 1 | OT23: 1 | OU23: 1 | OV23: 1 | OW23: 1 | OX23: 1 | OY23: =IF(ISBLANK(OK23),"",ROUND(AVERAGE(OFFSET(OP23:OX23,0,0,1,ion21Coop!$F$42)),1)) ->  | PB23: 18 | PD23: 18 | PL23: 1 | PN23: 1 | PO23: 1 | PP23: 1 | PQ23: 1 | PR23: 1 | PS23: 1 | PT23: 1 | PU23: 1 | PV23: 1 | PW23: =IF(ISBLANK(PI23),"",ROUND(AVERAGE(OFFSET(PN23:PV23,0,0,1,ion21Coop!$F$42)),1)) ->  | PZ23: 19 | QB23: 18 | QJ23: 1 | QL23: 1 | QM23: 1 | QN23: 1 | QO23: 1 | QP23: 1 | QQ23: 1 | QR23: 1 | QS23: 1 | QT23: 1 | QU23: =IF(ISBLANK(QG23),"",ROUND(AVERAGE(OFFSET(QL23:QT23,0,0,1,ion21Coop!$F$42)),1)) ->  | QX23: 20 | QZ23: 18 | RH23: 1 | RJ23: 1 | RK23: 1 | RL23: 1 | RM23: 1 | RN23: 1 | RO23: 1 | RP23: 1 | RQ23: 1 | RR23: 1 | RS23: =IF(ISBLANK(RE23),"",ROUND(AVERAGE(OFFSET(RJ23:RR23,0,0,1,ion21Coop!$F$42)),1)) ->  | RV23: 21 | RX23: 18 | SF23: 1 | SH23: 1 | SI23: 1 | SJ23: 1 | SK23: 1 | SL23: 1 | SM23: 1 | SN23: 1 | SO23: 1 | SP23: 1 | SQ23: =IF(ISBLANK(SC23),"",ROUND(AVERAGE(OFFSET(SH23:SP23,0,0,1,ion21Coop!$F$42)),1)) -> 
A24: 19 - | B24: =ion21Team!B23 -> 19 | C24: =IF(ISBLANK(ion21Team!C23),"",ion21Team!C23) ->  | D24: =IF(ISBLANK(ion21Team!$C$23),"",$QV$3) ->  | E24: =IF(ISBLANK(ion21Team!C23),"",IFERROR(D24/$D$27*100,0)) ->  | F24: =IF(ISBLANK(ion21Team!C23),"",ion21Votes!AF24) ->  | G24: =IF(ISBLANK(ion21Team!C23),"",ROUND(ion21Votes!$AF$27*E24/100,0)) ->  | H24: =IF(ISBLANK(ion21Team!C23),"",F24-G24) ->  | J24: 1 | K24: YaJo | L24: 19 | T24: 1 | V24: 1 | W24: 1 | X24: 1 | Y24: 1 | Z24: 1 | AA24: 1 | AB24: 1 | AC24: 1 | AD24: 1 | AE24: =IF(ISBLANK(Q24),"",ROUND(AVERAGE(OFFSET(V24:AD24,0,0,1,ion21Coop!$F$42)),1)) ->  | AH24: 2 | AI24: GeLo | AJ24: 19 | AR24: 1 | AT24: 1 | AU24: 1 | AV24: 1 | AW24: 1 | AX24: 1 | AY24: 1 | AZ24: 1 | BA24: 1 | BB24: 1 | BC24: =IF(ISBLANK(AO24),"",ROUND(AVERAGE(OFFSET(AT24:BB24,0,0,1,ion21Coop!$F$42)),1)) ->  | BF24: 3 | BG24: MiDo | BH24: 19 | BP24: 1 | BR24: 1 | BS24: 1 | BT24: 1 | BU24: 1 | BV24: 1 | BW24: 1 | BX24: 1 | BY24: 1 | BZ24: 1 | CA24: =IF(ISBLANK(BM24),"",ROUND(AVERAGE(OFFSET(BR24:BZ24,0,0,1,ion21Coop!$F$42)),1)) ->  | CD24: 4 | CE24: EmNi | CF24: 19 | CN24: 1 | CP24: 1 | CQ24: 1 | CR24: 1 | CS24: 1 | CT24: 1 | CU24: 1 | CV24: 1 | CW24: 1 | CX24: 1 | CY24: =IF(ISBLANK(CK24),"",ROUND(AVERAGE(OFFSET(CP24:CX24,0,0,1,ion21Coop!$F$42)),1)) ->  | DB24: 5 | DC24: HeJe | DD24: 19 | DL24: 1 | DN24: 1 | DO24: 1 | DP24: 1 | DQ24: 1 | DR24: 1 | DS24: 1 | DT24: 1 | DU24: 1 | DV24: 1 | DW24: =IF(ISBLANK(DI24),"",ROUND(AVERAGE(OFFSET(DN24:DV24,0,0,1,ion21Coop!$F$42)),1)) ->  | DZ24: 6 | EB24: 19 | EJ24: 1 | EL24: 1 | EM24: 1 | EN24: 1 | EO24: 1 | EP24: 1 | EQ24: 1 | ER24: 1 | ES24: 1 | ET24: 1 | EU24: =IF(ISBLANK(EG24),"",ROUND(AVERAGE(OFFSET(EL24:ET24,0,0,1,ion21Coop!$F$42)),1)) ->  | EX24: 7 | EZ24: 19 | FH24: 1 | FJ24: 1 | FK24: 1 | FL24: 1 | FM24: 1 | FN24: 1 | FO24: 1 | FP24: 1 | FQ24: 1 | FR24: 1 | FS24: =IF(ISBLANK(FE24),"",ROUND(AVERAGE(OFFSET(FJ24:FR24,0,0,1,ion21Coop!$F$42)),1)) ->  | FV24: 8 | FX24: 19 | GF24: 1 | GH24: 1 | GI24: 1 | GJ24: 1 | GK24: 1 | GL24: 1 | GM24: 1 | GN24: 1 | GO24: 1 | GP24: 1 | GQ24: =IF(ISBLANK(GC24),"",ROUND(AVERAGE(OFFSET(GH24:GP24,0,0,1,ion21Coop!$F$42)),1)) ->  | GT24: 9 | GV24: 19 | HD24: 1 | HF24: 1 | HG24: 1 | HH24: 1 | HI24: 1 | HJ24: 1 | HK24: 1 | HL24: 1 | HM24: 1 | HN24: 1 | HO24: =IF(ISBLANK(HA24),"",ROUND(AVERAGE(OFFSET(HF24:HN24,0,0,1,ion21Coop!$F$42)),1)) ->  | HR24: 10 | HT24: 19 | IB24: 1 | ID24: 1 | IE24: 1 | IF24: 1 | IG24: 1 | IH24: 1 | II24: 1 | IJ24: 1 | IK24: 1 | IL24: 1 | IM24: =IF(ISBLANK(HY24),"",ROUND(AVERAGE(OFFSET(ID24:IL24,0,0,1,ion21Coop!$F$42)),1)) ->  | IP24: 11 | IR24: 19 | IZ24: 1 | JB24: 1 | JC24: 1 | JD24: 1 | JE24: 1 | JF24: 1 | JG24: 1 | JH24: 1 | JI24: 1 | JJ24: 1 | JK24: =IF(ISBLANK(IW24),"",ROUND(AVERAGE(OFFSET(JB24:JJ24,0,0,1,ion21Coop!$F$42)),1)) ->  | JN24: 12 | JP24: 19 | JX24: 1 | JZ24: 1 | KA24: 1 | KB24: 1 | KC24: 1 | KD24: 1 | KE24: 1 | KF24: 1 | KG24: 1 | KH24: 1 | KI24: =IF(ISBLANK(JU24),"",ROUND(AVERAGE(OFFSET(JZ24:KH24,0,0,1,ion21Coop!$F$42)),1)) ->  | KL24: 13 | KN24: 19 | KV24: 1 | KX24: 1 | KY24: 1 | KZ24: 1 | LA24: 1 | LB24: 1 | LC24: 1 | LD24: 1 | LE24: 1 | LF24: 1 | LG24: =IF(ISBLANK(KS24),"",ROUND(AVERAGE(OFFSET(KX24:LF24,0,0,1,ion21Coop!$F$42)),1)) ->  | LJ24: 14 | LL24: 19 | LT24: 1 | LV24: 1 | LW24: 1 | LX24: 1 | LY24: 1 | LZ24: 1 | MA24: 1 | MB24: 1 | MC24: 1 | MD24: 1 | ME24: =IF(ISBLANK(LQ24),"",ROUND(AVERAGE(OFFSET(LV24:MD24,0,0,1,ion21Coop!$F$42)),1)) ->  | MH24: 15 | MJ24: 19 | MR24: 1 | MT24: 1 | MU24: 1 | MV24: 1 | MW24: 1 | MX24: 1 | MY24: 1 | MZ24: 1 | NA24: 1 | NB24: 1 | NC24: =IF(ISBLANK(MO24),"",ROUND(AVERAGE(OFFSET(MT24:NB24,0,0,1,ion21Coop!$F$42)),1)) ->  | NF24: 16 | NH24: 19 | NP24: 1 | NR24: 1 | NS24: 1 | NT24: 1 | NU24: 1 | NV24: 1 | NW24: 1 | NX24: 1 | NY24: 1 | NZ24: 1 | OA24: =IF(ISBLANK(NM24),"",ROUND(AVERAGE(OFFSET(NR24:NZ24,0,0,1,ion21Coop!$F$42)),1)) ->  | OD24: 17 | OF24: 19 | ON24: 1 | OP24: 1 | OQ24: 1 | OR24: 1 | OS24: 1 | OT24: 1 | OU24: 1 | OV24: 1 | OW24: 1 | OX24: 1 | OY24: =IF(ISBLANK(OK24),"",ROUND(AVERAGE(OFFSET(OP24:OX24,0,0,1,ion21Coop!$F$42)),1)) ->  | PB24: 18 | PD24: 19 | PL24: 1 | PN24: 1 | PO24: 1 | PP24: 1 | PQ24: 1 | PR24: 1 | PS24: 1 | PT24: 1 | PU24: 1 | PV24: 1 | PW24: =IF(ISBLANK(PI24),"",ROUND(AVERAGE(OFFSET(PN24:PV24,0,0,1,ion21Coop!$F$42)),1)) ->  | PZ24: 19 | QB24: 19 | QJ24: 1 | QL24: 1 | QM24: 1 | QN24: 1 | QO24: 1 | QP24: 1 | QQ24: 1 | QR24: 1 | QS24: 1 | QT24: 1 | QU24: =IF(ISBLANK(QG24),"",ROUND(AVERAGE(OFFSET(QL24:QT24,0,0,1,ion21Coop!$F$42)),1)) ->  | QX24: 20 | QZ24: 19 | RH24: 1 | RJ24: 1 | RK24: 1 | RL24: 1 | RM24: 1 | RN24: 1 | RO24: 1 | RP24: 1 | RQ24: 1 | RR24: 1 | RS24: =IF(ISBLANK(RE24),"",ROUND(AVERAGE(OFFSET(RJ24:RR24,0,0,1,ion21Coop!$F$42)),1)) ->  | RV24: 21 | RX24: 19 | SF24: 1 | SH24: 1 | SI24: 1 | SJ24: 1 | SK24: 1 | SL24: 1 | SM24: 1 | SN24: 1 | SO24: 1 | SP24: 1 | SQ24: =IF(ISBLANK(SC24),"",ROUND(AVERAGE(OFFSET(SH24:SP24,0,0,1,ion21Coop!$F$42)),1)) -> 
A25: 20 - | B25: =ion21Team!B24 -> 20 | C25: =IF(ISBLANK(ion21Team!C24),"",ion21Team!C24) ->  | D25: =IF(ISBLANK(ion21Team!$C$24),"",$RT$3) ->  | E25: =IF(ISBLANK(ion21Team!C24),"",IFERROR(D25/$D$27*100,0)) ->  | F25: =IF(ISBLANK(ion21Team!C24),"",ion21Votes!AF25) ->  | G25: =IF(ISBLANK(ion21Team!C24),"",ROUND(ion21Votes!$AF$27*E25/100,0)) ->  | H25: =IF(ISBLANK(ion21Team!C24),"",F25-G25) ->  | J25: 1 | K25: YaJo | L25: 20 | T25: 1 | V25: 1 | W25: 1 | X25: 1 | Y25: 1 | Z25: 1 | AA25: 1 | AB25: 1 | AC25: 1 | AD25: 1 | AE25: =IF(ISBLANK(Q25),"",ROUND(AVERAGE(OFFSET(V25:AD25,0,0,1,ion21Coop!$F$42)),1)) ->  | AH25: 2 | AI25: GeLo | AJ25: 20 | AR25: 1 | AT25: 1 | AU25: 1 | AV25: 1 | AW25: 1 | AX25: 1 | AY25: 1 | AZ25: 1 | BA25: 1 | BB25: 1 | BC25: =IF(ISBLANK(AO25),"",ROUND(AVERAGE(OFFSET(AT25:BB25,0,0,1,ion21Coop!$F$42)),1)) ->  | BF25: 3 | BG25: MiDo | BH25: 20 | BP25: 1 | BR25: 1 | BS25: 1 | BT25: 1 | BU25: 1 | BV25: 1 | BW25: 1 | BX25: 1 | BY25: 1 | BZ25: 1 | CA25: =IF(ISBLANK(BM25),"",ROUND(AVERAGE(OFFSET(BR25:BZ25,0,0,1,ion21Coop!$F$42)),1)) ->  | CD25: 4 | CE25: EmNi | CF25: 20 | CN25: 1 | CP25: 1 | CQ25: 1 | CR25: 1 | CS25: 1 | CT25: 1 | CU25: 1 | CV25: 1 | CW25: 1 | CX25: 1 | CY25: =IF(ISBLANK(CK25),"",ROUND(AVERAGE(OFFSET(CP25:CX25,0,0,1,ion21Coop!$F$42)),1)) ->  | DB25: 5 | DC25: HeJe | DD25: 20 | DL25: 1 | DN25: 1 | DO25: 1 | DP25: 1 | DQ25: 1 | DR25: 1 | DS25: 1 | DT25: 1 | DU25: 1 | DV25: 1 | DW25: =IF(ISBLANK(DI25),"",ROUND(AVERAGE(OFFSET(DN25:DV25,0,0,1,ion21Coop!$F$42)),1)) ->  | DZ25: 6 | EB25: 20 | EJ25: 1 | EL25: 1 | EM25: 1 | EN25: 1 | EO25: 1 | EP25: 1 | EQ25: 1 | ER25: 1 | ES25: 1 | ET25: 1 | EU25: =IF(ISBLANK(EG25),"",ROUND(AVERAGE(OFFSET(EL25:ET25,0,0,1,ion21Coop!$F$42)),1)) ->  | EX25: 7 | EZ25: 20 | FH25: 1 | FJ25: 1 | FK25: 1 | FL25: 1 | FM25: 1 | FN25: 1 | FO25: 1 | FP25: 1 | FQ25: 1 | FR25: 1 | FS25: =IF(ISBLANK(FE25),"",ROUND(AVERAGE(OFFSET(FJ25:FR25,0,0,1,ion21Coop!$F$42)),1)) ->  | FV25: 8 | FX25: 20 | GF25: 1 | GH25: 1 | GI25: 1 | GJ25: 1 | GK25: 1 | GL25: 1 | GM25: 1 | GN25: 1 | GO25: 1 | GP25: 1 | GQ25: =IF(ISBLANK(GC25),"",ROUND(AVERAGE(OFFSET(GH25:GP25,0,0,1,ion21Coop!$F$42)),1)) ->  | GT25: 9 | GV25: 20 | HD25: 1 | HF25: 1 | HG25: 1 | HH25: 1 | HI25: 1 | HJ25: 1 | HK25: 1 | HL25: 1 | HM25: 1 | HN25: 1 | HO25: =IF(ISBLANK(HA25),"",ROUND(AVERAGE(OFFSET(HF25:HN25,0,0,1,ion21Coop!$F$42)),1)) ->  | HR25: 10 | HT25: 20 | IB25: 1 | ID25: 1 | IE25: 1 | IF25: 1 | IG25: 1 | IH25: 1 | II25: 1 | IJ25: 1 | IK25: 1 | IL25: 1 | IM25: =IF(ISBLANK(HY25),"",ROUND(AVERAGE(OFFSET(ID25:IL25,0,0,1,ion21Coop!$F$42)),1)) ->  | IP25: 11 | IR25: 20 | IZ25: 1 | JB25: 1 | JC25: 1 | JD25: 1 | JE25: 1 | JF25: 1 | JG25: 1 | JH25: 1 | JI25: 1 | JJ25: 1 | JK25: =IF(ISBLANK(IW25),"",ROUND(AVERAGE(OFFSET(JB25:JJ25,0,0,1,ion21Coop!$F$42)),1)) ->  | JN25: 12 | JP25: 20 | JX25: 1 | JZ25: 1 | KA25: 1 | KB25: 1 | KC25: 1 | KD25: 1 | KE25: 1 | KF25: 1 | KG25: 1 | KH25: 1 | KI25: =IF(ISBLANK(JU25),"",ROUND(AVERAGE(OFFSET(JZ25:KH25,0,0,1,ion21Coop!$F$42)),1)) ->  | KL25: 13 | KN25: 20 | KV25: 1 | KX25: 1 | KY25: 1 | KZ25: 1 | LA25: 1 | LB25: 1 | LC25: 1 | LD25: 1 | LE25: 1 | LF25: 1 | LG25: =IF(ISBLANK(KS25),"",ROUND(AVERAGE(OFFSET(KX25:LF25,0,0,1,ion21Coop!$F$42)),1)) ->  | LJ25: 14 | LL25: 20 | LT25: 1 | LV25: 1 | LW25: 1 | LX25: 1 | LY25: 1 | LZ25: 1 | MA25: 1 | MB25: 1 | MC25: 1 | MD25: 1 | ME25: =IF(ISBLANK(LQ25),"",ROUND(AVERAGE(OFFSET(LV25:MD25,0,0,1,ion21Coop!$F$42)),1)) ->  | MH25: 15 | MJ25: 20 | MR25: 1 | MT25: 1 | MU25: 1 | MV25: 1 | MW25: 1 | MX25: 1 | MY25: 1 | MZ25: 1 | NA25: 1 | NB25: 1 | NC25: =IF(ISBLANK(MO25),"",ROUND(AVERAGE(OFFSET(MT25:NB25,0,0,1,ion21Coop!$F$42)),1)) ->  | NF25: 16 | NH25: 20 | NP25: 1 | NR25: 1 | NS25: 1 | NT25: 1 | NU25: 1 | NV25: 1 | NW25: 1 | NX25: 1 | NY25: 1 | NZ25: 1 | OA25: =IF(ISBLANK(NM25),"",ROUND(AVERAGE(OFFSET(NR25:NZ25,0,0,1,ion21Coop!$F$42)),1)) ->  | OD25: 17 | OF25: 20 | ON25: 1 | OP25: 1 | OQ25: 1 | OR25: 1 | OS25: 1 | OT25: 1 | OU25: 1 | OV25: 1 | OW25: 1 | OX25: 1 | OY25: =IF(ISBLANK(OK25),"",ROUND(AVERAGE(OFFSET(OP25:OX25,0,0,1,ion21Coop!$F$42)),1)) ->  | PB25: 18 | PD25: 20 | PL25: 1 | PN25: 1 | PO25: 1 | PP25: 1 | PQ25: 1 | PR25: 1 | PS25: 1 | PT25: 1 | PU25: 1 | PV25: 1 | PW25: =IF(ISBLANK(PI25),"",ROUND(AVERAGE(OFFSET(PN25:PV25,0,0,1,ion21Coop!$F$42)),1)) ->  | PZ25: 19 | QB25: 20 | QJ25: 1 | QL25: 1 | QM25: 1 | QN25: 1 | QO25: 1 | QP25: 1 | QQ25: 1 | QR25: 1 | QS25: 1 | QT25: 1 | QU25: =IF(ISBLANK(QG25),"",ROUND(AVERAGE(OFFSET(QL25:QT25,0,0,1,ion21Coop!$F$42)),1)) ->  | QX25: 20 | QZ25: 20 | RH25: 1 | RJ25: 1 | RK25: 1 | RL25: 1 | RM25: 1 | RN25: 1 | RO25: 1 | RP25: 1 | RQ25: 1 | RR25: 1 | RS25: =IF(ISBLANK(RE25),"",ROUND(AVERAGE(OFFSET(RJ25:RR25,0,0,1,ion21Coop!$F$42)),1)) ->  | RV25: 21 | RX25: 20 | SF25: 1 | SH25: 1 | SI25: 1 | SJ25: 1 | SK25: 1 | SL25: 1 | SM25: 1 | SN25: 1 | SO25: 1 | SP25: 1 | SQ25: =IF(ISBLANK(SC25),"",ROUND(AVERAGE(OFFSET(SH25:SP25,0,0,1,ion21Coop!$F$42)),1)) -> 
A26: 21 - | B26: =ion21Team!B25 -> 21 | C26: =IF(ISBLANK(ion21Team!C25),"",ion21Team!C25) ->  | D26: =IF(ISBLANK(ion21Team!$C$25),"",$SR$3) ->  | E26: =IF(ISBLANK(ion21Team!C25),"",IFERROR(D26/$D$27*100,0)) ->  | F26: =IF(ISBLANK(ion21Team!C25),"",ion21Votes!AF26) ->  | G26: =IF(ISBLANK(ion21Team!C25),"",ROUND(ion21Votes!$AF$27*E26/100,0)) ->  | H26: =IF(ISBLANK(ion21Team!C25),"",F26-G26) ->  | J26: 1 | K26: YaJo | L26: 21 | T26: 1 | V26: 1 | W26: 1 | X26: 1 | Y26: 1 | Z26: 1 | AA26: 1 | AB26: 1 | AC26: 1 | AD26: 1 | AE26: =IF(ISBLANK(Q26),"",ROUND(AVERAGE(OFFSET(V26:AD26,0,0,1,ion21Coop!$F$42)),1)) ->  | AH26: 2 | AI26: GeLo | AJ26: 21 | AR26: 1 | AT26: 1 | AU26: 1 | AV26: 1 | AW26: 1 | AX26: 1 | AY26: 1 | AZ26: 1 | BA26: 1 | BB26: 1 | BC26: =IF(ISBLANK(AO26),"",ROUND(AVERAGE(OFFSET(AT26:BB26,0,0,1,ion21Coop!$F$42)),1)) ->  | BF26: 3 | BG26: MiDo | BH26: 21 | BP26: 1 | BR26: 1 | BS26: 1 | BT26: 1 | BU26: 1 | BV26: 1 | BW26: 1 | BX26: 1 | BY26: 1 | BZ26: 1 | CA26: =IF(ISBLANK(BM26),"",ROUND(AVERAGE(OFFSET(BR26:BZ26,0,0,1,ion21Coop!$F$42)),1)) ->  | CD26: 4 | CE26: EmNi | CF26: 21 | CN26: 1 | CP26: 1 | CQ26: 1 | CR26: 1 | CS26: 1 | CT26: 1 | CU26: 1 | CV26: 1 | CW26: 1 | CX26: 1 | CY26: =IF(ISBLANK(CK26),"",ROUND(AVERAGE(OFFSET(CP26:CX26,0,0,1,ion21Coop!$F$42)),1)) ->  | DB26: 5 | DC26: HeJe | DD26: 21 | DL26: 1 | DN26: 1 | DO26: 1 | DP26: 1 | DQ26: 1 | DR26: 1 | DS26: 1 | DT26: 1 | DU26: 1 | DV26: 1 | DW26: =IF(ISBLANK(DI26),"",ROUND(AVERAGE(OFFSET(DN26:DV26,0,0,1,ion21Coop!$F$42)),1)) ->  | DZ26: 6 | EB26: 21 | EJ26: 1 | EL26: 1 | EM26: 1 | EN26: 1 | EO26: 1 | EP26: 1 | EQ26: 1 | ER26: 1 | ES26: 1 | ET26: 1 | EU26: =IF(ISBLANK(EG26),"",ROUND(AVERAGE(OFFSET(EL26:ET26,0,0,1,ion21Coop!$F$42)),1)) ->  | EX26: 7 | EZ26: 21 | FH26: 1 | FJ26: 1 | FK26: 1 | FL26: 1 | FM26: 1 | FN26: 1 | FO26: 1 | FP26: 1 | FQ26: 1 | FR26: 1 | FS26: =IF(ISBLANK(FE26),"",ROUND(AVERAGE(OFFSET(FJ26:FR26,0,0,1,ion21Coop!$F$42)),1)) ->  | FV26: 8 | FX26: 21 | GF26: 1 | GH26: 1 | GI26: 1 | GJ26: 1 | GK26: 1 | GL26: 1 | GM26: 1 | GN26: 1 | GO26: 1 | GP26: 1 | GQ26: =IF(ISBLANK(GC26),"",ROUND(AVERAGE(OFFSET(GH26:GP26,0,0,1,ion21Coop!$F$42)),1)) ->  | GT26: 9 | GV26: 21 | HD26: 1 | HF26: 1 | HG26: 1 | HH26: 1 | HI26: 1 | HJ26: 1 | HK26: 1 | HL26: 1 | HM26: 1 | HN26: 1 | HO26: =IF(ISBLANK(HA26),"",ROUND(AVERAGE(OFFSET(HF26:HN26,0,0,1,ion21Coop!$F$42)),1)) ->  | HR26: 10 | HT26: 21 | IB26: 1 | ID26: 1 | IE26: 1 | IF26: 1 | IG26: 1 | IH26: 1 | II26: 1 | IJ26: 1 | IK26: 1 | IL26: 1 | IM26: =IF(ISBLANK(HY26),"",ROUND(AVERAGE(OFFSET(ID26:IL26,0,0,1,ion21Coop!$F$42)),1)) ->  | IP26: 11 | IR26: 21 | IZ26: 1 | JB26: 1 | JC26: 1 | JD26: 1 | JE26: 1 | JF26: 1 | JG26: 1 | JH26: 1 | JI26: 1 | JJ26: 1 | JK26: =IF(ISBLANK(IW26),"",ROUND(AVERAGE(OFFSET(JB26:JJ26,0,0,1,ion21Coop!$F$42)),1)) ->  | JN26: 12 | JP26: 21 | JX26: 1 | JZ26: 1 | KA26: 1 | KB26: 1 | KC26: 1 | KD26: 1 | KE26: 1 | KF26: 1 | KG26: 1 | KH26: 1 | KI26: =IF(ISBLANK(JU26),"",ROUND(AVERAGE(OFFSET(JZ26:KH26,0,0,1,ion21Coop!$F$42)),1)) ->  | KL26: 13 | KN26: 21 | KV26: 1 | KX26: 1 | KY26: 1 | KZ26: 1 | LA26: 1 | LB26: 1 | LC26: 1 | LD26: 1 | LE26: 1 | LF26: 1 | LG26: =IF(ISBLANK(KS26),"",ROUND(AVERAGE(OFFSET(KX26:LF26,0,0,1,ion21Coop!$F$42)),1)) ->  | LJ26: 14 | LL26: 21 | LT26: 1 | LV26: 1 | LW26: 1 | LX26: 1 | LY26: 1 | LZ26: 1 | MA26: 1 | MB26: 1 | MC26: 1 | MD26: 1 | ME26: =IF(ISBLANK(LQ26),"",ROUND(AVERAGE(OFFSET(LV26:MD26,0,0,1,ion21Coop!$F$42)),1)) ->  | MH26: 15 | MJ26: 21 | MR26: 1 | MT26: 1 | MU26: 1 | MV26: 1 | MW26: 1 | MX26: 1 | MY26: 1 | MZ26: 1 | NA26: 1 | NB26: 1 | NC26: =IF(ISBLANK(MO26),"",ROUND(AVERAGE(OFFSET(MT26:NB26,0,0,1,ion21Coop!$F$42)),1)) ->  | NF26: 16 | NH26: 21 | NP26: 1 | NR26: 1 | NS26: 1 | NT26: 1 | NU26: 1 | NV26: 1 | NW26: 1 | NX26: 1 | NY26: 1 | NZ26: 1 | OA26: =IF(ISBLANK(NM26),"",ROUND(AVERAGE(OFFSET(NR26:NZ26,0,0,1,ion21Coop!$F$42)),1)) ->  | OD26: 17 | OF26: 21 | ON26: 1 | OP26: 1 | OQ26: 1 | OR26: 1 | OS26: 1 | OT26: 1 | OU26: 1 | OV26: 1 | OW26: 1 | OX26: 1 | OY26: =IF(ISBLANK(OK26),"",ROUND(AVERAGE(OFFSET(OP26:OX26,0,0,1,ion21Coop!$F$42)),1)) ->  | PB26: 18 | PD26: 21 | PL26: 1 | PN26: 1 | PO26: 1 | PP26: 1 | PQ26: 1 | PR26: 1 | PS26: 1 | PT26: 1 | PU26: 1 | PV26: 1 | PW26: =IF(ISBLANK(PI26),"",ROUND(AVERAGE(OFFSET(PN26:PV26,0,0,1,ion21Coop!$F$42)),1)) ->  | PZ26: 19 | QB26: 21 | QJ26: 1 | QL26: 1 | QM26: 1 | QN26: 1 | QO26: 1 | QP26: 1 | QQ26: 1 | QR26: 1 | QS26: 1 | QT26: 1 | QU26: =IF(ISBLANK(QG26),"",ROUND(AVERAGE(OFFSET(QL26:QT26,0,0,1,ion21Coop!$F$42)),1)) ->  | QX26: 20 | QZ26: 21 | RH26: 1 | RJ26: 1 | RK26: 1 | RL26: 1 | RM26: 1 | RN26: 1 | RO26: 1 | RP26: 1 | RQ26: 1 | RR26: 1 | RS26: =IF(ISBLANK(RE26),"",ROUND(AVERAGE(OFFSET(RJ26:RR26,0,0,1,ion21Coop!$F$42)),1)) ->  | RV26: 21 | RX26: 21 | SF26: 1 | SH26: 1 | SI26: 1 | SJ26: 1 | SK26: 1 | SL26: 1 | SM26: 1 | SN26: 1 | SO26: 1 | SP26: 1 | SQ26: =IF(ISBLANK(SC26),"",ROUND(AVERAGE(OFFSET(SH26:SP26,0,0,1,ion21Coop!$F$42)),1)) -> 
B27: Summary: | D27: =SUM(D6:D26) -> 936 | J27: =J$3 -> 1 | K27: YaJo | L27: 22 | T27: 1 | V27: 1 | W27: 1 | X27: 1 | Y27: 1 | Z27: 1 | AA27: 1 | AB27: 1 | AC27: 1 | AD27: 1 | AE27: =IF(ISBLANK(Q27),"",ROUND(AVERAGE(OFFSET(V27:AD27,0,0,1,ion21Coop!$F$42)),1)) ->  | AH27: =AH$3 -> 2 | AI27: GeLo | AJ27: 22 | AR27: 1 | AT27: 1 | AU27: 1 | AV27: 1 | AW27: 1 | AX27: 1 | AY27: 1 | AZ27: 1 | BA27: 1 | BB27: 1 | BC27: =IF(ISBLANK(AO27),"",ROUND(AVERAGE(OFFSET(AT27:BB27,0,0,1,ion21Coop!$F$42)),1)) ->  | BF27: =BF$3 -> 3 | BG27: MiDo | BH27: 22 | BP27: 1 | BR27: 1 | BS27: 1 | BT27: 1 | BU27: 1 | BV27: 1 | BW27: 1 | BX27: 1 | BY27: 1 | BZ27: 1 | CA27: =IF(ISBLANK(BM27),"",ROUND(AVERAGE(OFFSET(BR27:BZ27,0,0,1,ion21Coop!$F$42)),1)) ->  | CD27: =CD$3 -> 4 | CE27: EmNi | CF27: 22 | CN27: 1 | CP27: 1 | CQ27: 1 | CR27: 1 | CS27: 1 | CT27: 1 | CU27: 1 | CV27: 1 | CW27: 1 | CX27: 1 | CY27: =IF(ISBLANK(CK27),"",ROUND(AVERAGE(OFFSET(CP27:CX27,0,0,1,ion21Coop!$F$42)),1)) ->  | DB27: =DB$3 -> 5 | DC27: HeJe | DD27: 22 | DL27: 1 | DN27: 1 | DO27: 1 | DP27: 1 | DQ27: 1 | DR27: 1 | DS27: 1 | DT27: 1 | DU27: 1 | DV27: 1 | DW27: =IF(ISBLANK(DI27),"",ROUND(AVERAGE(OFFSET(DN27:DV27,0,0,1,ion21Coop!$F$42)),1)) ->  | DZ27: =DZ$3 -> 6 | EB27: 22 | EJ27: 1 | EL27: 1 | EM27: 1 | EN27: 1 | EO27: 1 | EP27: 1 | EQ27: 1 | ER27: 1 | ES27: 1 | ET27: 1 | EU27: =IF(ISBLANK(EG27),"",ROUND(AVERAGE(OFFSET(EL27:ET27,0,0,1,ion21Coop!$F$42)),1)) ->  | EX27: =EX$3 -> 7 | EZ27: 22 | FH27: 1 | FJ27: 1 | FK27: 1 | FL27: 1 | FM27: 1 | FN27: 1 | FO27: 1 | FP27: 1 | FQ27: 1 | FR27: 1 | FS27: =IF(ISBLANK(FE27),"",ROUND(AVERAGE(OFFSET(FJ27:FR27,0,0,1,ion21Coop!$F$42)),1)) ->  | FV27: =FV$3 -> 8 | FX27: 22 | GF27: 1 | GH27: 1 | GI27: 1 | GJ27: 1 | GK27: 1 | GL27: 1 | GM27: 1 | GN27: 1 | GO27: 1 | GP27: 1 | GQ27: =IF(ISBLANK(GC27),"",ROUND(AVERAGE(OFFSET(GH27:GP27,0,0,1,ion21Coop!$F$42)),1)) ->  | GT27: =GT$3 -> 9 | GV27: 22 | HD27: 1 | HF27: 1 | HG27: 1 | HH27: 1 | HI27: 1 | HJ27: 1 | HK27: 1 | HL27: 1 | HM27: 1 | HN27: 1 | HO27: =IF(ISBLANK(HA27),"",ROUND(AVERAGE(OFFSET(HF27:HN27,0,0,1,ion21Coop!$F$42)),1)) ->  | HR27: =HR$3 -> 10 | HT27: 22 | IB27: 1 | ID27: 1 | IE27: 1 | IF27: 1 | IG27: 1 | IH27: 1 | II27: 1 | IJ27: 1 | IK27: 1 | IL27: 1 | IM27: =IF(ISBLANK(HY27),"",ROUND(AVERAGE(OFFSET(ID27:IL27,0,0,1,ion21Coop!$F$42)),1)) ->  | IP27: =IP$3 -> 11 | IR27: 22 | IZ27: 1 | JB27: 1 | JC27: 1 | JD27: 1 | JE27: 1 | JF27: 1 | JG27: 1 | JH27: 1 | JI27: 1 | JJ27: 1 | JK27: =IF(ISBLANK(IW27),"",ROUND(AVERAGE(OFFSET(JB27:JJ27,0,0,1,ion21Coop!$F$42)),1)) ->  | JN27: =JN$3 -> 12 | JP27: 22 | JX27: 1 | JZ27: 1 | KA27: 1 | KB27: 1 | KC27: 1 | KD27: 1 | KE27: 1 | KF27: 1 | KG27: 1 | KH27: 1 | KI27: =IF(ISBLANK(JU27),"",ROUND(AVERAGE(OFFSET(JZ27:KH27,0,0,1,ion21Coop!$F$42)),1)) ->  | KL27: =KL$3 -> 13 | KN27: 22 | KV27: 1 | KX27: 1 | KY27: 1 | KZ27: 1 | LA27: 1 | LB27: 1 | LC27: 1 | LD27: 1 | LE27: 1 | LF27: 1 | LG27: =IF(ISBLANK(KS27),"",ROUND(AVERAGE(OFFSET(KX27:LF27,0,0,1,ion21Coop!$F$42)),1)) ->  | LJ27: =LJ$3 -> 14 | LL27: 22 | LT27: 1 | LV27: 1 | LW27: 1 | LX27: 1 | LY27: 1 | LZ27: 1 | MA27: 1 | MB27: 1 | MC27: 1 | MD27: 1 | ME27: =IF(ISBLANK(LQ27),"",ROUND(AVERAGE(OFFSET(LV27:MD27,0,0,1,ion21Coop!$F$42)),1)) ->  | MH27: =MH$3 -> 15 | MJ27: 22 | MR27: 1 | MT27: 1 | MU27: 1 | MV27: 1 | MW27: 1 | MX27: 1 | MY27: 1 | MZ27: 1 | NA27: 1 | NB27: 1 | NC27: =IF(ISBLANK(MO27),"",ROUND(AVERAGE(OFFSET(MT27:NB27,0,0,1,ion21Coop!$F$42)),1)) ->  | NF27: =NF$3 -> 16 | NH27: 22 | NP27: 1 | NR27: 1 | NS27: 1 | NT27: 1 | NU27: 1 | NV27: 1 | NW27: 1 | NX27: 1 | NY27: 1 | NZ27: 1 | OA27: =IF(ISBLANK(NM27),"",ROUND(AVERAGE(OFFSET(NR27:NZ27,0,0,1,ion21Coop!$F$42)),1)) ->  | OD27: =OD$3 -> 17 | OF27: 22 | ON27: 1 | OP27: 1 | OQ27: 1 | OR27: 1 | OS27: 1 | OT27: 1 | OU27: 1 | OV27: 1 | OW27: 1 | OX27: 1 | OY27: =IF(ISBLANK(OK27),"",ROUND(AVERAGE(OFFSET(OP27:OX27,0,0,1,ion21Coop!$F$42)),1)) ->  | PB27: =PB$3 -> 18 | PD27: 22 | PL27: 1 | PN27: 1 | PO27: 1 | PP27: 1 | PQ27: 1 | PR27: 1 | PS27: 1 | PT27: 1 | PU27: 1 | PV27: 1 | PW27: =IF(ISBLANK(PI27),"",ROUND(AVERAGE(OFFSET(PN27:PV27,0,0,1,ion21Coop!$F$42)),1)) ->  | PZ27: =PZ$3 -> 19 | QB27: 22 | QJ27: 1 | QL27: 1 | QM27: 1 | QN27: 1 | QO27: 1 | QP27: 1 | QQ27: 1 | QR27: 1 | QS27: 1 | QT27: 1 | QU27: =IF(ISBLANK(QG27),"",ROUND(AVERAGE(OFFSET(QL27:QT27,0,0,1,ion21Coop!$F$42)),1)) ->  | QX27: =QX$3 -> 20 | QZ27: 22 | RH27: 1 | RJ27: 1 | RK27: 1 | RL27: 1 | RM27: 1 | RN27: 1 | RO27: 1 | RP27: 1 | RQ27: 1 | RR27: 1 | RS27: =IF(ISBLANK(RE27),"",ROUND(AVERAGE(OFFSET(RJ27:RR27,0,0,1,ion21Coop!$F$42)),1)) ->  | RV27: =RV$3 -> 21 | RX27: 22 | SF27: 1 | SH27: 1 | SI27: 1 | SJ27: 1 | SK27: 1 | SL27: 1 | SM27: 1 | SN27: 1 | SO27: 1 | SP27: 1 | SQ27: =IF(ISBLANK(SC27),"",ROUND(AVERAGE(OFFSET(SH27:SP27,0,0,1,ion21Coop!$F$42)),1)) -> 
J28: 1 | K28: YaJo | L28: 23 | T28: 1 | V28: 1 | W28: 1 | X28: 1 | Y28: 1 | Z28: 1 | AA28: 1 | AB28: 1 | AC28: 1 | AD28: 1 | AE28: =IF(ISBLANK(Q28),"",ROUND(AVERAGE(OFFSET(V28:AD28,0,0,1,ion21Coop!$F$42)),1)) ->  | AH28: 2 | AI28: GeLo | AJ28: 23 | AR28: 1 | AT28: 1 | AU28: 1 | AV28: 1 | AW28: 1 | AX28: 1 | AY28: 1 | AZ28: 1 | BA28: 1 | BB28: 1 | BC28: =IF(ISBLANK(AO28),"",ROUND(AVERAGE(OFFSET(AT28:BB28,0,0,1,ion21Coop!$F$42)),1)) ->  | BF28: 3 | BG28: MiDo | BH28: 23 | BP28: 1 | BR28: 1 | BS28: 1 | BT28: 1 | BU28: 1 | BV28: 1 | BW28: 1 | BX28: 1 | BY28: 1 | BZ28: 1 | CA28: =IF(ISBLANK(BM28),"",ROUND(AVERAGE(OFFSET(BR28:BZ28,0,0,1,ion21Coop!$F$42)),1)) ->  | CD28: 4 | CE28: EmNi | CF28: 23 | CN28: 1 | CP28: 1 | CQ28: 1 | CR28: 1 | CS28: 1 | CT28: 1 | CU28: 1 | CV28: 1 | CW28: 1 | CX28: 1 | CY28: =IF(ISBLANK(CK28),"",ROUND(AVERAGE(OFFSET(CP28:CX28,0,0,1,ion21Coop!$F$42)),1)) ->  | DB28: 5 | DC28: HeJe | DD28: 23 | DL28: 1 | DN28: 1 | DO28: 1 | DP28: 1 | DQ28: 1 | DR28: 1 | DS28: 1 | DT28: 1 | DU28: 1 | DV28: 1 | DW28: =IF(ISBLANK(DI28),"",ROUND(AVERAGE(OFFSET(DN28:DV28,0,0,1,ion21Coop!$F$42)),1)) ->  | DZ28: 6 | EB28: 23 | EJ28: 1 | EL28: 1 | EM28: 1 | EN28: 1 | EO28: 1 | EP28: 1 | EQ28: 1 | ER28: 1 | ES28: 1 | ET28: 1 | EU28: =IF(ISBLANK(EG28),"",ROUND(AVERAGE(OFFSET(EL28:ET28,0,0,1,ion21Coop!$F$42)),1)) ->  | EX28: 7 | EZ28: 23 | FH28: 1 | FJ28: 1 | FK28: 1 | FL28: 1 | FM28: 1 | FN28: 1 | FO28: 1 | FP28: 1 | FQ28: 1 | FR28: 1 | FS28: =IF(ISBLANK(FE28),"",ROUND(AVERAGE(OFFSET(FJ28:FR28,0,0,1,ion21Coop!$F$42)),1)) ->  | FV28: 8 | FX28: 23 | GF28: 1 | GH28: 1 | GI28: 1 | GJ28: 1 | GK28: 1 | GL28: 1 | GM28: 1 | GN28: 1 | GO28: 1 | GP28: 1 | GQ28: =IF(ISBLANK(GC28),"",ROUND(AVERAGE(OFFSET(GH28:GP28,0,0,1,ion21Coop!$F$42)),1)) ->  | GT28: 9 | GV28: 23 | HD28: 1 | HF28: 1 | HG28: 1 | HH28: 1 | HI28: 1 | HJ28: 1 | HK28: 1 | HL28: 1 | HM28: 1 | HN28: 1 | HO28: =IF(ISBLANK(HA28),"",ROUND(AVERAGE(OFFSET(HF28:HN28,0,0,1,ion21Coop!$F$42)),1)) ->  | HR28: 10 | HT28: 23 | IB28: 1 | ID28: 1 | IE28: 1 | IF28: 1 | IG28: 1 | IH28: 1 | II28: 1 | IJ28: 1 | IK28: 1 | IL28: 1 | IM28: =IF(ISBLANK(HY28),"",ROUND(AVERAGE(OFFSET(ID28:IL28,0,0,1,ion21Coop!$F$42)),1)) ->  | IP28: 11 | IR28: 23 | IZ28: 1 | JB28: 1 | JC28: 1 | JD28: 1 | JE28: 1 | JF28: 1 | JG28: 1 | JH28: 1 | JI28: 1 | JJ28: 1 | JK28: =IF(ISBLANK(IW28),"",ROUND(AVERAGE(OFFSET(JB28:JJ28,0,0,1,ion21Coop!$F$42)),1)) ->  | JN28: 12 | JP28: 23 | JX28: 1 | JZ28: 1 | KA28: 1 | KB28: 1 | KC28: 1 | KD28: 1 | KE28: 1 | KF28: 1 | KG28: 1 | KH28: 1 | KI28: =IF(ISBLANK(JU28),"",ROUND(AVERAGE(OFFSET(JZ28:KH28,0,0,1,ion21Coop!$F$42)),1)) ->  | KL28: 13 | KN28: 23 | KV28: 1 | KX28: 1 | KY28: 1 | KZ28: 1 | LA28: 1 | LB28: 1 | LC28: 1 | LD28: 1 | LE28: 1 | LF28: 1 | LG28: =IF(ISBLANK(KS28),"",ROUND(AVERAGE(OFFSET(KX28:LF28,0,0,1,ion21Coop!$F$42)),1)) ->  | LJ28: 14 | LL28: 23 | LT28: 1 | LV28: 1 | LW28: 1 | LX28: 1 | LY28: 1 | LZ28: 1 | MA28: 1 | MB28: 1 | MC28: 1 | MD28: 1 | ME28: =IF(ISBLANK(LQ28),"",ROUND(AVERAGE(OFFSET(LV28:MD28,0,0,1,ion21Coop!$F$42)),1)) ->  | MH28: 15 | MJ28: 23 | MR28: 1 | MT28: 1 | MU28: 1 | MV28: 1 | MW28: 1 | MX28: 1 | MY28: 1 | MZ28: 1 | NA28: 1 | NB28: 1 | NC28: =IF(ISBLANK(MO28),"",ROUND(AVERAGE(OFFSET(MT28:NB28,0,0,1,ion21Coop!$F$42)),1)) ->  | NF28: 16 | NH28: 23 | NP28: 1 | NR28: 1 | NS28: 1 | NT28: 1 | NU28: 1 | NV28: 1 | NW28: 1 | NX28: 1 | NY28: 1 | NZ28: 1 | OA28: =IF(ISBLANK(NM28),"",ROUND(AVERAGE(OFFSET(NR28:NZ28,0,0,1,ion21Coop!$F$42)),1)) ->  | OD28: 17 | OF28: 23 | ON28: 1 | OP28: 1 | OQ28: 1 | OR28: 1 | OS28: 1 | OT28: 1 | OU28: 1 | OV28: 1 | OW28: 1 | OX28: 1 | OY28: =IF(ISBLANK(OK28),"",ROUND(AVERAGE(OFFSET(OP28:OX28,0,0,1,ion21Coop!$F$42)),1)) ->  | PB28: 18 | PD28: 23 | PL28: 1 | PN28: 1 | PO28: 1 | PP28: 1 | PQ28: 1 | PR28: 1 | PS28: 1 | PT28: 1 | PU28: 1 | PV28: 1 | PW28: =IF(ISBLANK(PI28),"",ROUND(AVERAGE(OFFSET(PN28:PV28,0,0,1,ion21Coop!$F$42)),1)) ->  | PZ28: 19 | QB28: 23 | QJ28: 1 | QL28: 1 | QM28: 1 | QN28: 1 | QO28: 1 | QP28: 1 | QQ28: 1 | QR28: 1 | QS28: 1 | QT28: 1 | QU28: =IF(ISBLANK(QG28),"",ROUND(AVERAGE(OFFSET(QL28:QT28,0,0,1,ion21Coop!$F$42)),1)) ->  | QX28: 20 | QZ28: 23 | RH28: 1 | RJ28: 1 | RK28: 1 | RL28: 1 | RM28: 1 | RN28: 1 | RO28: 1 | RP28: 1 | RQ28: 1 | RR28: 1 | RS28: =IF(ISBLANK(RE28),"",ROUND(AVERAGE(OFFSET(RJ28:RR28,0,0,1,ion21Coop!$F$42)),1)) ->  | RV28: 21 | RX28: 23 | SF28: 1 | SH28: 1 | SI28: 1 | SJ28: 1 | SK28: 1 | SL28: 1 | SM28: 1 | SN28: 1 | SO28: 1 | SP28: 1 | SQ28: =IF(ISBLANK(SC28),"",ROUND(AVERAGE(OFFSET(SH28:SP28,0,0,1,ion21Coop!$F$42)),1)) -> 
A29: Set: | J29: 1 | K29: YaJo | L29: 24 | T29: 1 | V29: 1 | W29: 1 | X29: 1 | Y29: 1 | Z29: 1 | AA29: 1 | AB29: 1 | AC29: 1 | AD29: 1 | AE29: =IF(ISBLANK(Q29),"",ROUND(AVERAGE(OFFSET(V29:AD29,0,0,1,ion21Coop!$F$42)),1)) ->  | AH29: 2 | AI29: GeLo | AJ29: 24 | AR29: 1 | AT29: 1 | AU29: 1 | AV29: 1 | AW29: 1 | AX29: 1 | AY29: 1 | AZ29: 1 | BA29: 1 | BB29: 1 | BC29: =IF(ISBLANK(AO29),"",ROUND(AVERAGE(OFFSET(AT29:BB29,0,0,1,ion21Coop!$F$42)),1)) ->  | BF29: 3 | BG29: MiDo | BH29: 24 | BP29: 1 | BR29: 1 | BS29: 1 | BT29: 1 | BU29: 1 | BV29: 1 | BW29: 1 | BX29: 1 | BY29: 1 | BZ29: 1 | CA29: =IF(ISBLANK(BM29),"",ROUND(AVERAGE(OFFSET(BR29:BZ29,0,0,1,ion21Coop!$F$42)),1)) ->  | CD29: 4 | CE29: EmNi | CF29: 24 | CN29: 1 | CP29: 1 | CQ29: 1 | CR29: 1 | CS29: 1 | CT29: 1 | CU29: 1 | CV29: 1 | CW29: 1 | CX29: 1 | CY29: =IF(ISBLANK(CK29),"",ROUND(AVERAGE(OFFSET(CP29:CX29,0,0,1,ion21Coop!$F$42)),1)) ->  | DB29: 5 | DC29: HeJe | DD29: 24 | DL29: 1 | DN29: 1 | DO29: 1 | DP29: 1 | DQ29: 1 | DR29: 1 | DS29: 1 | DT29: 1 | DU29: 1 | DV29: 1 | DW29: =IF(ISBLANK(DI29),"",ROUND(AVERAGE(OFFSET(DN29:DV29,0,0,1,ion21Coop!$F$42)),1)) ->  | DZ29: 6 | EB29: 24 | EJ29: 1 | EL29: 1 | EM29: 1 | EN29: 1 | EO29: 1 | EP29: 1 | EQ29: 1 | ER29: 1 | ES29: 1 | ET29: 1 | EU29: =IF(ISBLANK(EG29),"",ROUND(AVERAGE(OFFSET(EL29:ET29,0,0,1,ion21Coop!$F$42)),1)) ->  | EX29: 7 | EZ29: 24 | FH29: 1 | FJ29: 1 | FK29: 1 | FL29: 1 | FM29: 1 | FN29: 1 | FO29: 1 | FP29: 1 | FQ29: 1 | FR29: 1 | FS29: =IF(ISBLANK(FE29),"",ROUND(AVERAGE(OFFSET(FJ29:FR29,0,0,1,ion21Coop!$F$42)),1)) ->  | FV29: 8 | FX29: 24 | GF29: 1 | GH29: 1 | GI29: 1 | GJ29: 1 | GK29: 1 | GL29: 1 | GM29: 1 | GN29: 1 | GO29: 1 | GP29: 1 | GQ29: =IF(ISBLANK(GC29),"",ROUND(AVERAGE(OFFSET(GH29:GP29,0,0,1,ion21Coop!$F$42)),1)) ->  | GT29: 9 | GV29: 24 | HD29: 1 | HF29: 1 | HG29: 1 | HH29: 1 | HI29: 1 | HJ29: 1 | HK29: 1 | HL29: 1 | HM29: 1 | HN29: 1 | HO29: =IF(ISBLANK(HA29),"",ROUND(AVERAGE(OFFSET(HF29:HN29,0,0,1,ion21Coop!$F$42)),1)) ->  | HR29: 10 | HT29: 24 | IB29: 1 | ID29: 1 | IE29: 1 | IF29: 1 | IG29: 1 | IH29: 1 | II29: 1 | IJ29: 1 | IK29: 1 | IL29: 1 | IM29: =IF(ISBLANK(HY29),"",ROUND(AVERAGE(OFFSET(ID29:IL29,0,0,1,ion21Coop!$F$42)),1)) ->  | IP29: 11 | IR29: 24 | IZ29: 1 | JB29: 1 | JC29: 1 | JD29: 1 | JE29: 1 | JF29: 1 | JG29: 1 | JH29: 1 | JI29: 1 | JJ29: 1 | JK29: =IF(ISBLANK(IW29),"",ROUND(AVERAGE(OFFSET(JB29:JJ29,0,0,1,ion21Coop!$F$42)),1)) ->  | JN29: 12 | JP29: 24 | JX29: 1 | JZ29: 1 | KA29: 1 | KB29: 1 | KC29: 1 | KD29: 1 | KE29: 1 | KF29: 1 | KG29: 1 | KH29: 1 | KI29: =IF(ISBLANK(JU29),"",ROUND(AVERAGE(OFFSET(JZ29:KH29,0,0,1,ion21Coop!$F$42)),1)) ->  | KL29: 13 | KN29: 24 | KV29: 1 | KX29: 1 | KY29: 1 | KZ29: 1 | LA29: 1 | LB29: 1 | LC29: 1 | LD29: 1 | LE29: 1 | LF29: 1 | LG29: =IF(ISBLANK(KS29),"",ROUND(AVERAGE(OFFSET(KX29:LF29,0,0,1,ion21Coop!$F$42)),1)) ->  | LJ29: 14 | LL29: 24 | LT29: 1 | LV29: 1 | LW29: 1 | LX29: 1 | LY29: 1 | LZ29: 1 | MA29: 1 | MB29: 1 | MC29: 1 | MD29: 1 | ME29: =IF(ISBLANK(LQ29),"",ROUND(AVERAGE(OFFSET(LV29:MD29,0,0,1,ion21Coop!$F$42)),1)) ->  | MH29: 15 | MJ29: 24 | MR29: 1 | MT29: 1 | MU29: 1 | MV29: 1 | MW29: 1 | MX29: 1 | MY29: 1 | MZ29: 1 | NA29: 1 | NB29: 1 | NC29: =IF(ISBLANK(MO29),"",ROUND(AVERAGE(OFFSET(MT29:NB29,0,0,1,ion21Coop!$F$42)),1)) ->  | NF29: 16 | NH29: 24 | NP29: 1 | NR29: 1 | NS29: 1 | NT29: 1 | NU29: 1 | NV29: 1 | NW29: 1 | NX29: 1 | NY29: 1 | NZ29: 1 | OA29: =IF(ISBLANK(NM29),"",ROUND(AVERAGE(OFFSET(NR29:NZ29,0,0,1,ion21Coop!$F$42)),1)) ->  | OD29: 17 | OF29: 24 | ON29: 1 | OP29: 1 | OQ29: 1 | OR29: 1 | OS29: 1 | OT29: 1 | OU29: 1 | OV29: 1 | OW29: 1 | OX29: 1 | OY29: =IF(ISBLANK(OK29),"",ROUND(AVERAGE(OFFSET(OP29:OX29,0,0,1,ion21Coop!$F$42)),1)) ->  | PB29: 18 | PD29: 24 | PL29: 1 | PN29: 1 | PO29: 1 | PP29: 1 | PQ29: 1 | PR29: 1 | PS29: 1 | PT29: 1 | PU29: 1 | PV29: 1 | PW29: =IF(ISBLANK(PI29),"",ROUND(AVERAGE(OFFSET(PN29:PV29,0,0,1,ion21Coop!$F$42)),1)) ->  | PZ29: 19 | QB29: 24 | QJ29: 1 | QL29: 1 | QM29: 1 | QN29: 1 | QO29: 1 | QP29: 1 | QQ29: 1 | QR29: 1 | QS29: 1 | QT29: 1 | QU29: =IF(ISBLANK(QG29),"",ROUND(AVERAGE(OFFSET(QL29:QT29,0,0,1,ion21Coop!$F$42)),1)) ->  | QX29: 20 | QZ29: 24 | RH29: 1 | RJ29: 1 | RK29: 1 | RL29: 1 | RM29: 1 | RN29: 1 | RO29: 1 | RP29: 1 | RQ29: 1 | RR29: 1 | RS29: =IF(ISBLANK(RE29),"",ROUND(AVERAGE(OFFSET(RJ29:RR29,0,0,1,ion21Coop!$F$42)),1)) ->  | RV29: 21 | RX29: 24 | SF29: 1 | SH29: 1 | SI29: 1 | SJ29: 1 | SK29: 1 | SL29: 1 | SM29: 1 | SN29: 1 | SO29: 1 | SP29: 1 | SQ29: =IF(ISBLANK(SC29),"",ROUND(AVERAGE(OFFSET(SH29:SP29,0,0,1,ion21Coop!$F$42)),1)) -> 
A30: Lock | J30: 1 | K30: YaJo | L30: 25 | T30: 1 | V30: 1 | W30: 1 | X30: 1 | Y30: 1 | Z30: 1 | AA30: 1 | AB30: 1 | AC30: 1 | AD30: 1 | AE30: =IF(ISBLANK(Q30),"",ROUND(AVERAGE(OFFSET(V30:AD30,0,0,1,ion21Coop!$F$42)),1)) ->  | AH30: 2 | AI30: GeLo | AJ30: 25 | AR30: 1 | AT30: 1 | AU30: 1 | AV30: 1 | AW30: 1 | AX30: 1 | AY30: 1 | AZ30: 1 | BA30: 1 | BB30: 1 | BC30: =IF(ISBLANK(AO30),"",ROUND(AVERAGE(OFFSET(AT30:BB30,0,0,1,ion21Coop!$F$42)),1)) ->  | BF30: 3 | BG30: MiDo | BH30: 25 | BP30: 1 | BR30: 1 | BS30: 1 | BT30: 1 | BU30: 1 | BV30: 1 | BW30: 1 | BX30: 1 | BY30: 1 | BZ30: 1 | CA30: =IF(ISBLANK(BM30),"",ROUND(AVERAGE(OFFSET(BR30:BZ30,0,0,1,ion21Coop!$F$42)),1)) ->  | CD30: 4 | CE30: EmNi | CF30: 25 | CN30: 1 | CP30: 1 | CQ30: 1 | CR30: 1 | CS30: 1 | CT30: 1 | CU30: 1 | CV30: 1 | CW30: 1 | CX30: 1 | CY30: =IF(ISBLANK(CK30),"",ROUND(AVERAGE(OFFSET(CP30:CX30,0,0,1,ion21Coop!$F$42)),1)) ->  | DB30: 5 | DC30: HeJe | DD30: 25 | DL30: 1 | DN30: 1 | DO30: 1 | DP30: 1 | DQ30: 1 | DR30: 1 | DS30: 1 | DT30: 1 | DU30: 1 | DV30: 1 | DW30: =IF(ISBLANK(DI30),"",ROUND(AVERAGE(OFFSET(DN30:DV30,0,0,1,ion21Coop!$F$42)),1)) ->  | DZ30: 6 | EB30: 25 | EJ30: 1 | EL30: 1 | EM30: 1 | EN30: 1 | EO30: 1 | EP30: 1 | EQ30: 1 | ER30: 1 | ES30: 1 | ET30: 1 | EU30: =IF(ISBLANK(EG30),"",ROUND(AVERAGE(OFFSET(EL30:ET30,0,0,1,ion21Coop!$F$42)),1)) ->  | EX30: 7 | EZ30: 25 | FH30: 1 | FJ30: 1 | FK30: 1 | FL30: 1 | FM30: 1 | FN30: 1 | FO30: 1 | FP30: 1 | FQ30: 1 | FR30: 1 | FS30: =IF(ISBLANK(FE30),"",ROUND(AVERAGE(OFFSET(FJ30:FR30,0,0,1,ion21Coop!$F$42)),1)) ->  | FV30: 8 | FX30: 25 | GF30: 1 | GH30: 1 | GI30: 1 | GJ30: 1 | GK30: 1 | GL30: 1 | GM30: 1 | GN30: 1 | GO30: 1 | GP30: 1 | GQ30: =IF(ISBLANK(GC30),"",ROUND(AVERAGE(OFFSET(GH30:GP30,0,0,1,ion21Coop!$F$42)),1)) ->  | GT30: 9 | GV30: 25 | HD30: 1 | HF30: 1 | HG30: 1 | HH30: 1 | HI30: 1 | HJ30: 1 | HK30: 1 | HL30: 1 | HM30: 1 | HN30: 1 | HO30: =IF(ISBLANK(HA30),"",ROUND(AVERAGE(OFFSET(HF30:HN30,0,0,1,ion21Coop!$F$42)),1)) ->  | HR30: 10 | HT30: 25 | IB30: 1 | ID30: 1 | IE30: 1 | IF30: 1 | IG30: 1 | IH30: 1 | II30: 1 | IJ30: 1 | IK30: 1 | IL30: 1 | IM30: =IF(ISBLANK(HY30),"",ROUND(AVERAGE(OFFSET(ID30:IL30,0,0,1,ion21Coop!$F$42)),1)) ->  | IP30: 11 | IR30: 25 | IZ30: 1 | JB30: 1 | JC30: 1 | JD30: 1 | JE30: 1 | JF30: 1 | JG30: 1 | JH30: 1 | JI30: 1 | JJ30: 1 | JK30: =IF(ISBLANK(IW30),"",ROUND(AVERAGE(OFFSET(JB30:JJ30,0,0,1,ion21Coop!$F$42)),1)) ->  | JN30: 12 | JP30: 25 | JX30: 1 | JZ30: 1 | KA30: 1 | KB30: 1 | KC30: 1 | KD30: 1 | KE30: 1 | KF30: 1 | KG30: 1 | KH30: 1 | KI30: =IF(ISBLANK(JU30),"",ROUND(AVERAGE(OFFSET(JZ30:KH30,0,0,1,ion21Coop!$F$42)),1)) ->  | KL30: 13 | KN30: 25 | KV30: 1 | KX30: 1 | KY30: 1 | KZ30: 1 | LA30: 1 | LB30: 1 | LC30: 1 | LD30: 1 | LE30: 1 | LF30: 1 | LG30: =IF(ISBLANK(KS30),"",ROUND(AVERAGE(OFFSET(KX30:LF30,0,0,1,ion21Coop!$F$42)),1)) ->  | LJ30: 14 | LL30: 25 | LT30: 1 | LV30: 1 | LW30: 1 | LX30: 1 | LY30: 1 | LZ30: 1 | MA30: 1 | MB30: 1 | MC30: 1 | MD30: 1 | ME30: =IF(ISBLANK(LQ30),"",ROUND(AVERAGE(OFFSET(LV30:MD30,0,0,1,ion21Coop!$F$42)),1)) ->  | MH30: 15 | MJ30: 25 | MR30: 1 | MT30: 1 | MU30: 1 | MV30: 1 | MW30: 1 | MX30: 1 | MY30: 1 | MZ30: 1 | NA30: 1 | NB30: 1 | NC30: =IF(ISBLANK(MO30),"",ROUND(AVERAGE(OFFSET(MT30:NB30,0,0,1,ion21Coop!$F$42)),1)) ->  | NF30: 16 | NH30: 25 | NP30: 1 | NR30: 1 | NS30: 1 | NT30: 1 | NU30: 1 | NV30: 1 | NW30: 1 | NX30: 1 | NY30: 1 | NZ30: 1 | OA30: =IF(ISBLANK(NM30),"",ROUND(AVERAGE(OFFSET(NR30:NZ30,0,0,1,ion21Coop!$F$42)),1)) ->  | OD30: 17 | OF30: 25 | ON30: 1 | OP30: 1 | OQ30: 1 | OR30: 1 | OS30: 1 | OT30: 1 | OU30: 1 | OV30: 1 | OW30: 1 | OX30: 1 | OY30: =IF(ISBLANK(OK30),"",ROUND(AVERAGE(OFFSET(OP30:OX30,0,0,1,ion21Coop!$F$42)),1)) ->  | PB30: 18 | PD30: 25 | PL30: 1 | PN30: 1 | PO30: 1 | PP30: 1 | PQ30: 1 | PR30: 1 | PS30: 1 | PT30: 1 | PU30: 1 | PV30: 1 | PW30: =IF(ISBLANK(PI30),"",ROUND(AVERAGE(OFFSET(PN30:PV30,0,0,1,ion21Coop!$F$42)),1)) ->  | PZ30: 19 | QB30: 25 | QJ30: 1 | QL30: 1 | QM30: 1 | QN30: 1 | QO30: 1 | QP30: 1 | QQ30: 1 | QR30: 1 | QS30: 1 | QT30: 1 | QU30: =IF(ISBLANK(QG30),"",ROUND(AVERAGE(OFFSET(QL30:QT30,0,0,1,ion21Coop!$F$42)),1)) ->  | QX30: 20 | QZ30: 25 | RH30: 1 | RJ30: 1 | RK30: 1 | RL30: 1 | RM30: 1 | RN30: 1 | RO30: 1 | RP30: 1 | RQ30: 1 | RR30: 1 | RS30: =IF(ISBLANK(RE30),"",ROUND(AVERAGE(OFFSET(RJ30:RR30,0,0,1,ion21Coop!$F$42)),1)) ->  | RV30: 21 | RX30: 25 | SF30: 1 | SH30: 1 | SI30: 1 | SJ30: 1 | SK30: 1 | SL30: 1 | SM30: 1 | SN30: 1 | SO30: 1 | SP30: 1 | SQ30: =IF(ISBLANK(SC30),"",ROUND(AVERAGE(OFFSET(SH30:SP30,0,0,1,ion21Coop!$F$42)),1)) -> 
A31: Unlock | J31: 1 | K31: YaJo | L31: 26 | T31: 1 | V31: 1 | W31: 1 | X31: 1 | Y31: 1 | Z31: 1 | AA31: 1 | AB31: 1 | AC31: 1 | AD31: 1 | AE31: =IF(ISBLANK(Q31),"",ROUND(AVERAGE(OFFSET(V31:AD31,0,0,1,ion21Coop!$F$42)),1)) ->  | AH31: 2 | AI31: GeLo | AJ31: 26 | AR31: 1 | AT31: 1 | AU31: 1 | AV31: 1 | AW31: 1 | AX31: 1 | AY31: 1 | AZ31: 1 | BA31: 1 | BB31: 1 | BC31: =IF(ISBLANK(AO31),"",ROUND(AVERAGE(OFFSET(AT31:BB31,0,0,1,ion21Coop!$F$42)),1)) ->  | BF31: 3 | BG31: MiDo | BH31: 26 | BP31: 1 | BR31: 1 | BS31: 1 | BT31: 1 | BU31: 1 | BV31: 1 | BW31: 1 | BX31: 1 | BY31: 1 | BZ31: 1 | CA31: =IF(ISBLANK(BM31),"",ROUND(AVERAGE(OFFSET(BR31:BZ31,0,0,1,ion21Coop!$F$42)),1)) ->  | CD31: 4 | CE31: EmNi | CF31: 26 | CN31: 1 | CP31: 1 | CQ31: 1 | CR31: 1 | CS31: 1 | CT31: 1 | CU31: 1 | CV31: 1 | CW31: 1 | CX31: 1 | CY31: =IF(ISBLANK(CK31),"",ROUND(AVERAGE(OFFSET(CP31:CX31,0,0,1,ion21Coop!$F$42)),1)) ->  | DB31: 5 | DC31: HeJe | DD31: 26 | DL31: 1 | DN31: 1 | DO31: 1 | DP31: 1 | DQ31: 1 | DR31: 1 | DS31: 1 | DT31: 1 | DU31: 1 | DV31: 1 | DW31: =IF(ISBLANK(DI31),"",ROUND(AVERAGE(OFFSET(DN31:DV31,0,0,1,ion21Coop!$F$42)),1)) ->  | DZ31: 6 | EB31: 26 | EJ31: 1 | EL31: 1 | EM31: 1 | EN31: 1 | EO31: 1 | EP31: 1 | EQ31: 1 | ER31: 1 | ES31: 1 | ET31: 1 | EU31: =IF(ISBLANK(EG31),"",ROUND(AVERAGE(OFFSET(EL31:ET31,0,0,1,ion21Coop!$F$42)),1)) ->  | EX31: 7 | EZ31: 26 | FH31: 1 | FJ31: 1 | FK31: 1 | FL31: 1 | FM31: 1 | FN31: 1 | FO31: 1 | FP31: 1 | FQ31: 1 | FR31: 1 | FS31: =IF(ISBLANK(FE31),"",ROUND(AVERAGE(OFFSET(FJ31:FR31,0,0,1,ion21Coop!$F$42)),1)) ->  | FV31: 8 | FX31: 26 | GF31: 1 | GH31: 1 | GI31: 1 | GJ31: 1 | GK31: 1 | GL31: 1 | GM31: 1 | GN31: 1 | GO31: 1 | GP31: 1 | GQ31: =IF(ISBLANK(GC31),"",ROUND(AVERAGE(OFFSET(GH31:GP31,0,0,1,ion21Coop!$F$42)),1)) ->  | GT31: 9 | GV31: 26 | HD31: 1 | HF31: 1 | HG31: 1 | HH31: 1 | HI31: 1 | HJ31: 1 | HK31: 1 | HL31: 1 | HM31: 1 | HN31: 1 | HO31: =IF(ISBLANK(HA31),"",ROUND(AVERAGE(OFFSET(HF31:HN31,0,0,1,ion21Coop!$F$42)),1)) ->  | HR31: 10 | HT31: 26 | IB31: 1 | ID31: 1 | IE31: 1 | IF31: 1 | IG31: 1 | IH31: 1 | II31: 1 | IJ31: 1 | IK31: 1 | IL31: 1 | IM31: =IF(ISBLANK(HY31),"",ROUND(AVERAGE(OFFSET(ID31:IL31,0,0,1,ion21Coop!$F$42)),1)) ->  | IP31: 11 | IR31: 26 | IZ31: 1 | JB31: 1 | JC31: 1 | JD31: 1 | JE31: 1 | JF31: 1 | JG31: 1 | JH31: 1 | JI31: 1 | JJ31: 1 | JK31: =IF(ISBLANK(IW31),"",ROUND(AVERAGE(OFFSET(JB31:JJ31,0,0,1,ion21Coop!$F$42)),1)) ->  | JN31: 12 | JP31: 26 | JX31: 1 | JZ31: 1 | KA31: 1 | KB31: 1 | KC31: 1 | KD31: 1 | KE31: 1 | KF31: 1 | KG31: 1 | KH31: 1 | KI31: =IF(ISBLANK(JU31),"",ROUND(AVERAGE(OFFSET(JZ31:KH31,0,0,1,ion21Coop!$F$42)),1)) ->  | KL31: 13 | KN31: 26 | KV31: 1 | KX31: 1 | KY31: 1 | KZ31: 1 | LA31: 1 | LB31: 1 | LC31: 1 | LD31: 1 | LE31: 1 | LF31: 1 | LG31: =IF(ISBLANK(KS31),"",ROUND(AVERAGE(OFFSET(KX31:LF31,0,0,1,ion21Coop!$F$42)),1)) ->  | LJ31: 14 | LL31: 26 | LT31: 1 | LV31: 1 | LW31: 1 | LX31: 1 | LY31: 1 | LZ31: 1 | MA31: 1 | MB31: 1 | MC31: 1 | MD31: 1 | ME31: =IF(ISBLANK(LQ31),"",ROUND(AVERAGE(OFFSET(LV31:MD31,0,0,1,ion21Coop!$F$42)),1)) ->  | MH31: 15 | MJ31: 26 | MR31: 1 | MT31: 1 | MU31: 1 | MV31: 1 | MW31: 1 | MX31: 1 | MY31: 1 | MZ31: 1 | NA31: 1 | NB31: 1 | NC31: =IF(ISBLANK(MO31),"",ROUND(AVERAGE(OFFSET(MT31:NB31,0,0,1,ion21Coop!$F$42)),1)) ->  | NF31: 16 | NH31: 26 | NP31: 1 | NR31: 1 | NS31: 1 | NT31: 1 | NU31: 1 | NV31: 1 | NW31: 1 | NX31: 1 | NY31: 1 | NZ31: 1 | OA31: =IF(ISBLANK(NM31),"",ROUND(AVERAGE(OFFSET(NR31:NZ31,0,0,1,ion21Coop!$F$42)),1)) ->  | OD31: 17 | OF31: 26 | ON31: 1 | OP31: 1 | OQ31: 1 | OR31: 1 | OS31: 1 | OT31: 1 | OU31: 1 | OV31: 1 | OW31: 1 | OX31: 1 | OY31: =IF(ISBLANK(OK31),"",ROUND(AVERAGE(OFFSET(OP31:OX31,0,0,1,ion21Coop!$F$42)),1)) ->  | PB31: 18 | PD31: 26 | PL31: 1 | PN31: 1 | PO31: 1 | PP31: 1 | PQ31: 1 | PR31: 1 | PS31: 1 | PT31: 1 | PU31: 1 | PV31: 1 | PW31: =IF(ISBLANK(PI31),"",ROUND(AVERAGE(OFFSET(PN31:PV31,0,0,1,ion21Coop!$F$42)),1)) ->  | PZ31: 19 | QB31: 26 | QJ31: 1 | QL31: 1 | QM31: 1 | QN31: 1 | QO31: 1 | QP31: 1 | QQ31: 1 | QR31: 1 | QS31: 1 | QT31: 1 | QU31: =IF(ISBLANK(QG31),"",ROUND(AVERAGE(OFFSET(QL31:QT31,0,0,1,ion21Coop!$F$42)),1)) ->  | QX31: 20 | QZ31: 26 | RH31: 1 | RJ31: 1 | RK31: 1 | RL31: 1 | RM31: 1 | RN31: 1 | RO31: 1 | RP31: 1 | RQ31: 1 | RR31: 1 | RS31: =IF(ISBLANK(RE31),"",ROUND(AVERAGE(OFFSET(RJ31:RR31,0,0,1,ion21Coop!$F$42)),1)) ->  | RV31: 21 | RX31: 26 | SF31: 1 | SH31: 1 | SI31: 1 | SJ31: 1 | SK31: 1 | SL31: 1 | SM31: 1 | SN31: 1 | SO31: 1 | SP31: 1 | SQ31: =IF(ISBLANK(SC31),"",ROUND(AVERAGE(OFFSET(SH31:SP31,0,0,1,ion21Coop!$F$42)),1)) -> 
A32: Reset | J32: 1 | K32: YaJo | L32: 27 | T32: 1 | V32: 1 | W32: 1 | X32: 1 | Y32: 1 | Z32: 1 | AA32: 1 | AB32: 1 | AC32: 1 | AD32: 1 | AE32: =IF(ISBLANK(Q32),"",ROUND(AVERAGE(OFFSET(V32:AD32,0,0,1,ion21Coop!$F$42)),1)) ->  | AH32: 2 | AI32: GeLo | AJ32: 27 | AR32: 1 | AT32: 1 | AU32: 1 | AV32: 1 | AW32: 1 | AX32: 1 | AY32: 1 | AZ32: 1 | BA32: 1 | BB32: 1 | BC32: =IF(ISBLANK(AO32),"",ROUND(AVERAGE(OFFSET(AT32:BB32,0,0,1,ion21Coop!$F$42)),1)) ->  | BF32: 3 | BG32: MiDo | BH32: 27 | BP32: 1 | BR32: 1 | BS32: 1 | BT32: 1 | BU32: 1 | BV32: 1 | BW32: 1 | BX32: 1 | BY32: 1 | BZ32: 1 | CA32: =IF(ISBLANK(BM32),"",ROUND(AVERAGE(OFFSET(BR32:BZ32,0,0,1,ion21Coop!$F$42)),1)) ->  | CD32: 4 | CE32: EmNi | CF32: 27 | CN32: 1 | CP32: 1 | CQ32: 1 | CR32: 1 | CS32: 1 | CT32: 1 | CU32: 1 | CV32: 1 | CW32: 1 | CX32: 1 | CY32: =IF(ISBLANK(CK32),"",ROUND(AVERAGE(OFFSET(CP32:CX32,0,0,1,ion21Coop!$F$42)),1)) ->  | DB32: 5 | DC32: HeJe | DD32: 27 | DL32: 1 | DN32: 1 | DO32: 1 | DP32: 1 | DQ32: 1 | DR32: 1 | DS32: 1 | DT32: 1 | DU32: 1 | DV32: 1 | DW32: =IF(ISBLANK(DI32),"",ROUND(AVERAGE(OFFSET(DN32:DV32,0,0,1,ion21Coop!$F$42)),1)) ->  | DZ32: 6 | EB32: 27 | EJ32: 1 | EL32: 1 | EM32: 1 | EN32: 1 | EO32: 1 | EP32: 1 | EQ32: 1 | ER32: 1 | ES32: 1 | ET32: 1 | EU32: =IF(ISBLANK(EG32),"",ROUND(AVERAGE(OFFSET(EL32:ET32,0,0,1,ion21Coop!$F$42)),1)) ->  | EX32: 7 | EZ32: 27 | FH32: 1 | FJ32: 1 | FK32: 1 | FL32: 1 | FM32: 1 | FN32: 1 | FO32: 1 | FP32: 1 | FQ32: 1 | FR32: 1 | FS32: =IF(ISBLANK(FE32),"",ROUND(AVERAGE(OFFSET(FJ32:FR32,0,0,1,ion21Coop!$F$42)),1)) ->  | FV32: 8 | FX32: 27 | GF32: 1 | GH32: 1 | GI32: 1 | GJ32: 1 | GK32: 1 | GL32: 1 | GM32: 1 | GN32: 1 | GO32: 1 | GP32: 1 | GQ32: =IF(ISBLANK(GC32),"",ROUND(AVERAGE(OFFSET(GH32:GP32,0,0,1,ion21Coop!$F$42)),1)) ->  | GT32: 9 | GV32: 27 | HD32: 1 | HF32: 1 | HG32: 1 | HH32: 1 | HI32: 1 | HJ32: 1 | HK32: 1 | HL32: 1 | HM32: 1 | HN32: 1 | HO32: =IF(ISBLANK(HA32),"",ROUND(AVERAGE(OFFSET(HF32:HN32,0,0,1,ion21Coop!$F$42)),1)) ->  | HR32: 10 | HT32: 27 | IB32: 1 | ID32: 1 | IE32: 1 | IF32: 1 | IG32: 1 | IH32: 1 | II32: 1 | IJ32: 1 | IK32: 1 | IL32: 1 | IM32: =IF(ISBLANK(HY32),"",ROUND(AVERAGE(OFFSET(ID32:IL32,0,0,1,ion21Coop!$F$42)),1)) ->  | IP32: 11 | IR32: 27 | IZ32: 1 | JB32: 1 | JC32: 1 | JD32: 1 | JE32: 1 | JF32: 1 | JG32: 1 | JH32: 1 | JI32: 1 | JJ32: 1 | JK32: =IF(ISBLANK(IW32),"",ROUND(AVERAGE(OFFSET(JB32:JJ32,0,0,1,ion21Coop!$F$42)),1)) ->  | JN32: 12 | JP32: 27 | JX32: 1 | JZ32: 1 | KA32: 1 | KB32: 1 | KC32: 1 | KD32: 1 | KE32: 1 | KF32: 1 | KG32: 1 | KH32: 1 | KI32: =IF(ISBLANK(JU32),"",ROUND(AVERAGE(OFFSET(JZ32:KH32,0,0,1,ion21Coop!$F$42)),1)) ->  | KL32: 13 | KN32: 27 | KV32: 1 | KX32: 1 | KY32: 1 | KZ32: 1 | LA32: 1 | LB32: 1 | LC32: 1 | LD32: 1 | LE32: 1 | LF32: 1 | LG32: =IF(ISBLANK(KS32),"",ROUND(AVERAGE(OFFSET(KX32:LF32,0,0,1,ion21Coop!$F$42)),1)) ->  | LJ32: 14 | LL32: 27 | LT32: 1 | LV32: 1 | LW32: 1 | LX32: 1 | LY32: 1 | LZ32: 1 | MA32: 1 | MB32: 1 | MC32: 1 | MD32: 1 | ME32: =IF(ISBLANK(LQ32),"",ROUND(AVERAGE(OFFSET(LV32:MD32,0,0,1,ion21Coop!$F$42)),1)) ->  | MH32: 15 | MJ32: 27 | MR32: 1 | MT32: 1 | MU32: 1 | MV32: 1 | MW32: 1 | MX32: 1 | MY32: 1 | MZ32: 1 | NA32: 1 | NB32: 1 | NC32: =IF(ISBLANK(MO32),"",ROUND(AVERAGE(OFFSET(MT32:NB32,0,0,1,ion21Coop!$F$42)),1)) ->  | NF32: 16 | NH32: 27 | NP32: 1 | NR32: 1 | NS32: 1 | NT32: 1 | NU32: 1 | NV32: 1 | NW32: 1 | NX32: 1 | NY32: 1 | NZ32: 1 | OA32: =IF(ISBLANK(NM32),"",ROUND(AVERAGE(OFFSET(NR32:NZ32,0,0,1,ion21Coop!$F$42)),1)) ->  | OD32: 17 | OF32: 27 | ON32: 1 | OP32: 1 | OQ32: 1 | OR32: 1 | OS32: 1 | OT32: 1 | OU32: 1 | OV32: 1 | OW32: 1 | OX32: 1 | OY32: =IF(ISBLANK(OK32),"",ROUND(AVERAGE(OFFSET(OP32:OX32,0,0,1,ion21Coop!$F$42)),1)) ->  | PB32: 18 | PD32: 27 | PL32: 1 | PN32: 1 | PO32: 1 | PP32: 1 | PQ32: 1 | PR32: 1 | PS32: 1 | PT32: 1 | PU32: 1 | PV32: 1 | PW32: =IF(ISBLANK(PI32),"",ROUND(AVERAGE(OFFSET(PN32:PV32,0,0,1,ion21Coop!$F$42)),1)) ->  | PZ32: 19 | QB32: 27 | QJ32: 1 | QL32: 1 | QM32: 1 | QN32: 1 | QO32: 1 | QP32: 1 | QQ32: 1 | QR32: 1 | QS32: 1 | QT32: 1 | QU32: =IF(ISBLANK(QG32),"",ROUND(AVERAGE(OFFSET(QL32:QT32,0,0,1,ion21Coop!$F$42)),1)) ->  | QX32: 20 | QZ32: 27 | RH32: 1 | RJ32: 1 | RK32: 1 | RL32: 1 | RM32: 1 | RN32: 1 | RO32: 1 | RP32: 1 | RQ32: 1 | RR32: 1 | RS32: =IF(ISBLANK(RE32),"",ROUND(AVERAGE(OFFSET(RJ32:RR32,0,0,1,ion21Coop!$F$42)),1)) ->  | RV32: 21 | RX32: 27 | SF32: 1 | SH32: 1 | SI32: 1 | SJ32: 1 | SK32: 1 | SL32: 1 | SM32: 1 | SN32: 1 | SO32: 1 | SP32: 1 | SQ32: =IF(ISBLANK(SC32),"",ROUND(AVERAGE(OFFSET(SH32:SP32,0,0,1,ion21Coop!$F$42)),1)) -> 
A33: ion21 | J33: 1 | K33: YaJo | L33: 28 | T33: 1 | V33: 1 | W33: 1 | X33: 1 | Y33: 1 | Z33: 1 | AA33: 1 | AB33: 1 | AC33: 1 | AD33: 1 | AE33: =IF(ISBLANK(Q33),"",ROUND(AVERAGE(OFFSET(V33:AD33,0,0,1,ion21Coop!$F$42)),1)) ->  | AH33: 2 | AI33: GeLo | AJ33: 28 | AR33: 1 | AT33: 1 | AU33: 1 | AV33: 1 | AW33: 1 | AX33: 1 | AY33: 1 | AZ33: 1 | BA33: 1 | BB33: 1 | BC33: =IF(ISBLANK(AO33),"",ROUND(AVERAGE(OFFSET(AT33:BB33,0,0,1,ion21Coop!$F$42)),1)) ->  | BF33: 3 | BG33: MiDo | BH33: 28 | BP33: 1 | BR33: 1 | BS33: 1 | BT33: 1 | BU33: 1 | BV33: 1 | BW33: 1 | BX33: 1 | BY33: 1 | BZ33: 1 | CA33: =IF(ISBLANK(BM33),"",ROUND(AVERAGE(OFFSET(BR33:BZ33,0,0,1,ion21Coop!$F$42)),1)) ->  | CD33: 4 | CE33: EmNi | CF33: 28 | CN33: 1 | CP33: 1 | CQ33: 1 | CR33: 1 | CS33: 1 | CT33: 1 | CU33: 1 | CV33: 1 | CW33: 1 | CX33: 1 | CY33: =IF(ISBLANK(CK33),"",ROUND(AVERAGE(OFFSET(CP33:CX33,0,0,1,ion21Coop!$F$42)),1)) ->  | DB33: 5 | DC33: HeJe | DD33: 28 | DL33: 1 | DN33: 1 | DO33: 1 | DP33: 1 | DQ33: 1 | DR33: 1 | DS33: 1 | DT33: 1 | DU33: 1 | DV33: 1 | DW33: =IF(ISBLANK(DI33),"",ROUND(AVERAGE(OFFSET(DN33:DV33,0,0,1,ion21Coop!$F$42)),1)) ->  | DZ33: 6 | EB33: 28 | EJ33: 1 | EL33: 1 | EM33: 1 | EN33: 1 | EO33: 1 | EP33: 1 | EQ33: 1 | ER33: 1 | ES33: 1 | ET33: 1 | EU33: =IF(ISBLANK(EG33),"",ROUND(AVERAGE(OFFSET(EL33:ET33,0,0,1,ion21Coop!$F$42)),1)) ->  | EX33: 7 | EZ33: 28 | FH33: 1 | FJ33: 1 | FK33: 1 | FL33: 1 | FM33: 1 | FN33: 1 | FO33: 1 | FP33: 1 | FQ33: 1 | FR33: 1 | FS33: =IF(ISBLANK(FE33),"",ROUND(AVERAGE(OFFSET(FJ33:FR33,0,0,1,ion21Coop!$F$42)),1)) ->  | FV33: 8 | FX33: 28 | GF33: 1 | GH33: 1 | GI33: 1 | GJ33: 1 | GK33: 1 | GL33: 1 | GM33: 1 | GN33: 1 | GO33: 1 | GP33: 1 | GQ33: =IF(ISBLANK(GC33),"",ROUND(AVERAGE(OFFSET(GH33:GP33,0,0,1,ion21Coop!$F$42)),1)) ->  | GT33: 9 | GV33: 28 | HD33: 1 | HF33: 1 | HG33: 1 | HH33: 1 | HI33: 1 | HJ33: 1 | HK33: 1 | HL33: 1 | HM33: 1 | HN33: 1 | HO33: =IF(ISBLANK(HA33),"",ROUND(AVERAGE(OFFSET(HF33:HN33,0,0,1,ion21Coop!$F$42)),1)) ->  | HR33: 10 | HT33: 28 | IB33: 1 | ID33: 1 | IE33: 1 | IF33: 1 | IG33: 1 | IH33: 1 | II33: 1 | IJ33: 1 | IK33: 1 | IL33: 1 | IM33: =IF(ISBLANK(HY33),"",ROUND(AVERAGE(OFFSET(ID33:IL33,0,0,1,ion21Coop!$F$42)),1)) ->  | IP33: 11 | IR33: 28 | IZ33: 1 | JB33: 1 | JC33: 1 | JD33: 1 | JE33: 1 | JF33: 1 | JG33: 1 | JH33: 1 | JI33: 1 | JJ33: 1 | JK33: =IF(ISBLANK(IW33),"",ROUND(AVERAGE(OFFSET(JB33:JJ33,0,0,1,ion21Coop!$F$42)),1)) ->  | JN33: 12 | JP33: 28 | JX33: 1 | JZ33: 1 | KA33: 1 | KB33: 1 | KC33: 1 | KD33: 1 | KE33: 1 | KF33: 1 | KG33: 1 | KH33: 1 | KI33: =IF(ISBLANK(JU33),"",ROUND(AVERAGE(OFFSET(JZ33:KH33,0,0,1,ion21Coop!$F$42)),1)) ->  | KL33: 13 | KN33: 28 | KV33: 1 | KX33: 1 | KY33: 1 | KZ33: 1 | LA33: 1 | LB33: 1 | LC33: 1 | LD33: 1 | LE33: 1 | LF33: 1 | LG33: =IF(ISBLANK(KS33),"",ROUND(AVERAGE(OFFSET(KX33:LF33,0,0,1,ion21Coop!$F$42)),1)) ->  | LJ33: 14 | LL33: 28 | LT33: 1 | LV33: 1 | LW33: 1 | LX33: 1 | LY33: 1 | LZ33: 1 | MA33: 1 | MB33: 1 | MC33: 1 | MD33: 1 | ME33: =IF(ISBLANK(LQ33),"",ROUND(AVERAGE(OFFSET(LV33:MD33,0,0,1,ion21Coop!$F$42)),1)) ->  | MH33: 15 | MJ33: 28 | MR33: 1 | MT33: 1 | MU33: 1 | MV33: 1 | MW33: 1 | MX33: 1 | MY33: 1 | MZ33: 1 | NA33: 1 | NB33: 1 | NC33: =IF(ISBLANK(MO33),"",ROUND(AVERAGE(OFFSET(MT33:NB33,0,0,1,ion21Coop!$F$42)),1)) ->  | NF33: 16 | NH33: 28 | NP33: 1 | NR33: 1 | NS33: 1 | NT33: 1 | NU33: 1 | NV33: 1 | NW33: 1 | NX33: 1 | NY33: 1 | NZ33: 1 | OA33: =IF(ISBLANK(NM33),"",ROUND(AVERAGE(OFFSET(NR33:NZ33,0,0,1,ion21Coop!$F$42)),1)) ->  | OD33: 17 | OF33: 28 | ON33: 1 | OP33: 1 | OQ33: 1 | OR33: 1 | OS33: 1 | OT33: 1 | OU33: 1 | OV33: 1 | OW33: 1 | OX33: 1 | OY33: =IF(ISBLANK(OK33),"",ROUND(AVERAGE(OFFSET(OP33:OX33,0,0,1,ion21Coop!$F$42)),1)) ->  | PB33: 18 | PD33: 28 | PL33: 1 | PN33: 1 | PO33: 1 | PP33: 1 | PQ33: 1 | PR33: 1 | PS33: 1 | PT33: 1 | PU33: 1 | PV33: 1 | PW33: =IF(ISBLANK(PI33),"",ROUND(AVERAGE(OFFSET(PN33:PV33,0,0,1,ion21Coop!$F$42)),1)) ->  | PZ33: 19 | QB33: 28 | QJ33: 1 | QL33: 1 | QM33: 1 | QN33: 1 | QO33: 1 | QP33: 1 | QQ33: 1 | QR33: 1 | QS33: 1 | QT33: 1 | QU33: =IF(ISBLANK(QG33),"",ROUND(AVERAGE(OFFSET(QL33:QT33,0,0,1,ion21Coop!$F$42)),1)) ->  | QX33: 20 | QZ33: 28 | RH33: 1 | RJ33: 1 | RK33: 1 | RL33: 1 | RM33: 1 | RN33: 1 | RO33: 1 | RP33: 1 | RQ33: 1 | RR33: 1 | RS33: =IF(ISBLANK(RE33),"",ROUND(AVERAGE(OFFSET(RJ33:RR33,0,0,1,ion21Coop!$F$42)),1)) ->  | RV33: 21 | RX33: 28 | SF33: 1 | SH33: 1 | SI33: 1 | SJ33: 1 | SK33: 1 | SL33: 1 | SM33: 1 | SN33: 1 | SO33: 1 | SP33: 1 | SQ33: =IF(ISBLANK(SC33),"",ROUND(AVERAGE(OFFSET(SH33:SP33,0,0,1,ion21Coop!$F$42)),1)) -> 
A34: Set: | J34: 1 | K34: YaJo | L34: 29 | T34: 1 | V34: 1 | W34: 1 | X34: 1 | Y34: 1 | Z34: 1 | AA34: 1 | AB34: 1 | AC34: 1 | AD34: 1 | AE34: =IF(ISBLANK(Q34),"",ROUND(AVERAGE(OFFSET(V34:AD34,0,0,1,ion21Coop!$F$42)),1)) ->  | AH34: 2 | AI34: GeLo | AJ34: 29 | AR34: 1 | AT34: 1 | AU34: 1 | AV34: 1 | AW34: 1 | AX34: 1 | AY34: 1 | AZ34: 1 | BA34: 1 | BB34: 1 | BC34: =IF(ISBLANK(AO34),"",ROUND(AVERAGE(OFFSET(AT34:BB34,0,0,1,ion21Coop!$F$42)),1)) ->  | BF34: 3 | BG34: MiDo | BH34: 29 | BP34: 1 | BR34: 1 | BS34: 1 | BT34: 1 | BU34: 1 | BV34: 1 | BW34: 1 | BX34: 1 | BY34: 1 | BZ34: 1 | CA34: =IF(ISBLANK(BM34),"",ROUND(AVERAGE(OFFSET(BR34:BZ34,0,0,1,ion21Coop!$F$42)),1)) ->  | CD34: 4 | CE34: EmNi | CF34: 29 | CN34: 1 | CP34: 1 | CQ34: 1 | CR34: 1 | CS34: 1 | CT34: 1 | CU34: 1 | CV34: 1 | CW34: 1 | CX34: 1 | CY34: =IF(ISBLANK(CK34),"",ROUND(AVERAGE(OFFSET(CP34:CX34,0,0,1,ion21Coop!$F$42)),1)) ->  | DB34: 5 | DC34: HeJe | DD34: 29 | DL34: 1 | DN34: 1 | DO34: 1 | DP34: 1 | DQ34: 1 | DR34: 1 | DS34: 1 | DT34: 1 | DU34: 1 | DV34: 1 | DW34: =IF(ISBLANK(DI34),"",ROUND(AVERAGE(OFFSET(DN34:DV34,0,0,1,ion21Coop!$F$42)),1)) ->  | DZ34: 6 | EB34: 29 | EJ34: 1 | EL34: 1 | EM34: 1 | EN34: 1 | EO34: 1 | EP34: 1 | EQ34: 1 | ER34: 1 | ES34: 1 | ET34: 1 | EU34: =IF(ISBLANK(EG34),"",ROUND(AVERAGE(OFFSET(EL34:ET34,0,0,1,ion21Coop!$F$42)),1)) ->  | EX34: 7 | EZ34: 29 | FH34: 1 | FJ34: 1 | FK34: 1 | FL34: 1 | FM34: 1 | FN34: 1 | FO34: 1 | FP34: 1 | FQ34: 1 | FR34: 1 | FS34: =IF(ISBLANK(FE34),"",ROUND(AVERAGE(OFFSET(FJ34:FR34,0,0,1,ion21Coop!$F$42)),1)) ->  | FV34: 8 | FX34: 29 | GF34: 1 | GH34: 1 | GI34: 1 | GJ34: 1 | GK34: 1 | GL34: 1 | GM34: 1 | GN34: 1 | GO34: 1 | GP34: 1 | GQ34: =IF(ISBLANK(GC34),"",ROUND(AVERAGE(OFFSET(GH34:GP34,0,0,1,ion21Coop!$F$42)),1)) ->  | GT34: 9 | GV34: 29 | HD34: 1 | HF34: 1 | HG34: 1 | HH34: 1 | HI34: 1 | HJ34: 1 | HK34: 1 | HL34: 1 | HM34: 1 | HN34: 1 | HO34: =IF(ISBLANK(HA34),"",ROUND(AVERAGE(OFFSET(HF34:HN34,0,0,1,ion21Coop!$F$42)),1)) ->  | HR34: 10 | HT34: 29 | IB34: 1 | ID34: 1 | IE34: 1 | IF34: 1 | IG34: 1 | IH34: 1 | II34: 1 | IJ34: 1 | IK34: 1 | IL34: 1 | IM34: =IF(ISBLANK(HY34),"",ROUND(AVERAGE(OFFSET(ID34:IL34,0,0,1,ion21Coop!$F$42)),1)) ->  | IP34: 11 | IR34: 29 | IZ34: 1 | JB34: 1 | JC34: 1 | JD34: 1 | JE34: 1 | JF34: 1 | JG34: 1 | JH34: 1 | JI34: 1 | JJ34: 1 | JK34: =IF(ISBLANK(IW34),"",ROUND(AVERAGE(OFFSET(JB34:JJ34,0,0,1,ion21Coop!$F$42)),1)) ->  | JN34: 12 | JP34: 29 | JX34: 1 | JZ34: 1 | KA34: 1 | KB34: 1 | KC34: 1 | KD34: 1 | KE34: 1 | KF34: 1 | KG34: 1 | KH34: 1 | KI34: =IF(ISBLANK(JU34),"",ROUND(AVERAGE(OFFSET(JZ34:KH34,0,0,1,ion21Coop!$F$42)),1)) ->  | KL34: 13 | KN34: 29 | KV34: 1 | KX34: 1 | KY34: 1 | KZ34: 1 | LA34: 1 | LB34: 1 | LC34: 1 | LD34: 1 | LE34: 1 | LF34: 1 | LG34: =IF(ISBLANK(KS34),"",ROUND(AVERAGE(OFFSET(KX34:LF34,0,0,1,ion21Coop!$F$42)),1)) ->  | LJ34: 14 | LL34: 29 | LT34: 1 | LV34: 1 | LW34: 1 | LX34: 1 | LY34: 1 | LZ34: 1 | MA34: 1 | MB34: 1 | MC34: 1 | MD34: 1 | ME34: =IF(ISBLANK(LQ34),"",ROUND(AVERAGE(OFFSET(LV34:MD34,0,0,1,ion21Coop!$F$42)),1)) ->  | MH34: 15 | MJ34: 29 | MR34: 1 | MT34: 1 | MU34: 1 | MV34: 1 | MW34: 1 | MX34: 1 | MY34: 1 | MZ34: 1 | NA34: 1 | NB34: 1 | NC34: =IF(ISBLANK(MO34),"",ROUND(AVERAGE(OFFSET(MT34:NB34,0,0,1,ion21Coop!$F$42)),1)) ->  | NF34: 16 | NH34: 29 | NP34: 1 | NR34: 1 | NS34: 1 | NT34: 1 | NU34: 1 | NV34: 1 | NW34: 1 | NX34: 1 | NY34: 1 | NZ34: 1 | OA34: =IF(ISBLANK(NM34),"",ROUND(AVERAGE(OFFSET(NR34:NZ34,0,0,1,ion21Coop!$F$42)),1)) ->  | OD34: 17 | OF34: 29 | ON34: 1 | OP34: 1 | OQ34: 1 | OR34: 1 | OS34: 1 | OT34: 1 | OU34: 1 | OV34: 1 | OW34: 1 | OX34: 1 | OY34: =IF(ISBLANK(OK34),"",ROUND(AVERAGE(OFFSET(OP34:OX34,0,0,1,ion21Coop!$F$42)),1)) ->  | PB34: 18 | PD34: 29 | PL34: 1 | PN34: 1 | PO34: 1 | PP34: 1 | PQ34: 1 | PR34: 1 | PS34: 1 | PT34: 1 | PU34: 1 | PV34: 1 | PW34: =IF(ISBLANK(PI34),"",ROUND(AVERAGE(OFFSET(PN34:PV34,0,0,1,ion21Coop!$F$42)),1)) ->  | PZ34: 19 | QB34: 29 | QJ34: 1 | QL34: 1 | QM34: 1 | QN34: 1 | QO34: 1 | QP34: 1 | QQ34: 1 | QR34: 1 | QS34: 1 | QT34: 1 | QU34: =IF(ISBLANK(QG34),"",ROUND(AVERAGE(OFFSET(QL34:QT34,0,0,1,ion21Coop!$F$42)),1)) ->  | QX34: 20 | QZ34: 29 | RH34: 1 | RJ34: 1 | RK34: 1 | RL34: 1 | RM34: 1 | RN34: 1 | RO34: 1 | RP34: 1 | RQ34: 1 | RR34: 1 | RS34: =IF(ISBLANK(RE34),"",ROUND(AVERAGE(OFFSET(RJ34:RR34,0,0,1,ion21Coop!$F$42)),1)) ->  | RV34: 21 | RX34: 29 | SF34: 1 | SH34: 1 | SI34: 1 | SJ34: 1 | SK34: 1 | SL34: 1 | SM34: 1 | SN34: 1 | SO34: 1 | SP34: 1 | SQ34: =IF(ISBLANK(SC34),"",ROUND(AVERAGE(OFFSET(SH34:SP34,0,0,1,ion21Coop!$F$42)),1)) -> 
A35: Lock | J35: 1 | K35: YaJo | L35: 30 | T35: 1 | V35: 1 | W35: 1 | X35: 1 | Y35: 1 | Z35: 1 | AA35: 1 | AB35: 1 | AC35: 1 | AD35: 1 | AE35: =IF(ISBLANK(Q35),"",ROUND(AVERAGE(OFFSET(V35:AD35,0,0,1,ion21Coop!$F$42)),1)) ->  | AH35: 2 | AI35: GeLo | AJ35: 30 | AR35: 1 | AT35: 1 | AU35: 1 | AV35: 1 | AW35: 1 | AX35: 1 | AY35: 1 | AZ35: 1 | BA35: 1 | BB35: 1 | BC35: =IF(ISBLANK(AO35),"",ROUND(AVERAGE(OFFSET(AT35:BB35,0,0,1,ion21Coop!$F$42)),1)) ->  | BF35: 3 | BG35: MiDo | BH35: 30 | BP35: 1 | BR35: 1 | BS35: 1 | BT35: 1 | BU35: 1 | BV35: 1 | BW35: 1 | BX35: 1 | BY35: 1 | BZ35: 1 | CA35: =IF(ISBLANK(BM35),"",ROUND(AVERAGE(OFFSET(BR35:BZ35,0,0,1,ion21Coop!$F$42)),1)) ->  | CD35: 4 | CE35: EmNi | CF35: 30 | CN35: 1 | CP35: 1 | CQ35: 1 | CR35: 1 | CS35: 1 | CT35: 1 | CU35: 1 | CV35: 1 | CW35: 1 | CX35: 1 | CY35: =IF(ISBLANK(CK35),"",ROUND(AVERAGE(OFFSET(CP35:CX35,0,0,1,ion21Coop!$F$42)),1)) ->  | DB35: 5 | DC35: HeJe | DD35: 30 | DL35: 1 | DN35: 1 | DO35: 1 | DP35: 1 | DQ35: 1 | DR35: 1 | DS35: 1 | DT35: 1 | DU35: 1 | DV35: 1 | DW35: =IF(ISBLANK(DI35),"",ROUND(AVERAGE(OFFSET(DN35:DV35,0,0,1,ion21Coop!$F$42)),1)) ->  | DZ35: 6 | EB35: 30 | EJ35: 1 | EL35: 1 | EM35: 1 | EN35: 1 | EO35: 1 | EP35: 1 | EQ35: 1 | ER35: 1 | ES35: 1 | ET35: 1 | EU35: =IF(ISBLANK(EG35),"",ROUND(AVERAGE(OFFSET(EL35:ET35,0,0,1,ion21Coop!$F$42)),1)) ->  | EX35: 7 | EZ35: 30 | FH35: 1 | FJ35: 1 | FK35: 1 | FL35: 1 | FM35: 1 | FN35: 1 | FO35: 1 | FP35: 1 | FQ35: 1 | FR35: 1 | FS35: =IF(ISBLANK(FE35),"",ROUND(AVERAGE(OFFSET(FJ35:FR35,0,0,1,ion21Coop!$F$42)),1)) ->  | FV35: 8 | FX35: 30 | GF35: 1 | GH35: 1 | GI35: 1 | GJ35: 1 | GK35: 1 | GL35: 1 | GM35: 1 | GN35: 1 | GO35: 1 | GP35: 1 | GQ35: =IF(ISBLANK(GC35),"",ROUND(AVERAGE(OFFSET(GH35:GP35,0,0,1,ion21Coop!$F$42)),1)) ->  | GT35: 9 | GV35: 30 | HD35: 1 | HF35: 1 | HG35: 1 | HH35: 1 | HI35: 1 | HJ35: 1 | HK35: 1 | HL35: 1 | HM35: 1 | HN35: 1 | HO35: =IF(ISBLANK(HA35),"",ROUND(AVERAGE(OFFSET(HF35:HN35,0,0,1,ion21Coop!$F$42)),1)) ->  | HR35: 10 | HT35: 30 | IB35: 1 | ID35: 1 | IE35: 1 | IF35: 1 | IG35: 1 | IH35: 1 | II35: 1 | IJ35: 1 | IK35: 1 | IL35: 1 | IM35: =IF(ISBLANK(HY35),"",ROUND(AVERAGE(OFFSET(ID35:IL35,0,0,1,ion21Coop!$F$42)),1)) ->  | IP35: 11 | IR35: 30 | IZ35: 1 | JB35: 1 | JC35: 1 | JD35: 1 | JE35: 1 | JF35: 1 | JG35: 1 | JH35: 1 | JI35: 1 | JJ35: 1 | JK35: =IF(ISBLANK(IW35),"",ROUND(AVERAGE(OFFSET(JB35:JJ35,0,0,1,ion21Coop!$F$42)),1)) ->  | JN35: 12 | JP35: 30 | JX35: 1 | JZ35: 1 | KA35: 1 | KB35: 1 | KC35: 1 | KD35: 1 | KE35: 1 | KF35: 1 | KG35: 1 | KH35: 1 | KI35: =IF(ISBLANK(JU35),"",ROUND(AVERAGE(OFFSET(JZ35:KH35,0,0,1,ion21Coop!$F$42)),1)) ->  | KL35: 13 | KN35: 30 | KV35: 1 | KX35: 1 | KY35: 1 | KZ35: 1 | LA35: 1 | LB35: 1 | LC35: 1 | LD35: 1 | LE35: 1 | LF35: 1 | LG35: =IF(ISBLANK(KS35),"",ROUND(AVERAGE(OFFSET(KX35:LF35,0,0,1,ion21Coop!$F$42)),1)) ->  | LJ35: 14 | LL35: 30 | LT35: 1 | LV35: 1 | LW35: 1 | LX35: 1 | LY35: 1 | LZ35: 1 | MA35: 1 | MB35: 1 | MC35: 1 | MD35: 1 | ME35: =IF(ISBLANK(LQ35),"",ROUND(AVERAGE(OFFSET(LV35:MD35,0,0,1,ion21Coop!$F$42)),1)) ->  | MH35: 15 | MJ35: 30 | MR35: 1 | MT35: 1 | MU35: 1 | MV35: 1 | MW35: 1 | MX35: 1 | MY35: 1 | MZ35: 1 | NA35: 1 | NB35: 1 | NC35: =IF(ISBLANK(MO35),"",ROUND(AVERAGE(OFFSET(MT35:NB35,0,0,1,ion21Coop!$F$42)),1)) ->  | NF35: 16 | NH35: 30 | NP35: 1 | NR35: 1 | NS35: 1 | NT35: 1 | NU35: 1 | NV35: 1 | NW35: 1 | NX35: 1 | NY35: 1 | NZ35: 1 | OA35: =IF(ISBLANK(NM35),"",ROUND(AVERAGE(OFFSET(NR35:NZ35,0,0,1,ion21Coop!$F$42)),1)) ->  | OD35: 17 | OF35: 30 | ON35: 1 | OP35: 1 | OQ35: 1 | OR35: 1 | OS35: 1 | OT35: 1 | OU35: 1 | OV35: 1 | OW35: 1 | OX35: 1 | OY35: =IF(ISBLANK(OK35),"",ROUND(AVERAGE(OFFSET(OP35:OX35,0,0,1,ion21Coop!$F$42)),1)) ->  | PB35: 18 | PD35: 30 | PL35: 1 | PN35: 1 | PO35: 1 | PP35: 1 | PQ35: 1 | PR35: 1 | PS35: 1 | PT35: 1 | PU35: 1 | PV35: 1 | PW35: =IF(ISBLANK(PI35),"",ROUND(AVERAGE(OFFSET(PN35:PV35,0,0,1,ion21Coop!$F$42)),1)) ->  | PZ35: 19 | QB35: 30 | QJ35: 1 | QL35: 1 | QM35: 1 | QN35: 1 | QO35: 1 | QP35: 1 | QQ35: 1 | QR35: 1 | QS35: 1 | QT35: 1 | QU35: =IF(ISBLANK(QG35),"",ROUND(AVERAGE(OFFSET(QL35:QT35,0,0,1,ion21Coop!$F$42)),1)) ->  | QX35: 20 | QZ35: 30 | RH35: 1 | RJ35: 1 | RK35: 1 | RL35: 1 | RM35: 1 | RN35: 1 | RO35: 1 | RP35: 1 | RQ35: 1 | RR35: 1 | RS35: =IF(ISBLANK(RE35),"",ROUND(AVERAGE(OFFSET(RJ35:RR35,0,0,1,ion21Coop!$F$42)),1)) ->  | RV35: 21 | RX35: 30 | SF35: 1 | SH35: 1 | SI35: 1 | SJ35: 1 | SK35: 1 | SL35: 1 | SM35: 1 | SN35: 1 | SO35: 1 | SP35: 1 | SQ35: =IF(ISBLANK(SC35),"",ROUND(AVERAGE(OFFSET(SH35:SP35,0,0,1,ion21Coop!$F$42)),1)) -> 
A36: Reset | J36: 1 | K36: YaJo | L36: 31 | T36: 1 | V36: 1 | W36: 1 | X36: 1 | Y36: 1 | Z36: 1 | AA36: 1 | AB36: 1 | AC36: 1 | AD36: 1 | AE36: =IF(ISBLANK(Q36),"",ROUND(AVERAGE(OFFSET(V36:AD36,0,0,1,ion21Coop!$F$42)),1)) ->  | AH36: 2 | AI36: GeLo | AJ36: 31 | AR36: 1 | AT36: 1 | AU36: 1 | AV36: 1 | AW36: 1 | AX36: 1 | AY36: 1 | AZ36: 1 | BA36: 1 | BB36: 1 | BC36: =IF(ISBLANK(AO36),"",ROUND(AVERAGE(OFFSET(AT36:BB36,0,0,1,ion21Coop!$F$42)),1)) ->  | BF36: 3 | BG36: MiDo | BH36: 31 | BP36: 1 | BR36: 1 | BS36: 1 | BT36: 1 | BU36: 1 | BV36: 1 | BW36: 1 | BX36: 1 | BY36: 1 | BZ36: 1 | CA36: =IF(ISBLANK(BM36),"",ROUND(AVERAGE(OFFSET(BR36:BZ36,0,0,1,ion21Coop!$F$42)),1)) ->  | CD36: 4 | CE36: EmNi | CF36: 31 | CN36: 1 | CP36: 1 | CQ36: 1 | CR36: 1 | CS36: 1 | CT36: 1 | CU36: 1 | CV36: 1 | CW36: 1 | CX36: 1 | CY36: =IF(ISBLANK(CK36),"",ROUND(AVERAGE(OFFSET(CP36:CX36,0,0,1,ion21Coop!$F$42)),1)) ->  | DB36: 5 | DC36: HeJe | DD36: 31 | DL36: 1 | DN36: 1 | DO36: 1 | DP36: 1 | DQ36: 1 | DR36: 1 | DS36: 1 | DT36: 1 | DU36: 1 | DV36: 1 | DW36: =IF(ISBLANK(DI36),"",ROUND(AVERAGE(OFFSET(DN36:DV36,0,0,1,ion21Coop!$F$42)),1)) ->  | DZ36: 6 | EB36: 31 | EJ36: 1 | EL36: 1 | EM36: 1 | EN36: 1 | EO36: 1 | EP36: 1 | EQ36: 1 | ER36: 1 | ES36: 1 | ET36: 1 | EU36: =IF(ISBLANK(EG36),"",ROUND(AVERAGE(OFFSET(EL36:ET36,0,0,1,ion21Coop!$F$42)),1)) ->  | EX36: 7 | EZ36: 31 | FH36: 1 | FJ36: 1 | FK36: 1 | FL36: 1 | FM36: 1 | FN36: 1 | FO36: 1 | FP36: 1 | FQ36: 1 | FR36: 1 | FS36: =IF(ISBLANK(FE36),"",ROUND(AVERAGE(OFFSET(FJ36:FR36,0,0,1,ion21Coop!$F$42)),1)) ->  | FV36: 8 | FX36: 31 | GF36: 1 | GH36: 1 | GI36: 1 | GJ36: 1 | GK36: 1 | GL36: 1 | GM36: 1 | GN36: 1 | GO36: 1 | GP36: 1 | GQ36: =IF(ISBLANK(GC36),"",ROUND(AVERAGE(OFFSET(GH36:GP36,0,0,1,ion21Coop!$F$42)),1)) ->  | GT36: 9 | GV36: 31 | HD36: 1 | HF36: 1 | HG36: 1 | HH36: 1 | HI36: 1 | HJ36: 1 | HK36: 1 | HL36: 1 | HM36: 1 | HN36: 1 | HO36: =IF(ISBLANK(HA36),"",ROUND(AVERAGE(OFFSET(HF36:HN36,0,0,1,ion21Coop!$F$42)),1)) ->  | HR36: 10 | HT36: 31 | IB36: 1 | ID36: 1 | IE36: 1 | IF36: 1 | IG36: 1 | IH36: 1 | II36: 1 | IJ36: 1 | IK36: 1 | IL36: 1 | IM36: =IF(ISBLANK(HY36),"",ROUND(AVERAGE(OFFSET(ID36:IL36,0,0,1,ion21Coop!$F$42)),1)) ->  | IP36: 11 | IR36: 31 | IZ36: 1 | JB36: 1 | JC36: 1 | JD36: 1 | JE36: 1 | JF36: 1 | JG36: 1 | JH36: 1 | JI36: 1 | JJ36: 1 | JK36: =IF(ISBLANK(IW36),"",ROUND(AVERAGE(OFFSET(JB36:JJ36,0,0,1,ion21Coop!$F$42)),1)) ->  | JN36: 12 | JP36: 31 | JX36: 1 | JZ36: 1 | KA36: 1 | KB36: 1 | KC36: 1 | KD36: 1 | KE36: 1 | KF36: 1 | KG36: 1 | KH36: 1 | KI36: =IF(ISBLANK(JU36),"",ROUND(AVERAGE(OFFSET(JZ36:KH36,0,0,1,ion21Coop!$F$42)),1)) ->  | KL36: 13 | KN36: 31 | KV36: 1 | KX36: 1 | KY36: 1 | KZ36: 1 | LA36: 1 | LB36: 1 | LC36: 1 | LD36: 1 | LE36: 1 | LF36: 1 | LG36: =IF(ISBLANK(KS36),"",ROUND(AVERAGE(OFFSET(KX36:LF36,0,0,1,ion21Coop!$F$42)),1)) ->  | LJ36: 14 | LL36: 31 | LT36: 1 | LV36: 1 | LW36: 1 | LX36: 1 | LY36: 1 | LZ36: 1 | MA36: 1 | MB36: 1 | MC36: 1 | MD36: 1 | ME36: =IF(ISBLANK(LQ36),"",ROUND(AVERAGE(OFFSET(LV36:MD36,0,0,1,ion21Coop!$F$42)),1)) ->  | MH36: 15 | MJ36: 31 | MR36: 1 | MT36: 1 | MU36: 1 | MV36: 1 | MW36: 1 | MX36: 1 | MY36: 1 | MZ36: 1 | NA36: 1 | NB36: 1 | NC36: =IF(ISBLANK(MO36),"",ROUND(AVERAGE(OFFSET(MT36:NB36,0,0,1,ion21Coop!$F$42)),1)) ->  | NF36: 16 | NH36: 31 | NP36: 1 | NR36: 1 | NS36: 1 | NT36: 1 | NU36: 1 | NV36: 1 | NW36: 1 | NX36: 1 | NY36: 1 | NZ36: 1 | OA36: =IF(ISBLANK(NM36),"",ROUND(AVERAGE(OFFSET(NR36:NZ36,0,0,1,ion21Coop!$F$42)),1)) ->  | OD36: 17 | OF36: 31 | ON36: 1 | OP36: 1 | OQ36: 1 | OR36: 1 | OS36: 1 | OT36: 1 | OU36: 1 | OV36: 1 | OW36: 1 | OX36: 1 | OY36: =IF(ISBLANK(OK36),"",ROUND(AVERAGE(OFFSET(OP36:OX36,0,0,1,ion21Coop!$F$42)),1)) ->  | PB36: 18 | PD36: 31 | PL36: 1 | PN36: 1 | PO36: 1 | PP36: 1 | PQ36: 1 | PR36: 1 | PS36: 1 | PT36: 1 | PU36: 1 | PV36: 1 | PW36: =IF(ISBLANK(PI36),"",ROUND(AVERAGE(OFFSET(PN36:PV36,0,0,1,ion21Coop!$F$42)),1)) ->  | PZ36: 19 | QB36: 31 | QJ36: 1 | QL36: 1 | QM36: 1 | QN36: 1 | QO36: 1 | QP36: 1 | QQ36: 1 | QR36: 1 | QS36: 1 | QT36: 1 | QU36: =IF(ISBLANK(QG36),"",ROUND(AVERAGE(OFFSET(QL36:QT36,0,0,1,ion21Coop!$F$42)),1)) ->  | QX36: 20 | QZ36: 31 | RH36: 1 | RJ36: 1 | RK36: 1 | RL36: 1 | RM36: 1 | RN36: 1 | RO36: 1 | RP36: 1 | RQ36: 1 | RR36: 1 | RS36: =IF(ISBLANK(RE36),"",ROUND(AVERAGE(OFFSET(RJ36:RR36,0,0,1,ion21Coop!$F$42)),1)) ->  | RV36: 21 | RX36: 31 | SF36: 1 | SH36: 1 | SI36: 1 | SJ36: 1 | SK36: 1 | SL36: 1 | SM36: 1 | SN36: 1 | SO36: 1 | SP36: 1 | SQ36: =IF(ISBLANK(SC36),"",ROUND(AVERAGE(OFFSET(SH36:SP36,0,0,1,ion21Coop!$F$42)),1)) -> 
B37: Effort rate: | J37: 1 | K37: YaJo | L37: 32 | T37: 1 | V37: 1 | W37: 1 | X37: 1 | Y37: 1 | Z37: 1 | AA37: 1 | AB37: 1 | AC37: 1 | AD37: 1 | AE37: =IF(ISBLANK(Q37),"",ROUND(AVERAGE(OFFSET(V37:AD37,0,0,1,ion21Coop!$F$42)),1)) ->  | AH37: 2 | AI37: GeLo | AJ37: 32 | AR37: 1 | AT37: 1 | AU37: 1 | AV37: 1 | AW37: 1 | AX37: 1 | AY37: 1 | AZ37: 1 | BA37: 1 | BB37: 1 | BC37: =IF(ISBLANK(AO37),"",ROUND(AVERAGE(OFFSET(AT37:BB37,0,0,1,ion21Coop!$F$42)),1)) ->  | BF37: 3 | BG37: MiDo | BH37: 32 | BP37: 1 | BR37: 1 | BS37: 1 | BT37: 1 | BU37: 1 | BV37: 1 | BW37: 1 | BX37: 1 | BY37: 1 | BZ37: 1 | CA37: =IF(ISBLANK(BM37),"",ROUND(AVERAGE(OFFSET(BR37:BZ37,0,0,1,ion21Coop!$F$42)),1)) ->  | CD37: 4 | CE37: EmNi | CF37: 32 | CN37: 1 | CP37: 1 | CQ37: 1 | CR37: 1 | CS37: 1 | CT37: 1 | CU37: 1 | CV37: 1 | CW37: 1 | CX37: 1 | CY37: =IF(ISBLANK(CK37),"",ROUND(AVERAGE(OFFSET(CP37:CX37,0,0,1,ion21Coop!$F$42)),1)) ->  | DB37: 5 | DC37: HeJe | DD37: 32 | DL37: 1 | DN37: 1 | DO37: 1 | DP37: 1 | DQ37: 1 | DR37: 1 | DS37: 1 | DT37: 1 | DU37: 1 | DV37: 1 | DW37: =IF(ISBLANK(DI37),"",ROUND(AVERAGE(OFFSET(DN37:DV37,0,0,1,ion21Coop!$F$42)),1)) ->  | DZ37: 6 | EB37: 32 | EJ37: 1 | EL37: 1 | EM37: 1 | EN37: 1 | EO37: 1 | EP37: 1 | EQ37: 1 | ER37: 1 | ES37: 1 | ET37: 1 | EU37: =IF(ISBLANK(EG37),"",ROUND(AVERAGE(OFFSET(EL37:ET37,0,0,1,ion21Coop!$F$42)),1)) ->  | EX37: 7 | EZ37: 32 | FH37: 1 | FJ37: 1 | FK37: 1 | FL37: 1 | FM37: 1 | FN37: 1 | FO37: 1 | FP37: 1 | FQ37: 1 | FR37: 1 | FS37: =IF(ISBLANK(FE37),"",ROUND(AVERAGE(OFFSET(FJ37:FR37,0,0,1,ion21Coop!$F$42)),1)) ->  | FV37: 8 | FX37: 32 | GF37: 1 | GH37: 1 | GI37: 1 | GJ37: 1 | GK37: 1 | GL37: 1 | GM37: 1 | GN37: 1 | GO37: 1 | GP37: 1 | GQ37: =IF(ISBLANK(GC37),"",ROUND(AVERAGE(OFFSET(GH37:GP37,0,0,1,ion21Coop!$F$42)),1)) ->  | GT37: 9 | GV37: 32 | HD37: 1 | HF37: 1 | HG37: 1 | HH37: 1 | HI37: 1 | HJ37: 1 | HK37: 1 | HL37: 1 | HM37: 1 | HN37: 1 | HO37: =IF(ISBLANK(HA37),"",ROUND(AVERAGE(OFFSET(HF37:HN37,0,0,1,ion21Coop!$F$42)),1)) ->  | HR37: 10 | HT37: 32 | IB37: 1 | ID37: 1 | IE37: 1 | IF37: 1 | IG37: 1 | IH37: 1 | II37: 1 | IJ37: 1 | IK37: 1 | IL37: 1 | IM37: =IF(ISBLANK(HY37),"",ROUND(AVERAGE(OFFSET(ID37:IL37,0,0,1,ion21Coop!$F$42)),1)) ->  | IP37: 11 | IR37: 32 | IZ37: 1 | JB37: 1 | JC37: 1 | JD37: 1 | JE37: 1 | JF37: 1 | JG37: 1 | JH37: 1 | JI37: 1 | JJ37: 1 | JK37: =IF(ISBLANK(IW37),"",ROUND(AVERAGE(OFFSET(JB37:JJ37,0,0,1,ion21Coop!$F$42)),1)) ->  | JN37: 12 | JP37: 32 | JX37: 1 | JZ37: 1 | KA37: 1 | KB37: 1 | KC37: 1 | KD37: 1 | KE37: 1 | KF37: 1 | KG37: 1 | KH37: 1 | KI37: =IF(ISBLANK(JU37),"",ROUND(AVERAGE(OFFSET(JZ37:KH37,0,0,1,ion21Coop!$F$42)),1)) ->  | KL37: 13 | KN37: 32 | KV37: 1 | KX37: 1 | KY37: 1 | KZ37: 1 | LA37: 1 | LB37: 1 | LC37: 1 | LD37: 1 | LE37: 1 | LF37: 1 | LG37: =IF(ISBLANK(KS37),"",ROUND(AVERAGE(OFFSET(KX37:LF37,0,0,1,ion21Coop!$F$42)),1)) ->  | LJ37: 14 | LL37: 32 | LT37: 1 | LV37: 1 | LW37: 1 | LX37: 1 | LY37: 1 | LZ37: 1 | MA37: 1 | MB37: 1 | MC37: 1 | MD37: 1 | ME37: =IF(ISBLANK(LQ37),"",ROUND(AVERAGE(OFFSET(LV37:MD37,0,0,1,ion21Coop!$F$42)),1)) ->  | MH37: 15 | MJ37: 32 | MR37: 1 | MT37: 1 | MU37: 1 | MV37: 1 | MW37: 1 | MX37: 1 | MY37: 1 | MZ37: 1 | NA37: 1 | NB37: 1 | NC37: =IF(ISBLANK(MO37),"",ROUND(AVERAGE(OFFSET(MT37:NB37,0,0,1,ion21Coop!$F$42)),1)) ->  | NF37: 16 | NH37: 32 | NP37: 1 | NR37: 1 | NS37: 1 | NT37: 1 | NU37: 1 | NV37: 1 | NW37: 1 | NX37: 1 | NY37: 1 | NZ37: 1 | OA37: =IF(ISBLANK(NM37),"",ROUND(AVERAGE(OFFSET(NR37:NZ37,0,0,1,ion21Coop!$F$42)),1)) ->  | OD37: 17 | OF37: 32 | ON37: 1 | OP37: 1 | OQ37: 1 | OR37: 1 | OS37: 1 | OT37: 1 | OU37: 1 | OV37: 1 | OW37: 1 | OX37: 1 | OY37: =IF(ISBLANK(OK37),"",ROUND(AVERAGE(OFFSET(OP37:OX37,0,0,1,ion21Coop!$F$42)),1)) ->  | PB37: 18 | PD37: 32 | PL37: 1 | PN37: 1 | PO37: 1 | PP37: 1 | PQ37: 1 | PR37: 1 | PS37: 1 | PT37: 1 | PU37: 1 | PV37: 1 | PW37: =IF(ISBLANK(PI37),"",ROUND(AVERAGE(OFFSET(PN37:PV37,0,0,1,ion21Coop!$F$42)),1)) ->  | PZ37: 19 | QB37: 32 | QJ37: 1 | QL37: 1 | QM37: 1 | QN37: 1 | QO37: 1 | QP37: 1 | QQ37: 1 | QR37: 1 | QS37: 1 | QT37: 1 | QU37: =IF(ISBLANK(QG37),"",ROUND(AVERAGE(OFFSET(QL37:QT37,0,0,1,ion21Coop!$F$42)),1)) ->  | QX37: 20 | QZ37: 32 | RH37: 1 | RJ37: 1 | RK37: 1 | RL37: 1 | RM37: 1 | RN37: 1 | RO37: 1 | RP37: 1 | RQ37: 1 | RR37: 1 | RS37: =IF(ISBLANK(RE37),"",ROUND(AVERAGE(OFFSET(RJ37:RR37,0,0,1,ion21Coop!$F$42)),1)) ->  | RV37: 21 | RX37: 32 | SF37: 1 | SH37: 1 | SI37: 1 | SJ37: 1 | SK37: 1 | SL37: 1 | SM37: 1 | SN37: 1 | SO37: 1 | SP37: 1 | SQ37: =IF(ISBLANK(SC37),"",ROUND(AVERAGE(OFFSET(SH37:SP37,0,0,1,ion21Coop!$F$42)),1)) -> 
A38: Set: | B38: 1 - normal | J38: 1 | K38: YaJo | L38: 33 | T38: 1 | V38: 1 | W38: 1 | X38: 1 | Y38: 1 | Z38: 1 | AA38: 1 | AB38: 1 | AC38: 1 | AD38: 1 | AE38: =IF(ISBLANK(Q38),"",ROUND(AVERAGE(OFFSET(V38:AD38,0,0,1,ion21Coop!$F$42)),1)) ->  | AH38: 2 | AI38: GeLo | AJ38: 33 | AR38: 1 | AT38: 1 | AU38: 1 | AV38: 1 | AW38: 1 | AX38: 1 | AY38: 1 | AZ38: 1 | BA38: 1 | BB38: 1 | BC38: =IF(ISBLANK(AO38),"",ROUND(AVERAGE(OFFSET(AT38:BB38,0,0,1,ion21Coop!$F$42)),1)) ->  | BF38: 3 | BG38: MiDo | BH38: 33 | BP38: 1 | BR38: 1 | BS38: 1 | BT38: 1 | BU38: 1 | BV38: 1 | BW38: 1 | BX38: 1 | BY38: 1 | BZ38: 1 | CA38: =IF(ISBLANK(BM38),"",ROUND(AVERAGE(OFFSET(BR38:BZ38,0,0,1,ion21Coop!$F$42)),1)) ->  | CD38: 4 | CE38: EmNi | CF38: 33 | CN38: 1 | CP38: 1 | CQ38: 1 | CR38: 1 | CS38: 1 | CT38: 1 | CU38: 1 | CV38: 1 | CW38: 1 | CX38: 1 | CY38: =IF(ISBLANK(CK38),"",ROUND(AVERAGE(OFFSET(CP38:CX38,0,0,1,ion21Coop!$F$42)),1)) ->  | DB38: 5 | DC38: HeJe | DD38: 33 | DL38: 1 | DN38: 1 | DO38: 1 | DP38: 1 | DQ38: 1 | DR38: 1 | DS38: 1 | DT38: 1 | DU38: 1 | DV38: 1 | DW38: =IF(ISBLANK(DI38),"",ROUND(AVERAGE(OFFSET(DN38:DV38,0,0,1,ion21Coop!$F$42)),1)) ->  | DZ38: 6 | EB38: 33 | EJ38: 1 | EL38: 1 | EM38: 1 | EN38: 1 | EO38: 1 | EP38: 1 | EQ38: 1 | ER38: 1 | ES38: 1 | ET38: 1 | EU38: =IF(ISBLANK(EG38),"",ROUND(AVERAGE(OFFSET(EL38:ET38,0,0,1,ion21Coop!$F$42)),1)) ->  | EX38: 7 | EZ38: 33 | FH38: 1 | FJ38: 1 | FK38: 1 | FL38: 1 | FM38: 1 | FN38: 1 | FO38: 1 | FP38: 1 | FQ38: 1 | FR38: 1 | FS38: =IF(ISBLANK(FE38),"",ROUND(AVERAGE(OFFSET(FJ38:FR38,0,0,1,ion21Coop!$F$42)),1)) ->  | FV38: 8 | FX38: 33 | GF38: 1 | GH38: 1 | GI38: 1 | GJ38: 1 | GK38: 1 | GL38: 1 | GM38: 1 | GN38: 1 | GO38: 1 | GP38: 1 | GQ38: =IF(ISBLANK(GC38),"",ROUND(AVERAGE(OFFSET(GH38:GP38,0,0,1,ion21Coop!$F$42)),1)) ->  | GT38: 9 | GV38: 33 | HD38: 1 | HF38: 1 | HG38: 1 | HH38: 1 | HI38: 1 | HJ38: 1 | HK38: 1 | HL38: 1 | HM38: 1 | HN38: 1 | HO38: =IF(ISBLANK(HA38),"",ROUND(AVERAGE(OFFSET(HF38:HN38,0,0,1,ion21Coop!$F$42)),1)) ->  | HR38: 10 | HT38: 33 | IB38: 1 | ID38: 1 | IE38: 1 | IF38: 1 | IG38: 1 | IH38: 1 | II38: 1 | IJ38: 1 | IK38: 1 | IL38: 1 | IM38: =IF(ISBLANK(HY38),"",ROUND(AVERAGE(OFFSET(ID38:IL38,0,0,1,ion21Coop!$F$42)),1)) ->  | IP38: 11 | IR38: 33 | IZ38: 1 | JB38: 1 | JC38: 1 | JD38: 1 | JE38: 1 | JF38: 1 | JG38: 1 | JH38: 1 | JI38: 1 | JJ38: 1 | JK38: =IF(ISBLANK(IW38),"",ROUND(AVERAGE(OFFSET(JB38:JJ38,0,0,1,ion21Coop!$F$42)),1)) ->  | JN38: 12 | JP38: 33 | JX38: 1 | JZ38: 1 | KA38: 1 | KB38: 1 | KC38: 1 | KD38: 1 | KE38: 1 | KF38: 1 | KG38: 1 | KH38: 1 | KI38: =IF(ISBLANK(JU38),"",ROUND(AVERAGE(OFFSET(JZ38:KH38,0,0,1,ion21Coop!$F$42)),1)) ->  | KL38: 13 | KN38: 33 | KV38: 1 | KX38: 1 | KY38: 1 | KZ38: 1 | LA38: 1 | LB38: 1 | LC38: 1 | LD38: 1 | LE38: 1 | LF38: 1 | LG38: =IF(ISBLANK(KS38),"",ROUND(AVERAGE(OFFSET(KX38:LF38,0,0,1,ion21Coop!$F$42)),1)) ->  | LJ38: 14 | LL38: 33 | LT38: 1 | LV38: 1 | LW38: 1 | LX38: 1 | LY38: 1 | LZ38: 1 | MA38: 1 | MB38: 1 | MC38: 1 | MD38: 1 | ME38: =IF(ISBLANK(LQ38),"",ROUND(AVERAGE(OFFSET(LV38:MD38,0,0,1,ion21Coop!$F$42)),1)) ->  | MH38: 15 | MJ38: 33 | MR38: 1 | MT38: 1 | MU38: 1 | MV38: 1 | MW38: 1 | MX38: 1 | MY38: 1 | MZ38: 1 | NA38: 1 | NB38: 1 | NC38: =IF(ISBLANK(MO38),"",ROUND(AVERAGE(OFFSET(MT38:NB38,0,0,1,ion21Coop!$F$42)),1)) ->  | NF38: 16 | NH38: 33 | NP38: 1 | NR38: 1 | NS38: 1 | NT38: 1 | NU38: 1 | NV38: 1 | NW38: 1 | NX38: 1 | NY38: 1 | NZ38: 1 | OA38: =IF(ISBLANK(NM38),"",ROUND(AVERAGE(OFFSET(NR38:NZ38,0,0,1,ion21Coop!$F$42)),1)) ->  | OD38: 17 | OF38: 33 | ON38: 1 | OP38: 1 | OQ38: 1 | OR38: 1 | OS38: 1 | OT38: 1 | OU38: 1 | OV38: 1 | OW38: 1 | OX38: 1 | OY38: =IF(ISBLANK(OK38),"",ROUND(AVERAGE(OFFSET(OP38:OX38,0,0,1,ion21Coop!$F$42)),1)) ->  | PB38: 18 | PD38: 33 | PL38: 1 | PN38: 1 | PO38: 1 | PP38: 1 | PQ38: 1 | PR38: 1 | PS38: 1 | PT38: 1 | PU38: 1 | PV38: 1 | PW38: =IF(ISBLANK(PI38),"",ROUND(AVERAGE(OFFSET(PN38:PV38,0,0,1,ion21Coop!$F$42)),1)) ->  | PZ38: 19 | QB38: 33 | QJ38: 1 | QL38: 1 | QM38: 1 | QN38: 1 | QO38: 1 | QP38: 1 | QQ38: 1 | QR38: 1 | QS38: 1 | QT38: 1 | QU38: =IF(ISBLANK(QG38),"",ROUND(AVERAGE(OFFSET(QL38:QT38,0,0,1,ion21Coop!$F$42)),1)) ->  | QX38: 20 | QZ38: 33 | RH38: 1 | RJ38: 1 | RK38: 1 | RL38: 1 | RM38: 1 | RN38: 1 | RO38: 1 | RP38: 1 | RQ38: 1 | RR38: 1 | RS38: =IF(ISBLANK(RE38),"",ROUND(AVERAGE(OFFSET(RJ38:RR38,0,0,1,ion21Coop!$F$42)),1)) ->  | RV38: 21 | RX38: 33 | SF38: 1 | SH38: 1 | SI38: 1 | SJ38: 1 | SK38: 1 | SL38: 1 | SM38: 1 | SN38: 1 | SO38: 1 | SP38: 1 | SQ38: =IF(ISBLANK(SC38),"",ROUND(AVERAGE(OFFSET(SH38:SP38,0,0,1,ion21Coop!$F$42)),1)) -> 
A39: Unlock | B39: 2 - intensive | J39: 1 | K39: YaJo | L39: 34 | T39: 1 | V39: 1 | W39: 1 | X39: 1 | Y39: 1 | Z39: 1 | AA39: 1 | AB39: 1 | AC39: 1 | AD39: 1 | AE39: =IF(ISBLANK(Q39),"",ROUND(AVERAGE(OFFSET(V39:AD39,0,0,1,ion21Coop!$F$42)),1)) ->  | AH39: 2 | AI39: GeLo | AJ39: 34 | AR39: 1 | AT39: 1 | AU39: 1 | AV39: 1 | AW39: 1 | AX39: 1 | AY39: 1 | AZ39: 1 | BA39: 1 | BB39: 1 | BC39: =IF(ISBLANK(AO39),"",ROUND(AVERAGE(OFFSET(AT39:BB39,0,0,1,ion21Coop!$F$42)),1)) ->  | BF39: 3 | BG39: MiDo | BH39: 34 | BP39: 1 | BR39: 1 | BS39: 1 | BT39: 1 | BU39: 1 | BV39: 1 | BW39: 1 | BX39: 1 | BY39: 1 | BZ39: 1 | CA39: =IF(ISBLANK(BM39),"",ROUND(AVERAGE(OFFSET(BR39:BZ39,0,0,1,ion21Coop!$F$42)),1)) ->  | CD39: 4 | CE39: EmNi | CF39: 34 | CN39: 1 | CP39: 1 | CQ39: 1 | CR39: 1 | CS39: 1 | CT39: 1 | CU39: 1 | CV39: 1 | CW39: 1 | CX39: 1 | CY39: =IF(ISBLANK(CK39),"",ROUND(AVERAGE(OFFSET(CP39:CX39,0,0,1,ion21Coop!$F$42)),1)) ->  | DB39: 5 | DC39: HeJe | DD39: 34 | DL39: 1 | DN39: 1 | DO39: 1 | DP39: 1 | DQ39: 1 | DR39: 1 | DS39: 1 | DT39: 1 | DU39: 1 | DV39: 1 | DW39: =IF(ISBLANK(DI39),"",ROUND(AVERAGE(OFFSET(DN39:DV39,0,0,1,ion21Coop!$F$42)),1)) ->  | DZ39: 6 | EB39: 34 | EJ39: 1 | EL39: 1 | EM39: 1 | EN39: 1 | EO39: 1 | EP39: 1 | EQ39: 1 | ER39: 1 | ES39: 1 | ET39: 1 | EU39: =IF(ISBLANK(EG39),"",ROUND(AVERAGE(OFFSET(EL39:ET39,0,0,1,ion21Coop!$F$42)),1)) ->  | EX39: 7 | EZ39: 34 | FH39: 1 | FJ39: 1 | FK39: 1 | FL39: 1 | FM39: 1 | FN39: 1 | FO39: 1 | FP39: 1 | FQ39: 1 | FR39: 1 | FS39: =IF(ISBLANK(FE39),"",ROUND(AVERAGE(OFFSET(FJ39:FR39,0,0,1,ion21Coop!$F$42)),1)) ->  | FV39: 8 | FX39: 34 | GF39: 1 | GH39: 1 | GI39: 1 | GJ39: 1 | GK39: 1 | GL39: 1 | GM39: 1 | GN39: 1 | GO39: 1 | GP39: 1 | GQ39: =IF(ISBLANK(GC39),"",ROUND(AVERAGE(OFFSET(GH39:GP39,0,0,1,ion21Coop!$F$42)),1)) ->  | GT39: 9 | GV39: 34 | HD39: 1 | HF39: 1 | HG39: 1 | HH39: 1 | HI39: 1 | HJ39: 1 | HK39: 1 | HL39: 1 | HM39: 1 | HN39: 1 | HO39: =IF(ISBLANK(HA39),"",ROUND(AVERAGE(OFFSET(HF39:HN39,0,0,1,ion21Coop!$F$42)),1)) ->  | HR39: 10 | HT39: 34 | IB39: 1 | ID39: 1 | IE39: 1 | IF39: 1 | IG39: 1 | IH39: 1 | II39: 1 | IJ39: 1 | IK39: 1 | IL39: 1 | IM39: =IF(ISBLANK(HY39),"",ROUND(AVERAGE(OFFSET(ID39:IL39,0,0,1,ion21Coop!$F$42)),1)) ->  | IP39: 11 | IR39: 34 | IZ39: 1 | JB39: 1 | JC39: 1 | JD39: 1 | JE39: 1 | JF39: 1 | JG39: 1 | JH39: 1 | JI39: 1 | JJ39: 1 | JK39: =IF(ISBLANK(IW39),"",ROUND(AVERAGE(OFFSET(JB39:JJ39,0,0,1,ion21Coop!$F$42)),1)) ->  | JN39: 12 | JP39: 34 | JX39: 1 | JZ39: 1 | KA39: 1 | KB39: 1 | KC39: 1 | KD39: 1 | KE39: 1 | KF39: 1 | KG39: 1 | KH39: 1 | KI39: =IF(ISBLANK(JU39),"",ROUND(AVERAGE(OFFSET(JZ39:KH39,0,0,1,ion21Coop!$F$42)),1)) ->  | KL39: 13 | KN39: 34 | KV39: 1 | KX39: 1 | KY39: 1 | KZ39: 1 | LA39: 1 | LB39: 1 | LC39: 1 | LD39: 1 | LE39: 1 | LF39: 1 | LG39: =IF(ISBLANK(KS39),"",ROUND(AVERAGE(OFFSET(KX39:LF39,0,0,1,ion21Coop!$F$42)),1)) ->  | LJ39: 14 | LL39: 34 | LT39: 1 | LV39: 1 | LW39: 1 | LX39: 1 | LY39: 1 | LZ39: 1 | MA39: 1 | MB39: 1 | MC39: 1 | MD39: 1 | ME39: =IF(ISBLANK(LQ39),"",ROUND(AVERAGE(OFFSET(LV39:MD39,0,0,1,ion21Coop!$F$42)),1)) ->  | MH39: 15 | MJ39: 34 | MR39: 1 | MT39: 1 | MU39: 1 | MV39: 1 | MW39: 1 | MX39: 1 | MY39: 1 | MZ39: 1 | NA39: 1 | NB39: 1 | NC39: =IF(ISBLANK(MO39),"",ROUND(AVERAGE(OFFSET(MT39:NB39,0,0,1,ion21Coop!$F$42)),1)) ->  | NF39: 16 | NH39: 34 | NP39: 1 | NR39: 1 | NS39: 1 | NT39: 1 | NU39: 1 | NV39: 1 | NW39: 1 | NX39: 1 | NY39: 1 | NZ39: 1 | OA39: =IF(ISBLANK(NM39),"",ROUND(AVERAGE(OFFSET(NR39:NZ39,0,0,1,ion21Coop!$F$42)),1)) ->  | OD39: 17 | OF39: 34 | ON39: 1 | OP39: 1 | OQ39: 1 | OR39: 1 | OS39: 1 | OT39: 1 | OU39: 1 | OV39: 1 | OW39: 1 | OX39: 1 | OY39: =IF(ISBLANK(OK39),"",ROUND(AVERAGE(OFFSET(OP39:OX39,0,0,1,ion21Coop!$F$42)),1)) ->  | PB39: 18 | PD39: 34 | PL39: 1 | PN39: 1 | PO39: 1 | PP39: 1 | PQ39: 1 | PR39: 1 | PS39: 1 | PT39: 1 | PU39: 1 | PV39: 1 | PW39: =IF(ISBLANK(PI39),"",ROUND(AVERAGE(OFFSET(PN39:PV39,0,0,1,ion21Coop!$F$42)),1)) ->  | PZ39: 19 | QB39: 34 | QJ39: 1 | QL39: 1 | QM39: 1 | QN39: 1 | QO39: 1 | QP39: 1 | QQ39: 1 | QR39: 1 | QS39: 1 | QT39: 1 | QU39: =IF(ISBLANK(QG39),"",ROUND(AVERAGE(OFFSET(QL39:QT39,0,0,1,ion21Coop!$F$42)),1)) ->  | QX39: 20 | QZ39: 34 | RH39: 1 | RJ39: 1 | RK39: 1 | RL39: 1 | RM39: 1 | RN39: 1 | RO39: 1 | RP39: 1 | RQ39: 1 | RR39: 1 | RS39: =IF(ISBLANK(RE39),"",ROUND(AVERAGE(OFFSET(RJ39:RR39,0,0,1,ion21Coop!$F$42)),1)) ->  | RV39: 21 | RX39: 34 | SF39: 1 | SH39: 1 | SI39: 1 | SJ39: 1 | SK39: 1 | SL39: 1 | SM39: 1 | SN39: 1 | SO39: 1 | SP39: 1 | SQ39: =IF(ISBLANK(SC39),"",ROUND(AVERAGE(OFFSET(SH39:SP39,0,0,1,ion21Coop!$F$42)),1)) -> 
B40: 3 - exhaustive | J40: 1 | K40: YaJo | L40: 35 | T40: 1 | V40: 1 | W40: 1 | X40: 1 | Y40: 1 | Z40: 1 | AA40: 1 | AB40: 1 | AC40: 1 | AD40: 1 | AE40: =IF(ISBLANK(Q40),"",ROUND(AVERAGE(OFFSET(V40:AD40,0,0,1,ion21Coop!$F$42)),1)) ->  | AH40: 2 | AI40: GeLo | AJ40: 35 | AR40: 1 | AT40: 1 | AU40: 1 | AV40: 1 | AW40: 1 | AX40: 1 | AY40: 1 | AZ40: 1 | BA40: 1 | BB40: 1 | BC40: =IF(ISBLANK(AO40),"",ROUND(AVERAGE(OFFSET(AT40:BB40,0,0,1,ion21Coop!$F$42)),1)) ->  | BF40: 3 | BG40: MiDo | BH40: 35 | BP40: 1 | BR40: 1 | BS40: 1 | BT40: 1 | BU40: 1 | BV40: 1 | BW40: 1 | BX40: 1 | BY40: 1 | BZ40: 1 | CA40: =IF(ISBLANK(BM40),"",ROUND(AVERAGE(OFFSET(BR40:BZ40,0,0,1,ion21Coop!$F$42)),1)) ->  | CD40: 4 | CE40: EmNi | CF40: 35 | CN40: 1 | CP40: 1 | CQ40: 1 | CR40: 1 | CS40: 1 | CT40: 1 | CU40: 1 | CV40: 1 | CW40: 1 | CX40: 1 | CY40: =IF(ISBLANK(CK40),"",ROUND(AVERAGE(OFFSET(CP40:CX40,0,0,1,ion21Coop!$F$42)),1)) ->  | DB40: 5 | DC40: HeJe | DD40: 35 | DL40: 1 | DN40: 1 | DO40: 1 | DP40: 1 | DQ40: 1 | DR40: 1 | DS40: 1 | DT40: 1 | DU40: 1 | DV40: 1 | DW40: =IF(ISBLANK(DI40),"",ROUND(AVERAGE(OFFSET(DN40:DV40,0,0,1,ion21Coop!$F$42)),1)) ->  | DZ40: 6 | EB40: 35 | EJ40: 1 | EL40: 1 | EM40: 1 | EN40: 1 | EO40: 1 | EP40: 1 | EQ40: 1 | ER40: 1 | ES40: 1 | ET40: 1 | EU40: =IF(ISBLANK(EG40),"",ROUND(AVERAGE(OFFSET(EL40:ET40,0,0,1,ion21Coop!$F$42)),1)) ->  | EX40: 7 | EZ40: 35 | FH40: 1 | FJ40: 1 | FK40: 1 | FL40: 1 | FM40: 1 | FN40: 1 | FO40: 1 | FP40: 1 | FQ40: 1 | FR40: 1 | FS40: =IF(ISBLANK(FE40),"",ROUND(AVERAGE(OFFSET(FJ40:FR40,0,0,1,ion21Coop!$F$42)),1)) ->  | FV40: 8 | FX40: 35 | GF40: 1 | GH40: 1 | GI40: 1 | GJ40: 1 | GK40: 1 | GL40: 1 | GM40: 1 | GN40: 1 | GO40: 1 | GP40: 1 | GQ40: =IF(ISBLANK(GC40),"",ROUND(AVERAGE(OFFSET(GH40:GP40,0,0,1,ion21Coop!$F$42)),1)) ->  | GT40: 9 | GV40: 35 | HD40: 1 | HF40: 1 | HG40: 1 | HH40: 1 | HI40: 1 | HJ40: 1 | HK40: 1 | HL40: 1 | HM40: 1 | HN40: 1 | HO40: =IF(ISBLANK(HA40),"",ROUND(AVERAGE(OFFSET(HF40:HN40,0,0,1,ion21Coop!$F$42)),1)) ->  | HR40: 10 | HT40: 35 | IB40: 1 | ID40: 1 | IE40: 1 | IF40: 1 | IG40: 1 | IH40: 1 | II40: 1 | IJ40: 1 | IK40: 1 | IL40: 1 | IM40: =IF(ISBLANK(HY40),"",ROUND(AVERAGE(OFFSET(ID40:IL40,0,0,1,ion21Coop!$F$42)),1)) ->  | IP40: 11 | IR40: 35 | IZ40: 1 | JB40: 1 | JC40: 1 | JD40: 1 | JE40: 1 | JF40: 1 | JG40: 1 | JH40: 1 | JI40: 1 | JJ40: 1 | JK40: =IF(ISBLANK(IW40),"",ROUND(AVERAGE(OFFSET(JB40:JJ40,0,0,1,ion21Coop!$F$42)),1)) ->  | JN40: 12 | JP40: 35 | JX40: 1 | JZ40: 1 | KA40: 1 | KB40: 1 | KC40: 1 | KD40: 1 | KE40: 1 | KF40: 1 | KG40: 1 | KH40: 1 | KI40: =IF(ISBLANK(JU40),"",ROUND(AVERAGE(OFFSET(JZ40:KH40,0,0,1,ion21Coop!$F$42)),1)) ->  | KL40: 13 | KN40: 35 | KV40: 1 | KX40: 1 | KY40: 1 | KZ40: 1 | LA40: 1 | LB40: 1 | LC40: 1 | LD40: 1 | LE40: 1 | LF40: 1 | LG40: =IF(ISBLANK(KS40),"",ROUND(AVERAGE(OFFSET(KX40:LF40,0,0,1,ion21Coop!$F$42)),1)) ->  | LJ40: 14 | LL40: 35 | LT40: 1 | LV40: 1 | LW40: 1 | LX40: 1 | LY40: 1 | LZ40: 1 | MA40: 1 | MB40: 1 | MC40: 1 | MD40: 1 | ME40: =IF(ISBLANK(LQ40),"",ROUND(AVERAGE(OFFSET(LV40:MD40,0,0,1,ion21Coop!$F$42)),1)) ->  | MH40: 15 | MJ40: 35 | MR40: 1 | MT40: 1 | MU40: 1 | MV40: 1 | MW40: 1 | MX40: 1 | MY40: 1 | MZ40: 1 | NA40: 1 | NB40: 1 | NC40: =IF(ISBLANK(MO40),"",ROUND(AVERAGE(OFFSET(MT40:NB40,0,0,1,ion21Coop!$F$42)),1)) ->  | NF40: 16 | NH40: 35 | NP40: 1 | NR40: 1 | NS40: 1 | NT40: 1 | NU40: 1 | NV40: 1 | NW40: 1 | NX40: 1 | NY40: 1 | NZ40: 1 | OA40: =IF(ISBLANK(NM40),"",ROUND(AVERAGE(OFFSET(NR40:NZ40,0,0,1,ion21Coop!$F$42)),1)) ->  | OD40: 17 | OF40: 35 | ON40: 1 | OP40: 1 | OQ40: 1 | OR40: 1 | OS40: 1 | OT40: 1 | OU40: 1 | OV40: 1 | OW40: 1 | OX40: 1 | OY40: =IF(ISBLANK(OK40),"",ROUND(AVERAGE(OFFSET(OP40:OX40,0,0,1,ion21Coop!$F$42)),1)) ->  | PB40: 18 | PD40: 35 | PL40: 1 | PN40: 1 | PO40: 1 | PP40: 1 | PQ40: 1 | PR40: 1 | PS40: 1 | PT40: 1 | PU40: 1 | PV40: 1 | PW40: =IF(ISBLANK(PI40),"",ROUND(AVERAGE(OFFSET(PN40:PV40,0,0,1,ion21Coop!$F$42)),1)) ->  | PZ40: 19 | QB40: 35 | QJ40: 1 | QL40: 1 | QM40: 1 | QN40: 1 | QO40: 1 | QP40: 1 | QQ40: 1 | QR40: 1 | QS40: 1 | QT40: 1 | QU40: =IF(ISBLANK(QG40),"",ROUND(AVERAGE(OFFSET(QL40:QT40,0,0,1,ion21Coop!$F$42)),1)) ->  | QX40: 20 | QZ40: 35 | RH40: 1 | RJ40: 1 | RK40: 1 | RL40: 1 | RM40: 1 | RN40: 1 | RO40: 1 | RP40: 1 | RQ40: 1 | RR40: 1 | RS40: =IF(ISBLANK(RE40),"",ROUND(AVERAGE(OFFSET(RJ40:RR40,0,0,1,ion21Coop!$F$42)),1)) ->  | RV40: 21 | RX40: 35 | SF40: 1 | SH40: 1 | SI40: 1 | SJ40: 1 | SK40: 1 | SL40: 1 | SM40: 1 | SN40: 1 | SO40: 1 | SP40: 1 | SQ40: =IF(ISBLANK(SC40),"",ROUND(AVERAGE(OFFSET(SH40:SP40,0,0,1,ion21Coop!$F$42)),1)) -> 
A41: Set: | J41: 1 | K41: YaJo | L41: 36 | T41: 1 | V41: 1 | W41: 1 | X41: 1 | Y41: 1 | Z41: 1 | AA41: 1 | AB41: 1 | AC41: 1 | AD41: 1 | AE41: =IF(ISBLANK(Q41),"",ROUND(AVERAGE(OFFSET(V41:AD41,0,0,1,ion21Coop!$F$42)),1)) ->  | AH41: 2 | AI41: GeLo | AJ41: 36 | AR41: 1 | AT41: 1 | AU41: 1 | AV41: 1 | AW41: 1 | AX41: 1 | AY41: 1 | AZ41: 1 | BA41: 1 | BB41: 1 | BC41: =IF(ISBLANK(AO41),"",ROUND(AVERAGE(OFFSET(AT41:BB41,0,0,1,ion21Coop!$F$42)),1)) ->  | BF41: 3 | BG41: MiDo | BH41: 36 | BP41: 1 | BR41: 1 | BS41: 1 | BT41: 1 | BU41: 1 | BV41: 1 | BW41: 1 | BX41: 1 | BY41: 1 | BZ41: 1 | CA41: =IF(ISBLANK(BM41),"",ROUND(AVERAGE(OFFSET(BR41:BZ41,0,0,1,ion21Coop!$F$42)),1)) ->  | CD41: 4 | CE41: EmNi | CF41: 36 | CN41: 1 | CP41: 1 | CQ41: 1 | CR41: 1 | CS41: 1 | CT41: 1 | CU41: 1 | CV41: 1 | CW41: 1 | CX41: 1 | CY41: =IF(ISBLANK(CK41),"",ROUND(AVERAGE(OFFSET(CP41:CX41,0,0,1,ion21Coop!$F$42)),1)) ->  | DB41: 5 | DC41: HeJe | DD41: 36 | DL41: 1 | DN41: 1 | DO41: 1 | DP41: 1 | DQ41: 1 | DR41: 1 | DS41: 1 | DT41: 1 | DU41: 1 | DV41: 1 | DW41: =IF(ISBLANK(DI41),"",ROUND(AVERAGE(OFFSET(DN41:DV41,0,0,1,ion21Coop!$F$42)),1)) ->  | DZ41: 6 | EB41: 36 | EJ41: 1 | EL41: 1 | EM41: 1 | EN41: 1 | EO41: 1 | EP41: 1 | EQ41: 1 | ER41: 1 | ES41: 1 | ET41: 1 | EU41: =IF(ISBLANK(EG41),"",ROUND(AVERAGE(OFFSET(EL41:ET41,0,0,1,ion21Coop!$F$42)),1)) ->  | EX41: 7 | EZ41: 36 | FH41: 1 | FJ41: 1 | FK41: 1 | FL41: 1 | FM41: 1 | FN41: 1 | FO41: 1 | FP41: 1 | FQ41: 1 | FR41: 1 | FS41: =IF(ISBLANK(FE41),"",ROUND(AVERAGE(OFFSET(FJ41:FR41,0,0,1,ion21Coop!$F$42)),1)) ->  | FV41: 8 | FX41: 36 | GF41: 1 | GH41: 1 | GI41: 1 | GJ41: 1 | GK41: 1 | GL41: 1 | GM41: 1 | GN41: 1 | GO41: 1 | GP41: 1 | GQ41: =IF(ISBLANK(GC41),"",ROUND(AVERAGE(OFFSET(GH41:GP41,0,0,1,ion21Coop!$F$42)),1)) ->  | GT41: 9 | GV41: 36 | HD41: 1 | HF41: 1 | HG41: 1 | HH41: 1 | HI41: 1 | HJ41: 1 | HK41: 1 | HL41: 1 | HM41: 1 | HN41: 1 | HO41: =IF(ISBLANK(HA41),"",ROUND(AVERAGE(OFFSET(HF41:HN41,0,0,1,ion21Coop!$F$42)),1)) ->  | HR41: 10 | HT41: 36 | IB41: 1 | ID41: 1 | IE41: 1 | IF41: 1 | IG41: 1 | IH41: 1 | II41: 1 | IJ41: 1 | IK41: 1 | IL41: 1 | IM41: =IF(ISBLANK(HY41),"",ROUND(AVERAGE(OFFSET(ID41:IL41,0,0,1,ion21Coop!$F$42)),1)) ->  | IP41: 11 | IR41: 36 | IZ41: 1 | JB41: 1 | JC41: 1 | JD41: 1 | JE41: 1 | JF41: 1 | JG41: 1 | JH41: 1 | JI41: 1 | JJ41: 1 | JK41: =IF(ISBLANK(IW41),"",ROUND(AVERAGE(OFFSET(JB41:JJ41,0,0,1,ion21Coop!$F$42)),1)) ->  | JN41: 12 | JP41: 36 | JX41: 1 | JZ41: 1 | KA41: 1 | KB41: 1 | KC41: 1 | KD41: 1 | KE41: 1 | KF41: 1 | KG41: 1 | KH41: 1 | KI41: =IF(ISBLANK(JU41),"",ROUND(AVERAGE(OFFSET(JZ41:KH41,0,0,1,ion21Coop!$F$42)),1)) ->  | KL41: 13 | KN41: 36 | KV41: 1 | KX41: 1 | KY41: 1 | KZ41: 1 | LA41: 1 | LB41: 1 | LC41: 1 | LD41: 1 | LE41: 1 | LF41: 1 | LG41: =IF(ISBLANK(KS41),"",ROUND(AVERAGE(OFFSET(KX41:LF41,0,0,1,ion21Coop!$F$42)),1)) ->  | LJ41: 14 | LL41: 36 | LT41: 1 | LV41: 1 | LW41: 1 | LX41: 1 | LY41: 1 | LZ41: 1 | MA41: 1 | MB41: 1 | MC41: 1 | MD41: 1 | ME41: =IF(ISBLANK(LQ41),"",ROUND(AVERAGE(OFFSET(LV41:MD41,0,0,1,ion21Coop!$F$42)),1)) ->  | MH41: 15 | MJ41: 36 | MR41: 1 | MT41: 1 | MU41: 1 | MV41: 1 | MW41: 1 | MX41: 1 | MY41: 1 | MZ41: 1 | NA41: 1 | NB41: 1 | NC41: =IF(ISBLANK(MO41),"",ROUND(AVERAGE(OFFSET(MT41:NB41,0,0,1,ion21Coop!$F$42)),1)) ->  | NF41: 16 | NH41: 36 | NP41: 1 | NR41: 1 | NS41: 1 | NT41: 1 | NU41: 1 | NV41: 1 | NW41: 1 | NX41: 1 | NY41: 1 | NZ41: 1 | OA41: =IF(ISBLANK(NM41),"",ROUND(AVERAGE(OFFSET(NR41:NZ41,0,0,1,ion21Coop!$F$42)),1)) ->  | OD41: 17 | OF41: 36 | ON41: 1 | OP41: 1 | OQ41: 1 | OR41: 1 | OS41: 1 | OT41: 1 | OU41: 1 | OV41: 1 | OW41: 1 | OX41: 1 | OY41: =IF(ISBLANK(OK41),"",ROUND(AVERAGE(OFFSET(OP41:OX41,0,0,1,ion21Coop!$F$42)),1)) ->  | PB41: 18 | PD41: 36 | PL41: 1 | PN41: 1 | PO41: 1 | PP41: 1 | PQ41: 1 | PR41: 1 | PS41: 1 | PT41: 1 | PU41: 1 | PV41: 1 | PW41: =IF(ISBLANK(PI41),"",ROUND(AVERAGE(OFFSET(PN41:PV41,0,0,1,ion21Coop!$F$42)),1)) ->  | PZ41: 19 | QB41: 36 | QJ41: 1 | QL41: 1 | QM41: 1 | QN41: 1 | QO41: 1 | QP41: 1 | QQ41: 1 | QR41: 1 | QS41: 1 | QT41: 1 | QU41: =IF(ISBLANK(QG41),"",ROUND(AVERAGE(OFFSET(QL41:QT41,0,0,1,ion21Coop!$F$42)),1)) ->  | QX41: 20 | QZ41: 36 | RH41: 1 | RJ41: 1 | RK41: 1 | RL41: 1 | RM41: 1 | RN41: 1 | RO41: 1 | RP41: 1 | RQ41: 1 | RR41: 1 | RS41: =IF(ISBLANK(RE41),"",ROUND(AVERAGE(OFFSET(RJ41:RR41,0,0,1,ion21Coop!$F$42)),1)) ->  | RV41: 21 | RX41: 36 | SF41: 1 | SH41: 1 | SI41: 1 | SJ41: 1 | SK41: 1 | SL41: 1 | SM41: 1 | SN41: 1 | SO41: 1 | SP41: 1 | SQ41: =IF(ISBLANK(SC41),"",ROUND(AVERAGE(OFFSET(SH41:SP41,0,0,1,ion21Coop!$F$42)),1)) -> 
A42: Reset | J42: 1 | K42: YaJo | L42: 37 | T42: 1 | V42: 1 | W42: 1 | X42: 1 | Y42: 1 | Z42: 1 | AA42: 1 | AB42: 1 | AC42: 1 | AD42: 1 | AE42: =IF(ISBLANK(Q42),"",ROUND(AVERAGE(OFFSET(V42:AD42,0,0,1,ion21Coop!$F$42)),1)) ->  | AH42: 2 | AI42: GeLo | AJ42: 37 | AR42: 1 | AT42: 1 | AU42: 1 | AV42: 1 | AW42: 1 | AX42: 1 | AY42: 1 | AZ42: 1 | BA42: 1 | BB42: 1 | BC42: =IF(ISBLANK(AO42),"",ROUND(AVERAGE(OFFSET(AT42:BB42,0,0,1,ion21Coop!$F$42)),1)) ->  | BF42: 3 | BG42: MiDo | BH42: 37 | BP42: 1 | BR42: 1 | BS42: 1 | BT42: 1 | BU42: 1 | BV42: 1 | BW42: 1 | BX42: 1 | BY42: 1 | BZ42: 1 | CA42: =IF(ISBLANK(BM42),"",ROUND(AVERAGE(OFFSET(BR42:BZ42,0,0,1,ion21Coop!$F$42)),1)) ->  | CD42: 4 | CE42: EmNi | CF42: 37 | CN42: 1 | CP42: 1 | CQ42: 1 | CR42: 1 | CS42: 1 | CT42: 1 | CU42: 1 | CV42: 1 | CW42: 1 | CX42: 1 | CY42: =IF(ISBLANK(CK42),"",ROUND(AVERAGE(OFFSET(CP42:CX42,0,0,1,ion21Coop!$F$42)),1)) ->  | DB42: 5 | DC42: HeJe | DD42: 37 | DL42: 1 | DN42: 1 | DO42: 1 | DP42: 1 | DQ42: 1 | DR42: 1 | DS42: 1 | DT42: 1 | DU42: 1 | DV42: 1 | DW42: =IF(ISBLANK(DI42),"",ROUND(AVERAGE(OFFSET(DN42:DV42,0,0,1,ion21Coop!$F$42)),1)) ->  | DZ42: 6 | EB42: 37 | EJ42: 1 | EL42: 1 | EM42: 1 | EN42: 1 | EO42: 1 | EP42: 1 | EQ42: 1 | ER42: 1 | ES42: 1 | ET42: 1 | EU42: =IF(ISBLANK(EG42),"",ROUND(AVERAGE(OFFSET(EL42:ET42,0,0,1,ion21Coop!$F$42)),1)) ->  | EX42: 7 | EZ42: 37 | FH42: 1 | FJ42: 1 | FK42: 1 | FL42: 1 | FM42: 1 | FN42: 1 | FO42: 1 | FP42: 1 | FQ42: 1 | FR42: 1 | FS42: =IF(ISBLANK(FE42),"",ROUND(AVERAGE(OFFSET(FJ42:FR42,0,0,1,ion21Coop!$F$42)),1)) ->  | FV42: 8 | FX42: 37 | GF42: 1 | GH42: 1 | GI42: 1 | GJ42: 1 | GK42: 1 | GL42: 1 | GM42: 1 | GN42: 1 | GO42: 1 | GP42: 1 | GQ42: =IF(ISBLANK(GC42),"",ROUND(AVERAGE(OFFSET(GH42:GP42,0,0,1,ion21Coop!$F$42)),1)) ->  | GT42: 9 | GV42: 37 | HD42: 1 | HF42: 1 | HG42: 1 | HH42: 1 | HI42: 1 | HJ42: 1 | HK42: 1 | HL42: 1 | HM42: 1 | HN42: 1 | HO42: =IF(ISBLANK(HA42),"",ROUND(AVERAGE(OFFSET(HF42:HN42,0,0,1,ion21Coop!$F$42)),1)) ->  | HR42: 10 | HT42: 37 | IB42: 1 | ID42: 1 | IE42: 1 | IF42: 1 | IG42: 1 | IH42: 1 | II42: 1 | IJ42: 1 | IK42: 1 | IL42: 1 | IM42: =IF(ISBLANK(HY42),"",ROUND(AVERAGE(OFFSET(ID42:IL42,0,0,1,ion21Coop!$F$42)),1)) ->  | IP42: 11 | IR42: 37 | IZ42: 1 | JB42: 1 | JC42: 1 | JD42: 1 | JE42: 1 | JF42: 1 | JG42: 1 | JH42: 1 | JI42: 1 | JJ42: 1 | JK42: =IF(ISBLANK(IW42),"",ROUND(AVERAGE(OFFSET(JB42:JJ42,0,0,1,ion21Coop!$F$42)),1)) ->  | JN42: 12 | JP42: 37 | JX42: 1 | JZ42: 1 | KA42: 1 | KB42: 1 | KC42: 1 | KD42: 1 | KE42: 1 | KF42: 1 | KG42: 1 | KH42: 1 | KI42: =IF(ISBLANK(JU42),"",ROUND(AVERAGE(OFFSET(JZ42:KH42,0,0,1,ion21Coop!$F$42)),1)) ->  | KL42: 13 | KN42: 37 | KV42: 1 | KX42: 1 | KY42: 1 | KZ42: 1 | LA42: 1 | LB42: 1 | LC42: 1 | LD42: 1 | LE42: 1 | LF42: 1 | LG42: =IF(ISBLANK(KS42),"",ROUND(AVERAGE(OFFSET(KX42:LF42,0,0,1,ion21Coop!$F$42)),1)) ->  | LJ42: 14 | LL42: 37 | LT42: 1 | LV42: 1 | LW42: 1 | LX42: 1 | LY42: 1 | LZ42: 1 | MA42: 1 | MB42: 1 | MC42: 1 | MD42: 1 | ME42: =IF(ISBLANK(LQ42),"",ROUND(AVERAGE(OFFSET(LV42:MD42,0,0,1,ion21Coop!$F$42)),1)) ->  | MH42: 15 | MJ42: 37 | MR42: 1 | MT42: 1 | MU42: 1 | MV42: 1 | MW42: 1 | MX42: 1 | MY42: 1 | MZ42: 1 | NA42: 1 | NB42: 1 | NC42: =IF(ISBLANK(MO42),"",ROUND(AVERAGE(OFFSET(MT42:NB42,0,0,1,ion21Coop!$F$42)),1)) ->  | NF42: 16 | NH42: 37 | NP42: 1 | NR42: 1 | NS42: 1 | NT42: 1 | NU42: 1 | NV42: 1 | NW42: 1 | NX42: 1 | NY42: 1 | NZ42: 1 | OA42: =IF(ISBLANK(NM42),"",ROUND(AVERAGE(OFFSET(NR42:NZ42,0,0,1,ion21Coop!$F$42)),1)) ->  | OD42: 17 | OF42: 37 | ON42: 1 | OP42: 1 | OQ42: 1 | OR42: 1 | OS42: 1 | OT42: 1 | OU42: 1 | OV42: 1 | OW42: 1 | OX42: 1 | OY42: =IF(ISBLANK(OK42),"",ROUND(AVERAGE(OFFSET(OP42:OX42,0,0,1,ion21Coop!$F$42)),1)) ->  | PB42: 18 | PD42: 37 | PL42: 1 | PN42: 1 | PO42: 1 | PP42: 1 | PQ42: 1 | PR42: 1 | PS42: 1 | PT42: 1 | PU42: 1 | PV42: 1 | PW42: =IF(ISBLANK(PI42),"",ROUND(AVERAGE(OFFSET(PN42:PV42,0,0,1,ion21Coop!$F$42)),1)) ->  | PZ42: 19 | QB42: 37 | QJ42: 1 | QL42: 1 | QM42: 1 | QN42: 1 | QO42: 1 | QP42: 1 | QQ42: 1 | QR42: 1 | QS42: 1 | QT42: 1 | QU42: =IF(ISBLANK(QG42),"",ROUND(AVERAGE(OFFSET(QL42:QT42,0,0,1,ion21Coop!$F$42)),1)) ->  | QX42: 20 | QZ42: 37 | RH42: 1 | RJ42: 1 | RK42: 1 | RL42: 1 | RM42: 1 | RN42: 1 | RO42: 1 | RP42: 1 | RQ42: 1 | RR42: 1 | RS42: =IF(ISBLANK(RE42),"",ROUND(AVERAGE(OFFSET(RJ42:RR42,0,0,1,ion21Coop!$F$42)),1)) ->  | RV42: 21 | RX42: 37 | SF42: 1 | SH42: 1 | SI42: 1 | SJ42: 1 | SK42: 1 | SL42: 1 | SM42: 1 | SN42: 1 | SO42: 1 | SP42: 1 | SQ42: =IF(ISBLANK(SC42),"",ROUND(AVERAGE(OFFSET(SH42:SP42,0,0,1,ion21Coop!$F$42)),1)) -> 
